Workbook

Sheet Tablas
A1: EJECUTOR (Dpto / Entidad) | B1: CUNDINAMARCA | F1: EJECUTOR (Dpto / Entidad) | G1: CUNDINAMARCA | L1: EJECUTOR (Dpto / Entidad) | M1: CUNDINAMARCA | R1: EJECUTOR (Dpto / Entidad) | S1: CUNDINAMARCA
F2: ESTADO | G2: (Varios elementos) | L2: ESTADO | M2: (Varios elementos) | R2: ESTADO | S2: (Varios elementos)
A3: Etiquetas de fila | B3: Cuenta de ESTADO
A4: CONTRATADO EN EJECUCIÓN | B4: 33 | F4: Etiquetas de fila | G4: Cuenta de SECTOR | H4: Suma de VALOR PROYECTO | I4: Suma de VALOR SGR | L4: Etiquetas de fila | M4: Cuenta de EJECUTOR INTERNO | N4: Suma de VALOR PROYECTO | O4: Suma de VALOR SGR | R4: Etiquetas de fila | S4: Promedio de AVANCE FÍSICO | T4: Promedio de AVANCE FINANCIERO | U4: Cuenta de EJECUTOR INTERNO
A5: CONTRATADO SIN ACTA DE INICIO | B5: 2 | F5: CTEL | G5: 27 | H5: 191779638692 | I5: 155723036786 | L5: ENTIDAD DESIGNADA PARA LA SUPERVISIÓN DEL PROYECTO O PARA CONTRATAR LA INTERVENTORÍA RAPE - INTERVENTORIA SECRETARIA DE PLANEACIÓN | M5: 1 | N5: 32499987282 | O5: 32499987282 | R5: SECRETARIA DE CIENCIA, TECNOLOGIA E INNOVACIÓN | S5: 0.5834666667 | T5: 0.7002604545 | U5: 27
A6: EN PROCESO DE CONTRATACIÓN | B6: 5 | F6: EDUCACIÓN | G6: 5 | H6: 71585959488 | I6: 114551996798 | L6: ENTIDAD DESIGNADA PARA LA SUPERVISIÓN DEL PROYECTO O PARA CONTRATAR LA INTERVENTORÍA-EMPRESAS PUBLICAS DE CUNDINAMARCA -EPC | M6: 1 | N6: 4999900475 | O6: 4999900475 | R6: SECRETARIA DE MINAS, ENERGIA Y GAS | S6: 0.57695 | T6: 0.7678666667 | U6: 5
A7: PARA CIERRE | B7: 7 | F7: AGRICULTURA | G7: 8 | H7: 5.972554259e+10 | I7: 4.813293083e+10 | L7: SECRETARIA DE GOBIERNO | M7: 1 | N7: 9260000000 | O7: 8500000000 | R7: SECRETARIA DE EDUCACIÓN | S7: 0.8963 | T7: 0.70042 | U7: 5
A8: TERMINADO | B8: 8 | F8: SALUD Y PROTECCIÓN SOCIAL | G8: 1 | H8: 43433295564 | I8: 43433295564 | L8: ICCU - GESPROY GB | M8: 1 | N8: 9976205175 | O8: 9976205175 | R8: SECRETARIA DE HABITAT Y VIVIENDA | S8: 0.749975 | T8: 0.699225 | U8: 4
A9: NO HA MIGRADO A GESPROY | B9: 1 | F9: AMBIENTE Y DESARROLLO SOSTENIBLE | G9: 3 | H9: 38972862080 | I9: 38442719610 | L9: SECRETARIA DE PLANEACIÓN | M9: 1 | N9: 6791102422 | O9: 6725380622 | R9: SECRETARIA DE COMPETITIVIDAD | S9: 0.25 | T9: 0.4718 | U9: 4
A10: SIN CONTRATAR | B10: 1 | F10: MINAS Y ENERGÍA | G10: 4 | H10: 28895282235 | I10: 16825879226 | L10: SECRETARIA GENERAL | M10: 1 | N10: 1000000000 | O10: 1000000000 | R10: UNIDAD ADMINISTRATIVA DE GESTIÓN DEL RIESGO. | S10: 0.6012 | T10: 0.1717 | U10: 2
A11: Total general | B11: 57 | F11: TRANSPORTE | G11: 2 | H11: 16767307597 | I11: 16701585797 | L11: SECRETARIA DE SALUD | M11: 1 | N11: 43433295564 | O11: 43433295564 | R11: SECRETARIA DE AGRICULTURA | S11: 0.957 | T11: 0.9479 | U11: 2
F12: JUSTICIA Y DEL DERECHO | G12: 1 | H12: 9260000000 | I12: 8500000000 | L12: UNIDAD ADMINISTRATIVA DE GESTIÓN DEL RIESGO. | M12: 2 | N12: 10384421973 | O12: 10384421973 | R12: ENTIDAD DESIGNADA PARA LA SUPERVISIÓN DEL PROYECTO O PARA CONTRATAR LA INTERVENTORÍA RAPE - INTERVENTORIA SECRETARIA DE PLANEACIÓN | S12: 0.9981 | T12: 0.9988 | U12: 1
F13: GOBIERNO TERRITORIAL | G13: 2 | H13: 7299514100 | I13: 7299514100 | L13: SECRETARIA DE AGRICULTURA | M13: 2 | N13: 16616918902 | O13: 8617237971 | R13: SECRETARIA DE SALUD | S13: 0.5438 | T13: 0.5476 | U13: 1
F14: VIVIENDA, CIUDAD Y TERRITORIO | G14: 1 | H14: 4999900475 | I14: 4999900475 | L14: SECRETARIA DE COMPETITIVIDAD | M14: 4 | N14: 2.923596746e+10 | O14: 2.62386694e+10 | R14: SECRETARIA DE PLANEACIÓN | S14: 0.9852 | T14: 0.9203 | U14: 1
G15: 1 | H15: 2354318125 | I15: 2354318125 | L15: SECRETARIA DE HABITAT Y VIVIENDA | M15: 4 | N15: 17979476172 | O15: 17339445952 | R15: ENTIDAD DESIGNADA PARA LA SUPERVISIÓN DEL PROYECTO O PARA CONTRATAR LA INTERVENTORÍA-EMPRESAS PUBLICAS DE CUNDINAMARCA -EPC | S15: 0.8768 | T15: 0.7831 | U15: 1
F16: COMERCIO, INDUSTRIA Y TURISMO | G16: 1 | H16: 1752501814 | I16: 1708104361 | L16: SECRETARIA DE EDUCACIÓN | M16: 5 | N16: 71585959488 | O16: 114551996798 | R16: SECRETARIA GENERAL | S16: 1 | T16: 0.9464 | U16: 1
F17: CULTURA | G17: 1 | H17: 1000000000 | I17: 1000000000 | L17: SECRETARIA DE MINAS, ENERGIA Y GAS | M17: 5 | N17: 28895282235 | O17: 16825879226 | R17: SECRETARIA DE AMBIENTE | S17: 0 | T17: 0 | U17: 1
F18: Total general | G18: 57 | H18: 4.778261228e+11 | I18: 4.596732817e+11 | L18: SECRETARIA DE CIENCIA, TECNOLOGIA E INNOVACIÓN | M18: 27 | N18: 191779638692 | O18: 155723036786 | R18: ICCU - GESPROY GB | S18: 0 | T18: 0 | U18: 1
L19: Total general | M19: 56 | N19: 4.744381558e+11 | O19: 4.568154572e+11 | R19: SECRETARIA DE GOBIERNO | S19: 1 | T19: 1 | U19: 1
R20: Total general | S20: 0.6285415094 | T20: 0.6705944898 | U20: 57

Sheet Vencimiento días (hidden)
A1: EJECUTOR (Dpto / Entidad) | B1: EJECUTOR INTERNO | C1: ENCARGADO DE LA ENTIDAD | D1: ENLACE EMTIDAD EJECUTORA | E1: BPIN | F1: PROYECTO | G1: SECTOR | H1: VALOR | I1: ESTADO | J1: FECHA | K1: FECHA DE TERMINACIÓN2 | L1: HOY | M1: VENCIMIENTO N° DÍAS | N1: Columna1
A2: CUNDINAMARCA | B2: SECRETARIA GENERAL | C2: YAHIR ARCINIEGAS | D2: JIMENA TAFUR | E2: 2012000050010 | F2: ESTUDIOS Y DISEÑOS PARA LA RECUPERACIÓN Y ADECUACION DEL PATRIMONIO HISTORICO CULTURAL PALACIO DE SAN FRANCISCO EN BOGOTA D.C. DEPARTAMENTO DE CUNDINAMARCA | G2: CULTURA | H2: 1000000000 | I2: TERMINADO | J2: 43465 | K2: =VLOOKUP(Tabla22[[#This Row],[BPIN ]],[1]Base1!F$3:Z$223,21,0) -> 43465 | L2: =+TODAY() -> 45012 | M2: =Tabla22[[#This Row],[FECHA ]]-Tabla22[[#This Row],[HOY]] -> -1547 | N2: =Tabla22[[#This Row],[FECHA ]]-Tabla22[[#This Row],[FECHA DE TERMINACIÓN2]] -> 0
A3: CUNDINAMARCA | B3: SECRETARIA DE COMPETITIVIDAD | C3: ALEXANDER RIVEROS/JEIMY FORERO | D3: FABIAN CUESTA | E3: 2012000050030 | F3: DESARROLLO CREACION Y FORTALECIMIENTO DE NUEVE (9) CENTROS DE EMPREDIMIENTO Y FORTALECIMIENTO EMPRESARIAL EN EL DEPARTAMENTO DE CUNDINAMARCA | G3: COMERCIO, INDUSTRIA Y TURISMO | H3: 1752501814 | I3: PARA CIERRE | J3: 42369 | K3: =VLOOKUP(Tabla22[[#This Row],[BPIN ]],[1]Base1!F$3:Z$223,21,0) -> 42369 | L3: 45012 | M3: =Tabla22[[#This Row],[FECHA ]]-Tabla22[[#This Row],[HOY]] -> -2643 | N3: =Tabla22[[#This Row],[FECHA ]]-Tabla22[[#This Row],[FECHA DE TERMINACIÓN2]] -> 0
A4: CUNDINAMARCA | B4: SECRETARIA DE CIENCIA, TECNOLOGIA E INNOVACIÓN | C4: ALEXANDER RIVEROS Y YAHIR ARCINIEGAS | D4: LUIS MANUEL GONZALEZ | E4: 2012000100010 | F4: FORTALECIMIENTO DE LAS REGIONES COLOMBIANAS EN SUS CAPACIDADES DE CTI - CUNDINAMARCA | G4: CTEL | H4: 8721806744 | I4: CONTRATADO EN EJECUCIÓN | J4: 44926 | K4: =VLOOKUP(Tabla22[[#This Row],[BPIN ]],[1]Base1!F$3:Z$223,21,0) -> 44926 | L4: 45012 | M4: =Tabla22[[#This Row],[FECHA ]]-Tabla22[[#This Row],[HOY]] -> -86 | N4: =Tabla22[[#This Row],[FECHA ]]-Tabla22[[#This Row],[FECHA DE TERMINACIÓN2]] -> 0
A5: CUNDINAMARCA | B5: SECRETARIA DE CIENCIA, TECNOLOGIA E INNOVACIÓN | C5: ALEXANDER RIVEROS Y YAHIR ARCINIEGAS | D5: LUIS MANUEL GONZALEZ | E5: 2012000100144 | F5: INVESTIGACIÓN INVESTIGACION, DESARROLLO Y TRANSFERENCIA TECNOLOGICA EN EL SECTOR AGROPECUARIO Y AGROINDUSTRIAL CON EL FIN DE MEJORAR L TODO EL DEPARTAMENTO, CUNDINAMARCA, CENTRO ORIENTE | G5: CTEL | H5: 50514736439 | I5: CONTRATADO EN EJECUCIÓN | J5: 45716 | K5: =VLOOKUP(Tabla22[[#This Row],[BPIN ]],[1]Base1!F$3:Z$223,21,0) -> 45716 | L5: 45012 | M5: =Tabla22[[#This Row],[FECHA ]]-Tabla22[[#This Row],[HOY]] -> 704 | N5: =Tabla22[[#This Row],[FECHA ]]-Tabla22[[#This Row],[FECHA DE TERMINACIÓN2]] -> 0
A6: CUNDINAMARCA | B6: SECRETARIA DE MINAS, ENERGIA Y GAS | C6: DIEGO TORRES | D6: ALVARO CHACON | E6: 2013000050026 | F6: CONSTRUCCIÓN REDES ELECTRICAS EN LA ZONA RURAL DE LOS MUNICIPIOS DE PARATEBUENO Y GUTIERREZ EN EL DEPARTAMENTO DE CUNDINAMARCA | G6: MINAS Y ENERGÍA | H6: 1068319227 | I6: TERMINADO | J6: 42369 | K6: =VLOOKUP(Tabla22[[#This Row],[BPIN ]],[1]Base1!F$3:Z$223,21,0) -> 42369 | L6: 45012 | M6: =Tabla22[[#This Row],[FECHA ]]-Tabla22[[#This Row],[HOY]] -> -2643 | N6: =Tabla22[[#This Row],[FECHA ]]-Tabla22[[#This Row],[FECHA DE TERMINACIÓN2]] -> 0
A7: ENTIDAD APORTANTE RECURSOS | B7: BANCO AGRARIO DE COLOMBIA | C7: DIEGO TORRES / JEIMY FORERO | E7: 2013000050044 | F7: CONSTRUCCIÓN CUNDINAMARCA VISR 2013 TODO EL DEPARTAMENTO, CUNDINAMARCA, CENTRO ORIENTE | G7: AGRICULTURA | H7: 60041780218 | I7: CONTRATADO EN EJECUCIÓN | J7: 45260 | K7: =VLOOKUP(Tabla22[[#This Row],[BPIN ]],[1]Base1!F$3:Z$223,21,0) -> 45260 | L7: 45012 | M7: =Tabla22[[#This Row],[FECHA ]]-Tabla22[[#This Row],[HOY]] -> 248 | N7: =Tabla22[[#This Row],[FECHA ]]-Tabla22[[#This Row],[FECHA DE TERMINACIÓN2]] -> 0
A8: CUNDINAMARCA | B8: SECRETARIA DE CIENCIA, TECNOLOGIA E INNOVACIÓN | C8: ALEXANDER RIVEROS Y YAHIR ARCINIEGAS | D8: LUIS MANUEL GONZALEZ | E8: 2013000100129 | F8: INCREMENTO EN LAS ESTRATEGIAS SUSTENTABLES EN EL USO DEL RECURSO DE ENERGA ELECTRICA PARA LA POBLACION VULNERABLE EN EL DPTO. DE CUNDINAMARCA | G8: CTEL | H8: 5170002961 | I8: CONTRATADO EN EJECUCIÓN | J8: 44865 | K8: =VLOOKUP(Tabla22[[#This Row],[BPIN ]],[1]Base1!F$3:Z$223,21,0) -> 44865 | L8: 45012 | M8: =Tabla22[[#This Row],[FECHA ]]-Tabla22[[#This Row],[HOY]] -> -147 | N8: =Tabla22[[#This Row],[FECHA ]]-Tabla22[[#This Row],[FECHA DE TERMINACIÓN2]] -> 0
A9: CUNDINAMARCA | B9: SECRETARIA DE CIENCIA, TECNOLOGIA E INNOVACIÓN | C9: ALEXANDER RIVEROS Y YAHIR ARCINIEGAS | D9: LUIS MANUEL GONZALEZ | E9: 2013000100176 | F9: INNOVACIÓN SISTEMA DE PRODUCCION DE FRUTAS/HORTALIZAS FRESCAS/PROCESADAS TIPO EXPORTACION CON TECNOLOGIA BIOLOGICA /INTEGRAL INOCUA SUBACHOQUE, CUNDINAMARCA, CENTRO ORIENTE | G9: CTEL | H9: 9285096292 | I9: CONTRATADO EN EJECUCIÓN | J9: 44377 | K9: =VLOOKUP(Tabla22[[#This Row],[BPIN ]],[1]Base1!F$3:Z$223,21,0) -> 44377 | L9: 45012 | M9: =Tabla22[[#This Row],[FECHA ]]-Tabla22[[#This Row],[HOY]] -> -635 | N9: =Tabla22[[#This Row],[FECHA ]]-Tabla22[[#This Row],[FECHA DE TERMINACIÓN2]] -> 0
A10: CUNDINAMARCA | B10: SECRETARIA DE CIENCIA, TECNOLOGIA E INNOVACIÓN | C10: ALEXANDER RIVEROS Y YAHIR ARCINIEGAS | D10: LUIS MANUEL GONZALEZ | E10: 2013000100248 | F10: INNOVACIÓN , CIENCIA Y TECNOLOGIA PARA PRODUCTORES DE LECHE EN LA PROVINCIA DE UBATE, CUNDINAMARCA. | G10: CTEL | H10: 11619725567 | I10: CONTRATADO EN EJECUCIÓN | J10: 43496 | K10: =VLOOKUP(Tabla22[[#This Row],[BPIN ]],[1]Base1!F$3:Z$223,21,0) -> 31/01/2019 | L10: 45012 | M10: =Tabla22[[#This Row],[FECHA ]]-Tabla22[[#This Row],[HOY]] -> -1516 | N10: =Tabla22[[#This Row],[FECHA ]]-Tabla22[[#This Row],[FECHA DE TERMINACIÓN2]] -> 
A11: CUNDINAMARCA | B11: SECRETARIA DE GOBIERNO | C11: DAYANA FERNANDEZ | D11: EDUARDO | E11: 2014000050010 | F11: CONSTRUCCIÓN DE UN CENTRO DE ATENCION ESPECIALIZADA AL SERVICIO DE ADOLESCENTES INFRACTORES DE LA LEY PENAL EN EL DEPARTAMENTO DE CUNDINAMARCA | G11: JUSTICIA Y DEL DERECHO | H11: 9260000000 | I11: PARA CIERRE | J11: 43190 | K11: =VLOOKUP(Tabla22[[#This Row],[BPIN ]],[1]Base1!F$3:Z$223,21,0) -> 43190 | L11: 45012 | M11: =Tabla22[[#This Row],[FECHA ]]-Tabla22[[#This Row],[HOY]] -> -1822 | N11: =Tabla22[[#This Row],[FECHA ]]-Tabla22[[#This Row],[FECHA DE TERMINACIÓN2]] -> 0
A12: CUNDINAMARCA | B12: SECRETARIA DE HABITAT Y VIVIENDA | C12: ALEXANDER RIVEROS/JEIMY FORERO | D12: BEATRIZ GAMEZ | E12: 2016000050052 | F12: CONSTRUCCIÓN DE VIVIENDAS NUEVAS RURALES EN EL DEPARTAMENTO DE CUNDINAMARCA | G12: AGRICULTURA | H12: 5983779025 | I12: CONTRATADO EN EJECUCIÓN | J12: 44561 | K12: =VLOOKUP(Tabla22[[#This Row],[BPIN ]],[1]Base1!F$3:Z$223,21,0) -> 44561 | L12: =+TODAY() -> 45012 | M12: =Tabla22[[#This Row],[FECHA ]]-Tabla22[[#This Row],[HOY]] -> -451 | N12: =Tabla22[[#This Row],[FECHA ]]-Tabla22[[#This Row],[FECHA DE TERMINACIÓN2]] -> 0
A13: CUNDINAMARCA | B13: SECRETARIA DE CIENCIA, TECNOLOGIA E INNOVACIÓN | C13: ALEXANDER RIVEROS Y YAHIR ARCINIEGAS | D13: LUIS MANUEL GONZALEZ | E13: 2016000100027 | F13: ANLISIS DE FACTORES GENETICOS, SANITARIOS Y MEDIOAMBIENTALES QUE AFECTAN LAS TASAS DE PREÑEZ A PARTIR DE EMBRIONES IN VITRO EN EL DEPARTAMENTO DE CUNDINAMARCA | G13: CTEL | H13: 6401358633 | I13: CONTRATADO EN EJECUCIÓN | J13: 44742 | K13: =VLOOKUP(Tabla22[[#This Row],[BPIN ]],[1]Base1!F$3:Z$223,21,0) -> 44742 | L13: 45012 | M13: =Tabla22[[#This Row],[FECHA ]]-Tabla22[[#This Row],[HOY]] -> -270 | N13: =Tabla22[[#This Row],[FECHA ]]-Tabla22[[#This Row],[FECHA DE TERMINACIÓN2]] -> 0
A14: ENTIDAD DESIGNADA PARA LA SUPERVISIÓN DEL PROYECTO O PARA CONTRATAR LA INTERVENTORÍA | B14: RAPE - INTERVENTORIA SECRETARIA DE PLANEACIÓN | C14: YAHIR ARCINIEGAS | D14: ANGELA MARTINEZ | E14: 2016000050012 | F14: IMPLEMENTACIÓN DE ACCIONES DE CONSERVACION Y RESTAURACION DE LOS COMPLEJOS DE PARAMO, BOSQUE ALTO-ANDINO Y SERVICIOS ECOSISTEMICOS DE LA REGION CENTRAL | G14: AMBIENTE Y DESARROLLO SOSTENIBLE | H14: 32499987282 | I14: CONTRATADO EN EJECUCIÓN | J14: 44530 | K14: =VLOOKUP(Tabla22[[#This Row],[BPIN ]],[1]Base1!F$3:Z$223,21,0) -> 44530 | L14: 45012 | M14: =Tabla22[[#This Row],[FECHA ]]-Tabla22[[#This Row],[HOY]] -> -482 | N14: =Tabla22[[#This Row],[FECHA ]]-Tabla22[[#This Row],[FECHA DE TERMINACIÓN2]] -> 0
A15: ENTIDAD APORTANTE RECURSOS | B15: MUNICIPIO DE ZIPAQUIRA | C15: ALEXANDER RIVEROS | D15: JAIRO JARA | E15: 2017000050029 | F15: CONSERVACIÓN Y GESTIÓN INTEGRAL DEL RECURSO HÍDRICO MEDIANTE LA ADQUISICIÓN Y RESTAURACIÓN DE PREDIOS DE INTERÉS ECOSISTÉMICO EN ELDEPARTAMENTO DE CUNDINAMARCA | G15: AMBIENTE Y DESARROLLO SOSTENIBLE | H15: 900000000 | I15: CONTRATADO EN EJECUCIÓN | J15: 44865 | K15: =VLOOKUP(Tabla22[[#This Row],[BPIN ]],[1]Base1!F$3:Z$223,21,0) -> 44865 | L15: 45012 | M15: =Tabla22[[#This Row],[FECHA ]]-Tabla22[[#This Row],[HOY]] -> -147 | N15: =Tabla22[[#This Row],[FECHA ]]-Tabla22[[#This Row],[FECHA DE TERMINACIÓN2]] -> 0
A16: CUNDINAMARCA | B16: SECRETARIA DE MINAS, ENERGIA Y GAS | C16: DIEGO TORRES / LIYUGETH ALFONSO | D16: JAHIR HERNANDEZ | E16: 2017000050036 | F16: IMPLEMENTACIÓN Y EXPANSIÓN DEL SERVICIO DE GAS COMBUSTIBLE POR REDES PARA VEREDAS Y CENTROS POBLADOS DEL DEPARTAMENTO DE CUNDINAMARCA | G16: MINAS Y ENERGÍA | H16: 4751658472 | I16: PARA CIERRE | J16: 44196 | K16: =VLOOKUP(Tabla22[[#This Row],[BPIN ]],[1]Base1!F$3:Z$223,21,0) -> 44196 | L16: 45012 | M16: =Tabla22[[#This Row],[FECHA ]]-Tabla22[[#This Row],[HOY]] -> -816 | N16: =Tabla22[[#This Row],[FECHA ]]-Tabla22[[#This Row],[FECHA DE TERMINACIÓN2]] -> 0
A17: CUNDINAMARCA | B17: SECRETARIA DE PLANEACIÓN | C17: YESID CASTAÑO Y JEIMY FORERO | D17: RUSVEL NIETO | E17: 2017000050039 | F17: MEJORAMIENTO DE VÍAS TERCIARIAS MEDIANTE EL USO DE PLACA HUELLA EN LOS MUNICIPIOS DE GUATAVITA, PACHO, SAN JUAN DE RIOSECO, SUBACHOQUE, TENA Y ZIPAQUIRÁ, DEPARTAMENTO DE CUNDINAMARCA | G17: TRANSPORTE | H17: 6791102422 | I17: CONTRATADO EN EJECUCIÓN | J17: 43830 | K17: =VLOOKUP(Tabla22[[#This Row],[BPIN ]],[1]Base1!F$3:Z$223,21,0) -> 43830 | L17: 45012 | M17: =Tabla22[[#This Row],[FECHA ]]-Tabla22[[#This Row],[HOY]] -> -1182 | N17: =Tabla22[[#This Row],[FECHA ]]-Tabla22[[#This Row],[FECHA DE TERMINACIÓN2]] -> 0
A18: CUNDINAMARCA | B18: SECRETARIA DE HABITAT Y VIVIENDA | C18: ALEXANDER RIVEROS/JEIMY FORERO | D18: BEATRIZ GAMEZ | E18: 2017000050042 | F18: MEJORAMIENTO DE VIVIENDAS RURALES DE LA PROVINCIA DE UBATÉ - CUNDINAMARCA | G18: AGRICULTURA | H18: 2354318125 | I18: TERMINADO | J18: 44561 | K18: =VLOOKUP(Tabla22[[#This Row],[BPIN ]],[1]Base1!F$3:Z$223,21,0) -> 44561 | L18: 45012 | M18: =Tabla22[[#This Row],[FECHA ]]-Tabla22[[#This Row],[HOY]] -> -451 | N18: =Tabla22[[#This Row],[FECHA ]]-Tabla22[[#This Row],[FECHA DE TERMINACIÓN2]] -> 0
A19: CUNDINAMARCA | B19: SECRETARIA DE AGRICULTURA | C19: DIEGO TORRES/VALENTINA PORTILLO | D19: JAVIER HERREDIA | E19: 2017000050065 | F19: MEJORAMIENTO DE LA PRODUCTIVIDAD Y RENTABILIDAD DE LOS CAFICULTORES DEL DEPARTAMENTO DE CUNDINAMARCA | G19: AGRICULTURA | H19: 6523880054 | I19: TERMINADO | J19: 44196 | K19: =VLOOKUP(Tabla22[[#This Row],[BPIN ]],[1]Base1!F$3:Z$223,21,0) -> 44196 | L19: 45012 | M19: =Tabla22[[#This Row],[FECHA ]]-Tabla22[[#This Row],[HOY]] -> -816 | N19: =Tabla22[[#This Row],[FECHA ]]-Tabla22[[#This Row],[FECHA DE TERMINACIÓN2]] -> 0
A20: CUNDINAMARCA | B20: SECRETARIA DE CIENCIA, TECNOLOGIA E INNOVACIÓN | C20: ALEXANDER RIVEROS Y YAHIR ARCINIEGAS | D20: LUIS MANUEL GONZALEZ | E20: 2017000100016 | F20: IMPLEMENTACIÓN PROGRAMA DE INNOVACIÓN PARA LA VALIDACIÓN Y GENERACIÓN DE PRODUCTOS DERIVADOS DE LA BIODIVERSIDAD EN EL DEPARTAMENTO DE CUNDINAMARCA | G20: CTEL | H20: 4486653319 | I20: CONTRATADO EN EJECUCIÓN | J20: 44926 | K20: =VLOOKUP(Tabla22[[#This Row],[BPIN ]],[1]Base1!F$3:Z$223,21,0) -> 44926 | L20: 45012 | M20: =Tabla22[[#This Row],[FECHA ]]-Tabla22[[#This Row],[HOY]] -> -86 | N20: =Tabla22[[#This Row],[FECHA ]]-Tabla22[[#This Row],[FECHA DE TERMINACIÓN2]] -> 0
A21: CUNDINAMARCA | B21: SECRETARIA DE CIENCIA, TECNOLOGIA E INNOVACIÓN | C21: ALEXANDER RIVEROS Y YAHIR ARCINIEGAS | D21: LUIS MANUEL GONZALEZ | E21: 2017000100034 | F21: IMPLEMENTACIÓN DE UN SISTEMA DE GESTIÓN DE INNOVACIÓN PARA LA INDUSTRIA DE CUNDINAMARCA | G21: CTEL | H21: 3925471448 | I21: CONTRATADO EN EJECUCIÓN | J21: 44530 | K21: =VLOOKUP(Tabla22[[#This Row],[BPIN ]],[1]Base1!F$3:Z$223,21,0) -> 44530 | L21: 45012 | M21: =Tabla22[[#This Row],[FECHA ]]-Tabla22[[#This Row],[HOY]] -> -482 | N21: =Tabla22[[#This Row],[FECHA ]]-Tabla22[[#This Row],[FECHA DE TERMINACIÓN2]] -> 0
A22: CUNDINAMARCA | B22: SECRETARIA DE CIENCIA, TECNOLOGIA E INNOVACIÓN | C22: ALEXANDER RIVEROS Y YAHIR ARCINIEGAS | D22: LUIS MANUEL GONZALEZ | E22: 2017000100074 | F22: IMPLEMENTACIÓN DE ESTRATEGIAS DE FOMENTO A LA CULTURA Y SERVICIOS DE INNOVACIÓN EN LAS PROVINCIAS SABANA OCCIDENTE, SABANA CENTRAL, SOACHA Y SUMAPAZ CUNDINAMARCA | G22: CTEL | H22: 6183633276 | I22: TERMINADO | J22: 44592 | K22: =VLOOKUP(Tabla22[[#This Row],[BPIN ]],[1]Base1!F$3:Z$223,21,0) -> 44592 | L22: 45012 | M22: =Tabla22[[#This Row],[FECHA ]]-Tabla22[[#This Row],[HOY]] -> -420 | N22: =Tabla22[[#This Row],[FECHA ]]-Tabla22[[#This Row],[FECHA DE TERMINACIÓN2]] -> 0
A23: CUNDINAMARCA | B23: SECRETARIA DE CIENCIA, TECNOLOGIA E INNOVACIÓN | C23: ALEXANDER RIVEROS Y YAHIR ARCINIEGAS | D23: LUIS MANUEL GONZALEZ | E23: 2017000100076 | F23: FORTALECIMIENTO DE CAPACIDADES DE GESTIÓN DEL RIESGO A TRAVÉS DE APROPIACIÓN SOCIAL DE LA CIENCIA, LA TECNOLOGÍA Y LA INNOVACIÓN EN EL DEPARTAMENTO DE CUNDINAMARCA | G23: CTEL | H23: 4404970720 | I23: CONTRATADO EN EJECUCIÓN | J23: 44895 | K23: =VLOOKUP(Tabla22[[#This Row],[BPIN ]],[1]Base1!F$3:Z$223,21,0) -> 44895 | L23: 45012 | M23: =Tabla22[[#This Row],[FECHA ]]-Tabla22[[#This Row],[HOY]] -> -117 | N23: =Tabla22[[#This Row],[FECHA ]]-Tabla22[[#This Row],[FECHA DE TERMINACIÓN2]] -> 0
A24: CUNDINAMARCA | B24: SECRETARIA DE CIENCIA, TECNOLOGIA E INNOVACIÓN | C24: ALEXANDER RIVEROS Y YAHIR ARCINIEGAS | D24: LUIS MANUEL GONZALEZ | E24: 2017000100087 | F24: FORMACIÓN DE TALENTO HUMANO DE ALTO NIVEL EN MAESTRÍAS EN EL DEPARTAMENTO DE CUNDINAMARCA | G24: CTEL | H24: 5148022960 | I24: CONTRATADO EN EJECUCIÓN | J24: 45747 | K24: =VLOOKUP(Tabla22[[#This Row],[BPIN ]],[1]Base1!F$3:Z$223,21,0) -> 45747 | L24: 45012 | M24: =Tabla22[[#This Row],[FECHA ]]-Tabla22[[#This Row],[HOY]] -> 735 | N24: =Tabla22[[#This Row],[FECHA ]]-Tabla22[[#This Row],[FECHA DE TERMINACIÓN2]] -> 0
A25: CUNDINAMARCA | B25: SECRETARIA DE CIENCIA, TECNOLOGIA E INNOVACIÓN | C25: ALEXANDER RIVEROS Y YAHIR ARCINIEGAS | D25: LUIS MANUEL GONZALEZ | E25: 2017000100104 | F25: FORTALECIMIENTO DE LA CULTURA DE LA GESTIÓN Y UTILIZACIÓN DEL CONOCIMIENTO EN CTEI EN NIÑOS, JÓVENES Y COMUNIDADES DEL DEPARTAMENTO DE CUNDINAMARCA | G25: CTEL | H25: 9498967749 | I25: CONTRATADO EN EJECUCIÓN | J25: 44926 | K25: =VLOOKUP(Tabla22[[#This Row],[BPIN ]],[1]Base1!F$3:Z$223,21,0) -> 44926 | L25: 45012 | M25: =Tabla22[[#This Row],[FECHA ]]-Tabla22[[#This Row],[HOY]] -> -86 | N25: =Tabla22[[#This Row],[FECHA ]]-Tabla22[[#This Row],[FECHA DE TERMINACIÓN2]] -> 0
A26: CUNDINAMARCA | B26: UNIDAD ADMINISTRATIVA DE GESTIÓN DEL RIESGO. | C26: DIEGO TORRES/VALENTINA PORTILLO | D26: GINNA HERRERA | E26: 20172401060022 | F26: ESTUDIOS DETALLADOS PARA LA INCORPORACIÓN DE LA GESTIÓN DEL RIESGO PARA LOS MUNICIPIOS DE GIRARDOT, RICAURTE | G26: AMBIENTE Y DESARROLLO SOSTENIBLE | H26: 3084907873 | I26: CONTRATADO EN EJECUCIÓN | J26: 44773 | K26: =VLOOKUP(Tabla22[[#This Row],[BPIN ]],[1]Base1!F$3:Z$223,21,0) -> 44773 | L26: 45012 | M26: =Tabla22[[#This Row],[FECHA ]]-Tabla22[[#This Row],[HOY]] -> -239 | N26: =Tabla22[[#This Row],[FECHA ]]-Tabla22[[#This Row],[FECHA DE TERMINACIÓN2]] -> 0
A27: CUNDINAMARCA | B27: SECRETARIA DE CIENCIA, TECNOLOGIA E INNOVACIÓN | C27: ALEXANDER RIVEROS Y YAHIR ARCINIEGAS | D27: LUIS MANUEL GONZALEZ | E27: 20170000100012 | F27: CONFORMACIÓN DE UNA CONVOCATORIA REGIONAL DE PROYECTOS I+D EN FOCOS PRIORIZADOS CTEI PARA EL FORTALECIMIENTO DE LOS GRUPOS DE INVESTIGACIÓN CUNDINAMARCA | G27: CTEL | H27: 7321934035 | I27: CONTRATADO EN EJECUCIÓN | J27: 44926 | K27: =VLOOKUP(Tabla22[[#This Row],[BPIN ]],[1]Base1!F$3:Z$223,21,0) -> 44926 | L27: 45012 | M27: =Tabla22[[#This Row],[FECHA ]]-Tabla22[[#This Row],[HOY]] -> -86 | N27: =Tabla22[[#This Row],[FECHA ]]-Tabla22[[#This Row],[FECHA DE TERMINACIÓN2]] -> 0
A28: ENTIDAD APORTANTE RECURSOS | B28: CAR | C28: YESID CASTAÑO | D28: CARLOS MURCIA | E28: 2017000050063 | F28: RECUPERACIÓN HIDRÁULICA Y AMBIENTAL DEL COMPLEJO LAGUNAR FÚQUENE | G28: AMBIENTE Y DESARROLLO SOSTENIBLE | H28: 18000000000 | I28: CONTRATADO EN EJECUCIÓN | J28: 45199 | K28: =VLOOKUP(Tabla22[[#This Row],[BPIN ]],[1]Base1!F$3:Z$223,21,0) -> 45199 | L28: 45012 | M28: =Tabla22[[#This Row],[FECHA ]]-Tabla22[[#This Row],[HOY]] -> 187 | N28: =Tabla22[[#This Row],[FECHA ]]-Tabla22[[#This Row],[FECHA DE TERMINACIÓN2]] -> 0
A29: ENTIDAD APORTANTE RECURSOS | B29: MUNICIPIO DE UTICA | C29: JUAN CARLOS TORRES | D29: CESAR SIMANCAS | E29: 2017000050087 | F29: MEJORAMIENTO DEL SENDERO TURÍSTICO DE LA PROVINCIA DEL GUALIVÁ – ÚTICA CUNDINAMARCA | G29: COMERCIO, INDUSTRIA Y TURISMO | H29: 2347004868 | I29: CONTRATADO EN EJECUCIÓN | J29: 44530 | K29: =VLOOKUP(Tabla22[[#This Row],[BPIN ]],[1]Base1!F$3:Z$223,21,0) -> 44530 | L29: 45012 | M29: =Tabla22[[#This Row],[FECHA ]]-Tabla22[[#This Row],[HOY]] -> -482 | N29: =Tabla22[[#This Row],[FECHA ]]-Tabla22[[#This Row],[FECHA DE TERMINACIÓN2]] -> 0
A30: CUNDINAMARCA | B30: SECRETARIA DE HABITAT Y VIVIENDA | C30: ALEXANDER RIVEROS/JEIMY FORERO | D30: BEATRIZ GAMEZ | E30: 2018000050039 | F30: MEJORAMIENTO DE VIVIENDA RURAL EN LOS MUNICIPIOS DE CUCUNUBÁ, JERUSALEN, QUEBRADANEGRA Y VIOTÁ - DEPARTAMENTO DE CUNDINAMARCA | G30: AGRICULTURA | H30: 4024793625 | I30: PARA CIERRE | J30: 44561 | K30: =VLOOKUP(Tabla22[[#This Row],[BPIN ]],[1]Base1!F$3:Z$223,21,0) -> 31/12/2021 | L30: 45012 | M30: =Tabla22[[#This Row],[FECHA ]]-Tabla22[[#This Row],[HOY]] -> -451 | N30: =Tabla22[[#This Row],[FECHA ]]-Tabla22[[#This Row],[FECHA DE TERMINACIÓN2]] -> 
A31: CUNDINAMARCA | B31: SECRETARIA DE CIENCIA, TECNOLOGIA E INNOVACIÓN | C31: ALEXANDER RIVEROS Y YAHIR ARCINIEGAS | D31: LUIS MANUEL GONZALEZ | E31: 2018000100106 | F31: INNOVACIÓN EN EL MODELO DE GESTIÓN DEL MEDICAMENTO FASE III EN EL DEPARTAMENTO DE CUNDINAMARCA | G31: CTEL | H31: 3452890062 | I31: NO HA MIGRADO A GESPROY | K31: =VLOOKUP(Tabla22[[#This Row],[BPIN ]],[1]Base1!F$3:Z$223,21,0) -> 0 | L31: 45012 | M31: =Tabla22[[#This Row],[FECHA ]]-Tabla22[[#This Row],[HOY]] -> -45012 | N31: =Tabla22[[#This Row],[FECHA ]]-Tabla22[[#This Row],[FECHA DE TERMINACIÓN2]] -> 0
A32: CUNDINAMARCA | B32: SECRETARIA DE CIENCIA, TECNOLOGIA E INNOVACIÓN | C32: ALEXANDER RIVEROS Y YAHIR ARCINIEGAS | D32: LUIS MANUEL GONZALEZ | E32: 2018000100160 | F32: FORMACIÓN DE CAPITAL HUMANO DE ALTO NIVEL PARA LA INVESTIGACIÓN, EL DESARROLLO TECNOLÓGICO Y LA INNOVACIÓN MAESTRÍAS DE INVESTIGACIÓN PARA DOCENTES DEL DEPARTAMENTO DE CUNDINAMARCA | G32: CTEL | H32: 5217415747 | I32: CONTRATADO EN EJECUCIÓN | J32: 47087 | K32: =VLOOKUP(Tabla22[[#This Row],[BPIN ]],[1]Base1!F$3:Z$223,21,0) -> 30/11/2027 | L32: 45012 | M32: =Tabla22[[#This Row],[FECHA ]]-Tabla22[[#This Row],[HOY]] -> 2075 | N32: =Tabla22[[#This Row],[FECHA ]]-Tabla22[[#This Row],[FECHA DE TERMINACIÓN2]] -> 
A33: ENTIDAD DESIGNADA PARA LA SUPERVISIÓN DEL PROYECTO O PARA CONTRATAR LA INTERVENTORÍA | B33: EMPRESAS PUBLICAS DE CUNDINAMARCA -EPC | C33: ALEXANDER RIVEROS/LIYUGETH ALFONSO | D33: PAULA ACUÑA | E33: 20181301010555 | F33: CONSTRUCCIÓN DE UNIDADES SANITARIAS EN EL ÁREA RURAL DEL DEPARTAMENTO DE CUNDINAMARCA | G33: VIVIENDA, CIUDAD Y TERRITORIO | H33: 4999900475 | I33: CONTRATADO EN EJECUCIÓN | J33: 44712 | K33: =VLOOKUP(Tabla22[[#This Row],[BPIN ]],[1]Base1!F$3:Z$223,21,0) -> 31/05/2022 | L33: 45012 | M33: =Tabla22[[#This Row],[FECHA ]]-Tabla22[[#This Row],[HOY]] -> -300 | N33: =Tabla22[[#This Row],[FECHA ]]-Tabla22[[#This Row],[FECHA DE TERMINACIÓN2]] -> 
A34: CUNDINAMARCA | B34: SECRETARIA DE EDUCACIÓN | C34: YAHIR ARCINIEGAS Y ALEXANDER RIVEROS | D34: PABLO CAJAMARCA | E34: 2019000050020 | F34: FORTALECIMIENTO DE LA PERMANENCIA DE LOS ESTUDIANTES PARA EL AÑO 2019 EN LOS MUNICIPIOS DEL DEPARTAMENTO DE CUNDINAMARCA | G34: EDUCACIÓN | H34: 20536293937 | I34: TERMINADO | J34: 43769 | K34: =VLOOKUP(Tabla22[[#This Row],[BPIN ]],[1]Base1!F$3:Z$223,21,0) -> 31/10/2019 | L34: 45012 | M34: =Tabla22[[#This Row],[FECHA ]]-Tabla22[[#This Row],[HOY]] -> -1243 | N34: =Tabla22[[#This Row],[FECHA ]]-Tabla22[[#This Row],[FECHA DE TERMINACIÓN2]] -> 
A35: CUNDINAMARCA | B35: SECRETARIA DE AGRICULTURA | C35: DIEGO TORRES/VALENTINA PORTILLO | D35: JAVIER HERREDIA | E35: 2019000050027 | F35: MEJORAMIENTO DE LA COMPETITIVIDAD DE LA CADENA PRODUCTIVA DE CACAO EN EL DEPARTAMENTO DE CUNDINAMARCA | G35: AGRICULTURA | H35: 5862983962 | I35: TERMINADO | J35: 44651 | K35: =VLOOKUP(Tabla22[[#This Row],[BPIN ]],[1]Base1!F$3:Z$223,21,0) -> 31/03/2022 | L35: 45012 | M35: =Tabla22[[#This Row],[FECHA ]]-Tabla22[[#This Row],[HOY]] -> -361 | N35: =Tabla22[[#This Row],[FECHA ]]-Tabla22[[#This Row],[FECHA DE TERMINACIÓN2]] -> 
A36: ENTIDAD APORTANTE RECURSOS | B36: MEDICINA LEGAL Y CIENCIAS FORENSES | C36: ALEXANDER RIVEROS | D36: MARTIN SEPULVEDA | E36: 2019000050025 | F36: ESTUDIOS Y DISEÑOS PARA LA CONSTRUCCIÓN DE LA SEDE DE MEDICINA LEGAL EN EL DEPARTAMENTO DE CUNDINAMARCA | G36: FISCALIA | H36: 904521100 | I36: CONTRATADO EN EJECUCIÓN | J36: 44620 | K36: =VLOOKUP(Tabla22[[#This Row],[BPIN ]],[1]Base1!F$3:Z$223,21,0) -> 28/02/2022 | L36: =+TODAY() -> 45012 | M36: =Tabla22[[#This Row],[FECHA ]]-Tabla22[[#This Row],[HOY]] -> -392 | N36: =Tabla22[[#This Row],[FECHA ]]-Tabla22[[#This Row],[FECHA DE TERMINACIÓN2]] -> 
A37: DECENTRALIZADOS | B37: IDECUT | C37: DIEGO TORRES Y YAHIR ARCINIEGAS | D37: MARTHA VANEGAS | E37: 2019000050059 | F37: FORTALECIMIENTO A LAS ESCUELAS MUNICIPALES DE MÚSICA, DANZA, TEATRO Y ARTES PLÁSTICAS Y VISUALES EN EL DEPARTAMENTO DE CUNDINAMARCA | G37: CULTURA | H37: 1972606058 | I37: TERMINADO | J37: 44530 | K37: =VLOOKUP(Tabla22[[#This Row],[BPIN ]],[1]Base1!F$3:Z$223,21,0) -> 44530 | L37: 45012 | M37: =Tabla22[[#This Row],[FECHA ]]-Tabla22[[#This Row],[HOY]] -> -482 | N37: =Tabla22[[#This Row],[FECHA ]]-Tabla22[[#This Row],[FECHA DE TERMINACIÓN2]] -> 0
A38: CUNDINAMARCA | B38: SECRETARIA DE MINAS, ENERGIA Y GAS | C38: DIEGO TORRES / LIYUGETH ALFONSO | D38: JAHIR HERNANDEZ | E38: 2019000050073 | F38: AMPLIACIÓN DE LA COBERTURA DEL SERVICIO DE GAS COMBUSTIBLE DOMICILIARIO A TRAVÉS DE LA FINANCIACIÓN DE LA CONEXIÓN Y LA RED INTERNA PARA USUARIOS DE BARRIOS PERIFÉRICOS, VEREDAS Y CENTROS POBLADOS DEL DEPARTAMENTO DE CUNDINAMARCA | G38: MINAS Y ENERGÍA | H38: 12461377100 | I38: CONTRATADO EN EJECUCIÓN | J38: 44530 | K38: =VLOOKUP(Tabla22[[#This Row],[BPIN ]],[1]Base1!F$3:Z$223,21,0) -> 30/11/2021 | L38: 45012 | M38: =Tabla22[[#This Row],[FECHA ]]-Tabla22[[#This Row],[HOY]] -> -482 | N38: =Tabla22[[#This Row],[FECHA ]]-Tabla22[[#This Row],[FECHA DE TERMINACIÓN2]] -> 
A39: ENTIDAD APORTANTE RECURSOS | B39: UNAD | C39: ALEXANDER RIVEROS | D39: ANDRES ACOSTA | E39: 2019000050069 | F39: MEJORAMIENTO DE INFRAESTRUCTURA FÍSICA, DOTACIÓN DE MOBILIARIO Y EQUIPAMIENTO TECNOLÓGICO DE LA UNIVERSIDAD NACIONAL ABIERTA Y A DISTANCIA EN MUNICIPIOS DEL DEPARTAMENTO DE CUNDINAMARCA | G39: EDUCACIÓN | H39: 16011115461 | I39: TERMINADO | J39: 44165 | K39: =VLOOKUP(Tabla22[[#This Row],[BPIN ]],[1]Base1!F$3:Z$223,21,0) -> 30/11/2020 | L39: 45012 | M39: =Tabla22[[#This Row],[FECHA ]]-Tabla22[[#This Row],[HOY]] -> -847 | N39: =Tabla22[[#This Row],[FECHA ]]-Tabla22[[#This Row],[FECHA DE TERMINACIÓN2]] -> 
A40: ENTIDAD APORTANTE RECURSOS | B40: U TECNOLOGICA DE PEREIRA | C40: YAHIR ARCINIEGAS | D40: LUIS MANUEL GONZALEZ | E40: 2019000100009 | F40: FORMACIÓN DE CAPITAL HUMANO DE ALTO NIVEL UNIVERSIDAD TECNOLÓGICA DE PEREIRA NACIONAL | G40: CTEL | H40: 4360028215 | I40: CONTRATADO EN EJECUCIÓN | J40: 46784 | K40: =VLOOKUP(Tabla22[[#This Row],[BPIN ]],[1]Base1!F$3:Z$223,21,0) -> 10/02/2028 | L40: 45012 | M40: =Tabla22[[#This Row],[FECHA ]]-Tabla22[[#This Row],[HOY]] -> 1772 | N40: =Tabla22[[#This Row],[FECHA ]]-Tabla22[[#This Row],[FECHA DE TERMINACIÓN2]] -> 
A41: ENTIDAD APORTANTE RECURSOS | B41: U EAN | C41: YAHIR ARCINIEGAS | D41: LUIS MANUEL GONZALEZ | E41: 2019000100015 | F41: FORMACIÓN DE CAPITAL HUMANO DE ALTO NIVEL - UNIVERSIDAD EAN - NACIONAL | G41: CTEL | H41: 1294375000 | I41: CONTRATADO EN EJECUCIÓN | J41: 46964 | K41: =VLOOKUP(Tabla22[[#This Row],[BPIN ]],[1]Base1!F$3:Z$223,21,0) -> 30/07/2028 | L41: 45012 | M41: =Tabla22[[#This Row],[FECHA ]]-Tabla22[[#This Row],[HOY]] -> 1952 | N41: =Tabla22[[#This Row],[FECHA ]]-Tabla22[[#This Row],[FECHA DE TERMINACIÓN2]] -> 
A42: ENTIDAD APORTANTE RECURSOS | B42: U CATOLICA | C42: YAHIR ARCINIEGAS | D42: LUIS MANUEL GONZALEZ | E42: 2019000100022 | F42: FORMACIÓN DE CAPITAL HUMANO DE ALTO NIVEL - UNIVERSIDAD CATÓLICA DE COLOMBIA - NACIONAL | G42: CTEL | H42: 343595000 | I42: CONTRATADO EN EJECUCIÓN | J42: 46904 | K42: =VLOOKUP(Tabla22[[#This Row],[BPIN ]],[1]Base1!F$3:Z$223,21,0) -> 31/05/2028 | L42: 45012 | M42: =Tabla22[[#This Row],[FECHA ]]-Tabla22[[#This Row],[HOY]] -> 1892 | N42: =Tabla22[[#This Row],[FECHA ]]-Tabla22[[#This Row],[FECHA DE TERMINACIÓN2]] -> 
A43: ENTIDAD APORTANTE RECURSOS | B43: UNIVERSIDAD MILITAR NUEVA GRANADA | C43: YAHIR ARCINIEGAS | D43: LUIS MANUEL GONZALEZ | E43: 2019000100025 | F43: FORMACIÓN DE CAPITAL HUMANO DE ALTO NIVEL UNIVERSIDAD MILITAR NUEVA GRANADA NACIONAL | G43: CTEL | H43: 294375000 | I43: CONTRATADO EN EJECUCIÓN | J43: 46752 | K43: =VLOOKUP(Tabla22[[#This Row],[BPIN ]],[1]Base1!F$3:Z$223,21,0) -> 31/12/2027 | L43: 45012 | M43: =Tabla22[[#This Row],[FECHA ]]-Tabla22[[#This Row],[HOY]] -> 1740 | N43: =Tabla22[[#This Row],[FECHA ]]-Tabla22[[#This Row],[FECHA DE TERMINACIÓN2]] -> 
A44: ENTIDAD APORTANTE RECURSOS | B44: UNIVERSIDAD NACIONAL DE COLOMBIA | C44: YAHIR ARCINIEGAS | D44: LUIS MANUEL GONZALEZ | E44: 2019000100026 | F44: FORMACIÓN DE CAPITAL HUMANO DE ALTO NIVEL UNIVERSIDAD NACIONAL DE COLOMBIA NACIONAL | G44: CTEL | H44: 21162064500 | I44: CONTRATADO EN EJECUCIÓN | J44: 46904 | K44: =VLOOKUP(Tabla22[[#This Row],[BPIN ]],[1]Base1!F$3:Z$223,21,0) -> 31/05/2028 | L44: 45012 | M44: =Tabla22[[#This Row],[FECHA ]]-Tabla22[[#This Row],[HOY]] -> 1892 | N44: =Tabla22[[#This Row],[FECHA ]]-Tabla22[[#This Row],[FECHA DE TERMINACIÓN2]] -> 
A45: ENTIDAD APORTANTE RECURSOS | B45: U DISTRITAL | C45: YAHIR ARCINIEGAS | D45: LUIS MANUEL GONZALEZ | E45: 2019000100027 | F45: FORMACIÓN DE CAPITAL HUMANO DE ALTO NIVEL EN DOCTORADO PARA EL DESARROLLO REGIONAL, UNIVERSIDAD DISTRITAL FRANCISCO JOSÉ DE CALDAS, A NIVEL NACIONAL | G45: CTEL | H45: 1218668841 | I45: CONTRATADO EN EJECUCIÓN | J45: 46899 | K45: =VLOOKUP(Tabla22[[#This Row],[BPIN ]],[1]Base1!F$3:Z$223,21,0) -> 26/05/2028 | L45: 45012 | M45: =Tabla22[[#This Row],[FECHA ]]-Tabla22[[#This Row],[HOY]] -> 1887 | N45: =Tabla22[[#This Row],[FECHA ]]-Tabla22[[#This Row],[FECHA DE TERMINACIÓN2]] -> 
A46: ENTIDAD APORTANTE RECURSOS | B46: U JAVERIANA | C46: YAHIR ARCINIEGAS | D46: LUIS MANUEL GONZALEZ | E46: 2019000100028 | F46: FORMACIÓN DE CAPITAL HUMANO DE ALTO NIVEL PONTIFICIA UNIVERSIDAD JAVERIANA SEDE CENTRAL NACIONAL | G46: CTEL | H46: 6524500000 | I46: CONTRATADO EN EJECUCIÓN | J46: 46921 | K46: =VLOOKUP(Tabla22[[#This Row],[BPIN ]],[1]Base1!F$3:Z$223,21,0) -> 17/06/2028 | L46: 45012 | M46: =Tabla22[[#This Row],[FECHA ]]-Tabla22[[#This Row],[HOY]] -> 1909 | N46: =Tabla22[[#This Row],[FECHA ]]-Tabla22[[#This Row],[FECHA DE TERMINACIÓN2]] -> 
A47: ENTIDAD APORTANTE RECURSOS | B47: U DE LOS ANDES | C47: YAHIR ARCINIEGAS | D47: LUIS MANUEL GONZALEZ | E47: 2019000100036 | F47: FORMACIÓN DE CAPITAL HUMANO DE ALTO NIVEL UNIVERSIDAD DE LOS ANDES NACIONAL | G47: CTEL | H47: 2814671307 | I47: CONTRATADO EN EJECUCIÓN | J47: 46828 | K47: =VLOOKUP(Tabla22[[#This Row],[BPIN ]],[1]Base1!F$3:Z$223,21,0) -> 16/03/2028 | L47: 45012 | M47: =Tabla22[[#This Row],[FECHA ]]-Tabla22[[#This Row],[HOY]] -> 1816 | N47: =Tabla22[[#This Row],[FECHA ]]-Tabla22[[#This Row],[FECHA DE TERMINACIÓN2]] -> 
A48: ENTIDAD APORTANTE RECURSOS | B48: UNIVERSIDAD NACIONAL DE COLOMBIA | C48: YAHIR ARCINIEGAS | D48: LUIS MANUEL GONZALEZ | E48: 2019000100061 | F48: FORTALECIMIENTO DE LA CAPACIDAD TECNOLÓGICA INSTALADA EN EL CENTRO AGROPECUARIO MARENGO PARA LA INVESTIGACIÓN EN LOS SISTEMAS AGROPRODUCTIVOS DEL TRÓPICO ALTO, BAJO EL EFECTO DE LA VARIABILIDAD Y CAMBIO CLIMÁTICO - CUNDINAMARCA | G48: CTEL | H48: 2386591598 | I48: CONTRATADO EN EJECUCIÓN | J48: 44739 | K48: =VLOOKUP(Tabla22[[#This Row],[BPIN ]],[1]Base1!F$3:Z$223,21,0) -> 27/06/2022 | L48: 45012 | M48: =Tabla22[[#This Row],[FECHA ]]-Tabla22[[#This Row],[HOY]] -> -273 | N48: =Tabla22[[#This Row],[FECHA ]]-Tabla22[[#This Row],[FECHA DE TERMINACIÓN2]] -> 
A49: CUNDINAMARCA | B49: SECRETARIA DE CIENCIA, TECNOLOGIA E INNOVACIÓN | C49: ALEXANDER RIVEROS Y YAHIR ARCINIEGAS | D49: LUIS MANUEL GONZALEZ | E49: 2020000100137 | F49: FORTALECIMIENTO DE LAS CAPACIDADES DE INVESTIGACIÓN Y DESARROLLO PARA ATENDER PROBLEMÁTICAS ASOCIADAS CON AGENTES BIOLÓGICOS PARA LA SALUD PÚBLICA, A TRAVÉS DEL MEJORAMIENTO DEL LABORATORIO DE SALUD PÚBLICA DE CUNDINAMARCA | G49: CTEL | H49: 4506359274 | I49: CONTRATADO EN EJECUCIÓN | J49: 44677 | K49: =VLOOKUP(Tabla22[[#This Row],[BPIN ]],[1]Base1!F$3:Z$223,21,0) -> 26/04/2022 | L49: 45012 | M49: =Tabla22[[#This Row],[FECHA ]]-Tabla22[[#This Row],[HOY]] -> -335 | N49: =Tabla22[[#This Row],[FECHA ]]-Tabla22[[#This Row],[FECHA DE TERMINACIÓN2]] -> 
A50: CUNDINAMARCA | B50: SECRETARIA DE SALUD | C50: DAYANA FERNANDEZ/ LIYUGETH ALFONSO | D50: OLGA LUCIA GARZON | E50: 2020000050003 | F50: ADQUISICIÓN DE AMBULANCIAS,EQUIPOS BIOMÉDICOS, ELEMENTOS DE PROTECCIÓN PERSONAL, ASEO Y DESINFECCIÓN PARA LA ATENCIÓN DE LA CALAMIDAD SANITARIA POR COVID-19 EN LAS E.S.E DEL DEPARTAMENTO DE CUNDINAMARCA | G50: SALUD Y PROTECCIÓN SOCIAL | H50: 43433295564 | I50: CONTRATADO EN EJECUCIÓN | J50: 44742 | K50: =VLOOKUP(Tabla22[[#This Row],[BPIN ]],[1]Base1!F$3:Z$223,21,0) -> 30/06/2022 | L50: 45012 | M50: =Tabla22[[#This Row],[FECHA ]]-Tabla22[[#This Row],[HOY]] -> -270 | N50: =Tabla22[[#This Row],[FECHA ]]-Tabla22[[#This Row],[FECHA DE TERMINACIÓN2]] -> 
A51: CUNDINAMARCA | B51: SECRETARIA DE EDUCACIÓN | C51: YAHIR ARCINIEGAS Y ALEXANDER RIVEROS | D51: GENNY PADILLA | E51: 2020000050019 | F51: FORTALECIMIENTO A LA ESTRATEGIA DE ALIMENTACIÓN ESCOLAR PARA EL AÑO 2020, EN LOS MUNICIPIOS DEL DEPARTAMENTO DE CUNDINAMARCA | G51: EDUCACIÓN | H51: 26240955000 | I51: PARA CIERRE | J51: 44178 | K51: =VLOOKUP(Tabla22[[#This Row],[BPIN ]],[1]Base1!F$3:Z$223,21,0) -> 13/12/2020 | L51: 45012 | M51: =Tabla22[[#This Row],[FECHA ]]-Tabla22[[#This Row],[HOY]] -> -834 | N51: =Tabla22[[#This Row],[FECHA ]]-Tabla22[[#This Row],[FECHA DE TERMINACIÓN2]] -> 
A52: CUNDINAMARCA | B52: SECRETARIA DE CIENCIA, TECNOLOGIA E INNOVACIÓN | C52: ALEXANDER RIVEROS Y YAHIR ARCINIEGAS | D52: LUIS MANUEL GONZALEZ | E52: 2020000100266 | F52: GENERACIÓN DE ESPACIOS DE ENCUENTRO DE LA SOCIEDAD CON LA CIENCIA Y LA TECNOLOGÍA - UN VIAJE CON LA CIENCIA EN EL DEPARTAMENTO DE CUNDINAMARCA | G52: CTEL | H52: 2241429590 | I52: CONTRATADO EN EJECUCIÓN | J52: 44929 | K52: =VLOOKUP(Tabla22[[#This Row],[BPIN ]],[1]Base1!F$3:Z$223,21,0) -> 03/01/2023 | L52: 45012 | M52: =Tabla22[[#This Row],[FECHA ]]-Tabla22[[#This Row],[HOY]] -> -83 | N52: =Tabla22[[#This Row],[FECHA ]]-Tabla22[[#This Row],[FECHA DE TERMINACIÓN2]] -> 
A53: CUNDINAMARCA | B53: SECRETARIA DE CIENCIA, TECNOLOGIA E INNOVACIÓN | C53: ALEXANDER RIVEROS Y YAHIR ARCINIEGAS | D53: LUIS MANUEL GONZALEZ | E53: 2020000100246 | F53: FORTALECIMIENTO DE LA COMPETITIVIDAD DE LA CADENA PRODUCTIVA DE LA GUADUA POR MEDIO DEL DESARROLLO E IMPLEMENTACIÓN DE DOS (2) PAQUETES TECNOLÓGICOS PARA LA GENERACIÓN DE PRODUCTOS CON VALOR AGREGADO EN EL DEPARTAMENTO DE CUNDINAMARCA | G53: CTEL | H53: 3144525520 | I53: CONTRATADO EN EJECUCIÓN | J53: 45120 | K53: =VLOOKUP(Tabla22[[#This Row],[BPIN ]],[1]Base1!F$3:Z$223,21,0) -> 13/07/2023 | L53: 45012 | M53: =Tabla22[[#This Row],[FECHA ]]-Tabla22[[#This Row],[HOY]] -> 108 | N53: =Tabla22[[#This Row],[FECHA ]]-Tabla22[[#This Row],[FECHA DE TERMINACIÓN2]] -> 
A54: ENTIDAD APORTANTE RECURSOS | B54: CONNECT BOGOTA REGIÓN | C54: YAHIR ARCINIEGAS | D54: LUIS MANUEL GONZALEZ | E54: 2020000100078 | F54: DISEÑO E IMPLEMENTACIÓN DE UN MODELO DE GESTIÓN DE CONOCIMIENTO, INNOVACIÓN Y TRANSFERENCIA DE TECNOLOGÍA CON APLICACIÓN EN EL SECTOR AGROPECUARIO Y AGROINDUSTRIAL EN EL DEPARTAMENTO DE CUNDINAMARCA | G54: CTEL | H54: 3309848753 | I54: CONTRATADO EN EJECUCIÓN | J54: 45473 | K54: =VLOOKUP(Tabla22[[#This Row],[BPIN ]],[1]Base1!F$3:Z$223,21,0) -> 30/06/2024 | L54: 45012 | M54: =Tabla22[[#This Row],[FECHA ]]-Tabla22[[#This Row],[HOY]] -> 461 | N54: =Tabla22[[#This Row],[FECHA ]]-Tabla22[[#This Row],[FECHA DE TERMINACIÓN2]] -> 
A55: ENTIDAD APORTANTE RECURSOS | B55: FEDERACIÓN NACIONAL DE CAFETEROS | C55: YAHIR ARCINIEGAS | D55: LUIS MANUEL GONZALEZ | E55: 2020000100205 | F55: TRASLADO DE TECNOLOGÍAS INNOVADORAS A CAFICULTORES CON IMPACTO SOBRE LA CALIDAD DEL CAFÉ Y LA GESTIÓN DEL RECURSO HÍDRICO DURANTE EL PROCESO DE BENEFICIO EN ZONA CAFETERA DEL DEPARTAMENTO DE CUNDINAMARCA | G55: CTEL | H55: 13783557324 | I55: CONTRATADO EN EJECUCIÓN | J55: 45629 | K55: =VLOOKUP(Tabla22[[#This Row],[BPIN ]],[1]Base1!F$3:Z$223,21,0) -> 03/12/2024 | L55: 45012 | M55: =Tabla22[[#This Row],[FECHA ]]-Tabla22[[#This Row],[HOY]] -> 617 | N55: =Tabla22[[#This Row],[FECHA ]]-Tabla22[[#This Row],[FECHA DE TERMINACIÓN2]] -> 
A56: ENTIDAD APORTANTE RECURSOS | B56: AGROSAVIA | C56: YAHIR ARCINIEGAS | D56: LUIS MANUEL GONZALEZ | E56: 2020000100197 | F56: DESARROLLO DE BIOPLAGUICIDAS POTENCIADOS DE NUEVA GENERACIÓN PARA EL MEJORAMIENTO DE LA PRODUCTIVIDAD E INOCUIDAD DEL CULTIVO DE TOMATE Y CRUCÍFERAS EN EL DEPARTAMENTO DE CUNDINAMARCA | G56: CTEL | H56: 4583970033 | I56: CONTRATADO EN EJECUCIÓN | J56: 46112 | K56: =VLOOKUP(Tabla22[[#This Row],[BPIN ]],[1]Base1!F$3:Z$223,21,0) -> 31/03/2026 | L56: 45012 | M56: =Tabla22[[#This Row],[FECHA ]]-Tabla22[[#This Row],[HOY]] -> 1100 | N56: =Tabla22[[#This Row],[FECHA ]]-Tabla22[[#This Row],[FECHA DE TERMINACIÓN2]] -> 
A57: ENTIDAD APORTANTE RECURSOS | B57: UNIVERSIDAD NACIONAL DE COLOMBIA | C57: YAHIR ARCINIEGAS | D57: LUIS MANUEL GONZALEZ | E57: 2020000100240 | F57: ESTUDIO DE PREFACTIBILIDAD PARA LA CREACIÓN DE UN CENTRO DE INNOVACIÓN Y DE PRODUCTIVIDAD PARA EL SECTOR AGROPECUARIO DE SABANA OCCIDENTE DE CUNDINAMARCA | G57: CTEL | H57: 1896154229 | I57: CONTRATADO EN EJECUCIÓN | J57: 44926 | K57: =VLOOKUP(Tabla22[[#This Row],[BPIN ]],[1]Base1!F$3:Z$223,21,0) -> 31/12/2022 | L57: 45012 | M57: =Tabla22[[#This Row],[FECHA ]]-Tabla22[[#This Row],[HOY]] -> -86 | N57: =Tabla22[[#This Row],[FECHA ]]-Tabla22[[#This Row],[FECHA DE TERMINACIÓN2]] -> 
A58: ENTIDAD APORTANTE RECURSOS | B58: UNIVERSIDAD DE CUNDINAMARCA | C58: YAHIR ARCINIEGAS | D58: LUIS MANUEL GONZALEZ | E58: 2020000100158 | F58: FORTALECIMIENTO DE LA INFRAESTRUCTURA FÍSICA Y TECNOLÓGICA DEL CENTRO DE ESTUDIOS AGROAMBIENTALES DE LA UNIVERSIDAD DE CUNDINAMARCA AGROU CUNDINAMARCA | G58: CTEL | H58: 2024433669 | I58: SIN CONTRATAR | K58: =VLOOKUP(Tabla22[[#This Row],[BPIN ]],[1]Base1!F$3:Z$223,21,0) -> 45489 | L58: 45012 | M58: =Tabla22[[#This Row],[FECHA ]]-Tabla22[[#This Row],[HOY]] -> -45012 | N58: =Tabla22[[#This Row],[FECHA ]]-Tabla22[[#This Row],[FECHA DE TERMINACIÓN2]] -> -45489
A59: ENTIDAD APORTANTE RECURSOS | B59: ZIPAQUIRA | C59: YESID CASTAÑO / JEIMY FORERO | E59: 2020000050013 | F59: Mejoramiento de la vía que comunica a los municipios de Zipaquirá y Tocancipá, tramo barandillas - la fuente, departamento de Cundinamarca | G59: TRANSPORTE | H59: 6.788.620.869,00 | I59: CONTRATADO EN EJECUCIÓN | J59: 44709 | K59: =VLOOKUP(Tabla22[[#This Row],[BPIN ]],[1]Base1!F$3:Z$223,21,0) -> 28/05/2022 | L59: 45012 | M59: =Tabla22[[#This Row],[FECHA ]]-Tabla22[[#This Row],[HOY]] -> -303 | N59: =Tabla22[[#This Row],[FECHA ]]-Tabla22[[#This Row],[FECHA DE TERMINACIÓN2]] -> 
A60: ENTIDAD APORTANTE RECURSOS | B60: ZIPAQUIRA | C60: YESID CASTAÑO / JEIMY FORERO | E60: 2020000050015 | F60: MEJORAMIENTO DE LA VÍA ZIPAQUIRÁ - SAN JORGE - TABIO DEPARTAMENTO DE CUNDINAMARCA | G60: TRANSPORTE | H60: 7458735075 | I60: CONTRATADO EN EJECUCIÓN | J60: 44920 | K60: =VLOOKUP(Tabla22[[#This Row],[BPIN ]],[1]Base1!F$3:Z$223,21,0) -> 25/12/2022 | L60: 45012 | M60: =Tabla22[[#This Row],[FECHA ]]-Tabla22[[#This Row],[HOY]] -> -92 | N60: =Tabla22[[#This Row],[FECHA ]]-Tabla22[[#This Row],[FECHA DE TERMINACIÓN2]] -> 
A61: CUNDINAMARCA | B61: SECRETARIA DE CIENCIA, TECNOLOGIA E INNOVACIÓN | C61: ALEXANDER RIVEROS Y YAHIR ARCINIEGAS | D61: LUIS MANUEL GONZALEZ | E61: 2020000100695 | F61: DESARROLLO, TRANSFERENCIA DE TECNOLOGÍA Y CONOCIMIENTO PARA LA INNOVACIÓN QUE FORTALEZCAN CAPACIDADES COMUNITARIAS EN LA COMPRENSIÓN Y/O MITIGACIÓN DE LOS PROBLEMAS DE VIOLENCIAS BASADAS EN GÉNERO, DERIVADAS DE LA EMERGENCIA POR COVID 19, EN CUNDINAMARCA | G61: CTEL | H61: 3100000000 | I61: CONTRATADO EN EJECUCIÓN | J61: 45000 | K61: =VLOOKUP(Tabla22[[#This Row],[BPIN ]],[1]Base1!F$3:Z$223,21,0) -> 15/03/2023 | L61: 45012 | M61: =Tabla22[[#This Row],[FECHA ]]-Tabla22[[#This Row],[HOY]] -> -12 | N61: =Tabla22[[#This Row],[FECHA ]]-Tabla22[[#This Row],[FECHA DE TERMINACIÓN2]] -> 
A62: CUNDINAMARCA | B62: SECRETARIA DE CIENCIA, TECNOLOGIA E INNOVACIÓN | C62: ALEXANDER RIVEROS Y YAHIR ARCINIEGAS | D62: LUIS MANUEL GONZALEZ | E62: 2020000100650 | F62: FORTALECIMIENTO DE CAPACIDADES DE CTEI PARALA INNOVACION EDUCATIVA EN LOS NIVELES DE BÁSICA Y MEDIA, MEDIANTE USO DE TICS EN INSTITUCIONES EDUCATIVAS OFICIALES DE LOS MUNICIPIOS NO CERTIFICADOS DEL DEPARTAMENTO DE CUNDINAMARCA | G62: CTEL | H62: 10804663122 | I62: CONTRATADO EN EJECUCIÓN | J62: 45217 | K62: =VLOOKUP(Tabla22[[#This Row],[BPIN ]],[1]Base1!F$3:Z$223,21,0) -> 18/10/2023 | L62: 45012 | M62: =Tabla22[[#This Row],[FECHA ]]-Tabla22[[#This Row],[HOY]] -> 205 | N62: =Tabla22[[#This Row],[FECHA ]]-Tabla22[[#This Row],[FECHA DE TERMINACIÓN2]] -> 
A63: CUNDINAMARCA | B63: SECRETARIA DE CIENCIA, TECNOLOGIA E INNOVACIÓN | C63: ALEXANDER RIVEROS Y YAHIR ARCINIEGAS | D63: LUIS MANUEL GONZALEZ | E63: 2020000100696 | F63: FORTALECIMIENTO DE CAPACIDADES DE CTEI PARA LA REACTIVACIÓN ECONÓMICA Y LA TRANSFORMACIÓN PRODUCTIVA EN CUNDINAMARCA | G63: CTEL | H63: 7370634083 | I63: CONTRATADO EN EJECUCIÓN | J63: 45204 | K63: =VLOOKUP(Tabla22[[#This Row],[BPIN ]],[1]Base1!F$3:Z$223,21,0) -> 05/10/2023 | L63: 45012 | M63: =Tabla22[[#This Row],[FECHA ]]-Tabla22[[#This Row],[HOY]] -> 192 | N63: =Tabla22[[#This Row],[FECHA ]]-Tabla22[[#This Row],[FECHA DE TERMINACIÓN2]] -> 
A64: CUNDINAMARCA | B64: SECRETARIA DE CIENCIA, TECNOLOGIA E INNOVACIÓN | C64: ALEXANDER RIVEROS Y YAHIR ARCINIEGAS | D64: LUIS MANUEL GONZALEZ | E64: 2020000100649 | F64: FORTALECIMIENTO DE CAPACIDADES DE CTeI PARA EL RELACIONAMIENTO ESCUELA - CONTEXTO RURAL MEDIANTE LA APROPIACIÓN Y USO DE LAS TIC EN EL MUNICIPIO DE SIBATÉ, DEPARTAMENTO DE CUNDINAMARCA | G64: CTEL | H64: 4292464018 | I64: CONTRATADO EN EJECUCIÓN | J64: 45245 | K64: =VLOOKUP(Tabla22[[#This Row],[BPIN ]],[1]Base1!F$3:Z$223,21,0) -> 15/11/2023 | L64: 45012 | M64: =Tabla22[[#This Row],[FECHA ]]-Tabla22[[#This Row],[HOY]] -> 233 | N64: =Tabla22[[#This Row],[FECHA ]]-Tabla22[[#This Row],[FECHA DE TERMINACIÓN2]] -> 
A65: ENTIDAD APORTANTE RECURSOS | B65: FUNDACION UNIVERSIDAD DEL VALLE | C65: YAHIR ARCINIEGAS | D65: JOSE MARIA LEITON | E65: 2020000050044 | F65: FORTALECIMIENTO DE LAS COMPETENCIAS COMUNICATIVAS EN INGLÉS DE LOS ESTUDIANTES DE LOS ESTABLECIMIENTOS EDUCATIVOS NO OFICIALES DE CUNDINAMARCA | G65: EDUCACIÓN | H65: $ 10.468.961.978 | I65: CONTRATADO EN EJECUCIÓN | J65: 45137 | K65: =VLOOKUP(Tabla22[[#This Row],[BPIN ]],[1]Base1!F$3:Z$223,21,0) -> 30/07/2023 | L65: 45012 | M65: =Tabla22[[#This Row],[FECHA ]]-Tabla22[[#This Row],[HOY]] -> 125 | N65: =Tabla22[[#This Row],[FECHA ]]-Tabla22[[#This Row],[FECHA DE TERMINACIÓN2]] -> 
A66: ENTIDAD APORTANTE RECURSOS | B66: UNAD | C66: YAHIR ARCINIEGAS | D66: LUIS MANUEL GONZALEZ | E66: 2020000100433 | F66: Investigación de los compuestos volátiles orgánicos e inducidos para el manejo de moscas plagas en gulupa y granadilla en el departamento de Cundinamarca | G66: CTEL | H66: 3412874201 | I66: CONTRATADO EN EJECUCIÓN | J66: 45514 | K66: =VLOOKUP(Tabla22[[#This Row],[BPIN ]],[1]Base1!F$3:Z$223,21,0) -> 10/08/2024 | L66: 45012 | M66: =Tabla22[[#This Row],[FECHA ]]-Tabla22[[#This Row],[HOY]] -> 502 | N66: =Tabla22[[#This Row],[FECHA ]]-Tabla22[[#This Row],[FECHA DE TERMINACIÓN2]] -> 
A67: ENTIDAD APORTANTE RECURSOS | B67: UNIVERSIDAD INDUSTRIAL DE SANTANDER | C67: YAHIR ARCINIEGAS | D67: LUIS MANUEL GONZALEZ | E67: 2020000100415 | F67: Desarrollo de un sistema óptico computacional para estimar el contenido de carbono orgánico de suelos agrícolas a través de imágenes espectrales e inteligencia artificial en cultivos de cítricos de Santander | G67: CTEL | H67: 2184125885 | I67: CONTRATADO EN EJECUCIÓN | J67: 45412 | K67: =VLOOKUP(Tabla22[[#This Row],[BPIN ]],[1]Base1!F$3:Z$223,21,0) -> 45412 | L67: 45012 | M67: =Tabla22[[#This Row],[FECHA ]]-Tabla22[[#This Row],[HOY]] -> 400 | N67: =Tabla22[[#This Row],[FECHA ]]-Tabla22[[#This Row],[FECHA DE TERMINACIÓN2]] -> 0
A68: ENTIDAD APORTANTE RECURSOS | B68: UNIVERSIDAD INDUSTRIAL DE SANTANDER | C68: YAHIR ARCINIEGAS | D68: LUIS MANUEL GONZALEZ | E68: 2020000100375 | F68: Conformación de una plataforma para estudios celulares avanzados in vivo en tiempo real para el análisis de la respuesta inmunometabólica ante la reexpresión de interferón tipo I kappa en esferoides de células tumorales de cuello uterino en Santander | G68: CTEL | H68: 3123997801 | I68: CONTRATADO EN EJECUCIÓN | J68: 45416 | K68: =VLOOKUP(Tabla22[[#This Row],[BPIN ]],[1]Base1!F$3:Z$223,21,0) -> 04/05/2024 | L68: 45012 | M68: =Tabla22[[#This Row],[FECHA ]]-Tabla22[[#This Row],[HOY]] -> 404 | N68: =Tabla22[[#This Row],[FECHA ]]-Tabla22[[#This Row],[FECHA DE TERMINACIÓN2]] -> 
A69: ENTIDAD APORTANTE RECURSOS | B69: UNIVERSIDAD INDUSTRIAL DE SANTANDER | C69: YAHIR ARCINIEGAS | D69: LUIS MANUEL GONZALEZ | E69: 2020000100351 | F69: Desarrollo de un prototipo selectivo y sensible para monitorear contenido de cadmio in situ en diversas matrices asociadas a la producción de granos de cacao en el departamento de Santander | G69: CTEL | H69: 2585800000 | I69: CONTRATADO EN EJECUCIÓN | J69: 44865 | K69: =VLOOKUP(Tabla22[[#This Row],[BPIN ]],[1]Base1!F$3:Z$223,21,0) -> 31/10/2022 | L69: 45012 | M69: =Tabla22[[#This Row],[FECHA ]]-Tabla22[[#This Row],[HOY]] -> -147 | N69: =Tabla22[[#This Row],[FECHA ]]-Tabla22[[#This Row],[FECHA DE TERMINACIÓN2]] -> 
A70: ENTIDAD APORTANTE RECURSOS | B70: INSTITUTO SUPERIOR DE EDUCACION RURAL DE PAMPLONA | C70: YAHIR ARCINIEGAS | D70: LUIS MANUEL GONZALEZ | E70: 2020000100343 | F70: Implementación laboratorio de calidad fisicoquímica de alimentos para el fortalecimiento competitivo y sostenible de lascadenas agroalimentarias del departamento de Norte de Santander | G70: CTEL | H70: 1097306327 | I70: CONTRATADO EN EJECUCIÓN | J70: 45427 | K70: =VLOOKUP(Tabla22[[#This Row],[BPIN ]],[1]Base1!F$3:Z$223,21,0) -> 15/05/2024 | L70: 45012 | M70: =Tabla22[[#This Row],[FECHA ]]-Tabla22[[#This Row],[HOY]] -> 415 | N70: =Tabla22[[#This Row],[FECHA ]]-Tabla22[[#This Row],[FECHA DE TERMINACIÓN2]] -> 
A71: ENTIDAD APORTANTE RECURSOS | B71: UNIVERSIDAD NACIONAL DE COLOMBIA | C71: YAHIR ARCINIEGAS | D71: LUIS MANUEL GONZALEZ | E71: 2020000100342 | F71: Estudio de potenciales insecticidas en matrices poliméricas para el control de plagas de granos almacenados basados en aceites esenciales provenientes de la biodiversidadflorística del departamento de Cundinamarca | G71: CTEL | H71: 2748237104 | I71: CONTRATADO EN EJECUCIÓN | J71: 45507 | K71: =VLOOKUP(Tabla22[[#This Row],[BPIN ]],[1]Base1!F$3:Z$223,21,0) -> 03/08/2024 | L71: 45012 | M71: =Tabla22[[#This Row],[FECHA ]]-Tabla22[[#This Row],[HOY]] -> 495 | N71: =Tabla22[[#This Row],[FECHA ]]-Tabla22[[#This Row],[FECHA DE TERMINACIÓN2]] -> 
A72: ENTIDAD APORTANTE RECURSOS | B72: UNIVERSIDAD MILITAR NUEVA GRANADA | C72: YAHIR ARCINIEGAS | D72: LUIS MANUEL GONZALEZ | E72: 2020000100728 | F72: Generación y transferencia de conocimientos y tecnologías para elevar capacidades de CTel de pequeños productores de tomate para afrontar problemas derivados del COVID-19 asociadas a la Seg. Alimentaria en las Sab. Centro y Oriente Cundinamarca | G72: CTEL | H72: 4162541452 | I72: CONTRATADO EN EJECUCIÓN | J72: 44966 | K72: =VLOOKUP(Tabla22[[#This Row],[BPIN ]],[1]Base1!F$3:Z$223,21,0) -> 09/02/2024 | L72: 45012 | M72: =Tabla22[[#This Row],[FECHA ]]-Tabla22[[#This Row],[HOY]] -> -46 | N72: =Tabla22[[#This Row],[FECHA ]]-Tabla22[[#This Row],[FECHA DE TERMINACIÓN2]] -> 
A73: ENTIDAD APORTANTE RECURSOS | B73: UNIVERSIDAD NACIONAL DE COLOMBIA | C73: YAHIR ARCINIEGAS | D73: LUIS MANUEL GONZALEZ | E73: 2020000100339 | F73: Desarrollo de Nuevos Métodos No Destructivos para Monitoreo In Situ de Probabilidad de Ocurrencia de Falla en Tuberías en el Sector de Hidrocarburos en los Departamentos de Bogotá Boyacá Santander | G73: CTEL | H73: 2412084140 | I73: CONTRATADO EN EJECUCIÓN | J73: 45077 | K73: =VLOOKUP(Tabla22[[#This Row],[BPIN ]],[1]Base1!F$3:Z$223,21,0) -> 31/05/2023 | L73: 45012 | M73: =Tabla22[[#This Row],[FECHA ]]-Tabla22[[#This Row],[HOY]] -> 65 | N73: =Tabla22[[#This Row],[FECHA ]]-Tabla22[[#This Row],[FECHA DE TERMINACIÓN2]] -> 
A74: ENTIDAD APORTANTE RECURSOS | B74: UNIVERSIDAD MILITAR NUEVA GRANADA | C74: YAHIR ARCINIEGAS | D74: LUIS MANUEL GONZALEZ | E74: 2020000100216 | F74: Innovación y transferencia tecnológica de UMNGBIO a productores de flores para el control biológico de Tetranychus urticae (Acari: Tetranychiidae) en cultivos de invernadero con el ácaro benéfico Neoseiulus californicus (Acari: Phytoseiidae) Cundinamarca | G74: CTEL | H74: 2431580000 | I74: CONTRATADO EN EJECUCIÓN | J74: 45456 | K74: =VLOOKUP(Tabla22[[#This Row],[BPIN ]],[1]Base1!F$3:Z$223,21,0) -> 13/06/2024 | L74: 45012 | M74: =Tabla22[[#This Row],[FECHA ]]-Tabla22[[#This Row],[HOY]] -> 444 | N74: =Tabla22[[#This Row],[FECHA ]]-Tabla22[[#This Row],[FECHA DE TERMINACIÓN2]] -> 
A75: CUNDINAMARCA | B75: SECRETARIA DE COMPETITIVIDAD | C75: DIEGO TORRES/VALENTINA PORTILLO | D75: FABIAN CUESTA | E75: 2019000050026 | F75: Desarrollo de un programa productivo, amigable con el medio ambiente del sector ganadero en el Departamento de Cundinamarca Cundinamarca | G75: AGRICULTURA | H75: 9757143522 | I75: CONTRATADO EN EJECUCIÓN | K75: =VLOOKUP(Tabla22[[#This Row],[BPIN ]],[1]Base1!F$3:Z$223,21,0) -> NO DEFINIDO | L75: 45012 | M75: =Tabla22[[#This Row],[FECHA ]]-Tabla22[[#This Row],[HOY]] -> -45012 | N75: =Tabla22[[#This Row],[FECHA ]]-Tabla22[[#This Row],[FECHA DE TERMINACIÓN2]] -> 
A76: ENTIDAD APORTANTE RECURSOS | B76: UNIVERSIDAD NACIONAL DE COLOMBIA | C76: YAHIR ARCINIEGAS | D76: LUIS MANUEL GONZALEZ | E76: 2020000100169 | F76: Investigación Desarrollo, innovación y transferencia de conocimiento para el procesamiento de la semilla de Sacha Inchi en productos de valor agregado, como estrategia para mejorar la productividad del sector agroindustrial de la Región Cundinamarca | G76: CTEL | H76: 2757697312 | I76: CONTRATADO EN EJECUCIÓN | J76: 45457 | K76: =VLOOKUP(Tabla22[[#This Row],[BPIN ]],[1]Base1!F$3:Z$223,21,0) -> 14/06/2024 | L76: 45012 | M76: =Tabla22[[#This Row],[FECHA ]]-Tabla22[[#This Row],[HOY]] -> 445 | N76: =Tabla22[[#This Row],[FECHA ]]-Tabla22[[#This Row],[FECHA DE TERMINACIÓN2]] -> 
A77: ENTIDAD APORTANTE RECURSOS | B77: UPTC | C77: YAHIR ARCINIEGAS | D77: LUIS MANUEL GONZALEZ | E77: 2020000100114 | F77: Fortalecimiento del ecosistema de investigación científica para CTeI en la universidad pedagógica y tecnológica de Colombia UPTC, I-SPACIO Sogamoso | G77: CTEL | H77: 2310634882 | I77: CONTRATADO EN EJECUCIÓN | J77: 45077 | K77: =VLOOKUP(Tabla22[[#This Row],[BPIN ]],[1]Base1!F$3:Z$223,21,0) -> 31/05/2023 | L77: 45012 | M77: =Tabla22[[#This Row],[FECHA ]]-Tabla22[[#This Row],[HOY]] -> 65 | N77: =Tabla22[[#This Row],[FECHA ]]-Tabla22[[#This Row],[FECHA DE TERMINACIÓN2]] -> 
A78: ENTIDAD APORTANTE RECURSOS | B78: UNIVERSIDAD DE ANTIOQUIA | C78: YAHIR ARCINIEGAS | D78: LUIS MANUEL GONZALEZ | E78: 2020000100079 | F78: Fortalecimiento de la infraestructura tecnológica y equipamiento del ambiente de formación industrial para el aumento de las capacidades institucionales en CTeI de la ETITC Bogotá | G78: CTEL | H78: 1090608306 | I78: CONTRATADO EN EJECUCIÓN | J78: 45046 | K78: =VLOOKUP(Tabla22[[#This Row],[BPIN ]],[1]Base1!F$3:Z$223,21,0) -> 30/04/2023 | L78: 45012 | M78: =Tabla22[[#This Row],[FECHA ]]-Tabla22[[#This Row],[HOY]] -> 34 | N78: =Tabla22[[#This Row],[FECHA ]]-Tabla22[[#This Row],[FECHA DE TERMINACIÓN2]] -> 
A79: ENTIDAD APORTANTE RECURSOS | B79: UNIVERSIDAD NACIONAL DE COLOMBIA | C79: YAHIR ARCINIEGAS | D79: LUIS MANUEL GONZALEZ | E79: 2020000100075 | F79: Aprovechamiento de la biodiversidad en agraz y papa para el desarrollo de cultivos promisorios en el departamento de Santander | G79: CTEL | H79: 3177259696 | I79: CONTRATADO EN EJECUCIÓN | J79: 45565 | K79: =VLOOKUP(Tabla22[[#This Row],[BPIN ]],[1]Base1!F$3:Z$223,21,0) -> 30/09/2024 | L79: 45012 | M79: =Tabla22[[#This Row],[FECHA ]]-Tabla22[[#This Row],[HOY]] -> 553 | N79: =Tabla22[[#This Row],[FECHA ]]-Tabla22[[#This Row],[FECHA DE TERMINACIÓN2]] -> 
A80: ENTIDAD APORTANTE RECURSOS | B80: UNIVERSIDAD NACIONAL DE COLOMBIA | C80: YAHIR ARCINIEGAS | D80: LUIS MANUEL GONZALEZ | E80: 2020000100019 | F80: Fortalecimiento de capacidades de investigación y desarrollo tecnológico de la Universidad Colegio Mayor de Cundinamarca a partir de tecnologías industria 4.0 para el diseño y construcción en Bogotá | G80: CTEL | H80: 2077571214 | I80: CONTRATADO EN EJECUCIÓN | J80: 45075 | K80: =VLOOKUP(Tabla22[[#This Row],[BPIN ]],[1]Base1!F$3:Z$223,21,0) -> 29/05/2023 | L80: 45012 | M80: =Tabla22[[#This Row],[FECHA ]]-Tabla22[[#This Row],[HOY]] -> 63 | N80: =Tabla22[[#This Row],[FECHA ]]-Tabla22[[#This Row],[FECHA DE TERMINACIÓN2]] -> 
A81: ENTIDAD APORTANTE RECURSOS | B81: UNIVERSIDAD INDUSTRIAL DE SANTANDER | C81: YAHIR ARCINIEGAS | D81: LUIS MANUEL GONZALEZ | E81: 2020000100017 | F81: Fortalecimiento DE LA CAPACIDAD INSTITUCIONAL DE INVESTIGACIÓN DE LA UNIVERSIDAD INDUSTRIAL DESANTANDER Nacional | G81: CTEL | H81: 2808520000 | I81: CONTRATADO EN EJECUCIÓN | J81: 45269 | K81: =VLOOKUP(Tabla22[[#This Row],[BPIN ]],[1]Base1!F$3:Z$223,21,0) -> 09/12/2023 | L81: 45012 | M81: =Tabla22[[#This Row],[FECHA ]]-Tabla22[[#This Row],[HOY]] -> 257 | N81: =Tabla22[[#This Row],[FECHA ]]-Tabla22[[#This Row],[FECHA DE TERMINACIÓN2]] -> 
A82: ENTIDAD APORTANTE RECURSOS | B82: UNIVERSIDAD MILITAR NUEVA GRANADA | C82: YAHIR ARCINIEGAS | D82: LUIS MANUEL GONZALEZ | E82: 2020000100103 | F82: Fortalecimiento de capacidades instaladas de Ciencia y Tecnología del Laboratorio de Diagnóstico en el Campus de la Univ Militar Nueva Granada, para atender problemáticas asociadas con agentes biológicos de alto riesgo para la salud humana, Cundinamarca | G82: CTEL | H82: 5162742977 | I82: CONTRATADO EN EJECUCIÓN | J82: 44834 | K82: =VLOOKUP(Tabla22[[#This Row],[BPIN ]],[1]Base1!F$3:Z$223,21,0) -> 30/09/2022 | L82: 45012 | M82: =Tabla22[[#This Row],[FECHA ]]-Tabla22[[#This Row],[HOY]] -> -178 | N82: =Tabla22[[#This Row],[FECHA ]]-Tabla22[[#This Row],[FECHA DE TERMINACIÓN2]] -> 
A83: ENTIDAD APORTANTE RECURSOS | B83: INSTITUTO UNIVERSITARIO DE LA PAZ – UNIPAZ | C83: YAHIR ARCINIEGAS | D83: LUIS MANUEL GONZALEZ | E83: 2020000100042 | F83: Fortalecimiento de los procesos académicos en los programas ofrecidos por el Instituto Universitario de la Paz, UNIPAZ, Barrancabermeja | G83: CTEL | H83: 1178749590 | I83: CONTRATADO EN EJECUCIÓN | J83: 44705 | K83: =VLOOKUP(Tabla22[[#This Row],[BPIN ]],[1]Base1!F$3:Z$223,21,0) -> 24/05/2022 | L83: 45012 | M83: =Tabla22[[#This Row],[FECHA ]]-Tabla22[[#This Row],[HOY]] -> -307 | N83: =Tabla22[[#This Row],[FECHA ]]-Tabla22[[#This Row],[FECHA DE TERMINACIÓN2]] -> 
A84: ENTIDAD APORTANTE RECURSOS | B84: INSTITUTO UNIVERSITARIO DE LA PAZ – UNIPAZ | C84: YAHIR ARCINIEGAS | D84: LUIS MANUEL GONZALEZ | E84: 2020000100016 | F84: Adecuación , DOTACIÓN E IMPLEMENTACIÓN DE UN LABORATORIO DE FABRICACIÓN DIGITAL PARA PROMOVER EL DESARROLLO DE LA CIENCIA, LAINNOVACIÓN Y EL EMPRENDIMIENTO EN LA UNIVERSIDAD FRANCISCO DE PAULA SANTANDER. Cúcuta | G84: CTEL | H84: 2921057589 | I84: CONTRATADO EN EJECUCIÓN | J84: 44872 | K84: =VLOOKUP(Tabla22[[#This Row],[BPIN ]],[1]Base1!F$3:Z$223,21,0) -> 07/11/2022 | L84: 45012 | M84: =Tabla22[[#This Row],[FECHA ]]-Tabla22[[#This Row],[HOY]] -> -140 | N84: =Tabla22[[#This Row],[FECHA ]]-Tabla22[[#This Row],[FECHA DE TERMINACIÓN2]] -> 
A85: ENTIDAD APORTANTE RECURSOS | B85: UNIVERSIDAD TECNOLOGICA DE SANTANDER | C85: YAHIR ARCINIEGAS | D85: LUIS MANUEL GONZALEZ | E85: 2020000100004 | F85: Fortalecimiento y adecuación de equipos e infraestructura del Laboratorio de física del Departamento de Ciencias Básicas, para el mejoramiento de las capacidades institucionales y la investigación en las Unidades Tecnológicas de Santander - Bucaramanga | G85: CTEL | H85: 1016752702 | I85: CONTRATADO EN EJECUCIÓN | K85: =VLOOKUP(Tabla22[[#This Row],[BPIN ]],[1]Base1!F$3:Z$223,21,0) -> 30/11/2022 | L85: 45012 | M85: =Tabla22[[#This Row],[FECHA ]]-Tabla22[[#This Row],[HOY]] -> -45012 | N85: =Tabla22[[#This Row],[FECHA ]]-Tabla22[[#This Row],[FECHA DE TERMINACIÓN2]] -> 
A86: CUNDINAMARCA | B86: SECRETARIA DE EDUCACIÓN | C86: YAHIR ARCINIEGAS | D86: GENNY PADILLA | E86: 2020000050037 | F86: Dotación del mobiliario escolar para las instituciones educativas de los municipios no certificados del Departamento de Cundinamarca | G86: EDUCACIÓN | H86: 10093038848 | I86: CONTRATADO EN EJECUCIÓN | J86: 44773 | K86: =VLOOKUP(Tabla22[[#This Row],[BPIN ]],[1]Base1!F$3:Z$223,21,0) -> 31/07/2022 | L86: 45012 | M86: =Tabla22[[#This Row],[FECHA ]]-Tabla22[[#This Row],[HOY]] -> -239 | N86: =Tabla22[[#This Row],[FECHA ]]-Tabla22[[#This Row],[FECHA DE TERMINACIÓN2]] -> 
A87: ENTIDAD APORTANTE RECURSOS | B87: UNIVERSIDAD DEL NORTE | C87: YAHIR ARCINIEGAS | D87: LUIS MANUEL GONZALEZ | E87: 2020000100287 | F87: Formación de Capital Humano de Alto Nivel Universidad del Norte 2do Corte Nacional | G87: CTEL | H87: 6920233499 | I87: CONTRATADO EN EJECUCIÓN | J87: 47299 | K87: =VLOOKUP(Tabla22[[#This Row],[BPIN ]],[1]Base1!F$3:Z$223,21,0) -> 30/06/2029 | L87: 45012 | M87: =Tabla22[[#This Row],[FECHA ]]-Tabla22[[#This Row],[HOY]] -> 2287 | N87: =Tabla22[[#This Row],[FECHA ]]-Tabla22[[#This Row],[FECHA DE TERMINACIÓN2]] -> 
A88: ENTIDAD APORTANTE RECURSOS | B88: UNIVERSIDAD DEL VALLE | C88: YAHIR ARCINIEGAS | D88: LUIS MANUEL GONZALEZ | E88: 2020000100345 | F88: Formación de capital humano de alto Nivel segundo Corte Universidad del Valle Nacional | G88: CTEL | H88: 5913070114 | I88: CONTRATADO EN EJECUCIÓN | J88: 47330 | K88: =VLOOKUP(Tabla22[[#This Row],[BPIN ]],[1]Base1!F$3:Z$223,21,0) -> 31/07/2029 | L88: =+TODAY() -> 45012 | M88: =Tabla22[[#This Row],[FECHA ]]-Tabla22[[#This Row],[HOY]] -> 2318 | N88: =Tabla22[[#This Row],[FECHA ]]-Tabla22[[#This Row],[FECHA DE TERMINACIÓN2]] -> 
A89: ENTIDAD APORTANTE RECURSOS | B89: UNIVERSIDAD NACIONAL DE COLOMBIA | C89: YAHIR ARCINIEGAS | D89: LUIS MANUEL GONZALEZ | E89: 2021000100003 | F89: Formación de Capital Humano de Alto Nivel Universidad Nacional de Colombia Corte II Nacionl | G89: CTEL | H89: 18418143500 | I89: CONTRATADO EN EJECUCIÓN | J89: 47330 | K89: =VLOOKUP(Tabla22[[#This Row],[BPIN ]],[1]Base1!F$3:Z$223,21,0) -> 31/07/2029 | L89: 45012 | M89: =Tabla22[[#This Row],[FECHA ]]-Tabla22[[#This Row],[HOY]] -> 2318 | N89: =Tabla22[[#This Row],[FECHA ]]-Tabla22[[#This Row],[FECHA DE TERMINACIÓN2]] -> 
A90: ENTIDAD APORTANTE RECURSOS | B90: UNIVERSIDAD DE LA SABANA | C90: YAHIR ARCINIEGAS | D90: LUIS MANUEL GONZALEZ | E90: 2021000100004 | F90: Formación de Capital Humano de Alto Nivel Universidad de La Sabana Core 2 Nacional | G90: CTEL | H90: 1519950000 | I90: CONTRATADO EN EJECUCIÓN | J90: 47385 | K90: =VLOOKUP(Tabla22[[#This Row],[BPIN ]],[1]Base1!F$3:Z$223,21,0) -> 24/09/2029 | L90: 45012 | M90: =Tabla22[[#This Row],[FECHA ]]-Tabla22[[#This Row],[HOY]] -> 2373 | N90: =Tabla22[[#This Row],[FECHA ]]-Tabla22[[#This Row],[FECHA DE TERMINACIÓN2]] -> 
A91: ENTIDAD APORTANTE RECURSOS | B91: UNIVERSIDAD ANTONIO NARIÑO | C91: YAHIR ARCINIEGAS | D91: LUIS MANUEL GONZALEZ | E91: 2021000100014 | F91: Formación de Capital Humano de Alto Nivel Universidad Antonio Nariño Core 2 Nacional | G91: CTEL | H91: 4526652200 | I91: CONTRATADO EN EJECUCIÓN | J91: 47311 | K91: =VLOOKUP(Tabla22[[#This Row],[BPIN ]],[1]Base1!F$3:Z$223,21,0) -> 12/07/2029 | L91: 45012 | M91: =Tabla22[[#This Row],[FECHA ]]-Tabla22[[#This Row],[HOY]] -> 2299 | N91: =Tabla22[[#This Row],[FECHA ]]-Tabla22[[#This Row],[FECHA DE TERMINACIÓN2]] -> 
A92: ENTIDAD APORTANTE RECURSOS | B92: UNIVERSIDAD EAN | C92: YAHIR ARCINIEGAS | D92: LUIS MANUEL GONZALEZ | E92: 2021000100025 | F92: Formación DE CAPITAL HUMANO DE ALTO NIVEL UNIVERSIDAD EAN NACIONAL COHORTE II Nacional | G92: CTEL | H92: 2044506416 | I92: CONTRATADO EN EJECUCIÓN | J92: 47425 | K92: =VLOOKUP(Tabla22[[#This Row],[BPIN ]],[1]Base1!F$3:Z$223,21,0) -> 03/11/2029 | L92: 45012 | M92: =Tabla22[[#This Row],[FECHA ]]-Tabla22[[#This Row],[HOY]] -> 2413 | N92: =Tabla22[[#This Row],[FECHA ]]-Tabla22[[#This Row],[FECHA DE TERMINACIÓN2]] -> 
A93: ENTIDAD APORTANTE RECURSOS | B93: UNIVERSIDAD MILITAR NUEVA GRANADA | C93: YAHIR ARCINIEGAS | D93: LUIS MANUEL GONZALEZ | E93: 2021000100026 | F93: Formación de Capital Humano de Alto Nivel Universidad Militar Nueva Granada Segundo Corte Nacional | G93: CTEL | H93: 751632481 | I93: CONTRATADO EN EJECUCIÓN | J93: 47184 | K93: =VLOOKUP(Tabla22[[#This Row],[BPIN ]],[1]Base1!F$3:Z$223,21,0) -> 07/03/2029 | L93: 45012 | M93: =Tabla22[[#This Row],[FECHA ]]-Tabla22[[#This Row],[HOY]] -> 2172 | N93: =Tabla22[[#This Row],[FECHA ]]-Tabla22[[#This Row],[FECHA DE TERMINACIÓN2]] -> 
A94: ENTIDAD APORTANTE RECURSOS | B94: PONIFICA UNIVERSIDAD JAVERIANA | C94: YAHIR ARCINIEGAS | D94: LUIS MANUEL GONZALEZ | E94: 2021000100027 | F94: Formación de Capital Humano de Alto Nivel Pontificia Universidad Javeriana Sede Bogotá Corte II Nacional | G94: CTEL | H94: 8577491761 | I94: CONTRATADO EN EJECUCIÓN | K94: =VLOOKUP(Tabla22[[#This Row],[BPIN ]],[1]Base1!F$3:Z$223,21,0) -> No definido | L94: 45012 | M94: =Tabla22[[#This Row],[FECHA ]]-Tabla22[[#This Row],[HOY]] -> -45012 | N94: =Tabla22[[#This Row],[FECHA ]]-Tabla22[[#This Row],[FECHA DE TERMINACIÓN2]] -> 
A95: ENTIDAD APORTANTE RECURSOS | B95: UNIVERSIDAD DE CALDAS | C95: YAHIR ARCINIEGAS | D95: LUIS MANUEL GONZALEZ | E95: 2021000100028 | F95: Formación de capital humano de alto nivel Corte 2 Universidad de Caldas - Nacional | G95: CTEL | H95: 63580000000 | I95: CONTRATADO EN EJECUCIÓN | J95: 47356 | K95: =VLOOKUP(Tabla22[[#This Row],[BPIN ]],[1]Base1!F$3:Z$223,21,0) -> 26/08/2029 | L95: 45012 | M95: =Tabla22[[#This Row],[FECHA ]]-Tabla22[[#This Row],[HOY]] -> 2344 | N95: =Tabla22[[#This Row],[FECHA ]]-Tabla22[[#This Row],[FECHA DE TERMINACIÓN2]] -> 
A96: CUNDINAMARCA | B96: SECRETARIA DE EDUCACIÓN | C96: YAHIR ARCINIEGAS | D96: GENNY PADILLA | E96: 2021004250258 | F96: Fortalecimiento a la Estrategia de Alimentación Escolar para el año 2021 en los municipios del Departamento de Cundinamarca | G96: EDUCACIÓN | H96: 16289941201 | I96: CONTRATADO EN EJECUCIÓN | J96: 44760 | K96: =VLOOKUP(Tabla22[[#This Row],[BPIN ]],[1]Base1!F$3:Z$223,21,0) -> 18/07/2022 | L96: 45012 | M96: =Tabla22[[#This Row],[FECHA ]]-Tabla22[[#This Row],[HOY]] -> -252 | N96: =Tabla22[[#This Row],[FECHA ]]-Tabla22[[#This Row],[FECHA DE TERMINACIÓN2]] -> 
A97: CUNDINAMARCA | B97: SECRETARIA DE HABITAT Y VIVIENDA | C97: ALEXANDER RIVEROS/JEIMY FORERO | D97: BEATRIZ GAMEZ | E97: 2018000050050 | F97: Mejoramiento vivienda rural mediante construcción de cocinas habitaciones y pisos en los municipios de Cundinamarca | G97: AGRICULTURA | H97: 5616585397 | I97: EN PROCESO DE CONTRATACIÓN | J97: 45023 | K97: =VLOOKUP(Tabla22[[#This Row],[BPIN ]],[1]Base1!F$3:Z$223,21,0) -> 45023 | L97: 45012 | M97: =Tabla22[[#This Row],[FECHA ]]-Tabla22[[#This Row],[HOY]] -> 11 | N97: =Tabla22[[#This Row],[FECHA ]]-Tabla22[[#This Row],[FECHA DE TERMINACIÓN2]] -> 0
A98: CUNDINAMARCA | B98: SECRETARIA DE COMPETITIVIDAD | C98: ALEXANDER RIVEROS/JEIMY FORERO | D98: FABIAN CUESTA | E98: 2020000050035 | F98: Fortalecimiento de los sistemas productivos a través de la reactivación del sector agrícola en el Departamento de Cundinamarca | G98: AGRICULTURA | H98: 8993872201 | I98: EN PROCESO DE CONTRATACIÓN | J98: 45322 | K98: =VLOOKUP(Tabla22[[#This Row],[BPIN ]],[1]Base1!F$3:Z$223,21,0) -> 45322 | L98: 45012 | M98: =Tabla22[[#This Row],[FECHA ]]-Tabla22[[#This Row],[HOY]] -> 310 | N98: =Tabla22[[#This Row],[FECHA ]]-Tabla22[[#This Row],[FECHA DE TERMINACIÓN2]] -> 0
A99: CUNDINAMARCA | B99: SECRETARIA DE MINAS, ENERGIA Y GAS | C99: DIEGO TORRES / LIYUGETH ALFONSO | D99: YAHIR | E99: 2021004250686 | F99: Construcción Del Centro De Formación E Innovación Minero Energético De Cundinamarca | G99: GOBIERNO TERRITORIAL | H99: $ 13.770.893.382,00 | I99: EN PROCESO DE CONTRATACIÓN | J99: 44888 | K99: =VLOOKUP(Tabla22[[#This Row],[BPIN ]],[1]Base1!F$3:Z$223,21,0) -> 44888 | L99: 45012 | M99: =Tabla22[[#This Row],[FECHA ]]-Tabla22[[#This Row],[HOY]] -> -124 | N99: =Tabla22[[#This Row],[FECHA ]]-Tabla22[[#This Row],[FECHA DE TERMINACIÓN2]] -> 0
A100: CUNDINAMARCA | B100: UNIDAD ADMINISTRATIVA DE GESTIÓN DEL RIESGO. | C100: DIEGO TORRES/VALENTINA PORTILLO | D100: GINNA HERRERA | E100: 2021004250690 | F100: Fortalecimiento del sistema automotor para la gestión del riesgo de desastres del departamento de Cundinamarca | G100: GOBIERNO TERRITORIAL | H100: 7299514100 | I100: EN PROCESO DE CONTRATACIÓN | J100: 44888 | K100: =VLOOKUP(Tabla22[[#This Row],[BPIN ]],[1]Base1!F$3:Z$223,21,0) -> 44888 | L100: 45012 | M100: =Tabla22[[#This Row],[FECHA ]]-Tabla22[[#This Row],[HOY]] -> -124 | N100: =Tabla22[[#This Row],[FECHA ]]-Tabla22[[#This Row],[FECHA DE TERMINACIÓN2]] -> 0
A101: CUNDINAMARCA | B101: SECRETARIA DE COMPETITIVIDAD | C101: ALEXANDER RIVEROS/JEIMY FORERO | D101: FABIAN CUESTA | E101: 2020000050038 | F101: Optimización de los sistemas Ganaderos bovinos de carne leche y doble propósito a partir de la implementación de mejoramiento genético productivo y entrega de maquinaria y equipos en municipios del Departamento de Cundinamarca | G101: AGRICULTURA | H101: 8732449919 | I101: SIN CONTRATAR | J101: 45565 | K101: =VLOOKUP(Tabla22[[#This Row],[BPIN ]],[1]Base1!F$3:Z$223,21,0) -> 45565 | L101: 45012 | M101: =Tabla22[[#This Row],[FECHA ]]-Tabla22[[#This Row],[HOY]] -> 553 | N101: =Tabla22[[#This Row],[FECHA ]]-Tabla22[[#This Row],[FECHA DE TERMINACIÓN2]] -> 0
A102: DECENTRALIZADOS | B102: ICCU - GESPROY GB | C102: DIEGO TORRES / JEIMY FORERO | D102: GIOVANY QUEVEDO | E102: 2018000050024 | F102: MEJORAMIENTO Y REHABILITACIÓN DE LA VÍA LA MARÍA – TOBIA - PASO EL REJO - LA PEÑA, DEPARTAMENTO DE CUNDINAMARCA | G102: TRANSPORTE | H102: 9149162991 | I102: TERMINADO | J102: 44316 | K102: =VLOOKUP(Tabla22[[#This Row],[BPIN ]],[1]Base1!F$3:Z$223,21,0) -> 30/04/2021 | L102: =+TODAY() -> 45012 | M102: =Tabla22[[#This Row],[FECHA ]]-Tabla22[[#This Row],[HOY]] -> -696 | N102: =Tabla22[[#This Row],[FECHA ]]-Tabla22[[#This Row],[FECHA DE TERMINACIÓN2]] -> 
A103: DECENTRALIZADOS | B103: ICCU - GESPROY GB | C103: DIEGO TORRES / JEIMY FORERO | D103: GIOVANY QUEVEDO | E103: 2018000050026 | F103: MEJORAMIENTO DE VÍAS EN LA PROVINCIA DE SUMAPAZ PARA LA CONSOLIDACIÓN DE UNA PAZ ESTABLE Y DURADERA EN EL DEPARTAMENTO DE CUNDINAMARCA | G103: TRANSPORTE | H103: 11457047617 | I103: CONTRATADO EN EJECUCIÓN | J103: 44316 | K103: =VLOOKUP(Tabla22[[#This Row],[BPIN ]],[1]Base1!F$3:Z$223,21,0) -> 30/04/2021 | L103: 45012 | M103: =Tabla22[[#This Row],[FECHA ]]-Tabla22[[#This Row],[HOY]] -> -696 | N103: =Tabla22[[#This Row],[FECHA ]]-Tabla22[[#This Row],[FECHA DE TERMINACIÓN2]] -> 
A104: DECENTRALIZADOS | B104: ICCU - GESPROY GB | C104: DIEGO TORRES / JEIMY FORERO | D104: GIOVANY QUEVEDO | E104: 2018000050059 | F104: Mejoramiento de la vía Gusbita - Tibirita del Departamento de Cundinamarca | G104: TRANSPORTE | H104: 5500531740 | I104: TERMINADO | J104: 44469 | K104: =VLOOKUP(Tabla22[[#This Row],[BPIN ]],[1]Base1!F$3:Z$223,21,0) -> 30/09/2021 | L104: 45012 | M104: =Tabla22[[#This Row],[FECHA ]]-Tabla22[[#This Row],[HOY]] -> -543 | N104: =Tabla22[[#This Row],[FECHA ]]-Tabla22[[#This Row],[FECHA DE TERMINACIÓN2]] -> 
A105: DECENTRALIZADOS | B105: ICCU - GESPROY GB | C105: DIEGO TORRES / JEIMY FORERO | D105: GIOVANY QUEVEDO | E105: 2019000050011 | F105: Mejoramiento de la vía Supatá - Pacho, departamento de Cundinamarca | G105: TRANSPORTE | H105: 7339441010 | I105: CONTRATADO EN EJECUCIÓN | J105: 44712 | K105: =VLOOKUP(Tabla22[[#This Row],[BPIN ]],[1]Base1!F$3:Z$223,21,0) -> 31/05/2022 | L105: 45012 | M105: =Tabla22[[#This Row],[FECHA ]]-Tabla22[[#This Row],[HOY]] -> -300 | N105: =Tabla22[[#This Row],[FECHA ]]-Tabla22[[#This Row],[FECHA DE TERMINACIÓN2]] -> 
A106: DECENTRALIZADOS | B106: ICCU - GESPROY GB | C106: DIEGO TORRES / JEIMY FORERO | D106: GIOVANY QUEVEDO | E106: 2019000050013 | F106: Construcción de la Plaza de Mercado del municipio de Choachí Cundinamarca | G106: TRANSPORTE | H106: 4481109943 | I106: CONTRATADO EN EJECUCIÓN | J106: 44651 | K106: =VLOOKUP(Tabla22[[#This Row],[BPIN ]],[1]Base1!F$3:Z$223,21,0) -> 31/03/2022 | L106: 45012 | M106: =Tabla22[[#This Row],[FECHA ]]-Tabla22[[#This Row],[HOY]] -> -361 | N106: =Tabla22[[#This Row],[FECHA ]]-Tabla22[[#This Row],[FECHA DE TERMINACIÓN2]] -> 
A107: DECENTRALIZADOS | B107: ICCU - GESPROY GB | C107: DIEGO TORRES / JEIMY FORERO | D107: GIOVANY QUEVEDO | E107: 2019000050016 | F107: Mejoramiento de la vía Anolaima Corralejas (Inspección de Corralejas), departamento de Cundinamarca | G107: TRANSPORTE | H107: 5718724028 | I107: TERMINADO | J107: 44469 | K107: =VLOOKUP(Tabla22[[#This Row],[BPIN ]],[1]Base1!F$3:Z$223,21,0) -> 30/09/2021 | L107: 45012 | M107: =Tabla22[[#This Row],[FECHA ]]-Tabla22[[#This Row],[HOY]] -> -543 | N107: =Tabla22[[#This Row],[FECHA ]]-Tabla22[[#This Row],[FECHA DE TERMINACIÓN2]] -> 
A108: DECENTRALIZADOS | B108: ICCU - GESPROY GB | C108: DIEGO TORRES / JEIMY FORERO | D108: GIOVANY QUEVEDO | E108: 2019000050023 | F108: Mejoramiento de la vía Lenguazaque - Villapinzón, departamento de Cundinamarca | G108: TRANSPORTE | H108: 8636278689 | I108: TERMINADO | J108: 44227 | K108: =VLOOKUP(Tabla22[[#This Row],[BPIN ]],[1]Base1!F$3:Z$223,21,0) -> 31/01/2021 | L108: 45012 | M108: =Tabla22[[#This Row],[FECHA ]]-Tabla22[[#This Row],[HOY]] -> -785 | N108: =Tabla22[[#This Row],[FECHA ]]-Tabla22[[#This Row],[FECHA DE TERMINACIÓN2]] -> 
A109: DECENTRALIZADOS | B109: ICCU - GESPROY GB | C109: DIEGO TORRES / JEIMY FORERO | D109: GIOVANY QUEVEDO | E109: 2019000050029 | F109: Mejoramiento de la vía Gachetá - Gama, Departamento de Cundinamarca | G109: TRANSPORTE | H109: 5477582208 | I109: TERMINADO | J109: 44469 | K109: =VLOOKUP(Tabla22[[#This Row],[BPIN ]],[1]Base1!F$3:Z$223,21,0) -> 30/09/2021 | L109: 45012 | M109: =Tabla22[[#This Row],[FECHA ]]-Tabla22[[#This Row],[HOY]] -> -543 | N109: =Tabla22[[#This Row],[FECHA ]]-Tabla22[[#This Row],[FECHA DE TERMINACIÓN2]] -> 
A110: DECENTRALIZADOS | B110: ICCU - GESPROY GB | C110: DIEGO TORRES / JEIMY FORERO | D110: GIOVANY QUEVEDO | E110: 2019000050047 | F110: Mejoramiento de la vía Susa - Carmen de Carupa, Departamento de Cundinamarca | G110: TRANSPORTE | H110: 5203497468 | I110: TERMINADO | J110: 44469 | K110: =VLOOKUP(Tabla22[[#This Row],[BPIN ]],[1]Base1!F$3:Z$223,21,0) -> 30/09/2021 | L110: =+TODAY() -> 45012 | M110: =Tabla22[[#This Row],[FECHA ]]-Tabla22[[#This Row],[HOY]] -> -543 | N110: =Tabla22[[#This Row],[FECHA ]]-Tabla22[[#This Row],[FECHA DE TERMINACIÓN2]] -> 
A111: DECENTRALIZADOS | B111: ICCU - GESPROY GB | C111: DIEGO TORRES / JEIMY FORERO | D111: GIOVANY QUEVEDO | E111: 2019000050056 | F111: Mejoramiento de la vía que conduce del municipio de Nimaima al municipio de Nocaima, departamento de Cundinamarca | G111: TRANSPORTE | H111: 5082491570 | I111: TERMINADO | J111: 44560 | K111: =VLOOKUP(Tabla22[[#This Row],[BPIN ]],[1]Base1!F$3:Z$223,21,0) -> 30/12/2021 | L111: 45012 | M111: =Tabla22[[#This Row],[FECHA ]]-Tabla22[[#This Row],[HOY]] -> -452 | N111: =Tabla22[[#This Row],[FECHA ]]-Tabla22[[#This Row],[FECHA DE TERMINACIÓN2]] -> 
A112: DECENTRALIZADOS | B112: ICCU - GESPROY GB | C112: DIEGO TORRES / JEIMY FORERO | D112: GIOVANY QUEVEDO | E112: 2019000050060 | F112: Estudios y diseños de vías para mejorar la competitividad del departamento de Cundinamarca | G112: TRANSPORTE | H112: 7089369627 | I112: TERMINADO | J112: 44438 | K112: =VLOOKUP(Tabla22[[#This Row],[BPIN ]],[1]Base1!F$3:Z$223,21,0) -> 30/08/2021 | L112: 45012 | M112: =Tabla22[[#This Row],[FECHA ]]-Tabla22[[#This Row],[HOY]] -> -574 | N112: =Tabla22[[#This Row],[FECHA ]]-Tabla22[[#This Row],[FECHA DE TERMINACIÓN2]] -> 
A113: DECENTRALIZADOS | B113: ICCU - GESPROY GB | C113: DIEGO TORRES / JEIMY FORERO | D113: GIOVANY QUEVEDO | E113: 2019000050075 | F113: Mejoramiento de la vía que conduce del municipio de Viani al municipio de Chaguani, (de la y de San Vicente a Chaguani), departamento de Cundinamarca | G113: TRANSPORTE | H113: 7504443091 | I113: CONTRATADO EN EJECUCIÓN | J113: 44651 | K113: =VLOOKUP(Tabla22[[#This Row],[BPIN ]],[1]Base1!F$3:Z$223,21,0) -> 31/03/2022 | L113: 45012 | M113: =Tabla22[[#This Row],[FECHA ]]-Tabla22[[#This Row],[HOY]] -> -361 | N113: =Tabla22[[#This Row],[FECHA ]]-Tabla22[[#This Row],[FECHA DE TERMINACIÓN2]] -> 
A114: DECENTRALIZADOS | B114: ICCU - GESPROY GB | C114: DIEGO TORRES / JEIMY FORERO | D114: GIOVANY QUEVEDO | E114: 2019000050079 | F114: MEJORAMIENTO DE LA VÍA SERREZUELA - EL TRIUNFO, MUNICIPIO DE LA CALERA, DEPARTAMENTO DE CUNDINAMARCA | G114: TRANSPORTE | H114: 7614258187 | I114: TERMINADO | J114: 44316 | K114: =VLOOKUP(Tabla22[[#This Row],[BPIN ]],[1]Base1!F$3:Z$223,21,0) -> 30/04/2021 | L114: 45012 | M114: =Tabla22[[#This Row],[FECHA ]]-Tabla22[[#This Row],[HOY]] -> -696 | N114: =Tabla22[[#This Row],[FECHA ]]-Tabla22[[#This Row],[FECHA DE TERMINACIÓN2]] -> 
A115: DECENTRALIZADOS | B115: ICCU - GESPROY GB | C115: DIEGO TORRES / JEIMY FORERO | D115: GIOVANY QUEVEDO | E115: 2019000050085 | F115: MEJORAMIENTO DE LA VÍA QUE CONDUCE DEL MUNICIPIO DE LA MESA AL MUNICIPIO DE CACHIPAY, (DE LA INSPECCIÓN DE PEÑA NEGRA AL MUNICIPIO DE CACHIPAY), DEPARTAMENTO DE CUNDINAMARCA | G115: TRANSPORTE | H115: 7019896083 | I115: CONTRATADO EN EJECUCIÓN | J115: 44620 | K115: =VLOOKUP(Tabla22[[#This Row],[BPIN ]],[1]Base1!F$3:Z$223,21,0) -> 28/02/2022 | L115: 45012 | M115: =Tabla22[[#This Row],[FECHA ]]-Tabla22[[#This Row],[HOY]] -> -392 | N115: =Tabla22[[#This Row],[FECHA ]]-Tabla22[[#This Row],[FECHA DE TERMINACIÓN2]] -> 
A116: CUNDINAMARCA | B116: SECRETARIA DE CIENCIA, TECNOLOGIA E INNOVACIÓN | C116: YAHIR ARCINIEGAS | D116: LUIS MANUEL GONZALEZ | E116: 2021000100327 | F116: Desarrollo de un sistema de producción lechero para la obtención de leches inocuas de alta calidad y con un perfil lipídico saludable en el Departamento de Cundinamarca | G116: CTEL | H116: 3833042862 | I116: SIN CONTRATAR | K116: =VLOOKUP(Tabla22[[#This Row],[BPIN ]],[1]Base1!F$3:Z$223,21,0) -> No definido | L116: =+TODAY() -> 45012 | M116: =Tabla22[[#This Row],[FECHA ]]-Tabla22[[#This Row],[HOY]] -> -45012 | N116: =Tabla22[[#This Row],[FECHA ]]-Tabla22[[#This Row],[FECHA DE TERMINACIÓN2]] -> 
A117: CUNDINAMARCA | B117: SECRETARIA DE CIENCIA, TECNOLOGIA E INNOVACIÓN | C117: YAHIR ARCINIEGAS | D117: LUIS MANUEL GONZALEZ | E117: 2021000100208 | F117: Fortalecimiento de los niveles de Apropiación social del Conocimiento de la CTeI en comunidades de las provincias de Almeidas y Ubaté del Departamento de Cundinamarca | G117: CTEL | H117: 2191964751 | I117: SIN CONTRATAR | K117: =VLOOKUP(Tabla22[[#This Row],[BPIN ]],[1]Base1!F$3:Z$223,21,0) -> No definido | L117: 45012 | M117: =Tabla22[[#This Row],[FECHA ]]-Tabla22[[#This Row],[HOY]] -> -45012 | N117: =Tabla22[[#This Row],[FECHA ]]-Tabla22[[#This Row],[FECHA DE TERMINACIÓN2]] -> 
A118: CUNDINAMARCA | B118: SECRETARIA DE CIENCIA, TECNOLOGIA E INNOVACIÓN | C118: YAHIR ARCINIEGAS | D118: LUIS MANUEL GONZALEZ | E118: 2021000100243 | F118: Desarrollo participativo de una plataforma tecnológica de teledetección para la gestión sostenible de suelos en agroecosistemas del Departamento de Cundinamarca | G118: CTEL | H118: 3042693625 | I118: SIN CONTRATAR | K118: =VLOOKUP(Tabla22[[#This Row],[BPIN ]],[1]Base1!F$3:Z$223,21,0) -> No definido | L118: 45012 | M118: =Tabla22[[#This Row],[FECHA ]]-Tabla22[[#This Row],[HOY]] -> -45012 | N118: =Tabla22[[#This Row],[FECHA ]]-Tabla22[[#This Row],[FECHA DE TERMINACIÓN2]] -> 
A119: CUNDINAMARCA | B119: SECRETARIA DE MINAS, ENERGIA Y GAS | C119: DIEGO TORRES / LIYUGETH ALFONSO | D119: YAHIR | E119: 2021000050019 | F119: Ampliación DE LA COBERTURA DEL SERVICIO DE GAS COMBUTIBLE POR REDES A TRAVES DE LA FINANCIACIÓN DEL CARGO POR CONEXIÓN Y LA RED INTERNA PARA USUARIOS DE BARRIOS PERIFÉRICOS VEREDAS Y CENTROS POBLADOS DE LOS MUNICIPIOS DE Cundinamarca | G119: MINAS Y ENERGÍA | H119: 10613927436 | I119: SIN CONTRATAR | K119: =VLOOKUP(Tabla22[[#This Row],[BPIN ]],[1]Base1!F$3:Z$223,21,0) -> No definido | L119: 45012 | M119: =Tabla22[[#This Row],[FECHA ]]-Tabla22[[#This Row],[HOY]] -> -45012 | N119: =Tabla22[[#This Row],[FECHA ]]-Tabla22[[#This Row],[FECHA DE TERMINACIÓN2]] -> 
A120: CUNDINAMARCA | B120: SECRETARIA DE EDUCACIÓN | C120: YAHIR ARCINIEGAS | D120: GENNY PADILLA | E120: 2022000050007 | F120: Fortalecimiento a la Estrategia de Alimentación Escolar en los municipios no certificados del Departamento de Cundinamarca para la vigencia 2022 Cundinamarca | G120: EDUCACIÓN | H120: 42.966.037.310,00 | I120: SIN CONTRATAR | K120: =VLOOKUP(Tabla22[[#This Row],[BPIN ]],[1]Base1!F$3:Z$223,21,0) -> No definido | L120: 45012 | M120: =Tabla22[[#This Row],[FECHA ]]-Tabla22[[#This Row],[HOY]] -> -45012 | N120: =Tabla22[[#This Row],[FECHA ]]-Tabla22[[#This Row],[FECHA DE TERMINACIÓN2]] -> 
A121: CUNDINAMARCA | B121: SECRETARIA DE CIENCIA, TECNOLOGIA E INNOVACIÓN | C121: YAHIR ARCINIEGAS | D121: LUIS MANUEL GONZALEZ | E121: 2021000100467 | F121: Fortalecimiento de las capacidades institucionales para el desarrollo y gestión del Ecosistema Territorial de CTeI en todas las provincias del Departamento de Cundinamarca | G121: CTEL | H121: 2801037429 | I121: SIN CONTRATAR | K121: =VLOOKUP(Tabla22[[#This Row],[BPIN ]],[1]Base1!F$3:Z$223,21,0) -> 44760 | L121: 45012 | M121: =Tabla22[[#This Row],[FECHA ]]-Tabla22[[#This Row],[HOY]] -> -45012 | N121: =Tabla22[[#This Row],[FECHA ]]-Tabla22[[#This Row],[FECHA DE TERMINACIÓN2]] -> -44760
A122: CUNDINAMARCA | B122: SECRETARIA DE CIENCIA, TECNOLOGIA E INNOVACIÓN | C122: YAHIR ARCINIEGAS | D122: LUIS MANUEL GONZALEZ | E122: 2021000100276 | F122: Desarrollo DE UN MODELO DE PROMOCIÓN TURÍSTICA SOSTENIBLE DESDE LA TECNOLOGÍA 4.0 EN LOS MUNICIPIOS DE LA PALMA Y YACOPI EN EL DEPARTAMENTO DE Cundinamarca | G122: CTEL | H122: 2608055295 | I122: SIN CONTRATAR | K122: =VLOOKUP(Tabla22[[#This Row],[BPIN ]],[1]Base1!F$3:Z$223,21,0) -> No definido | L122: 45012 | M122: =Tabla22[[#This Row],[FECHA ]]-Tabla22[[#This Row],[HOY]] -> -45012 | N122: =Tabla22[[#This Row],[FECHA ]]-Tabla22[[#This Row],[FECHA DE TERMINACIÓN2]] -> 
A123: CUNDINAMARCA | B123: SECRETARIA DE CIENCIA, TECNOLOGIA E INNOVACIÓN | C123: YAHIR ARCINIEGAS | D123: LUIS MANUEL GONZALEZ | E123: 2021000100523 | F123: Desarrollo de Microredes y almacenamiento (ESS) prestadores de servicios complementarios para incrementar la cobertura eficiencia y confiabilidad del servicio en el departamento de Cundinamarca | G123: CTEL | H123: 3942973233 | I123: SIN CONTRATAR | K123: =VLOOKUP(Tabla22[[#This Row],[BPIN ]],[1]Base1!F$3:Z$223,21,0) -> No definido | L123: 45012 | M123: =Tabla22[[#This Row],[FECHA ]]-Tabla22[[#This Row],[HOY]] -> -45012 | N123: =Tabla22[[#This Row],[FECHA ]]-Tabla22[[#This Row],[FECHA DE TERMINACIÓN2]] -> 
A124: CUNDINAMARCA | B124: SECRETARIA DE EDUCACIÓN | C124: YAHIR ARCINIEGAS | D124: GENNY PADILLA | E124: 2022004250011 | F124: Fortalecimiento a la Estrategia de subsidio de Transporte Escolar en municipios no certificados del Departamento de Cundinamarca para la vigencia 2022 Cundinamarca | G124: CTEL | H124: 24666685502 | I124: CONTRATADO EN EJECUCIÓN | K124: =VLOOKUP(E124,[1]Base1!$A$3:$AD$220,21,0) ->  | L124: 45012 | M124: =Tabla22[[#This Row],[FECHA ]]-Tabla22[[#This Row],[HOY]] -> 
A125: ENTIDAD APORTANTE RECURSOS | B125: EMTEL | C125: ALEXANDER RIVEROS/JEIMY FORERO | D125: FABIAN CUESTA | E125: 2022004250006 | F125: Implementación de una estrategia de reactivación económica para el progreso y la competitividad de micronegocios y unidades productivas en el Departamento de Cundinamarca | G125: AGRICULTURA | H125: 8993872201 | I125: SIN CONTRATAR | K125: =VLOOKUP(Tabla22[[#This Row],[BPIN ]],[1]Base1!F$3:Z$223,21,0) ->  | L125: 45012 | M125: =Tabla22[[#This Row],[FECHA ]]-Tabla22[[#This Row],[HOY]] -> 
A126: CUNDINAMARCA | B126: SECRETARIA DE CIENCIA, TECNOLOGIA E INNOVACIÓN | C126: YAHIR ARCINIEGAS | D126: Implementación de una estrategia de reactivación económica para el progreso y la competitividad de micronegocios y unidades productivas en el Departamento de Cundinamarca | E126: 2021000100500 | F126: Fortalecimiento del equilibrio ecosistémico mediante la innovación en los procesos de propagación vegetal orientados a la generación de conocimiento y uso sostenible en el Departamento de Cundinamarca | G126: CTEL | H126: 4114706771 | I126: NO HA MIGRADO A GESPROY | K126: =VLOOKUP(Tabla22[[#This Row],[BPIN ]],[1]Base1!F$3:Z$223,21,0) ->  | L126: 45012 | M126: =Tabla22[[#This Row],[FECHA ]]-Tabla22[[#This Row],[HOY]] -> 
A127: CUNDINAMARCA | B127: SECRETARIA DE HABITAT Y VIVIENDA | C127: ALEXANDER RIVEROS/JEIMY FORERO | D127: BEATRIZ GAMEZ | E127: 2018000050050 | F127: Mejoramiento vivienda rural mediante construcción de cocinas habitaciones y pisos en los municipios de Cundinamarca | G127: AGRICULTURA | I127: EN PROCESO DE CONTRATACIÓN | K127: =VLOOKUP(Tabla22[[#This Row],[BPIN ]],[1]Base1!F$3:Z$223,21,0) ->  | L127: 45012 | M127: =Tabla22[[#This Row],[FECHA ]]-Tabla22[[#This Row],[HOY]] -> 
A128: CUNDINAMARCA | B128: SECRETARIA DE COMPETITIVIDAD | C128: ALEXANDER RIVEROS/JEIMY FORERO | D128: FABIAN CUESTA | E128: 2020000050035 | F128: Fortalecimiento de los sistemas productivos a través de la reactivación del sector agrícola en el Departamento de Cundinamarca | G128: AGRICULTURA | H128: 8993872201 | I128: EN PROCESO DE CONTRATACIÓN | K128: =VLOOKUP(Tabla22[[#This Row],[BPIN ]],[1]Base1!F$3:Z$223,21,0) ->  | L128: 45012 | M128: =Tabla22[[#This Row],[FECHA ]]-Tabla22[[#This Row],[HOY]] -> 
A129: CUNDINAMARCA | B129: SECRETARIA DE COMPETITIVIDAD | C129: ALEXANDER RIVEROS/JEIMY FORERO | D129: FABIAN CUESTA | E129: 2020000050038 | F129: Optimización de los sistemas Ganaderos bovinos de carne leche y doble propósito a partir de la implementación de mejoramiento genético productivo y entrega de maquinaria y equipos en municipios del Departamento de Cundinamarca | G129: AGRICULTURA | H129: 8732449919 | I129: SIN CONTRATAR | K129: =VLOOKUP(Tabla22[[#This Row],[BPIN ]],[1]Base1!F$3:Z$223,21,0) ->  | L129: 45012 | M129: =Tabla22[[#This Row],[FECHA ]]-Tabla22[[#This Row],[HOY]] -> 

Sheet Riesgo de liberación (hidden)
A2: N° | B2: EJECUTOR (Dpto / Entidad) | C2: EJECUTOR INTERNO | D2: ENCARGADO DE LA ENTIDAD | E2: ENLACE EMTIDAD EJECUTORA | F2: BPIN | G2: PROYECTO | H2: SECTOR | I2: VALOR PROYECTO | J2: VALOR SGR | K2: OTRAS FUENTES | L2: FECHA DE APROBACIÓN OCAD | M2: ACUERDO DE APROBACIÓN | N2: ESTADO | O2: FECHA LIMITE | P2: DÍAS TRANSCURRIDOS DESDE EL ACUERDO DE APROBACIÓN | Q2: Columna1 | R2: DÍAS HABILES PARA REALIZAR ACTO DE APERTURA
A3: 164 | B3: ENTIDAD APORTANTE RECURSOS | C3: UNIVERSIDAD DE CUNDINAMARCA | D3: YAHIR ARCINIEGAS | E3: LUIS MANUEL GONZALEZ | F3: 2020000100158 | G3: FORTALECIMIENTO DE LA INFRAESTRUCTURA FÍSICA Y TECNOLÓGICA DEL CENTRO DE ESTUDIOS AGROAMBIENTALES DE LA UNIVERSIDAD DE CUNDINAMARCA AGROU CUNDINAMARCA | H3: CTEL | I3: 2024433669 | J3: 1997753509 | K3: =I3-J3 -> 26680160 | L3: 44111 | M3: 098 DE 2020 | N3: SIN CONTRATAR | O3: =IF(L3=0,"-",EDATE(L3,6)) -> 44293 | P3: =IF(L3=0,"-",_xlfn.DAYS(TODAY(),L3)) -> 901 | Q3: =IF(O3="-","-",_xlfn.DAYS(TODAY(),O3)) -> 719 | R3: =-Tabla25[[#This Row],[Columna1]] -> -719
A4: 218 | B4: CUNDINAMARCA | C4: SECRETARIA DE AMBIENTE | F4: 2022004250025 | G4: Fortalecimiento de la producción de material vegetal arbustivo y arbóreo para la recuperación de la cobertura arbórea en el departamento de Cundinamarca | H4: AMBIENTE Y DESARROLLO SOSTENIBLE | I4: 3387966925 | J4: 2857824455 | K4: =I4-J4 -> 530142470 | L4: 44907 | M4: 474 DE 2022 | N4: SIN CONTRATAR | O4: =IF(L4=0,"-",EDATE(L4,6)) -> 45089 | P4: =IF(L4=0,"-",_xlfn.DAYS(TODAY(),L4)) -> 105 | Q4: =IF(O4="-","-",_xlfn.DAYS(TODAY(),O4)) -> -77 | R4: =-Q4 -> 77
A5: 219 | B5: CUNDINAMARCA | C5: ICCU - GESPROY GB | D5: ALEXANDER RIVEROS/JEIMY FORERO | E5: GIOVANY QUEVEDO | F5: 2022004250032 | G5: Mejoramiento de la vía que comunica a los municipios de san Cayetano y Cogua tramo vereda cardonal vereda mortiño del municipio de san Cayetano departamento de Cundinamarca | H5: TRANSPORTE | I5: 9976205175 | J5: 9976205175 | K5: 0 | L5: 44907 | M5: 474 DE 2022 | N5: NO HA MIGRADO A GESPROY | O5: =IF(L5=0,"-",EDATE(L5,6)) -> 45089 | P5: =IF(L5=0,"-",_xlfn.DAYS(TODAY(),L5)) -> 105 | Q5: =IF(O5="-","-",_xlfn.DAYS(TODAY(),O5)) -> -77 | R5: =-Q5 -> 77
J7: =SUM(J3:J5) -> 14831783139

Sheet Control de avances (hidden)
A1: SISTEMAS GENERAL DEL REGALÍAS-BASE DE PROYECTOS APROBADOS | S1: AVANCE FÍSICO Y FINANCIERO | V1: ESTADO
A2: N° | B2: EJECUTOR (Dpto / Entidad) | C2: EJECUTOR INTERNO | D2: ENCARGADO DE LA ENTIDAD | E2: ENLACE EMTIDAD EJECUTORA | F2: BPIM | G2: PROYECTO | H2: SECTOR | I2: VALOR PROYECTO | J2: VALOR SGR | K2: OTRAS FUENTES | L2: FECHA DE APROBACIÓN OCAD | M2: ESTADO | N2: AVANCE FÍSICO | O2: AVANCE FINANCIERO | S2: presento avance en el mes vigente | V2: presento avance en el mes vigente | AA2: ESTADO
A3: 1 | B3: CUNDINAMARCA | C3: SECRETARIA DE AMBIENTE | D3: ALEXANDER RIVEROS Y YAHIR ARCINIEGAS | E3: EDUARDO | F3: 2012000050005 | G3: ESTUDIOS Y DISEÑOS DE DETALLE EMBALSE CALANDAIMA MUNICIPIO DE EL COLEGIO DEPARTAMENTO DE CUNDINAMARCA | H3: AMBIENTE Y DESARROLLO SOSTENIBLE | I3: 4000000000 | J3: 1000000000 | K3: =I3-J3 -> 3000000000 | L3: 41271 | M3: CERRADO | N3: 1 | O3: 1 | S3: lleva 1 mes sin reportar avance | V3: lleva 3 mes sin reportar avance | AA3: 44972 | AB3: 44607 | AC3: =IF(AA3=0,0,_xlfn.DAYS(AA3,TODAY())) -> -40 | AD3: =IF(AB3=0,0,_xlfn.DAYS(AB3,TODAY())) -> -405 | AE3: =IF(Z3=0,0,_xlfn.DAYS(Z3,TODAY())) -> 0
A4: 2 | B4: DESENTRALIZADOS | C4: ICCU - GESPROY GB | D4: DIEGO TORRES / JEIMY FORERO | E4: GIOVANY QUEVEDO | F4: 2012000050006 | G4: CONSTRUCCIÓN CUBIERTA COLISEO DEL CENTRO AGROTECNOLOGICO DE EXPOSICIONES Y COMERCIALIZACION DE LA REGION DEL SUMAPAZ EN EL MUNICIPIO DE FUSAGASUGA - CUNDINAMARCA | H4: TRANSPORTE | I4: 6352617736 | J4: 3581530801 | K4: 2771086935 | L4: 41271 | M4: CERRADO | N4: 1 | O4: 0.9954 | S4: lleva 3 mes sin reportar avance | V4: lleva 6 mes sin reportar avance | AA4: 44972 | AB4: 44607 | AC4: =IF(AA4=0,0,_xlfn.DAYS(AA4,TODAY())) -> -40 | AD4: =IF(AB4=0,0,_xlfn.DAYS(AB4,TODAY())) -> -405 | AE4: =IF(Z4=0,0,_xlfn.DAYS(Z4,TODAY())) -> 0
A5: 3 | B5: CUNDINAMARCA | C5: SECRETARIA DE AGRICULTURA | D5: DIEGO TORRES/VALENTINA PORTILLO | E5: JAVIER HERREDIA | F5: 2012000050007 | G5: FORTALECIMIENTO DE LAS CADENAS HORTIFRUTICOLA Y AROMATICAS EN CUNDINAMARCA | H5: AGRICULTURA | I5: 2490400000 | J5: 1300000000 | K5: 1190400000 | L5: 41271 | M5: CERRADO | N5: 1 | O5: 1 | S5: lleva 4 mes sin reportar avance | V5: lleva 9 mes sin reportar avance | AA5: 44607 | AB5: 44607 | AC5: =IF(AA5=0,0,_xlfn.DAYS(AA5,TODAY())) -> -405 | AD5: -405 | AE5: =IF(Z5=0,0,_xlfn.DAYS(Z5,TODAY())) -> 0
A6: 4 | B6: CUNDINAMARCA | C6: SECRETARIA DE AGRICULTURA | D6: DIEGO TORRES/VALENTINA PORTILLO | E6: JAVIER HERREDIA | F6: 2012000050009 | G6: FORTALECIMIENTO DE LA PRODUCTIVIDAD Y COMPETITIVIDAD DEL SECTOR CACAOTERO EN EL DEPARTAMENTO DE CUNDINAMARCA | H6: AGRICULTURA | I6: 2334689275 | J6: 1200000000 | K6: 1134689275 | L6: 41271 | M6: CERRADO | N6: 1 | O6: 0.9634 | S6: lleva 6 mes sin reportar avance | V6: lleva 1 año sin reportar avance | AA6: 44607 | AB6: 44607 | AC6: =IF(AA6=0,0,_xlfn.DAYS(AA6,TODAY())) -> -405 | AD6: -405 | AE6: 0
A7: 5 | B7: CUNDINAMARCA | C7: SECRETARIA GENERAL | D7: YAHIR ARCINIEGAS | E7: JIMENA TAFUR | F7: 2012000050010 | G7: ESTUDIOS Y DISEÑOS PARA LA RECUPERACIÓN Y ADECUACION DEL PATRIMONIO HISTORICO CULTURAL PALACIO DE SAN FRANCISCO EN BOGOTA D.C. DEPARTAMENTO DE CUNDINAMARCA | H7: CULTURA | I7: 1000000000 | J7: 1000000000 | K7: 0 | L7: 41271 | M7: TERMINADO | N7: 1 | O7: 0.9464 | AA7: 44607 | AB7: 44607 | AC7: -405 | AD7: -405 | AE7: 0
A8: 6 | B8: CUNDINAMARCA | C8: SECRETARIA DE EDUCACIÓN | D8: YAHIR ARCINIEGAS Y ALEXANDER RIVEROS | E8: GENNY PADILLA | F8: 2012000050011 | G8: FORTALECIMIENTO DE LA PERMANENCIA DE LOS ESTUDIANTES EN LOS MUNICIPIOS DEL DEPARTAMENTO DE CUNDINAMARCA DEPARTAMENTO DE CUNDINAMARCA | H8: EDUCACIÓN | I8: 6000000000 | J8: 6000000000 | K8: 0 | L8: 41187 | M8: CERRADO | N8: 1 | O8: 0.5819 | AA8: 44607 | AB8: 44607 | AC8: -405 | AD8: -405 | AE8: 0
A9: 7 | B9: CUNDINAMARCA | C9: SECRETARIA DE DESARROLLO E INCLUSIÓN SOCIAL | D9: ALEXANDER RIVEROS Y JEIMY FORERO | E9: TATIANA HERNANDEZ | F9: 2012000050012 | G9: IMPLEMENTACIÓN DEL PROGRAMA DE COMPLEMENTACION ALIMENTARIA Y NUTRICIONAL EN MENORES DE 5 AÑOS, MUJERES GESTANTES Y LACTANTES EN TODO EL DEPARTAMENTO DE CUNDINAMARCA | H9: SALUD Y PROTECCIÓN SOCIAL | I9: 4531022720 | J9: 3000000000 | K9: 1531022720 | L9: 41187 | M9: CERRADO | N9: 0.9904 | O9: 0.9972 | AA9: 44607 | AB9: 44607 | AC9: -405 | AD9: -405 | AE9: 0
A10: 8 | B10: CUNDINAMARCA | C10: SECRETARIA DE TRANSPORTE Y MOVILIDAD | D10: DAYANA FERNANDEZ Y EDGAR YAHIR ARCINIEGAS | E10: JORGE PINZON | F10: 2012000050013 | G10: ACTUALIZACION Y FORMULACION DE LOS ESTUDIOS Y DISEÑOS FASE II Y III DE LA EXTENCION NORTE - QUITO - SUR DEL SISTEMA TRANSMILENIO AL MUNICIPIO DE SOACHA DEPARTAMENTO DE CUNDINAMARCA | H10: SALUD Y PROTECCIÓN SOCIAL | I10: 4026917304 | J10: 3130787355 | K10: 896129949 | L10: 41187 | M10: CERRADO | N10: 0.9622 | O10: 0.9703 | AA10: 44607 | AB10: 44607 | AC10: -405 | AD10: -405 | AE10: 0
A11: 9 | B11: CUNDINAMARCA | C11: SECRETARIA DE AGRICULTURA | D11: DIEGO TORRES/VALENTINA PORTILLO | E11: JAVIER HERREDIA | F11: 2012000050014 | G11: MEJORAMIENTO DE LA COMPETITIVIDAD Y SOSTENIBILIDAD DEL SUB SECTOR PANELERO DE CUNDINAMARCA | H11: AGRICULTURA | I11: 1559272190 | J11: 1300000000 | K11: 259272190 | L11: 41271 | M11: CERRADO | N11: 1 | O11: 1 | AA11: 44607 | AB11: 44607 | AC11: -405 | AD11: -405 | AE11: 0
A12: 10 | B12: CUNDINAMARCA | C12: SECRETARIA DE AGRICULTURA | D12: DIEGO TORRES/VALENTINA PORTILLO | E12: JAVIER HERREDIA | F12: 2012000050023 | G12: FORTALECIMIENTO DE LA ACTIVIDAD CAFETERA COMO ALTERNATIVA SOSTENIBLE DE DESARROLLO REGIONAL EN EL DEPARTAMENTO DE CUNDINAMARCA | H12: AGRICULTURA | I12: 77168795512 | J12: 1300000000 | K12: 75868795512 | L12: 41271 | M12: CERRADO | N12: 1 | O12: 0.9999 | AA12: 44607 | AB12: 44607 | AC12: -405 | AD12: -405 | AE12: 0
A13: 11 | B13: CUNDINAMARCA | C13: SECRETARIA DE AGRICULTURA | D13: DIEGO TORRES/VALENTINA PORTILLO | E13: JAVIER HERREDIA | F13: 2012000050024 | G13: IMPLEMENTACION DE UN MODELO DE PRODUCCION EN SISTEMAS DE DOBLE PROPOSITO EN PEQUEÑOS PRODUCTORES DEL DEPARTAMENTO DE CUNDINAMARCA | H13: AGRICULTURA | I13: 3371686373 | J13: 1823985000 | K13: 1547701373 | L13: 41271 | M13: CERRADO | N13: 1 | O13: 0.9944 | AA13: 44607 | AB13: 44607 | AC13: -405 | AD13: -405 | AE13: 0
A14: 12 | B14: CUNDINAMARCA | C14: SECRETARIA DE GOBIERNO | D14: YESID CASTAÑO | E14: EDUARDO | F14: 2012000050025 | G14: ESTUDIOS Y DISEÑOS PARA LA CONSTRUCCIÓN DE UN CENTRO ESPECIALIZADO AL SERVICIO DE ADOLESCENTES INFRACTORES DE LA LEY EN EL DEPARTAMENTO DE CUNDINAMARCA | H14: DEFENSA | I14: 200000000 | J14: 200000000 | K14: 0 | L14: 41271 | M14: CERRADO | N14: 1 | O14: 1 | AA14: 44607 | AB14: 44607 | AC14: -405 | AD14: -405 | AE14: 0
A15: 13 | B15: ENTIDAD APORTANTE RECURSOS | C15: MUNICIPIO DE COGUA | D15: ALEXANDER RIVEROS | E15: SANDRA SHUAIB | F15: 2012000050026 | G15: MEJORAMIENTO DE LA VA COGUA-SAN CAYETANO (SECTOR LAS MARGARITAS K8+300 SECTOR LAS MARGARITAS HASTA K10+300) CON K0+00 EN COGUA DEPARTAMENTO DE CUNDINAMARCA | H15: TRANSPORTE | I15: 2000000000 | J15: 2000000000 | K15: 0 | L15: 41271 | M15: CERRADO | N15: 1 | O15: 1 | AA15: 44607 | AB15: 44607 | AC15: -405 | AD15: -405 | AE15: 0
A16: 14 | B16: DESENTRALIZADOS | C16: ICCU - GESPROY GB | D16: DIEGO TORRES / JEIMY FORERO | E16: LUZ MARINA GALINDO | F16: 2012000050027 | G16: MEJORAMIENTO DE LA VA UBALA-PALOMAS-MAMBITA (K0+00 UBICADO EN EL SITIO PROFESIONALES MUNICIPIO DE UBALA), DEPARTAMENTO DE CUNDINAMARCA | H16: TRANSPORTE | I16: 3359160462 | J16: 3000000000 | K16: 359160462 | L16: 41271 | M16: CERRADO | N16: 1 | O16: 0.9866 | AA16: 44607 | AB16: 44607 | AC16: -405 | AD16: -405 | AE16: 0
A17: 15 | B17: DESENTRALIZADOS | C17: ICCU - GESPROY GB | D17: DIEGO TORRES / JEIMY FORERO | E17: GIOVANY QUEVEDO | F17: 2012000050028 | G17: MEJORAMIENTO Y MANTENIMIENTO DE LA RED VIAL SECUNDARIA Y TERCIARIA MEDIANTE LA DOTACIÓN DE MAQUINARIA A LOS MUNICIPIOS DEL DEPARTAMENTO DE CUNDINAMARCA | H17: TRANSPORTE | I17: 19769772343 | J17: 8103535586 | K17: 11666236757 | L17: 41271 | M17: CERRADO | N17: 1 | O17: 0.9318 | AA17: 44607 | AB17: 44607 | AC17: -405 | AD17: -405 | AE17: 0
A18: 16 | B18: CUNDINAMARCA | C18: SECRETARIA DE MINAS, ENERGIA Y GAS | D18: DIEGO TORRES | E18: JAHIR HERNANDEZ | F18: 2012000050029 | G18: IMPLEMENTACIÓN Y MASIFICACION DEL SERVICIO DE GAS COMBUSTIBLE POR REDES PARA MUNICIPIOS DE ANOLAIMA, CACHIPAY, CHOACHI, FOMEQUE, UBAQUE Y VIOTA CUNDINAMARCA | H18: MINAS Y ENERGÍA | I18: 15253036000 | J18: 2199142000 | K18: 13053894000 | L18: 41271 | M18: CERRADO | N18: 1 | O18: 0.945 | AA18: 44607 | AB18: 44607 | AC18: -405 | AD18: -405 | AE18: 0
A19: 17 | B19: CUNDINAMARCA | C19: SECRETARIA DE COMPETITIVIDAD | D19: ALEXANDER RIVEROS/JEIMY FORERO | E19: FABIAN CUESTA | F19: 2012000050030 | G19: DESARROLLO CREACION Y FORTALECIMIENTO DE NUEVE (9) CENTROS DE EMPREDIMIENTO Y FORTALECIMIENTO EMPRESARIAL EN EL DEPARTAMENTO DE CUNDINAMARCA | H19: COMERCIO, INDUSTRIA Y TURISMO | I19: 1752501814 | J19: 1708104361 | K19: 44397453 | L19: 41271 | M19: PARA CIERRE | N19: 1 | O19: 0.9507 | AA19: 44607 | AB19: 44607 | AC19: -405 | AD19: -405 | AE19: 0
A20: 18 | B20: ENTIDAD APORTANTE RECURSOS | C20: MUNICIPIO DE MOSQUERA | D20: DAYANA FERNANDEZ | E20: GIOVANY QUEVEDO | F20: 2012000050039 | G20: MEJORAMIENTO DE LA VIA CALLE 23 ENTRE CRA 3 Y 9B EN MOSQUERA CLL 7 ENTRE CRA 13 Y 24 EN FUNZA DEPARTAMENTO DE CUNDINAMARCA | H20: TRANSPORTE | I20: 2816415712 | J20: 1000000000 | K20: 1816415712 | L20: 41271 | M20: CERRADO | N20: 1 | O20: 1 | AA20: 44607 | AB20: 44607 | AC20: -405 | AD20: -405 | AE20: 0
A21: 19 | B21: ENTIDAD APORTANTE RECURSOS | C21: MUNICIPIO DE SOACHA | D21: ALEXANDER RIVEROS | E21: LUZ MARINA GALINDO | F21: 2012000050044 | G21: REHABILITACIÓN Y MEJORAMIENTO DE LA VIA PARALELA ( TRANSVERSAL 8 Y CARRERA 7) ENTRE CARRERA 13 CON AUTOPISTA SUR BARRIO LA DESPENSA, HASTA LA CALLE 27 DEL CENTRO DEL MUNICIPIO DE SOACHA CUNDINAMARCA (TRAMO N 1 - K0+000 HASTA K0+262) | H21: TRANSPORTE | I21: 1000000000 | J21: 1000000000 | K21: 0 | L21: 41271 | M21: CERRADO | N21: 1 | O21: 1 | AA21: 44607 | AB21: 44607 | AC21: -405 | AD21: -405 | AE21: 0
A22: 20 | B22: DESENTRALIZADOS | C22: ICCU - GESPROY GB | D22: DIEGO TORRES / JEIMY FORERO | E22: GIOVANY QUEVEDO | F22: 2012000050051 | G22: MEJORAMIENTO DEL PUENTE GUATIMBOL SOBRE EL RIO SUMAPAZ EN LA VA VENECIA - ICONONZO DEPARTAMENTO DE CUNDINAMARCA | H22: TRANSPORTE | I22: 827195639 | J22: 620304130 | K22: 206891509 | L22: 41271 | M22: CERRADO | N22: 1 | O22: 0.9809 | AA22: 44607 | AB22: 44607 | AC22: -405 | AD22: -405 | AE22: 0
A23: 21 | B23: DESENTRALIZADOS | C23: ICCU - GESPROY GB | D23: DIEGO TORRES / JEIMY FORERO | E23: GIOVANY QUEVEDO | F23: 2012000050052 | G23: FORMULACIÓN Y ACTUALIZACION DE LOS ESTUDIOS Y DISEÑOS DE LA VIA UBAQUE - LOS CEREZOS - CHIPAQUE DEPARTAMENTO DE CUNDINAMARCA | H23: TRANSPORTE | I23: 257457261 | J23: 250000000 | K23: 7457261 | L23: 41271 | M23: CERRADO | N23: 1 | O23: 0.9996 | AA23: 44607 | AB23: 44607 | AC23: -405 | AD23: -405 | AE23: 0
A24: 22 | B24: DESENTRALIZADOS | C24: ICCU - GESPROY GB | D24: DIEGO TORRES / JEIMY FORERO | E24: GIOVANY QUEVEDO | F24: 2012000050054 | G24: FORMULACIÓN Y ACTUALIZACION DE LOS ESTUDIOS Y DISEÑOS PARA EL MEJORAMIENTO DE LA TRONCAL DEL CARBON EN LONGITUD DE 43 KMS (K0+00 LOCALIZADO EN TIERRA NEGRA) DEPARTAMENTO DE CUNDINAMARCA | H24: TRANSPORTE | I24: 777429075 | J24: 755000000 | K24: 22429075 | L24: 41271 | M24: CERRADO | N24: 1 | O24: 0.9984 | AA24: 44607 | AB24: 44607 | AC24: -405 | AD24: -405 | AE24: 0
A25: 23 | B25: CUNDINAMARCA | C25: SECRETARIA DE CIENCIA, TECNOLOGIA E INNOVACIÓN | D25: ALEXANDER RIVEROS Y YAHIR ARCINIEGAS | E25: LUIS MANUEL GONZALEZ | F25: 2012000100010 | G25: FORTALECIMIENTO DE LAS REGIONES COLOMBIANAS EN SUS CAPACIDADES DE CTI - CUNDINAMARCA | H25: CTEL | I25: 8721806744 | J25: 8721806744 | K25: 0 | L25: 41263 | M25: CONTRATADO EN EJECUCIÓN | N25: 0.8488 | O25: 0.9729 | Z25: 44972 | AA25: 44972 | AB25: 44972 | AC25: -40 | AD25: -40 | AE25: -40
A26: 24 | B26: CUNDINAMARCA | C26: SECRETARIA DE CIENCIA, TECNOLOGIA E INNOVACIÓN | D26: ALEXANDER RIVEROS Y YAHIR ARCINIEGAS | E26: LUIS MANUEL GONZALEZ | F26: 2012000100056 | G26: INVESTIGACIÓN ESTRATEGIAS DE VALORACION Y APROPIACION DE LOS RECURSOS NATURALES MECANISMOS DE ADAPTACION A CAMBIO CLIMATICO. REGION DEL BAJO MAGDALENA | H26: CTEL | I26: 7184175232 | J26: 4100000000 | K26: 3084175232 | L26: 41263 | M26: CERRADO | N26: 1 | O26: 0.9997 | AA26: 44607 | AB26: 44607 | AC26: -405 | AD26: -405 | AE26: 0
A27: 25 | B27: CUNDINAMARCA | C27: SECRETARIA DE CIENCIA, TECNOLOGIA E INNOVACIÓN | D27: ALEXANDER RIVEROS Y YAHIR ARCINIEGAS | E27: LUIS MANUEL GONZALEZ | F27: 2012000100063 | G27: FORTALECIMIENTO DE LAS CAPACIDADES DE INNOVACIÓN SOCIAL POR MEDIO DEL PARQUE CIENTIFICO EN BOGOTA - CUNDINAMARCA | H27: CTEL | I27: 16942704000 | J27: 8250704000 | K27: 8692000000 | L27: 41263 | M27: CERRADO | N27: 1 | O27: 0.9473 | AA27: 44607 | AB27: 44607 | AC27: -405 | AD27: -405 | AE27: 0
A28: 26 | B28: CUNDINAMARCA | C28: SECRETARIA DE CIENCIA, TECNOLOGIA E INNOVACIÓN | D28: ALEXANDER RIVEROS Y YAHIR ARCINIEGAS | E28: LUIS MANUEL GONZALEZ | F28: 2012000100118 | G28: FORMACION EN CIENCIA, TECNOLOGIA E INNOVACION EN LA COMUNIDAD EDUCATIVA DE LAS INSTITUCIONES EDUCATIVAS OFICIALES DE LOS MUNICIPIOS NO CERTIFICADOS DEL DEPARTAMENTO | H28: CTEL | I28: 22788739251 | J28: 17739839251 | K28: 5048900000 | L28: 41295 | M28: CERRADO | N28: 0.9818 | O28: 0.9481 | AA28: 44607 | AB28: 44607 | AC28: -405 | AD28: -405 | AE28: 0
A29: 27 | B29: CUNDINAMARCA | C29: SECRETARIA DE CIENCIA, TECNOLOGIA E INNOVACIÓN | D29: ALEXANDER RIVEROS Y YAHIR ARCINIEGAS | E29: LUIS MANUEL GONZALEZ | F29: 2012000100144 | G29: INVESTIGACIÓN INVESTIGACION, DESARROLLO Y TRANSFERENCIA TECNOLOGICA EN EL SECTOR AGROPECUARIO Y AGROINDUSTRIAL CON EL FIN DE MEJORAR L TODO EL DEPARTAMENTO, CUNDINAMARCA, CENTRO ORIENTE | H29: CTEL | I29: 50514736439 | J29: 34707000000 | K29: 15807736439 | L29: 41263 | M29: CONTRATADO EN EJECUCIÓN | N29: 0.841 | O29: 0.8157 | Z29: 45002 | AA29: 44635 | AB29: 45000 | AC29: -377 | AD29: -12 | AE29: -10
A30: 28 | B30: CUNDINAMARCA | C30: SECRETARIA DE CIENCIA, TECNOLOGIA E INNOVACIÓN | D30: ALEXANDER RIVEROS Y YAHIR ARCINIEGAS | E30: LUIS MANUEL GONZALEZ | F30: 2012000100156 | G30: CONSTRUCCIÓN DEL ECOSISTEMA DE INNOVACION TIC PARA EL DEPTO DE CUNDINAMARCA | H30: CTEL | I30: 7088000000 | J30: 5000000000 | K30: 2088000000 | L30: 41263 | M30: CERRADO | N30: 0.9898 | O30: 0.9318 | AA30: 44607 | AB30: 44607 | AC30: -405 | AD30: -405 | AE30: 0
A31: 29 | B31: DESENTRALIZADOS | C31: ICCU - GESPROY GB | D31: DIEGO TORRES / JEIMY FORERO | E31: GIOVANY QUEVEDO | F31: 2013000050003 | G31: ESTUDIOS Y DISEÑOS PARA EL MEJORAMIENTO DE LA VA VILLAPINZON-TURMEQUE EN LONGITUD DE 11 KMS (K0+00 LOCALIZADO EN VILLAPINZON DEPARTAMENTO DE CUNDINAMARCA | H31: TRANSPORTE | I31: 245000000 | J31: 245000000 | K31: 0 | L31: 41400 | M31: CERRADO | N31: 1 | O31: 0.7347 | AA31: 44607 | AB31: 44607 | AC31: -405 | AD31: -405 | AE31: 0
A32: 30 | B32: DESENTRALIZADOS | C32: ICCU - GESPROY GB | D32: DIEGO TORRES / JEIMY FORERO | E32: EDWIN | F32: 2013000050004 | G32: ESTUDIOS Y DISEÑOS PARA EL MEJORAMIENTO DE LA VA YACOPI - LA VICTORIA CON K0+00 EN YACOPI DEPARTAMENTO DE CUNDINAMARCA | H32: TRANSPORTE | I32: 250000000 | J32: 250000000 | K32: 0 | L32: 41400 | M32: CERRADO | N32: 1 | O32: 0.7491 | AA32: 44607 | AB32: 44607 | AC32: -405 | AD32: -405 | AE32: 0
A33: 31 | B33: CUNDINAMARCA | C33: SECRETARIA DE DESARROLLO E INCLUSIÓN SOCIAL | D33: YAHIR ARCINIEGAS Y ALEXANDER RIVEROS | E33: TATIANA HERNANDEZ | F33: 2013000050005 | G33: IMPLEMENTACIÓN DEL PROGRAMA DE COMPLEMENTACION ALIMENTARIA Y NUTRICIONAL PARA MENORES DE CINCO AÑOS Y MUJERES GESTANTES Y LACTANTES EN TODO EL DEPARTAMENTO DE CUNDINAMARCA | H33: EDUCACIÓN | I33: 6189832118 | J33: 6000000000 | K33: 189832118 | L33: 41400 | M33: CERRADO | N33: 0.9982 | O33: 0.9899 | AA33: 44607 | AB33: 44607 | AC33: -405 | AD33: -405 | AE33: 0
A34: 32 | B34: CUNDINAMARCA | C34: SECRETARIA DE EDUCACIÓN | D34: YAHIR ARCINIEGAS Y ALEXANDER RIVEROS | E34: GENNY PADILLA | F34: 2013000050011 | G34: FORTALECIMIENTO DE LA PERMANENCIA DE LOS ESTUDIANTES EN LOS MUNICIPIOS DEL DEPARTAMENTO DE CUNDINAMARCA 2013-2014 CUNDINAMARCA, CENTRO ORIENTE | H34: EDUCACIÓN | I34: 13360387595 | J34: 13360387595 | K34: 0 | L34: 41400 | M34: CERRADO | N34: 0.998 | O34: 0.9234 | AA34: 44607 | AB34: 44607 | AC34: -405 | AD34: -405 | AE34: 0
A35: 33 | B35: CUNDINAMARCA | C35: SECRETARIA DE MINAS, ENERGIA Y GAS | D35: DIEGO TORRES | E35: ALVARO CHACON | F35: 2013000050026 | G35: CONSTRUCCIÓN REDES ELECTRICAS EN LA ZONA RURAL DE LOS MUNICIPIOS DE PARATEBUENO Y GUTIERREZ EN EL DEPARTAMENTO DE CUNDINAMARCA | H35: MINAS Y ENERGÍA | I35: 1068319227 | J35: 1045119227 | K35: 23200000 | L35: 41502 | M35: PARA CIERRE | N35: 0.4493 | O35: 0.447 | Z35: 44793 | AA35: 45000 | AB35: 44607 | AC35: -12 | AD35: -405 | AE35: -219
A36: 34 | B36: CUNDINAMARCA | C36: SECRETARIA DE AGRICULTURA | D36: DIEGO TORRES/VALENTINA PORTILLO | E36: JAVIER HERREDIA | F36: 2013000050027 | G36: FORTALECIMIENTO DE LA ACTIVIDAD CAFETERA COMO ESTRATEGIA DE MEJORAMIENTO DE LA PRODUCTIVIDAD Y LA COMPETITIVIDAD EN EL DEPARTAMENTO DE CUNDINAMARCA, CENTRO ORIENTE | H36: AGRICULTURA | I36: 18756930869 | J36: 3000000000 | K36: 15756930869 | L36: 41502 | M36: CERRADO | N36: 1 | O36: 0.9949 | AA36: 44607 | AB36: 44607 | AC36: -405 | AD36: -405 | AE36: 0
A37: 35 | B37: CUNDINAMARCA | C37: SECRETARIA DE AGRICULTURA | D37: DIEGO TORRES/VALENTINA PORTILLO | E37: JAVIER HERREDIA | F37: 2013000050028 | G37: FORTALECIMIENTO DEL SUBSECTOR PANELERO EN EL DEPARTAMENTO DE CUNDINAMARCA | H37: AGRICULTURA | I37: 3427279826 | J37: 2599564478 | K37: 827715348 | L37: 41502 | M37: CERRADO | N37: 1 | O37: 0.9996 | AA37: 44607 | AB37: 44607 | AC37: -405 | AD37: -405 | AE37: 0
A38: 36 | B38: DESENTRALIZADOS | C38: ICCU - GESPROY GB | D38: DIEGO TORRES / JEIMY FORERO | E38: GIOVANY QUEVEDO | F38: 2013000050043 | G38: MEJORAMIENTO Y REHABILITACION DE LA VIA GUACHETA - CAPELLANIA (SECTOR K0+780 AL K2+240) K0+000 LOCALIZADO EN EL RIO UBATE GUACHET, CUNDINAMARCA, CENTRO ORIENTE | H38: TRANSPORTE | I38: 1019047619 | J38: 1000000000 | K38: 19047619 | L38: 41639 | M38: CERRADO | N38: 1 | O38: 0.9806 | AA38: 44607 | AB38: 44607 | AC38: -405 | AD38: -405 | AE38: 0
A39: 37 | B39: ENTIDAD APORTANTE RECURSOS | C39: BANCO AGRARIO DE COLOMBIA | D39: DIEGO TORRES / JEIMY FORERO | F39: 2013000050044 | G39: CONSTRUCCIÓN CUNDINAMARCA VISR 2013 TODO EL DEPARTAMENTO, CUNDINAMARCA, CENTRO ORIENTE | H39: AGRICULTURA | I39: 60041780218 | J39: 15888838218 | K39: 44152942000 | L39: 41569 | M39: CONTRATADO EN EJECUCIÓN | N39: 0.8102 | O39: 0.8529 | AA39: 44607 | AB39: 44607 | AC39: -405 | AD39: -405 | AE39: 0
A40: 38 | B40: DESENTRALIZADOS | C40: ICCU - GESPROY GB | D40: DIEGO TORRES / JEIMY FORERO | E40: GIOVANY QUEVEDO | F40: 2013000050045 | G40: MEJORAMIENTO Y PAVIMENTACIÓN DE LA VIA FOSCA - GUTIERREZ, DESDE EL KM 2+000 AL KM 3+000 (K0+000 LOCALIZADO EN FOSCA), DEPARTAMENTO DE CUNDINAMARCA | H40: TRANSPORTE | I40: 2534999997 | J40: 2000000000 | K40: 534999997 | L40: 41579 | M40: CERRADO | N40: 1 | O40: 0.9745 | AA40: 44607 | AB40: 44607 | AC40: -405 | AD40: -405 | AE40: 0
A41: 39 | B41: CUNDINAMARCA | C41: SECRETARIA DE MINAS, ENERGIA Y GAS | D41: DIEGO TORRES | E41: JAHIR HERNANDEZ | F41: 2013000050046 | G41: IMPLEMENTACIÓN Y MASIFICACION DEL SERVICIO DE GAS COMBUSTIBLE POR REDES PARA LOS MUNICIPIOS DE CAPARRAPI, EL PEÑON, LA PALMA, PAIME, TOPAIPI Y VILLAGOMEZ CUNDINAMARCA | H41: MINAS Y ENERGÍA | I41: 6609136508 | J41: 2118963154 | K41: 4490173354 | L41: 41579 | M41: CERRADO | N41: 1 | O41: 1 | AA41: 44607 | AB41: 44607 | AC41: -405 | AD41: -405 | AE41: 0
A42: 40 | B42: DESENTRALIZADOS | C42: ICCU - GESPROY GB | D42: DIEGO TORRES / JEIMY FORERO | E42: GIOVANY QUEVEDO | F42: 2013000050047 | G42: MEJORAMIENTO Y PAVIMENTACIÓN VIA GUANACAS - EL PEÑON DESDE EL K0+000 AL K2+000 (K0+000 UBICADO EN GUANACAS) MUNICIPIO EL PEÑON, CUNDINAMARCA | H42: TRANSPORTE | I42: 3000000000 | J42: 3000000000 | K42: 0 | L42: 41808 | M42: CERRADO | N42: 1 | O42: 0.9964 | AA42: 44607 | AB42: 44607 | AC42: -405 | AD42: -405 | AE42: 0
A43: 41 | B43: DESENTRALIZADOS | C43: ICCU - GESPROY GB | D43: DIEGO TORRES / JEIMY FORERO | E43: GIOVANY QUEVEDO | F43: 2013000050049 | G43: MEJORAMIENTO Y MANTENIMIENTO DE LA RE VIAL MEDIANTE LA ADQUISICION DE MAQUINARIA AÑO 2013-2014 PARA LOS MUNICIPIOS DEL DEPARTAMENTO DE CUNDINAMARCA | H43: TRANSPORTE | I43: 14330854376 | J43: 12431431552 | K43: 1899422824 | L43: 41609 | M43: CERRADO | N43: 1 | O43: 0.9996 | AA43: 44607 | AB43: 44607 | AC43: -405 | AD43: -405 | AE43: 0
A44: 42 | B44: DESENTRALIZADOS | C44: ICCU - GESPROY GB | D44: DIEGO TORRES / JEIMY FORERO | E44: GIOVANY QUEVEDO | F44: 2013000050050 | G44: MEJORAMIENTO Y PAVIMENTACIÓN DE LA VIA SANAME - PUENTE QUETAME DESDE K0+000 AL K1+500 (K0+000 LOCALIZADO EN PUENTE QUEMADO) MUNICIPIO FOSCA, CUNDINAMARCA | H44: TRANSPORTE | I44: 6000000000 | J44: 6000000000 | K44: 0 | L44: 41639 | M44: CERRADO | N44: 1 | O44: 0.4921 | AA44: 44607 | AB44: 44607 | AC44: -405 | AD44: -405 | AE44: 0
A45: 43 | B45: CUNDINAMARCA | C45: SECRETARIA DE AMBIENTE | D45: ALEXANDER RIVEROS Y YAHIR ARCINIEGAS | F45: 2013000050051 | G45: FORTALECIMIENTO DE LA GESTION INTEGRAL DE RESIDUOS SOLIDOS, A TRAVES DE SISTEMAS RECIONALES EN LAS PROVINCIAS DE UBATE Y RIONEGRO EN EL DEPARTAMENTO DE CUNDINAMARCA | H45: VIVIENDA, CIUDAD Y TERRITORIO | I45: 3000000000 | J45: 3000000000 | K45: 0 | L45: 41579 | M45: CERRADO | N45: 0.4828 | O45: 0.474 | AA45: 44607 | AB45: 44607 | AC45: -405 | AD45: -405 | AE45: 0
A46: 44 | B46: CUNDINAMARCA | C46: SECRETARIA DE AGRICULTURA | D46: DIEGO TORRES/VALENTINA PORTILLO | E46: JAVIER HERREDIA | F46: 2013000050054 | G46: MEJORAMIENTO DE LA PRODUCTIVIDAD Y COMPETITIVIDAD DEL SECTOR CAUCHERO EN EL DEPARTAMENTO DE CUNDINAMARCA | H46: AGRICULTURA | I46: 3765860000 | J46: 2459000000 | K46: 1306860000 | L46: 41639 | M46: CERRADO | N46: 1 | O46: 1 | AA46: 44607 | AB46: 44607 | AC46: -405 | AD46: -405 | AE46: 0
A47: 45 | B47: CUNDINAMARCA | C47: SECRETARIA DE GOBIERNO | D47: YESID CASTAÑO | E47: EDUARDO | F47: 2013000050056 | G47: PREVENCIN DE INCENDIOS FORESTALES CON LA ADQUISICION DE VEHICULOS 4X4 ACCION RAPIDA TIPO FORESTAL PARA EL DEPARTAMENTO DE CUNDINAMARCA | H47: AMBIENTE Y DESARROLLO SOSTENIBLE | I47: 4000000000 | J47: 4000000000 | K47: 0 | L47: 41579 | M47: CERRADO | N47: 1 | O47: 0.9999 | AA47: 44607 | AB47: 44607 | AC47: -405 | AD47: -405 | AE47: 0
A48: 46 | B48: CUNDINAMARCA | C48: SECRETARIA DE AGRICULTURA | D48: DIEGO TORRES/VALENTINA PORTILLO | E48: JAVIER HERREDIA | F48: 2013000050081 | G48: MEJORAMIENTO DE LA PRODUCTIVIDAD, CALIDAD, POSCOSECHA Y MERCADEO DE LAS CADENAS HORTIFRUTCOLA Y AROMATICAS DE CUNDINAMARCA | H48: AGRICULTURA | I48: 4900400000 | J48: 2600000000 | K48: 2300400000 | L48: 41808 | M48: CERRADO | N48: 1 | O48: 1 | AA48: 44607 | AB48: 44607 | AC48: -405 | AD48: -405 | AE48: 0
A49: 47 | B49: CUNDINAMARCA | C49: SECRETARIA DE AGRICULTURA | D49: DIEGO TORRES/VALENTINA PORTILLO | E49: JAVIER HERREDIA | F49: 2013000050083 | G49: IMPLEMENTACIÓN Y PUESTA EN MARCHA DE UNA PLANTA HOMOGENIZADORA DE MIELES PARA LA PRODUCCION DE PANELA EN CAPARRAPI CUNDINAMARCA, CENTRO ORIENTE | H49: AGRICULTURA | I49: 3322683076 | J49: 3126242524 | K49: 196440552 | L49: 41808 | M49: CERRADO | N49: 1 | O49: 1 | AA49: 44607 | AB49: 44607 | AC49: -405 | AD49: -405 | AE49: 0
A50: 48 | B50: DESENTRALIZADOS | C50: ICCU - GESPROY GB | D50: DIEGO TORRES / JEIMY FORERO | E50: GIOVANY QUEVEDO | F50: 2013000050094 | G50: MEJORAMIENTO Y REHABILITACION DE LA VIA TABIO - CHIA DEL K1+100 AL K3+200 | H50: TRANSPORTE | I50: 2000000000 | J50: 2000000000 | K50: 0 | L50: 41639 | M50: DESAPROBADO | N50: 0 | O50: 0 | AA50: 44607 | AB50: 44607 | AC50: -405 | AD50: -405 | AE50: 0
A51: 49 | B51: CUNDINAMARCA | C51: SECRETARIA DE CIENCIA, TECNOLOGIA E INNOVACIÓN | D51: ALEXANDER RIVEROS Y YAHIR ARCINIEGAS | E51: LUIS MANUEL GONZALEZ | F51: 2013000100129 | G51: INCREMENTO EN LAS ESTRATEGIAS SUSTENTABLES EN EL USO DEL RECURSO DE ENERGA ELECTRICA PARA LA POBLACION VULNERABLE EN EL DPTO. DE CUNDINAMARCA | H51: CTEL | I51: 5264002961 | J51: 4097083299 | K51: 1166919662 | L51: 41789 | M51: CONTRATADO EN EJECUCIÓN | N51: 0.8242 | O51: 0.6852 | Z51: 44972 | AA51: 44607 | AB51: 44972 | AC51: -405 | AD51: -40 | AE51: -40
A52: 50 | B52: CUNDINAMARCA | C52: SECRETARIA DE CIENCIA, TECNOLOGIA E INNOVACIÓN | D52: ALEXANDER RIVEROS Y YAHIR ARCINIEGAS | E52: LUIS MANUEL GONZALEZ | F52: 2013000100131 | G52: INVESTIGACIÓN ESTIMAR VULNERABILIDAD AL CAMBIO CLIMATICO DE SISTEMAS CAFETEROS Y DISEÑO DE ARREGLOS AGROFORESTALES CON BIOTECNOLOGIA PACHO, TIBACUY, SAN JUAN DE RIO SECO, CUNDINAMARCA | H52: AGRICULTURA | I52: 3287867000 | J52: 2622860000 | K52: 665007000 | L52: 41474 | M52: CERRADO | N52: 0.9845 | O52: 0.8904 | AA52: 44607 | AB52: 44607 | AC52: -405 | AD52: -405 | AE52: 0
A53: 51 | B53: CUNDINAMARCA | C53: SECRETARIA DE CIENCIA, TECNOLOGIA E INNOVACIÓN | D53: ALEXANDER RIVEROS Y YAHIR ARCINIEGAS | E53: LUIS MANUEL GONZALEZ | F53: 2013000100149 | G53: INNOVACIÓN EN EL MODELO DE GESTION DE MEDICAMENTO EN EL DEPARTAMENTO DE CUNDINAMARCA FASE II | H53: CTEL | I53: 3079583047 | J53: 2490946916 | K53: 588636131 | L53: 41474 | M53: CERRADO | N53: 1 | O53: 1 | AA53: 44607 | AB53: 44607 | AC53: -405 | AD53: -405 | AE53: 0
A54: 52 | B54: CUNDINAMARCA | C54: SECRETARIA DE CIENCIA, TECNOLOGIA E INNOVACIÓN | D54: ALEXANDER RIVEROS Y YAHIR ARCINIEGAS | E54: LUIS MANUEL GONZALEZ | F54: 2013000100176 | G54: INNOVACIÓN SISTEMA DE PRODUCCION DE FRUTAS/HORTALIZAS FRESCAS/PROCESADAS TIPO EXPORTACION CON TECNOLOGIA BIOLOGICA /INTEGRAL INOCUA SUBACHOQUE, CUNDINAMARCA, CENTRO ORIENTE | H54: CTEL | I54: 9285096292 | J54: 6556945302 | K54: 2728150990 | L54: 41474 | M54: TERMINADO | N54: 1 | O54: 0.6871 | Z54: 44972 | AA54: 44972 | AB54: 44972 | AC54: -40 | AD54: -40 | AE54: -40
A55: 53 | B55: CUNDINAMARCA | C55: SECRETARIA DE CIENCIA, TECNOLOGIA E INNOVACIÓN | D55: ALEXANDER RIVEROS Y YAHIR ARCINIEGAS | E55: LUIS MANUEL GONZALEZ | F55: 2013000100180 | G55: DISEÑO SMART TON: TALENTO E INNOVACION APLICADA AL TERRITORIO | H55: CTEL | I55: 3089954000 | J55: 2497510000 | K55: 592444000 | L55: 41509 | M55: CERRADO | N55: 1 | O55: 0.8654 | AA55: 44607 | AB55: 44607 | AC55: -405 | AD55: -405 | AE55: 0
A56: 54 | B56: CUNDINAMARCA | C56: SECRETARIA DE CIENCIA, TECNOLOGIA E INNOVACIÓN | D56: ALEXANDER RIVEROS Y YAHIR ARCINIEGAS | E56: LUIS MANUEL GONZALEZ | F56: 2013000100215 | G56: FORTALECIMIENTO DE LA GESTIN COMUNITARIA DEL RECURSO HIDRICO, POR MEDIO DE LA DISMINUCION DEL CONSUMO DE ESTE, UTILIZANDO TP Y TICS , CUNDINAMARCA, CENTRO ORIENTE | H56: CTEL | I56: 1811292700 | J56: 1608461700 | K56: 202831000 | L56: 41565 | M56: CERRADO | N56: 1 | O56: 0.9074 | AA56: 44607 | AB56: 44607 | AC56: -405 | AD56: -405 | AE56: 0
A57: 55 | B57: CUNDINAMARCA | C57: SECRETARIA DE CIENCIA, TECNOLOGIA E INNOVACIÓN | D57: ALEXANDER RIVEROS Y YAHIR ARCINIEGAS | E57: LUIS MANUEL GONZALEZ | F57: 2013000100217 | G57: FORTALECIMIENTO DE LA COMPETITIVIDAD DEL SECTOR FLORICULTOR COLOMBIANO MEDIANTE EL USO DE CIENCIA, TECNOLOGA E INNOVACION APLICADAS EN EL DEPARTAMENTO DE CUNDINAMARCA | H57: CTEL | I57: 7204002875 | J57: 4618409839 | K57: 2585593036 | L57: 41789 | M57: CERRADO | N57: 1 | O57: 0.9859 | AA57: 44607 | AB57: 44607 | AC57: -405 | AD57: -405 | AE57: 0
A58: 56 | B58: CUNDINAMARCA | C58: SECRETARIA DE CIENCIA, TECNOLOGIA E INNOVACIÓN | D58: ALEXANDER RIVEROS Y YAHIR ARCINIEGAS | E58: LUIS MANUEL GONZALEZ | F58: 2013000100247 | G58: INVESTIGACIÓN E INNOVACIÓN TECNOLÓGICA Y APROPIACIÓN SOCIAL DE CONOCIMIENTO CIENTÍFICO DE ORQUÍDEAS NATIVAS DE CUNDINAMARCA | H58: CTEL | I58: 3400306874 | J58: 2551931927 | K58: 848374947 | L58: 41856 | M58: CERRADO | N58: 0.967 | O58: 0.9526 | AA58: 44607 | AB58: 44607 | AC58: -405 | AD58: -405 | AE58: 0
A59: 57 | B59: CUNDINAMARCA | C59: SECRETARIA DE CIENCIA, TECNOLOGIA E INNOVACIÓN | D59: ALEXANDER RIVEROS Y YAHIR ARCINIEGAS | E59: LUIS MANUEL GONZALEZ | F59: 2013000100248 | G59: INNOVACIÓN , CIENCIA Y TECNOLOGIA PARA PRODUCTORES DE LECHE EN LA PROVINCIA DE UBATE, CUNDINAMARCA. | H59: CTEL | I59: 11619725567 | J59: 9380319099 | K59: 2239406468 | L59: 41565 | M59: TERMINADO | N59: 0.8025 | O59: 0.8197 | Z59: 44740 | AA59: 44793 | AB59: 44760 | AC59: -219 | AD59: -252 | AE59: -272
A60: 58 | B60: ENTIDAD APORTANTE RECURSOS | C60: MUNICIPIO DE MADRID | D60: ALEXANDER RIVEROS | F60: 2013000050048 | G60: MEJORAMIENTO Y PAVIMENTACIÓN DE LA VIA AJOVER-SANTA CRUZ EN 2 KILOMETROS, MUNICIPIO DE MADRID, CUNDINAMARCA | H60: TRANSPORTE | I60: 8946944399 | J60: 8700000000 | K60: 246944399 | L60: 41689 | M60: CERRADO | N60: 1 | O60: 1 | AA60: 44607 | AB60: 44607 | AC60: -405 | AD60: -405 | AE60: 0
A61: 59 | B61: ENTIDAD APORTANTE RECURSOS | C61: CORMAGDALENA | D61: ALEXANDER RIVEROS | F61: 20132401060001 | G61: MANTENIMIENTO Y RECUPERACIÓN DE LA NAVEGABILIDAD DEL RIO MAGDALENA | H61: TRANSPORTE | I61: 3527443454052 | J61: 117000000000 | K61: 3410443454052 | L61: 41514 | M61: CERRADO | N61: 0.045 | O61: 0.0383 | AA61: 44607 | AB61: 44607 | AC61: -405 | AD61: -405 | AE61: 0
A62: 60 | B62: DESENTRALIZADOS | C62: ICCU - GESPROY GB | D62: DIEGO TORRES / JEIMY FORERO | E62: GIOVANY QUEVEDO | F62: 2014000050033 | G62: MEJORAMIENTO Y REHABILITACIÓN DE LA VIA TABIO - CHIA DEL K0+000 AL K1+800 | H62: TRANSPORTE | I62: 2570000000 | J62: 2000000000 | K62: 570000000 | L62: 41893 | M62: CERRADO | N62: 1 | O62: 1 | AA62: 44607 | AB62: 44607 | AC62: -405 | AD62: -405 | AE62: 0
A63: 61 | B63: DESENTRALIZADOS | C63: ICCU - GESPROY GB | D63: DIEGO TORRES / JEIMY FORERO | E63: GIOVANY QUEVEDO | F63: 2014257720001 | G63: MEJORAMIENTO Y PAVIMENTACIÓN DE LA VIA SUESCA LA PLAYA - SESQUILE DEPARTAMENTO DE CUNDINAMARCA | H63: TRANSPORTE | I63: 4191000000 | J63: 1391000000 | K63: 2800000000 | L63: 41743 | M63: CERRADO | N63: 1 | O63: 0.9867 | AA63: 44607 | AB63: 44607 | AC63: -405 | AD63: -405 | AE63: 0
A64: 62 | B64: CUNDINAMARCA | C64: SECRETARIA DE GOBIERNO | D64: DAYANA FERNANDEZ | E64: EDUARDO | F64: 2014000050010 | G64: CONSTRUCCIÓN DE UN CENTRO DE ATENCION ESPECIALIZADA AL SERVICIO DE ADOLESCENTES INFRACTORES DE LA LEY PENAL EN EL DEPARTAMENTO DE CUNDINAMARCA | H64: JUSTICIA Y DEL DERECHO | I64: 12758137579 | J64: 8500000000 | K64: 4258137579 | L64: 41808 | M64: PARA CIERRE | N64: 1 | O64: 1 | AA64: 44607 | AB64: 44607 | AC64: -405 | AD64: -405 | AE64: 0
A65: 63 | B65: ENTIDAD APORTANTE RECURSOS | C65: MUNICIPIO DE VILLETA | D65: ALEXANDER RIVEROS | F65: 2014000050048 | G65: MEJORAMIENTO Y PAVIMENTACIÓN DE LA VIA VILLETA-PANTANILLO-CORREDOR CHUGUACAL -CAMBAO DEL K0+360 AL K1+060 VILLETA, CUNDINAMARCA, CENTRO ORIENTE | H65: TRANSPORTE | I65: 1701612797 | J65: 1489209370 | K65: 212403426.8 | L65: 42089 | M65: CERRADO | N65: 1 | O65: 1 | AA65: 44607 | AB65: 44607 | AC65: -405 | AD65: -405 | AE65: 0
A66: 64 | B66: DESENTRALIZADOS | C66: ICCU - GESPROY GB | D66: DIEGO TORRES / JEIMY FORERO | E66: GIOVANY QUEVEDO | F66: 2015000050010 | G66: MEJORAMIENTO DE LA VA SAN CAYETANO - COGUA SECTOR K6+670 - K8+366 (K0+000 LOCALIZADO EN EL CASCO URBANO DEL MUNICIPIO DE SAN CAYETANO) CUNDINAMARCA | H66: TRANSPORTE | I66: 3796247522 | J66: 3000000000 | K66: 796247522 | L66: 42158 | M66: CERRADO | N66: 1 | O66: 0.9876 | AA66: 44607 | AB66: 44607 | AC66: -405 | AD66: -405 | AE66: 0
A67: 65 | B67: DESENTRALIZADOS | C67: ICCU - GESPROY GB | D67: DIEGO TORRES / JEIMY FORERO | E67: GIOVANY QUEVEDO | F67: 2015000050013 | G67: MEJORAMIENTO DE LA VA UBAQUE - LOS CEREZOS - CHIPAQUE SECTORES DEL K0+000 AL K2+040 Y DEL K16+000 AL K18+260 (K0+000 LOCALIZADO EN UBAQUE) DEPARTAMENTO DE CUNDINAMARCA | H67: TRANSPORTE | I67: 8000000000 | J67: 8000000000 | K67: =I67-J67 -> 0 | L67: 42159 | M67: CERRADO | N67: 0.9971 | O67: 0.9875 | AA67: 44607 | AB67: 44607 | AC67: -405 | AD67: -405 | AE67: 0
A68: 66 | B68: CUNDINAMARCA | C68: SECRETARIA DE HABITAT Y VIVIENDA | D68: ALEXANDER RIVEROS/JEIMY FORERO | E68: BEATRIZ GAMEZ | F68: 2015000050014 | G68: CONSTRUCCIÓN DE VIVIENDAS NUEVAS RURALES VISR 2015 EN EL DEPARTAMENTO DE CUNDINAMARCA-SGR | H68: AGRICULTURA | I68: 7588896000 | J68: 6840269782 | K68: 748626218 | L68: 42173 | M68: CERRADO | N68: 1 | O68: 0.9276 | AA68: 44607 | AB68: 44607 | AC68: =IF(AA68=0,0,_xlfn.DAYS(AA68,TODAY())) -> -405 | AD68: -405 | AE68: 0
A69: 67 | B69: CUNDINAMARCA | C69: SECRETARIA DE EDUCACIÓN | D69: DAYANA FERNANDEZ | E69: GENNY PADILLA | F69: 2015000050015 | G69: FORTALECIMIENTO DE LA PERMANENCIA DE LOS ESTUDIANTES EN LOS MUNICIPIOS DEL DEPARTAMENTO DE CUNDINAMARCA, CENTRO ORIENTE - 2015 | H69: EDUCACIÓN | I69: 8373797030 | J69: 8373797030 | K69: 0 | L69: 42159 | M69: CERRADO | N69: 0.9707 | O69: 0.8519 | AA69: 44607 | AB69: 44607 | AC69: -405 | AD69: -405 | AE69: =IF(Z69=0,0,_xlfn.DAYS(Z69,TODAY())) -> 0
A70: 68 | B70: DESENTRALIZADOS | C70: ICCU - GESPROY GB | D70: DIEGO TORRES / JEIMY FORERO | E70: GIOVANY QUEVEDO | F70: 2015000050025 | G70: MEJORAMIENTO Y PAVIMENTACIÓN DE LA TRONCAL DEL CARBON SECTOR K0+000 AL K2+860 (K0+000 LOCALIZADO EN TIERRA NEGRA, MUNICIPIO DE TAUSA), DEPARTAMENTO DE CUNDINAMARCA | H70: TRANSPORTE | I70: 7913699780 | J70: 6000000000 | K70: 1913699780 | L70: 42159 | M70: CERRADO | N70: 1 | O70: 1 | AA70: 44607 | AB70: 44607 | AC70: -405 | AD70: -405 | AE70: 0
A71: 69 | B71: CUNDINAMARCA | C71: SECRETARIA DE EDUCACIÓN | D71: DAYANA FERNANDEZ | E71: GENNY PADILLA | F71: 2015000050026 | G71: FORTALECIMIENTO A LA ESTRATEGIA DE ALIMENTACIÓN ESCOLAR PARA MUNICIPIOS NO CERTIFICADOS DEL DEPARTAMENTO DE CUNDINAMARCA, CENTRO ORIENTE | H71: EDUCACIÓN | I71: 2100000000 | J71: 2100000000 | K71: 0 | L71: 42159 | M71: CERRADO | N71: 1 | O71: 0.8551 | AA71: 44607 | AB71: 44607 | AC71: -405 | AD71: -405 | AE71: 0
A72: 70 | B72: CUNDINAMARCA | C72: SECRETARIA DE AGRICULTURA | D72: DIEGO TORRES/VALENTINA PORTILLO | E72: JAVIER HERREDIA | F72: 2015000050029 | G72: IMPLEMENTACIÓN Y PUESTA EN MARCHA DE UNA PLANTA HOMOGENIZADORA DE MIELES PARA LA PRODUCCION DE PANELA EN EL MUNICIPIO DE QUIPILE, CUNDINAMARCA, CENTRO ORIENTE | H72: AGRICULTURA | I72: 3395531657 | J72: 3139511657 | K72: 256020000 | L72: 42180 | M72: CERRADO | N72: 1 | O72: 1 | AA72: 44607 | AB72: 44607 | AC72: -405 | AD72: -405 | AE72: 0
A73: 71 | B73: CUNDINAMARCA | C73: SECRETARIA DE AGRICULTURA | D73: DIEGO TORRES/VALENTINA PORTILLO | E73: JAVIER HERREDIA | F73: 2015000050030 | G73: FORTALECIMIENTO A LA CADENA PRODUCTIVA DEL CACAO EN EL DEPARTAMENTO DE CUNDINAMARCA | H73: AGRICULTURA | I73: 2253334400 | J73: 1200000000 | K73: 1053334400 | L73: 42159 | M73: CERRADO | N73: 1 | O73: 1 | AA73: 44607 | AB73: 44607 | AC73: -405 | AD73: -405 | AE73: 0
A74: 72 | B74: CUNDINAMARCA | C74: SECRETARIA DE GOBIERNO | D74: DAYANA FERNANDEZ | E74: EDUARDO | F74: 2015000050031 | G74: ADQUISICIÓN DE VEHICULOS PARA LOS CUERPOS OPERATIVOS (BOMBEROS) PARA LAS PROVINCIAS DEL DEPARTAMENTO DE CUNDINAMARCA | H74: AMBIENTE Y DESARROLLO SOSTENIBLE | I74: 3670000000 | J74: 3670000000 | K74: 0 | L74: 42159 | M74: CERRADO | N74: 1 | O74: 0.98 | AA74: 44607 | AB74: 44607 | AC74: -405 | AD74: -405 | AE74: 0
A75: 73 | B75: CUNDINAMARCA | C75: SECRETARIA DE AGRICULTURA | D75: DIEGO TORRES/VALENTINA PORTILLO | E75: JAVIER HERREDIA | F75: 2015000050034 | G75: FORTALECIMIENTO DE LA PRODUCTIVIDAD Y COMPETITIVIDAD DEL SECTOR CAUCHERO EN EL DEPARTAMENTO DE CUNDINAMARCA | H75: AGRICULTURA | I75: 2158800000 | J75: 1500000000 | K75: 658800000 | L75: 42159 | M75: CERRADO | N75: 1 | O75: 1 | AA75: 44607 | AB75: 44607 | AC75: -405 | AD75: -405 | AE75: 0
A76: 74 | B76: DESENTRALIZADOS | C76: ICCU - GESPROY GB | D76: DIEGO TORRES / JEIMY FORERO | E76: GIOVANY QUEVEDO | F76: 2015000050041 | G76: MEJORAMIENTO DE LA VA UBALA - PALOMAS - MAMBITA - MEDINA (K0+000 UBICADO EN EL SITIO PROFESIONALES MUNICIPIO DE UBALA, DEPARTAMENTO DE CUNDINAMARCA | H76: TRANSPORTE | I76: 13663491451 | J76: 12663491451 | K76: 1000000000 | L76: 42180 | M76: CERRADO | N76: 1 | O76: 1 | AA76: 44607 | AB76: 44607 | AC76: -405 | AD76: -405 | AE76: 0
A77: 75 | B77: CUNDINAMARCA | C77: SECRETARIA DE DESARROLLO E INCLUSIÓN SOCIAL | D77: DAYANA FERNANDEZ | E77: TATIANA HERNANDEZ | F77: 2015000050048 | G77: IMPLEMENTACIÓN DEL PROGRAMA DE COMPLEMENTACION ALIMENTARIA Y NUTRICIONAL PARA MENORES DE 5 AÑOS, MADRES GESTANTES Y LACTANTES EN TODO EL DEPARTAMENTO DE CUNDINAMARCA 2015 | H77: SALUD Y PROTECCIÓN SOCIAL | I77: 2900000000 | J77: 2900000000 | K77: 0 | L77: 42348 | M77: CERRADO | N77: 1 | O77: 1 | AA77: 44607 | AB77: 44607 | AC77: -405 | AD77: -405 | AE77: 0
A78: 76 | B78: CUNDINAMARCA | C78: SECRETARIA DE EDUCACIÓN | D78: YAHIR ARCINIEGAS Y ALEXANDER RIVEROS | F78: 2016000050005 | G78: FORTALECIMIENTO DE LA PERMANENCIA DE LOS ESTUDIANTES EN LOS MUNICIPIOS DEL DEPARTAMENTO DE CUNDINAMARCA, CENTRO ORIENTE - 2016 | H78: EDUCACIÓN | I78: 14963757156 | J78: 14963757156 | K78: 0 | L78: 42605 | M78: CERRADO | N78: 0.967 | O78: 0.5617 | AA78: 44607 | AB78: 44607 | AC78: -405 | AD78: -405 | AE78: 0
A79: 77 | B79: CUNDINAMARCA | C79: SECRETARIA DE EDUCACIÓN | D79: DAYANA FERNANDEZ | E79: GENNY PADILLA | F79: 2016000050014 | G79: FORTALECIMIENTO A LA ESTRATEGIA DE ALIMENTACION ESCOLAR PARA MUNICIPIOS NO CERTIFICADOS DEL DEPARTAMENTO DE CUNDINAMARCA, SGR 2016. | H79: EDUCACIÓN | I79: 12339894658 | J79: 12339894658 | K79: 0 | L79: 42625 | M79: CERRADO | N79: 0.767 | O79: 0.7473 | AA79: 44607 | AB79: 44607 | AC79: -405 | AD79: -405 | AE79: 0
A80: 78 | B80: DESENTRALIZADOS | C80: ICCU - GESPROY GB | D80: DIEGO TORRES / JEIMY FORERO | E80: GIOVANY QUEVEDO | F80: 2016000050023 | G80: MANTENIMIENTO DE LA RED VIAL EN AFIRMADO A TRAVS DE LA ADQUISICION DE MAQUINARIA PESADA Y EQUIPO DE TRANSPORTE EN EL DEPARTAMENTO DE CUNDINAMARCA | H80: TRANSPORTE | I80: 24179817530 | J80: 24179817530 | K80: 0 | L80: 43066 | M80: CERRADO | N80: 0.9133 | O80: 0.6281 | AA80: 44607 | AB80: 44607 | AC80: -405 | AD80: -405 | AE80: 0
A81: 79 | B81: DESENTRALIZADOS | C81: ICCU - GESPROY GB | D81: DIEGO TORRES / JEIMY FORERO | E81: GIOVANY QUEVEDO | F81: 2016000050025 | G81: REHABILITACIÓN DE LA VIA BOQUERON - PANDI DEL DEPARTAMENTO DE CUNDINAMARCA | H81: TRANSPORTE | I81: 4991550669 | J81: 4991550669 | K81: 0 | L81: 42825 | M81: CERRADO | N81: 1 | O81: 0.9874 | AA81: 44607 | AB81: 44607 | AC81: -405 | AD81: -405 | AE81: 0
A82: 80 | B82: DESENTRALIZADOS | C82: ICCU - GESPROY GB | D82: DIEGO TORRES / JEIMY FORERO | E82: GIOVANY QUEVEDO | F82: 2016000050029 | G82: REHABILITACIÓN DE LA VIA LA QUINTA - REPRESA DEL NEUSA, MUNICIPIO DE COGUA, DEPARTAMENTO DE CUNDINAMARCA | H82: TRANSPORTE | I82: 6798676732 | J82: 5625757063 | K82: 1172919669 | L82: 42846 | M82: CERRADO | N82: 1 | O82: 0.9999 | AA82: 44607 | AB82: 44607 | AC82: -405 | AD82: -405 | AE82: 0
A83: 81 | B83: DESENTRALIZADOS | C83: ICCU - GESPROY GB | D83: DIEGO TORRES / JEIMY FORERO | E83: GIOVANY QUEVEDO | F83: 2016000050032 | G83: REHABILITACIÓN DE LA VIA CLUB EL BOSQUE - TIBACUY - CUMACA DEL DEPARTAMENTO DE CUNDINAMARCA | H83: TRANSPORTE | I83: 4022150134 | J83: 3022150134 | K83: 1000000000 | L83: 42825 | M83: CERRADO | N83: 1 | O83: 0.9998 | AA83: 44607 | AB83: 44607 | AC83: -405 | AD83: -405 | AE83: 0
A84: 82 | B84: ENTIDAD APORTANTE RECURSOS | C84: ALCALDIA MAYOR DE BOGOTA | D84: ALEXANDER RIVEROS | E84: ESPERANZA GUZMAN | F84: 2016000050033 | G84: ELABORACIÓN DE LA ENCUESTA MULTIPROPOSITO 2017 : BOGOTA - CUNDINAMARCA | H84: VIVIENDA, CIUDAD Y TERRITORIO | I84: 17282722269 | J84: 16761722269 | K84: 521000000 | L84: 42825 | M84: CERRADO | N84: 1 | O84: 0.9995 | AA84: 44607 | AB84: 44607 | AC84: -405 | AD84: -405 | AE84: 0
A85: 83 | B85: CUNDINAMARCA | C85: SECRETARIA DE HABITAT Y VIVIENDA | D85: ALEXANDER RIVEROS/JEIMY FORERO | E85: BEATRIZ GAMEZ | F85: 2016000050052 | G85: CONSTRUCCIÓN DE VIVIENDAS NUEVAS RURALES EN EL DEPARTAMENTO DE CUNDINAMARCA | H85: AGRICULTURA | I85: 5983779025 | J85: 5343748805 | K85: 640030220.5 | L85: 43090 | M85: CONTRATADO EN EJECUCIÓN | N85: 0.9999 | O85: 0.9936 | Z85: 44972 | AA85: 44607 | AB85: 44793 | AC85: -405 | AD85: -219 | AE85: -40
A86: 84 | B86: CUNDINAMARCA | C86: SECRETARIA DE CIENCIA, TECNOLOGIA E INNOVACIÓN | D86: ALEXANDER RIVEROS Y YAHIR ARCINIEGAS | E86: LUIS MANUEL GONZALEZ | F86: 2016000100027 | G86: ANLISIS DE FACTORES GENETICOS, SANITARIOS Y MEDIOAMBIENTALES QUE AFECTAN LAS TASAS DE PREÑEZ A PARTIR DE EMBRIONES IN VITRO EN EL DEPARTAMENTO DE CUNDINAMARCA | H86: CTEL | I86: 8135504363 | J86: 6359045755 | K86: =I86-J86 -> 1776458608 | L86: 43098 | M86: CONTRATADO EN EJECUCIÓN | N86: 0.2409 | O86: 0.8688 | Z86: 44760 | AA86: 44607 | AB86: 44972 | AC86: -405 | AD86: -40 | AE86: -252
A87: 85 | B87: CUNDINAMARCA | C87: ENTIDAD DESIGNADA PARA LA SUPERVISIÓN DEL PROYECTO O PARA CONTRATAR LA INTERVENTORÍA RAPE - INTERVENTORIA SECRETARIA DE PLANEACIÓN | D87: YAHIR ARCINIEGAS | E87: ANGELA MARTINEZ | F87: 2016000050012 | G87: Implementación DE ACCIONES DE CONSERVACIoN Y RESTAURACIoN DE LOS COMPLEJOS DE PaRAMO, BOSQUE ALTO-ANDINO Y SERVICIOS ECOSISTeMICOS DE LA REGIoN CENTRAL | H87: AMBIENTE Y DESARROLLO SOSTENIBLE | I87: 32499987282 | J87: =I87 -> 32499987282 | K87: 0 | L87: 42829 | M87: TERMINADO | N87: 0.9981 | O87: 0.9988 | Z87: 44793 | AA87: 44793 | AB87: 44972 | AC87: -219 | AD87: -40 | AE87: -219
A88: 86 | B88: CUNDINAMARCA | C88: SECRETARIA DE DESARROLLO E INCLUSIÓN SOCIAL | D88: ALEXANDER RIVEROS Y JEIMY FORERO | E88: TATIANA HERNANDEZ | F88: 2017000050017 | G88: FORTALECIMIENTO DEL PROGRAMA DE COMPLEMENTACIÓN ALIMENTARIA Y NUTRICIONAL PARA NIÑAS, NIÑOS MENORES DE 5 AÑOS Y MADRES GESTANTES Y LACTANTES EN RIESGO DE DESNUTRICIÓN DEL DEPARTAMENTO DE CUNDINAMARCA | H88: INCLUSIÓN SOCIAL Y RECONCILIACIÓN | I88: 8199993544 | J88: 8199993544 | K88: 0 | L88: 42915 | M88: CERRADO | N88: 1 | Z88: 44793 | AA88: 44607 | AB88: 44607 | AC88: -405 | AD88: -405 | AE88: -219
A89: 87 | B89: CUNDINAMARCA | C89: SECRETARIA DE EDUCACIÓN | D89: YAHIR ARCINIEGAS Y ALEXANDER RIVEROS | E89: PABLO CAJAMARCA | F89: 2017000050027 | G89: FORTALECIMIENTO DE LA PERMANENCIA DE LOS ESTUDIANTES EN LOS MUNICIPIOS DEL DEPARTAMENTO DE CUNDINAMARCA , CENTRO ORIENTE 2017 CUNDINAMARCA | H89: EDUCACIÓN | I89: 14995289800 | J89: 14995289800 | K89: 0 | L89: 42961 | M89: CERRADO | N89: 1 | O89: 0.8859 | Z89: 44740 | AA89: 44760 | AB89: 44607 | AC89: -252 | AD89: -405 | AE89: -272
A90: 88 | B90: ENTIDAD APORTANTE RECURSOS | C90: MUNICIPIO DE ZIPAQUIRA | D90: ALEXANDER RIVEROS | E90: JAIRO JARA | F90: 2017000050029 | G90: CONSERVACIÓN Y GESTIÓN INTEGRAL DEL RECURSO HÍDRICO MEDIANTE LA ADQUISICIÓN Y RESTAURACIÓN DE PREDIOS DE INTERÉS ECOSISTÉMICO EN ELDEPARTAMENTO DE CUNDINAMARCA | H90: AMBIENTE Y DESARROLLO SOSTENIBLE | I90: 900000000 | J90: 467000000 | K90: 433000000 | L90: 43340 | M90: CONTRATADO EN EJECUCIÓN | N90: 0.3327 | O90: 0.4754 | AA90: 44607 | AB90: 44607 | AC90: -405 | AD90: -405 | AE90: 0
A91: 89 | B91: CUNDINAMARCA | C91: SECRETARIA DE EDUCACIÓN | D91: YAHIR ARCINIEGAS Y ALEXANDER RIVEROS | E91: GENNY PADILLA | F91: 2017000050033 | G91: FORTALECIMIENTO A LA ESTRATEGIA DE ALIMENTACIÓN ESCOLAR PARA MUNICIPIOS NO CERTIFICADOS DEL DEPARTAMENTO DE CUNDINAMARCA | H91: EDUCACIÓN | I91: 14000000000 | J91: 14000000000 | K91: 0 | L91: 42977 | M91: CERRADO | N91: 1 | O91: 0.2694 | AA91: 44607 | AB91: 44607 | AC91: -405 | AD91: -405 | AE91: 0
A92: 90 | B92: CUNDINAMARCA | C92: SECRETARIA DE MINAS, ENERGIA Y GAS | D92: DIEGO TORRES / LIYUGETH ALFONSO | E92: JAHIR HERNANDEZ | F92: 2017000050036 | G92: IMPLEMENTACIÓN Y EXPANSIÓN DEL SERVICIO DE GAS COMBUSTIBLE POR REDES PARA VEREDAS Y CENTROS POBLADOS DEL DEPARTAMENTO DE CUNDINAMARCA | H92: MINAS Y ENERGÍA | I92: 4751658472 | J92: 3069656503 | K92: 1682001969 | L92: 43356 | M92: CERRADO | N92: 0.9151 | O92: 0.9207 | AA92: 44972 | AB92: 44635 | AC92: -40 | AD92: -377 | AE92: 0
A93: 91 | B93: CUNDINAMARCA | C93: SECRETARIA DE PLANEACIÓN | D93: YESID CASTAÑO Y JEIMY FORERO | E93: RUSVEL NIETO | F93: 2017000050039 | G93: MEJORAMIENTO DE VÍAS TERCIARIAS MEDIANTE EL USO DE PLACA HUELLA EN LOS MUNICIPIOS DE GUATAVITA, PACHO, SAN JUAN DE RIOSECO, SUBACHOQUE, TENA Y ZIPAQUIRÁ, DEPARTAMENTO DE CUNDINAMARCA | H93: TRANSPORTE | I93: 6791102422 | J93: 6725380622 | K93: 65721800 | L93: 43124 | M93: CONTRATADO EN EJECUCIÓN | N93: 0.9852 | O93: 0.9203 | Z93: 44760 | AA93: 44607 | AB93: 44607 | AC93: -405 | AD93: -405 | AE93: -252
A94: 92 | B94: CUNDINAMARCA | C94: SECRETARIA DE HABITAT Y VIVIENDA | D94: ALEXANDER RIVEROS/JEIMY FORERO | E94: BEATRIZ GAMEZ | F94: 2017000050042 | G94: MEJORAMIENTO DE VIVIENDAS RURALES DE LA PROVINCIA DE UBATÉ - CUNDINAMARCA | I94: 2354318125 | J94: 2354318125 | K94: 0 | L94: 43096 | M94: TERMINADO | N94: 1 | O94: 0.9973 | Z94: 44972 | AA94: 44741 | AB94: 44980 | AC94: -271 | AD94: -32 | AE94: -40
A95: 93 | B95: CUNDINAMARCA | C95: SECRETARIA DE SALUD | D95: DAYANA FERNANDEZ Y EDGAR YAHIR ARCINIEGAS | E95: OLGA LUCIA GARZON | F95: 2017000050061 | G95: ADQUISICIÓN AMBULANCIAS DE TRANSPORTE ASISTENCIAL BÁSICO (TAB) Y TRANSPORTE ASISTENCIAL MEDICALIZADA (TAM), PARA EL APOYO DEL SISTEMA DE REFERENCIA Y CONTRA REFERENCIA DE LA RED HOSPITALARIA DEL DEPARTAMENTO DE CUNDINAMARCA | H95: SALUD Y PROTECCIÓN SOCIAL | I95: 3764666699 | J95: 2000553024 | K95: 1764113675 | L95: 43081 | M95: CERRADO | N95: 1 | O95: 0.9708 | AA95: 44607 | AB95: 44607 | AC95: -405 | AD95: -405 | AE95: 0
A96: 94 | B96: CUNDINAMARCA | C96: SECRETARIA DE AGRICULTURA | D96: DIEGO TORRES/VALENTINA PORTILLO | E96: JAVIER HERREDIA | F96: 2017000050062 | G96: FORTALECIMIENTO DE LAS CADENAS PRODUCTIVAS DE MANGO, AGUACATE Y CÍTRICOS EN EL DEPARTAMENTO DE CUNDINAMARCA | H96: AGRICULTURA | I96: 3000129600 | J96: 2100129600 | K96: 900000000 | L96: 43124 | M96: CERRADO | N96: 1 | O96: 1 | AA96: 44607 | AB96: 44607 | AC96: -405 | AD96: -405 | AE96: 0
A97: 95 | B97: CUNDINAMARCA | C97: SECRETARIA DE MINAS, ENERGIA Y GAS | D97: DIEGO TORRES / LIYUGETH ALFONSO | E97: JAHIR HERNANDEZ | F97: 2017000050064 | G97: CONSTRUCCIÓN DE REDES ELÉCTRICAS EN ZONA RURAL DE 13 MUNICIPIOS, EN EL MARCO DEL PROYECTO ILUMINANDO VIDAS DEL DEPARTAMENTO DE CUNDINAMARCA | H97: MINAS Y ENERGÍA | I97: 2972842689 | J97: 2532327281 | K97: 440515408 | L97: 43273 | M97: CERRADO | N97: 0.8233 | O97: 0.8188 | AA97: 44607 | AB97: 44607 | AC97: -405 | AD97: -405 | AE97: 0
A98: 96 | B98: CUNDINAMARCA | C98: SECRETARIA DE AGRICULTURA | D98: DIEGO TORRES/VALENTINA PORTILLO | E98: JAVIER HERREDIA | F98: 2017000050065 | G98: MEJORAMIENTO DE LA PRODUCTIVIDAD Y RENTABILIDAD DE LOS CAFICULTORES DEL DEPARTAMENTO DE CUNDINAMARCA | H98: AGRICULTURA | I98: 6523880054 | J98: 4220000000 | K98: 2303880054 | L98: 43096 | M98: TERMINADO | N98: 0.8648 | O98: 0.8463 | Z98: 44972 | AA98: 44793 | AB98: 44972 | AC98: -219 | AD98: -40 | AE98: -40
A99: 97 | B99: CUNDINAMARCA | C99: SECRETARIA DE CIENCIA, TECNOLOGIA E INNOVACIÓN | D99: ALEXANDER RIVEROS Y YAHIR ARCINIEGAS | E99: LUIS MANUEL GONZALEZ | F99: 2017000100016 | G99: IMPLEMENTACIÓN PROGRAMA DE INNOVACIÓN PARA LA VALIDACIÓN Y GENERACIÓN DE PRODUCTOS DERIVADOS DE LA BIODIVERSIDAD EN EL DEPARTAMENTO DE CUNDINAMARCA | H99: CTEL | I99: 4825004078 | J99: 3664086788 | K99: 1160917290 | L99: 42941 | M99: CONTRATADO EN EJECUCIÓN | N99: 0.7883 | O99: 0.9432 | Z99: 44972 | AA99: 44607 | AB99: 45002 | AC99: -405 | AD99: -10 | AE99: -40
A100: 98 | B100: CUNDINAMARCA | C100: SECRETARIA DE CIENCIA, TECNOLOGIA E INNOVACIÓN | D100: ALEXANDER RIVEROS Y YAHIR ARCINIEGAS | E100: LUIS MANUEL GONZALEZ | F100: 2017000100034 | G100: IMPLEMENTACIÓN DE UN SISTEMA DE GESTIÓN DE INNOVACIÓN PARA LA INDUSTRIA DE CUNDINAMARCA | H100: CTEL | I100: 3925471448 | J100: 3714407118 | K100: 211064330 | L100: 42941 | M100: CONTRATADO EN EJECUCIÓN | N100: 0.9921 | O100: 0.9418 | AA100: 44607 | AB100: 44706 | AC100: -405 | AD100: -306 | AE100: 0
A101: 99 | B101: CUNDINAMARCA | C101: SECRETARIA DE CIENCIA, TECNOLOGIA E INNOVACIÓN | D101: ALEXANDER RIVEROS Y YAHIR ARCINIEGAS | E101: LUIS MANUEL GONZALEZ | F101: 2017000100074 | G101: IMPLEMENTACIÓN DE ESTRATEGIAS DE FOMENTO A LA CULTURA Y SERVICIOS DE INNOVACIÓN EN LAS PROVINCIAS SABANA OCCIDENTE, SABANA CENTRAL, SOACHA Y SUMAPAZ CUNDINAMARCA | H101: CTEL | I101: 6183633276 | J101: 5533633276 | K101: 650000000 | L101: 43098 | M101: TERMINADO | N101: 1 | O101: 0.9971 | Z101: 44972 | AA101: 44706 | AB101: 44980 | AC101: -306 | AD101: -32 | AE101: -40
A102: 100 | B102: CUNDINAMARCA | C102: SECRETARIA DE CIENCIA, TECNOLOGIA E INNOVACIÓN | D102: ALEXANDER RIVEROS Y YAHIR ARCINIEGAS | E102: LUIS MANUEL GONZALEZ | F102: 2017000100076 | G102: FORTALECIMIENTO DE CAPACIDADES DE GESTIÓN DEL RIESGO A TRAVÉS DE APROPIACIÓN SOCIAL DE LA CIENCIA, LA TECNOLOGÍA Y LA INNOVACIÓN EN EL DEPARTAMENTO DE CUNDINAMARCA | H102: CTEL | I102: 4404970720 | J102: 4000000000 | K102: 404970720 | L102: 43322 | M102: CONTRATADO EN EJECUCIÓN | N102: 0.7007 | O102: 0.9612 | Z102: 44972 | AA102: 44607 | AB102: 45002 | AC102: -405 | AD102: -10 | AE102: -40
A103: 101 | B103: CUNDINAMARCA | C103: SECRETARIA DE CIENCIA, TECNOLOGIA E INNOVACIÓN | D103: ALEXANDER RIVEROS Y YAHIR ARCINIEGAS | E103: LUIS MANUEL GONZALEZ | F103: 2017000100087 | G103: FORMACIÓN DE TALENTO HUMANO DE ALTO NIVEL EN MAESTRÍAS EN EL DEPARTAMENTO DE CUNDINAMARCA | H103: CTEL | I103: 5148022960 | J103: 5048022960 | K103: 100000000 | L103: 43698 | M103: CONTRATADO EN EJECUCIÓN | N103: 0.6059 | O103: 0.9164 | Z103: 44915 | AA103: 44972 | AB103: 45003 | AC103: -40 | AD103: -9 | AE103: -97
A104: 102 | B104: CUNDINAMARCA | C104: SECRETARIA DE CIENCIA, TECNOLOGIA E INNOVACIÓN | D104: ALEXANDER RIVEROS Y YAHIR ARCINIEGAS | E104: LUIS MANUEL GONZALEZ | F104: 2017000100104 | G104: FORTALECIMIENTO DE LA CULTURA DE LA GESTIÓN Y UTILIZACIÓN DEL CONOCIMIENTO EN CTEI EN NIÑOS, JÓVENES Y COMUNIDADES DEL DEPARTAMENTO DE CUNDINAMARCA | H104: CTEL | I104: 9498967749 | J104: 7498967749 | K104: 2000000000 | L104: 43565 | M104: CONTRATADO EN EJECUCIÓN | N104: 0.9327 | O104: 0.8249 | Z104: 44972 | AA104: 44607 | AB104: 45000 | AC104: -405 | AD104: -12 | AE104: -40
A105: 103 | B105: CUNDINAMARCA | C105: UNIDAD ADMINISTRATIVA DE GESTIÓN DEL RIESGO. | D105: DIEGO TORRES/VALENTINA PORTILLO | E105: GINNA HERRERA | F105: 20172401060022 | G105: ESTUDIOS DETALLADOS PARA LA INCORPORACIÓN DE LA GESTIÓN DEL RIESGO PARA LOS MUNICIPIOS DE GIRARDOT, RICAURTE | H105: AMBIENTE Y DESARROLLO SOSTENIBLE | I105: 3084907873 | J105: 3084907873 | K105: 0 | L105: 43802 | M105: CONTRATADO EN EJECUCIÓN | N105: 0.203 | O105: 0.2027 | Z105: 44915 | AA105: 44607 | AB105: 44915 | AC105: -405 | AD105: -97 | AE105: -97
A106: 104 | B106: CUNDINAMARCA | C106: SECRETARIA DE CIENCIA, TECNOLOGIA E INNOVACIÓN | D106: ALEXANDER RIVEROS Y YAHIR ARCINIEGAS | E106: LUIS MANUEL GONZALEZ | F106: 20170000100012 | G106: CONFORMACIÓN DE UNA CONVOCATORIA REGIONAL DE PROYECTOS I+D EN FOCOS PRIORIZADOS CTEI PARA EL FORTALECIMIENTO DE LOS GRUPOS DE INVESTIGACIÓN CUNDINAMARCA | H106: CTEL | I106: 7586358671 | J106: 7375550629 | K106: 210808041.7 | L106: 42941 | M106: CONTRATADO EN EJECUCIÓN | N106: 0.881 | O106: 0.9708 | Z106: 45000 | AA106: 44972 | AB106: 45003 | AC106: -40 | AD106: -9 | AE106: -12
A107: 105 | B107: ENTIDAD APORTANTE RECURSOS | C107: CAR | D107: YESID CASTAÑO | E107: CARLOS MURCIA | F107: 2017000050063 | G107: RECUPERACIÓN HIDRÁULICA Y AMBIENTAL DEL COMPLEJO LAGUNAR FÚQUENE | H107: AMBIENTE Y DESARROLLO SOSTENIBLE | I107: 18000000000 | J107: 18000000000 | K107: 0 | L107: 43364 | M107: CONTRATADO EN EJECUCIÓN | N107: 0.5688 | O107: 0.5859 | Z107: 45000 | AA107: 44607 | AB107: 45000 | AC107: -405 | AD107: -12 | AE107: -12
A108: 106 | B108: ENTIDAD APORTANTE RECURSOS | C108: CAR | D108: YESID CASTAÑO | E108: CARLOS MURCIA | F108: 2017000050070 | G108: CONSTRUCCIÓN DE OBRAS DE MITIGACIÓN DEL RIESGO POR EVENTOS CLIMÁTICOS EN LA CUENCA DE LA QUEBRADA LA PARROQUIA EN EL CERRO DE FUSACATÁN DEL MUNICIPIO DE FUSAGASUGÁ, CUNDINAMARCA | H108: AMBIENTE Y DESARROLLO SOSTENIBLE | I108: 1976558725 | J108: 1376558725 | K108: 600000000 | L108: 43417 | M108: DESAPROBADO | N108: 0 | O108: 0 | AA108: 44607 | AB108: 44607 | AC108: -405 | AD108: -405 | AE108: 0
A109: 107 | B109: ENTIDAD APORTANTE RECURSOS | C109: MUNICIPIO DE UTICA | D109: JUAN CARLOS TORRES | E109: CESAR SIMANCAS | F109: 2017000050087 | G109: MEJORAMIENTO DEL SENDERO TURÍSTICO DE LA PROVINCIA DEL GUALIVÁ – ÚTICA CUNDINAMARCA | H109: COMERCIO, INDUSTRIA Y TURISMO | I109: 2347004868 | J109: 2123058880 | K109: 223945988 | L109: 43211 | M109: CONTRATADO EN EJECUCIÓN | N109: 0.7892 | O109: 0.9452 | Z109: 44915 | AA109: 44607 | AB109: 44915 | AC109: -405 | AD109: -97 | AE109: -97
A110: 108 | B110: CUNDINAMARCA | C110: SECRETARIA DE EDUCACIÓN | D110: YAHIR ARCINIEGAS Y ALEXANDER RIVEROS | E110: PABLO CAJAMARCA | F110: 2018000050019 | G110: FORTALECIMIENTO DE LA PERMANENCIA DE LOS ESTUDIANTES EN LOS MUNICIPIOS DEL DEPARTAMENTO DE CUNDINAMARCA, CENTRO ORIENTE 2018 CUNDINAMARCA | H110: EDUCACIÓN | I110: 19395559645 | J110: 19395559645 | K110: 0 | L110: 43336 | M110: CERRADO | N110: 1 | O110: 0.6612 | AA110: 44607 | AB110: 44607 | AC110: -405 | AD110: -405 | AE110: 0
A111: 109 | B111: DESENTRALIZADOS | C111: ICCU - GESPROY GB | D111: DIEGO TORRES / JEIMY FORERO | E111: GIOVANY QUEVEDO | F111: 2018000050022 | G111: MEJORAMIENTO Y REHABILITACIÓN DE VÍAS SECUNDARIAS EN LA PROVINCIA DE UBATÉ, DEPARTAMENTO DE CUNDINAMARCA | H111: TRANSPORTE | I111: 7524876363 | J111: 7441105086 | K111: 83771277 | L111: 43320 | M111: CERRADO | N111: 0.9883 | O111: 0.9731 | Z111: 44706 | AA111: 44760 | AB111: 44607 | AC111: -252 | AD111: -405 | AE111: -306
A112: 110 | B112: DESENTRALIZADOS | C112: ICCU - GESPROY GB | D112: DIEGO TORRES / JEIMY FORERO | E112: GIOVANY QUEVEDO | F112: 2018000050024 | G112: MEJORAMIENTO Y REHABILITACIÓN DE LA VÍA LA MARÍA – TOBIA - PASO EL REJO - LA PEÑA, DEPARTAMENTO DE CUNDINAMARCA | H112: TRANSPORTE | I112: 9149162991 | J112: 8983328881 | K112: 165834110 | L112: 43417 | M112: TERMINADO | N112: 0.9645 | O112: 0.9428 | Z112: 44972 | AA112: 44607 | AB112: 44980 | AC112: -405 | AD112: -32 | AE112: -40
A113: 111 | B113: DESENTRALIZADOS | C113: ICCU - GESPROY GB | D113: DIEGO TORRES / JEIMY FORERO | E113: GIOVANY QUEVEDO | F113: 2018000050026 | G113: MEJORAMIENTO DE VÍAS EN LA PROVINCIA DE SUMAPAZ PARA LA CONSOLIDACIÓN DE UNA PAZ ESTABLE Y DURADERA EN EL DEPARTAMENTO DE CUNDINAMARCA | H113: TRANSPORTE | I113: 11457047617 | J113: 11457047617 | K113: 0 | L113: 43462 | M113: CONTRATADO EN EJECUCIÓN | N113: 0.5257 | O113: 0.5788 | Z113: 44915 | AA113: 44607 | AB113: 44915 | AC113: -405 | AD113: -97 | AE113: -97
A114: 112 | B114: CUNDINAMARCA | C114: UNIDAD ADMINISTRATIVA DE GESTIÓN DEL RIESGO. | D114: DIEGO TORRES/VALENTINA PORTILLO | E114: GINNA HERRERA | F114: 2018000050036 | G114: CONSTRUCCIÓN DE OBRAS PARA LA MITIGACIÓN DEL RIESGO EN EL MUNICIPIO DE SAN BERNARDO, BENEFICIANDO A COMUNIDADES DE LOS MUNICIPIOS DE ARBELAEZ, PANDI Y VENECIA CUNDINAMARCA | H114: AMBIENTE Y DESARROLLO SOSTENIBLE | I114: 2305788182 | J114: 2305788182 | K114: 0 | L114: 43629 | M114: DESAPROBADO | N114: 0 | O114: 0 | AA114: 44607 | AB114: 44607 | AC114: -405 | AD114: -405 | AE114: 0
A115: 113 | B115: CUNDINAMARCA | C115: SECRETARIA DE HABITAT Y VIVIENDA | D115: ALEXANDER RIVEROS/JEIMY FORERO | E115: BEATRIZ GAMEZ | F115: 2018000050039 | G115: MEJORAMIENTO DE VIVIENDA RURAL EN LOS MUNICIPIOS DE CUCUNUBÁ, JERUSALEN, QUEBRADANEGRA Y VIOTÁ - DEPARTAMENTO DE CUNDINAMARCA | H115: AGRICULTURA | I115: 4024793625 | J115: 4024793625 | K115: 0 | L115: 43571 | M115: PARA CIERRE | N115: 1 | O115: 1 | Z115: 44760 | AA115: 44760 | AB115: 44671 | AC115: -252 | AD115: -341 | AE115: -252
A116: 114 | B116: DESENTRALIZADOS | C116: ICCU - GESPROY GB | D116: DIEGO TORRES / JEIMY FORERO | E116: GIOVANY QUEVEDO | F116: 2018000050049 | G116: MEJORAMIENTO DE LA VÍA SESQUILÉ – GUATAVITA - GACHETÁ, DEPARTAMENTO DE CUNDINAMARCA | H116: TRANSPORTE | I116: 3997714045 | J116: 3935792642 | K116: 61921403 | L116: 43455 | M116: CERRADO | N116: 0.8093 | O116: 0.8087 | Z116: 44706 | AA116: 44760 | AB116: 44740 | AC116: -252 | AD116: -272 | AE116: -306
A117: 115 | B117: DESENTRALIZADOS | C117: ICCU - GESPROY GB | D117: DIEGO TORRES / JEIMY FORERO | E117: GIOVANY QUEVEDO | F117: 2018000050055 | G117: MEJORAMIENTO DE LA TRONCAL DE RIONEGRO, SECTOR LA PALMA CHARCO LARGO PARA LA CONSOLIDACIÓN DE UNA PAZ ESTABLE Y DURADERA EN EL DEPARTAMENTO DE CUNDINAMARCA | H117: TRANSPORTE | I117: 17928531277 | J117: 17928531277 | K117: 0 | L117: 43532 | M117: CERRADO | N117: 0.9551 | O117: 0.9221 | AA117: 44740 | AB117: 44607 | AC117: -272 | AD117: -405 | AE117: 0
A118: 116 | B118: DESENTRALIZADOS | C118: ICCU - GESPROY GB | D118: DIEGO TORRES / JEIMY FORERO | E118: GIOVANY QUEVEDO | F118: 2018000050059 | G118: MEJORAMIENTO DE LA VÍA GUSBITA - TIBIRITA DEL DEPARTAMENTO DE CUNDINAMARCA | H118: TRANSPORTE | I118: 5500531740 | J118: 4870657724 | K118: 629874016 | L118: 43532 | M118: TERMINADO | N118: 0.9958 | O118: 0.8855 | Z118: 44915 | AA118: 44972 | AB118: 44607 | AC118: -40 | AD118: -405 | AE118: -97
A119: 117 | B119: CUNDINAMARCA | C119: SECRETARIA DE CIENCIA, TECNOLOGIA E INNOVACIÓN | D119: ALEXANDER RIVEROS Y YAHIR ARCINIEGAS | E119: LUIS MANUEL GONZALEZ | F119: 2018000100106 | G119: INNOVACIÓN EN EL MODELO DE GESTIÓN DEL MEDICAMENTO FASE III EN EL DEPARTAMENTO DE CUNDINAMARCA | H119: CTEL | I119: 3452890062 | J119: 3071356262 | K119: 381533800 | L119: 43830 | M119: DESAPROBADO | N119: 0 | O119: 0 | AA119: 44887 | AB119: 44607 | AC119: -125 | AD119: -405 | AE119: 0
A120: 118 | B120: CUNDINAMARCA | C120: SECRETARIA DE CIENCIA, TECNOLOGIA E INNOVACIÓN | D120: ALEXANDER RIVEROS Y YAHIR ARCINIEGAS | E120: LUIS MANUEL GONZALEZ | F120: 2018000100160 | G120: FORMACIÓN DE CAPITAL HUMANO DE ALTO NIVEL PARA LA INVESTIGACIÓN, EL DESARROLLO TECNOLÓGICO Y LA INNOVACIÓN MAESTRÍAS DE INVESTIGACIÓN PARA DOCENTES DEL DEPARTAMENTO DE CUNDINAMARCA | H120: CTEL | I120: 5217415747 | J120: 3519725709 | K120: 1697690038 | L120: 43731 | M120: CONTRATADO EN EJECUCIÓN | N120: 0.1638 | O120: 0.457 | Z120: 44972 | AA120: 44607 | AB120: 45003 | AC120: -405 | AD120: -9 | AE120: -40
A121: 119 | B121: CUNDINAMARCA | C121: ENTIDAD DESIGNADA PARA LA SUPERVISIÓN DEL PROYECTO O PARA CONTRATAR LA INTERVENTORÍA-EMPRESAS PUBLICAS DE CUNDINAMARCA -EPC | D121: ALEXANDER RIVEROS/LIYUGETH ALFONSO | E121: PAULA ACUÑA | F121: 20181301010555 | G121: CONSTRUCCIÓN DE UNIDADES SANITARIAS EN EL ÁREA RURAL DEL DEPARTAMENTO DE CUNDINAMARCA | H121: VIVIENDA, CIUDAD Y TERRITORIO | I121: 4999900475 | J121: 4999900475 | K121: 0 | L121: 43378 | M121: CONTRATADO EN EJECUCIÓN | N121: 0.8768 | O121: 0.7831 | Z121: 44972 | AA121: 44607 | AB121: 44915 | AC121: -405 | AD121: -97 | AE121: -40
A122: 120 | B122: DESENTRALIZADOS | C122: ICCU - GESPROY GB | D122: DIEGO TORRES / JEIMY FORERO | E122: GIOVANY QUEVEDO | F122: 2019000050002 | G122: MEJORAMIENTO DE LA VÍA DEPARTAMENTAL LA VICTORIA (EL COLEGIO) SAN GABRIEL (VIOTÁ), TRAMO LA VICTORIA ALTO DE LA MULA, DEPARTAMENTO DE CUNDINAMARCA | H122: TRANSPORTE | I122: 5745879373 | J122: 5745879373 | K122: 0 | L122: 43532 | M122: CERRADO | N122: 0.9722 | O122: 0.9852 | AA122: 44607 | AB122: 44607 | AC122: -405 | AD122: -405 | AE122: 0
A123: 121 | B123: DESENTRALIZADOS | C123: ICCU - GESPROY GB | D123: DIEGO TORRES / JEIMY FORERO | E123: GIOVANY QUEVEDO | F123: 2019000050003 | G123: MEJORAMIENTO DE LA VÍA CÁQUEZA FOSCA, DEPARTAMENTO DE CUNDINAMARCA | H123: TRANSPORTE | I123: 4049029755 | J123: 4049029755 | K123: 0 | L123: 43585 | M123: CERRADO | N123: 0.9327 | O123: 0.9854 | AA123: 44740 | AB123: 44607 | AC123: -272 | AD123: -405 | AE123: 0
A124: 122 | B124: DESENTRALIZADOS | C124: ICCU - GESPROY GB | D124: DIEGO TORRES / JEIMY FORERO | E124: GIOVANY QUEVEDO | F124: 2019000050005 | G124: MEJORAMIENTO DE LA VÍA FÓMEQUE UBAQUE, DEPARTAMENTO DE CUNDINAMARCA | H124: TRANSPORTE | I124: 16514204213 | J124: 14057373703 | K124: 2456830510 | L124: 43629 | M124: CERRADO | N124: 0.9992 | O124: 0.9992 | AA124: 44740 | AB124: 44607 | AC124: -272 | AD124: -405 | AE124: 0
A125: 123 | B125: DESENTRALIZADOS | C125: ICCU - GESPROY GB | D125: DIEGO TORRES / JEIMY FORERO | E125: GIOVANY QUEVEDO | F125: 2019000050011 | G125: MEJORAMIENTO DE LA VÍA SUPATÁ - PACHO, DEPARTAMENTO DE CUNDINAMARCA | H125: TRANSPORTE | I125: 7339441010 | J125: 7339441010 | K125: 0 | L125: 43585 | M125: CONTRATADO EN EJECUCIÓN | N125: 0.7131 | O125: 0.719 | AA125: 44607 | AB125: 44607 | AC125: -405 | AD125: -405 | AE125: 0
A126: 124 | B126: DESENTRALIZADOS | C126: ICCU - GESPROY GB | D126: DIEGO TORRES / JEIMY FORERO | E126: GIOVANY QUEVEDO | F126: 2019000050013 | G126: CONSTRUCCIÓN DE LA PLAZA DE MERCADO DEL MUNICIPIO DE CHOACHÍ CUNDINAMARCA | H126: AGRICULTURA | I126: 4481109943 | J126: 3152125044 | K126: 1328984899 | L126: 43687 | M126: CONTRATADO EN EJECUCIÓN | N126: 1 | O126: 0.6786 | Z126: 44972 | AA126: 44635 | AB126: 44980 | AC126: -377 | AD126: -32 | AE126: -40
A127: 125 | B127: DESENTRALIZADOS | C127: ICCU - GESPROY GB | D127: DIEGO TORRES / JEIMY FORERO | E127: GIOVANY QUEVEDO | F127: 2019000050016 | G127: MEJORAMIENTO DE LA VÍA ANOLAIMA CORRALEJAS (INSPECCIÓN DE CORRALEJAS), DEPARTAMENTO DE CUNDINAMARCA | H127: TRANSPORTE | I127: 6898362469 | J127: 5718724028 | K127: 1179638441 | L127: 43629 | M127: CERRADO | N127: 0.9985 | O127: 0.9996 | Z127: 44972 | AA127: 44972 | AB127: 44980 | AC127: -40 | AD127: -32 | AE127: -40
A128: 126 | B128: CUNDINAMARCA | C128: SECRETARIA DE EDUCACIÓN | D128: YAHIR ARCINIEGAS Y ALEXANDER RIVEROS | E128: PABLO CAJAMARCA | F128: 2019000050020 | G128: FORTALECIMIENTO DE LA PERMANENCIA DE LOS ESTUDIANTES PARA EL AÑO 2019 EN LOS MUNICIPIOS DEL DEPARTAMENTO DE CUNDINAMARCA | H128: EDUCACIÓN | I128: 20536293937 | J128: 20536293937 | K128: 0 | L128: 43629 | M128: TERMINADO | N128: 1 | O128: 0.9103 | Z128: 44972 | AA128: 44607 | AB128: 44980 | AC128: -405 | AD128: -32 | AE128: -40
A129: 127 | B129: DESENTRALIZADOS | C129: ICCU - GESPROY GB | D129: DIEGO TORRES / JEIMY FORERO | E129: GIOVANY QUEVEDO | F129: 2019000050023 | G129: MEJORAMIENTO DE LA VÍA LENGUAZAQUE - VILLAPINZÓN, DEPARTAMENTO DE CUNDINAMARCA | H129: TRANSPORTE | I129: 8636278689 | J129: 7310087087 | K129: 1326191602 | L129: 43629 | M129: TERMINADO | N129: 1 | O129: 0.8383 | AA129: 44972 | AB129: 44607 | AC129: -40 | AD129: -405 | AE129: 0
A130: 128 | B130: CUNDINAMARCA | C130: SECRETARIA DE AGRICULTURA | D130: DIEGO TORRES/VALENTINA PORTILLO | E130: JAVIER HERREDIA | F130: 2019000050027 | G130: MEJORAMIENTO DE LA COMPETITIVIDAD DE LA CADENA PRODUCTIVA DE CACAO EN EL DEPARTAMENTO DE CUNDINAMARCA | H130: AGRICULTURA | I130: 5862983962 | J130: 4397237971 | K130: 1465745991 | L130: 43819 | M130: PARA CIERRE | N130: 1 | O130: 1 | Z130: 44973 | AA130: 44760 | AB130: 44973 | AC130: -252 | AD130: -39 | AE130: -39
A131: 129 | B131: DESENTRALIZADOS | C131: ICCU - GESPROY GB | D131: DIEGO TORRES / JEIMY FORERO | E131: GIOVANY QUEVEDO | F131: 2019000050029 | G131: MEJORAMIENTO DE LA VÍA GACHETÁ - GAMA, DEPARTAMENTO DE CUNDINAMARCA | H131: TRANSPORTE | I131: 5477582208 | J131: 5322582208 | K131: =I131-J131 -> 155000000 | L131: 43629 | M131: TERMINADO | N131: 0.9551 | O131: 0.9425 | Z131: 44973 | AA131: 44671 | AB131: 44973 | AC131: -341 | AD131: -39 | AE131: -39
A132: 130 | B132: CUNDINAMARCA | C132: SECRETARIA DE SALUD | D132: DAYANA FERNANDEZ Y EDGAR YAHIR ARCINIEGAS | E132: OLGA LUCIA GARZON | F132: 2019000050036 | G132: ADQUISICIÓN DE AMBULANCIAS PARA EL FORTALECIMIENTO DE LA RED HOSPITALARIA DEL DEPARTAMENTO CUNDINAMARCA | H132: SALUD Y PROTECCIÓN SOCIAL | I132: 42966037310 | J132: 2385000000 | K132: =I132-J132 -> 40581037310 | L132: 43656 | M132: CERRADO | N132: 1 | O132: 0.8281 | AA132: 44607 | AB132: 44607 | AC132: =IF(AA132=0,0,_xlfn.DAYS(AA132,TODAY())) -> -405 | AD132: -405 | AE132: 0
A133: 131 | B133: CUNDINAMARCA | C133: UNIDAD ADMINISTRATIVA DE GESTIÓN DEL RIESGO. | D133: DIEGO TORRES/VALENTINA PORTILLO | E133: GINNA HERRERA | F133: 2019000050037 | G133: FORTALECIMIENTO DEL SISTEMA DEPARTAMENTAL PARA LA GESTIÓN DEL RIESGO DE DESASTRES DEL DEPARTAMENTO DE CUNDINAMARCA | H133: PRESIDENCIA DE LA REPÚBLICA | I133: 24666685502 | J133: 4936307506 | K133: 19730377996 | L133: 43748 | M133: DESAPROBADO | N133: 0 | O133: 0 | AA133: 44607 | AB133: 44607 | AC133: -405 | AD133: -405 | AE133: =IF(Z133=0,0,_xlfn.DAYS(Z133,TODAY())) -> 0
A134: 132 | B134: ENTIDAD APORTANTE RECURSOS | C134: MEDICINA LEGAL Y CIENCIAS FORENSES | D134: ALEXANDER RIVEROS | E134: MARTIN SEPULVEDA | F134: 2019000050025 | G134: ESTUDIOS Y DISEÑOS PARA LA CONSTRUCCIÓN DE LA SEDE DE MEDICINA LEGAL EN EL DEPARTAMENTO DE CUNDINAMARCA | H134: FISCALIA | I134: 904521100 | J134: 904521100 | K134: 0 | L134: 43677 | M134: TERMINADO | N134: 1 | O134: 1 | Z134: 44973 | AA134: 44980 | AB134: 44980 | AC134: -32 | AD134: -32 | AE134: -39
A135: 133 | B135: CUNDINAMARCA | C135: SECRETARIA DE MINAS, ENERGIA Y GAS | D135: DIEGO TORRES / LIYUGETH ALFONSO | E135: JAHIR HERNANDEZ | F135: 2019000050039 | G135: ESTUDIO Y DISEÑO PARA LA CONSTRUCCIÓN DE REDES ELÉCTRICAS AÉREAS EN ZONAS RURALES DEL DEPARTAMENTO DE CUNDINAMARCA | H135: MINAS Y ENERGÍA | I135: 1616407501 | J135: 1616407501 | K135: 0 | L135: 43714 | M135: DESAPROBADO | N135: 0 | O135: 0 | AA135: 44607 | AB135: 44607 | AC135: -405 | AD135: -405 | AE135: 0
A136: 134 | B136: CUNDINAMARCA | C136: SECRETARIA DE EDUCACIÓN | D136: YAHIR ARCINIEGAS Y ALEXANDER RIVEROS | E136: GENNY PADILLA | F136: 2019000050044 | G136: FORTALECIMIENTO A LA ESTRATEGIA DE ALIMENTACIÓN ESCOLAR PARA MUNICIPIOS NO CERTIFICADOS, VIGENCIA 2019 DEL DEPARTAMENTO DE CUNDINAMARCA | H136: EDUCACIÓN | I136: 18301749135 | J136: 18301749135 | K136: 0 | L136: 43656 | M136: CERRADO | N136: 0.2152 | O136: 0.5327 | AA136: 44607 | AB136: 44607 | AC136: -405 | AD136: -405 | AE136: 0
A137: 135 | B137: DESENTRALIZADOS | C137: ICCU - GESPROY GB | D137: DIEGO TORRES / JEIMY FORERO | E137: GIOVANY QUEVEDO | F137: 2019000050047 | G137: MEJORAMIENTO DE LA VÍA SUSA - CARMEN DE CARUPA, DEPARTAMENTO DE CUNDINAMARCA | H137: TRANSPORTE | I137: 5203497468 | J137: 4131178258 | K137: 1072319210 | L137: 43677 | M137: TERMINADO | N137: 1 | O137: 0.7939 | AA137: 44607 | AB137: 44607 | AC137: -405 | AD137: -405 | AE137: 0
A138: 136 | B138: DESENTRALIZADOS | C138: ICCU - GESPROY GB | D138: DIEGO TORRES / JEIMY FORERO | E138: GIOVANY QUEVEDO | F138: 2019000050056 | G138: MEJORAMIENTO DE LA VÍA QUE CONDUCE DEL MUNICIPIO DE NIMAIMA AL MUNICIPIO DE NOCAIMA, DEPARTAMENTO DE CUNDINAMARCA | H138: TRANSPORTE | I138: 5082491570 | J138: 4614214508 | K138: 468277061.8 | L138: 43748 | M138: TERMINADO | N138: 1 | O138: 0.8722 | Z138: 44823 | AA138: 44706 | AB138: 44607 | AC138: -306 | AD138: -405 | AE138: -189
A139: 137 | B139: DESENTRALIZADOS | C139: IDECUT | D139: DIEGO TORRES Y YAHIR ARCINIEGAS | E139: MARTHA VANEGAS | F139: 2019000050059 | G139: FORTALECIMIENTO A LAS ESCUELAS MUNICIPALES DE MÚSICA, DANZA, TEATRO Y ARTES PLÁSTICAS Y VISUALES EN EL DEPARTAMENTO DE CUNDINAMARCA | H139: CULTURA | I139: 1972606058 | J139: 1972606058 | K139: 0 | L139: 43748 | M139: CERRADO | N139: 1 | O139: 0.961 | Z139: 44915 | AA139: 44973 | AB139: 44706 | AC139: -39 | AD139: -306 | AE139: -97
A140: 138 | B140: DESENTRALIZADOS | C140: ICCU - GESPROY GB | D140: DIEGO TORRES / JEIMY FORERO | E140: GIOVANY QUEVEDO | F140: 2019000050060 | G140: ESTUDIOS Y DISEÑOS DE VÍAS PARA MEJORAR LA COMPETITIVIDAD DEL DEPARTAMENTO DE CUNDINAMARCA | H140: TRANSPORTE | I140: 7089369627 | J140: 7089369627 | K140: 0 | L140: 43714 | M140: TERMINADO | N140: 0.9865 | O140: 0.9553 | Z140: 44973 | AA140: 44607 | AB140: 44980 | AC140: -405 | AD140: -32 | AE140: -39
A141: 139 | B141: CUNDINAMARCA | C141: SECRETARIA DE MINAS, ENERGIA Y GAS | D141: DIEGO TORRES / LIYUGETH ALFONSO | E141: JAHIR HERNANDEZ | F141: 2019000050073 | G141: AMPLIACIÓN DE LA COBERTURA DEL SERVICIO DE GAS COMBUSTIBLE DOMICILIARIO A TRAVÉS DE LA FINANCIACIÓN DE LA CONEXIÓN Y LA RED INTERNA PARA USUARIOS DE BARRIOS PERIFÉRICOS, VEREDAS Y CENTROS POBLADOS DEL DEPARTAMENTO DE CUNDINAMARCA | H141: MINAS Y ENERGÍA | I141: 12461377100 | J141: 6651376060 | K141: 5810001040 | L141: 43805 | M141: TERMINADO | N141: 0.9359 | O141: 1.033 | Z141: 44973 | AA141: 45001 | AB141: 44980 | AC141: -11 | AD141: -32 | AE141: -39
A142: 140 | B142: DESENTRALIZADOS | C142: ICCU - GESPROY GB | D142: DIEGO TORRES / JEIMY FORERO | E142: GIOVANY QUEVEDO | F142: 2019000050075 | G142: MEJORAMIENTO DE LA VÍA QUE CONDUCE DEL MUNICIPIO DE VIANI AL MUNICIPIO DE CHAGUANI, (DE LA Y DE SAN VICENTE A CHAGUANI), DEPARTAMENTO DE CUNDINAMARCA | H142: TRANSPORTE | I142: 7504443091 | J142: 7504443091 | K142: 0 | L142: 43819 | M142: TERMINADO | N142: 1 | O142: 0.9516 | Z142: 44973 | AA142: 44607 | AB142: 44980 | AC142: -405 | AD142: -32 | AE142: -39
A143: 141 | B143: DESENTRALIZADOS | C143: ICCU - GESPROY GB | D143: DIEGO TORRES / JEIMY FORERO | E143: GIOVANY QUEVEDO | F143: 2019000050079 | G143: MEJORAMIENTO DE LA VÍA SERREZUELA - EL TRIUNFO, MUNICIPIO DE LA CALERA, DEPARTAMENTO DE CUNDINAMARCA | H143: TRANSPORTE | I143: 7614258187 | J143: 7614258187 | K143: 0 | L143: 43748 | M143: TERMINADO | N143: 0.9429 | O143: 0.8632 | Z143: 44973 | AA143: 44607 | AB143: 44980 | AC143: -405 | AD143: -32 | AE143: -39
A144: 142 | B144: DESENTRALIZADOS | C144: ICCU - GESPROY GB | D144: DIEGO TORRES / JEIMY FORERO | E144: GIOVANY QUEVEDO | F144: 2019000050085 | G144: MEJORAMIENTO DE LA VÍA QUE CONDUCE DEL MUNICIPIO DE LA MESA AL MUNICIPIO DE CACHIPAY, (DE LA INSPECCIÓN DE PEÑA NEGRA AL MUNICIPIO DE CACHIPAY), DEPARTAMENTO DE CUNDINAMARCA | H144: TRANSPORTE | I144: 7019896083 | J144: 7019896083 | K144: 0 | L144: 43852 | M144: CONTRATADO EN EJECUCIÓN | N144: 0.7135 | O144: 0.6774 | Z144: 44973 | AA144: 44607 | AB144: 45004 | AC144: -405 | AD144: -8 | AE144: -39
A145: 143 | B145: ENTIDAD APORTANTE RECURSOS | C145: TV ANDINA | D145: ALEXANDER RIVEROS | E145: EDWIN | F145: 2019000050064 | G145: PROTECCIÓN Y PRESERVACIÓN DEL PATRIMONIO AUDIOVISUAL COLOMBIANO QUE SE ENCUENTRA EN EL CANAL PÚBLICO TEVEANDINA LOCALIZADO EN EL DEPARTAMENTO DE CUNDINAMARCA | H145: CULTURA | I145: 5923285198 | J145: $ 5.597.840.098 | K145: 325445100 | L145: 43774 | M145: CERRADO | N145: 1 | O145: 0.9935 | AA145: 44706 | AB145: 44607 | AC145: -306 | AD145: -405 | AE145: 0
A146: 144 | B146: ENTIDAD APORTANTE RECURSOS | C146: UNAD | D146: ALEXANDER RIVEROS | E146: ANDRES ACOSTA | F146: 2019000050069 | G146: MEJORAMIENTO DE INFRAESTRUCTURA FÍSICA, DOTACIÓN DE MOBILIARIO Y EQUIPAMIENTO TECNOLÓGICO DE LA UNIVERSIDAD NACIONAL ABIERTA Y A DISTANCIA EN MUNICIPIOS DEL DEPARTAMENTO DE CUNDINAMARCA | H146: EDUCACIÓN | I146: 16011115461 | J146: 16011115461 | K146: 0 | L146: 43774 | M146: CERRADO | N146: 1 | O146: 1 | Z146: 44760 | AA146: 44823 | AB146: 44607 | AC146: -189 | AD146: -405 | AE146: -252
A147: 145 | B147: ENTIDAD APORTANTE RECURSOS | C147: U TECNOLOGICA DE PEREIRA | D147: YAHIR ARCINIEGAS | E147: LUIS MANUEL GONZALEZ | F147: 2019000100009 | G147: FORMACIÓN DE CAPITAL HUMANO DE ALTO NIVEL UNIVERSIDAD TECNOLÓGICA DE PEREIRA NACIONAL | H147: CTEL | I147: 4360028215 | J147: 3950208215 | K147: 409820000 | L147: 43781 | M147: CONTRATADO EN EJECUCIÓN | N147: 0.6209 | O147: 0.6534 | Z147: 45004 | AA147: 45001 | AB147: 45001 | AC147: -11 | AD147: -11 | AE147: -8
A148: 146 | B148: ENTIDAD APORTANTE RECURSOS | C148: U EAN | D148: YAHIR ARCINIEGAS | E148: LUIS MANUEL GONZALEZ | F148: 2019000100015 | G148: FORMACIÓN DE CAPITAL HUMANO DE ALTO NIVEL - UNIVERSIDAD EAN - NACIONAL | H148: CTEL | I148: 1294375000 | J148: 1250000000 | K148: 44375000 | L148: 43830 | M148: CONTRATADO EN EJECUCIÓN | N148: 0.7029 | O148: 0.6902 | Z148: 45001 | AA148: 44635 | AB148: 45001 | AC148: -377 | AD148: -11 | AE148: -11
A149: 147 | B149: ENTIDAD APORTANTE RECURSOS | C149: U CATOLICA | D149: YAHIR ARCINIEGAS | E149: LUIS MANUEL GONZALEZ | F149: 2019000100022 | G149: FORMACIÓN DE CAPITAL HUMANO DE ALTO NIVEL - UNIVERSIDAD CATÓLICA DE COLOMBIA - NACIONAL | H149: CTEL | I149: 343595000 | J149: 299220000 | K149: 44375000 | L149: 43812 | M149: CONTRATADO EN EJECUCIÓN | N149: 0.8475 | O149: 0.8379 | Z149: 45001 | AA149: 44607 | AB149: 45001 | AC149: -405 | AD149: -11 | AE149: -11
A150: 148 | B150: ENTIDAD APORTANTE RECURSOS | C150: UNIVERSIDAD MILITAR NUEVA GRANADA | D150: YAHIR ARCINIEGAS | E150: LUIS MANUEL GONZALEZ | F150: 2019000100025 | G150: FORMACIÓN DE CAPITAL HUMANO DE ALTO NIVEL UNIVERSIDAD MILITAR NUEVA GRANADA NACIONAL | H150: CTEL | I150: 294375000 | J150: 250000000 | K150: 44375000 | L150: 43812 | M150: CONTRATADO EN EJECUCIÓN | N150: 0.6402 | O150: 0.6991 | Z150: 45004 | AA150: 44635 | AB150: 45004 | AC150: -377 | AD150: -8 | AE150: -8
A151: 149 | B151: ENTIDAD APORTANTE RECURSOS | C151: UNIVERSIDAD NACIONAL DE COLOMBIA | D151: YAHIR ARCINIEGAS | E151: LUIS MANUEL GONZALEZ | F151: 2019000100026 | G151: FORMACIÓN DE CAPITAL HUMANO DE ALTO NIVEL UNIVERSIDAD NACIONAL DE COLOMBIA NACIONAL | H151: CTEL | I151: 21162064500 | J151: 20233937500 | K151: 928127000 | L151: 43781 | M151: CONTRATADO EN EJECUCIÓN | N151: 0.6159 | O151: 0.6573 | Z151: 45004 | AA151: 44635 | AB151: 45004 | AC151: -377 | AD151: -8 | AE151: -8
A152: 150 | B152: ENTIDAD APORTANTE RECURSOS | C152: U DISTRITAL | D152: YAHIR ARCINIEGAS | E152: LUIS MANUEL GONZALEZ | F152: 2019000100027 | G152: FORMACIÓN DE CAPITAL HUMANO DE ALTO NIVEL EN DOCTORADO PARA EL DESARROLLO REGIONAL, UNIVERSIDAD DISTRITAL FRANCISCO JOSÉ DE CALDAS, A NIVEL NACIONAL | H152: CTEL | I152: 1218668841 | J152: 1113595753 | K152: 105073088 | L152: 43798 | M152: CONTRATADO EN EJECUCIÓN | N152: 0.5933 | O152: 0.4767 | Z152: 45004 | AA152: 44607 | AB152: 45001 | AC152: -405 | AD152: -11 | AE152: -8
A153: 151 | B153: ENTIDAD APORTANTE RECURSOS | C153: U JAVERIANA | D153: YAHIR ARCINIEGAS | E153: LUIS MANUEL GONZALEZ | F153: 2019000100028 | G153: FORMACIÓN DE CAPITAL HUMANO DE ALTO NIVEL PONTIFICIA UNIVERSIDAD JAVERIANA SEDE CENTRAL NACIONAL | H153: CTEL | I153: 6524500000 | J153: 6524500000 | K153: 0 | L153: 43781 | M153: CONTRATADO EN EJECUCIÓN | N153: 0.6801 | O153: 0.6751 | Z153: 45001 | AA153: 44607 | AB153: 45004 | AC153: -405 | AD153: -8 | AE153: -11
A154: 152 | B154: ENTIDAD APORTANTE RECURSOS | C154: U DE LOS ANDES | D154: YAHIR ARCINIEGAS | E154: LUIS MANUEL GONZALEZ | F154: 2019000100036 | G154: FORMACIÓN DE CAPITAL HUMANO DE ALTO NIVEL UNIVERSIDAD DE LOS ANDES NACIONAL | H154: CTEL | I154: 2814671307 | J154: 2748000000 | K154: 66671307 | L154: 43798 | M154: CONTRATADO EN EJECUCIÓN | N154: 0.7673 | O154: 0.7769 | Z154: 45001 | AA154: 44635 | AB154: 45004 | AC154: -377 | AD154: -8 | AE154: -11
A155: 153 | B155: ENTIDAD APORTANTE RECURSOS | C155: UNIVERSIDAD NACIONAL DE COLOMBIA | D155: YAHIR ARCINIEGAS | E155: LUIS MANUEL GONZALEZ | F155: 2019000100061 | G155: FORTALECIMIENTO DE LA CAPACIDAD TECNOLÓGICA INSTALADA EN EL CENTRO AGROPECUARIO MARENGO PARA LA INVESTIGACIÓN EN LOS SISTEMAS AGROPRODUCTIVOS DEL TRÓPICO ALTO, BAJO EL EFECTO DE LA VARIABILIDAD Y CAMBIO CLIMÁTICO - CUNDINAMARCA | H155: CTEL | I155: 2521388540 | J155: 1994146760 | K155: 527241780 | L155: 43830 | M155: CONTRATADO EN EJECUCIÓN | N155: 0.8356 | O155: 0.5692 | Z155: 45004 | AA155: 44635 | AB155: 45004 | AC155: -377 | AD155: -8 | AE155: -8 | AG155: 2019000100061
A156: 154 | B156: CUNDINAMARCA | C156: SECRETARIA DE CIENCIA, TECNOLOGIA E INNOVACIÓN | D156: ALEXANDER RIVEROS Y YAHIR ARCINIEGAS | E156: LUIS MANUEL GONZALEZ | F156: 2020000100137 | G156: FORTALECIMIENTO DE LAS CAPACIDADES DE INVESTIGACIÓN Y DESARROLLO PARA ATENDER PROBLEMÁTICAS ASOCIADAS CON AGENTES BIOLÓGICOS PARA LA SALUD PÚBLICA, A TRAVÉS DEL MEJORAMIENTO DEL LABORATORIO DE SALUD PÚBLICA DE CUNDINAMARCA | H156: CTEL | I156: 4506359274 | J156: 4048003426 | K156: 458355848 | L156: 43966 | M156: CONTRATADO EN EJECUCIÓN | N156: 0.7069 | O156: 0.596 | Z156: 44973 | AA156: 44636 | AB156: 44973 | AC156: -376 | AD156: -39 | AE156: -39 | AG156: 2020000100137
A157: 155 | B157: CUNDINAMARCA | C157: SECRETARIA DE SALUD | D157: DAYANA FERNANDEZ/ LIYUGETH ALFONSO | E157: OLGA LUCIA GARZON | F157: 2020000050003 | G157: ADQUISICIÓN DE AMBULANCIAS,EQUIPOS BIOMÉDICOS, ELEMENTOS DE PROTECCIÓN PERSONAL, ASEO Y DESINFECCIÓN PARA LA ATENCIÓN DE LA CALAMIDAD SANITARIA POR COVID-19 EN LAS E.S.E DEL DEPARTAMENTO DE CUNDINAMARCA | H157: SALUD Y PROTECCIÓN SOCIAL | I157: 43433295564 | J157: 43433295564 | K157: 0 | L157: 43986 | M157: PARA CIERRE | N157: 0.5438 | O157: 0.5476 | Z157: 44740 | AA157: 44637 | AB157: 44607 | AC157: -375 | AD157: -405 | AE157: -272 | AG157: 2020000050003
A158: 156 | B158: CUNDINAMARCA | C158: UNIDAD ADMINISTRATIVA DE GESTIÓN DEL RIESGO. | D158: DIEGO TORRES/VALENTINA PORTILLO | E158: GINNA HERRERA | F158: 2020000050012 | G158: ADQUISICIÓN DE ELEMENTOS DE PROTECCIÓN DE CONTAGIO DEL VIRUS COVID-19 PARA LOS CUERPOS OPERATIVOS DE EMERGENCIA, EN ATENCIÓN DE LA CALAMIDAD SANITARIA EN EL DEPARTAMENTO DE CUNDINAMARCA | H158: GOBIERNO TERRITORIAL | I158: 5419592232 | J158: 5419592232 | K158: 0 | L158: 43986 | M158: CERRADO | N158: 0.67 | O158: 0.67 | AA158: 44607 | AB158: 44607 | AC158: -405 | AD158: -405 | AE158: 0 | AG158: 2020000050012
A159: 157 | B159: CUNDINAMARCA | C159: SECRETARIA DE EDUCACIÓN | D159: YAHIR ARCINIEGAS Y ALEXANDER RIVEROS | E159: GENNY PADILLA | F159: 2020000050019 | G159: FORTALECIMIENTO A LA ESTRATEGIA DE ALIMENTACIÓN ESCOLAR PARA EL AÑO 2020, EN LOS MUNICIPIOS DEL DEPARTAMENTO DE CUNDINAMARCA | H159: EDUCACIÓN | I159: 26240955000 | J159: 26240955000 | K159: 0 | L159: 44040 | M159: CERRADO | N159: 1 | O159: 0.995 | Z159: 44760 | AA159: 44760 | AB159: 44607 | AC159: -252 | AD159: -405 | AE159: -252 | AG159: 2020000050019
A160: 158 | B160: CUNDINAMARCA | C160: SECRETARIA DE CIENCIA, TECNOLOGIA E INNOVACIÓN | D160: ALEXANDER RIVEROS Y YAHIR ARCINIEGAS | E160: LUIS MANUEL GONZALEZ | F160: 2020000100266 | G160: GENERACIÓN DE ESPACIOS DE ENCUENTRO DE LA SOCIEDAD CON LA CIENCIA Y LA TECNOLOGÍA - UN VIAJE CON LA CIENCIA EN EL DEPARTAMENTO DE CUNDINAMARCA | H160: CTEL | I160: 2241429590 | J160: 2218862102 | K160: 22567488 | L160: 44111 | M160: CONTRATADO EN EJECUCIÓN | N160: 0.7698 | O160: 0.6833 | Z160: 44973 | AA160: 44607 | AB160: 45001 | AC160: -405 | AD160: -11 | AE160: -39 | AG160: 2020000100266
A161: 159 | B161: CUNDINAMARCA | C161: SECRETARIA DE CIENCIA, TECNOLOGIA E INNOVACIÓN | D161: ALEXANDER RIVEROS Y YAHIR ARCINIEGAS | E161: LUIS MANUEL GONZALEZ | F161: 2020000100246 | G161: FORTALECIMIENTO DE LA COMPETITIVIDAD DE LA CADENA PRODUCTIVA DE LA GUADUA POR MEDIO DEL DESARROLLO E IMPLEMENTACIÓN DE DOS (2) PAQUETES TECNOLÓGICOS PARA LA GENERACIÓN DE PRODUCTOS CON VALOR AGREGADO EN EL DEPARTAMENTO DE CUNDINAMARCA | H161: CTEL | I161: 3144525520 | J161: 2294345776 | K161: 850179744 | L161: 44111 | M161: CONTRATADO EN EJECUCIÓN | N161: 0.8853 | O161: 0.6195 | Z161: 45004 | AA161: 44973 | AB161: 45004 | AC161: -39 | AD161: -8 | AE161: -8 | AG161: 2020000100246
A162: 160 | B162: ENTIDAD APORTANTE RECURSOS | C162: CONNECT BOGOTA REGIÓN | D162: YAHIR ARCINIEGAS | E162: LUIS MANUEL GONZALEZ | F162: 2020000100078 | G162: DISEÑO E IMPLEMENTACIÓN DE UN MODELO DE GESTIÓN DE CONOCIMIENTO, INNOVACIÓN Y TRANSFERENCIA DE TECNOLOGÍA CON APLICACIÓN EN EL SECTOR AGROPECUARIO Y AGROINDUSTRIAL EN EL DEPARTAMENTO DE CUNDINAMARCA | H162: CTEL | I162: 3438832991 | J162: 3028251016 | K162: 410581974.5 | L162: 44111 | M162: CONTRATADO EN EJECUCIÓN | N162: 0.3467 | O162: 0.4158 | Z162: 45004 | AA162: 44741 | AB162: 45004 | AC162: -271 | AD162: -8 | AE162: -8 | AG162: 2020000100078
A163: 161 | B163: ENTIDAD APORTANTE RECURSOS | C163: FEDERACIÓN NACIONAL DE CAFETEROS | D163: YAHIR ARCINIEGAS | E163: LUIS MANUEL GONZALEZ | F163: 2020000100205 | G163: TRASLADO DE TECNOLOGÍAS INNOVADORAS A CAFICULTORES CON IMPACTO SOBRE LA CALIDAD DEL CAFÉ Y LA GESTIÓN DEL RECURSO HÍDRICO DURANTE EL PROCESO DE BENEFICIO EN ZONA CAFETERA DEL DEPARTAMENTO DE CUNDINAMARCA | H163: CTEL | I163: 13783557324 | J163: 12848931736 | K163: 934625588 | L163: 44111 | M163: CONTRATADO EN EJECUCIÓN | N163: 0.2676 | O163: 0.3458 | Z163: 45004 | AA163: 44635 | AB163: 45004 | AC163: -377 | AD163: -8 | AE163: -8 | AG163: 2020000100205
A164: 162 | B164: ENTIDAD APORTANTE RECURSOS | C164: AGROSAVIA | D164: YAHIR ARCINIEGAS | E164: LUIS MANUEL GONZALEZ | F164: 2020000100197 | G164: DESARROLLO DE BIOPLAGUICIDAS POTENCIADOS DE NUEVA GENERACIÓN PARA EL MEJORAMIENTO DE LA PRODUCTIVIDAD E INOCUIDAD DEL CULTIVO DE TOMATE Y CRUCÍFERAS EN EL DEPARTAMENTO DE CUNDINAMARCA | H164: CTEL | I164: 4583970033 | J164: 3282745260 | K164: 1301224773 | L164: 44111 | M164: CONTRATADO EN EJECUCIÓN | N164: 0.3551 | O164: 0.3551 | Z164: 45004 | AA164: 44635 | AB164: 45004 | AC164: -377 | AD164: -8 | AE164: -8 | AG164: 2020000100197
A165: 163 | B165: ENTIDAD APORTANTE RECURSOS | C165: UNIVERSIDAD NACIONAL DE COLOMBIA | D165: YAHIR ARCINIEGAS | E165: LUIS MANUEL GONZALEZ | F165: 2020000100240 | G165: ESTUDIO DE PREFACTIBILIDAD PARA LA CREACIÓN DE UN CENTRO DE INNOVACIÓN Y DE PRODUCTIVIDAD PARA EL SECTOR AGROPECUARIO DE SABANA OCCIDENTE DE CUNDINAMARCA | H165: CTEL | I165: 1896154229 | J165: 1707430133 | K165: 188724096 | L165: 44111 | M165: CONTRATADO EN EJECUCIÓN | N165: 0.9406 | O165: 0.8252 | Z165: 45004 | AA165: 44635 | AB165: 45004 | AC165: -377 | AD165: -8 | AE165: -8 | AG165: 2020000100240
A166: 164 | B166: ENTIDAD APORTANTE RECURSOS | C166: UNIVERSIDAD DE CUNDINAMARCA | D166: YAHIR ARCINIEGAS | E166: LUIS MANUEL GONZALEZ | F166: 2020000100158 | G166: FORTALECIMIENTO DE LA INFRAESTRUCTURA FÍSICA Y TECNOLÓGICA DEL CENTRO DE ESTUDIOS AGROAMBIENTALES DE LA UNIVERSIDAD DE CUNDINAMARCA AGROU CUNDINAMARCA | H166: CTEL | I166: 2024433669 | J166: 1997753509 | K166: 26680160 | L166: 44111 | M166: CONTRATADO EN EJECUCIÓN | N166: 0.5862 | O166: 0.0079 | Z166: 45004 | AA166: 44823 | AB166: 45004 | AC166: -189 | AD166: -8 | AE166: -8 | AG166: 2020000100158
A167: 165 | B167: ENTIDAD APORTANTE RECURSOS | C167: ZIPAQUIRA | D167: YESID CASTAÑO / JEIMY FORERO | F167: 2020000050013 | G167: Mejoramiento de la vía que comunica a los municipios de Zipaquirá y Tocancipá, tramo barandillas - la fuente, departamento de Cundinamarca | H167: TRANSPORTE | I167: 6.788.620.869,00 | J167: =I167 -> 6.788.620.869,00 | K167: 0 | L167: 44152 | M167: CONTRATADO EN EJECUCIÓN | N167: 0.6059 | O167: 0.8644 | Z167: 44973 | AA167: 44635 | AB167: 44980 | AC167: -377 | AD167: -32 | AE167: -39 | AG167: 2020000050013
A168: 166 | B168: ENTIDAD APORTANTE RECURSOS | C168: ZIPAQUIRA | D168: YESID CASTAÑO / JEIMY FORERO | F168: 2020000050015 | G168: MEJORAMIENTO DE LA VÍA ZIPAQUIRÁ - SAN JORGE - TABIO DEPARTAMENTO DE CUNDINAMARCA | H168: TRANSPORTE | I168: 7458735075 | J168: =I168 -> 7458735075 | K168: 0 | L168: 44152 | M168: CONTRATADO EN EJECUCIÓN | N168: 0.2332 | O168: 0 | AA168: 44740 | AB168: 44973 | AC168: -272 | AD168: -39 | AE168: 0 | AG168: 2020000050015
A169: 167 | B169: CUNDINAMARCA | C169: SECRETARIA DE CIENCIA, TECNOLOGIA E INNOVACIÓN | D169: ALEXANDER RIVEROS Y YAHIR ARCINIEGAS | E169: LUIS MANUEL GONZALEZ | F169: 2020000100695 | G169: DESARROLLO, TRANSFERENCIA DE TECNOLOGÍA Y CONOCIMIENTO PARA LA INNOVACIÓN QUE FORTALEZCAN CAPACIDADES COMUNITARIAS EN LA COMPRENSIÓN Y/O MITIGACIÓN DE LOS PROBLEMAS DE VIOLENCIAS BASADAS EN GÉNERO, DERIVADAS DE LA EMERGENCIA POR COVID 19, EN CUNDINAMARCA | H169: CTEL | I169: 3100000000 | J169: 3000000000 | K169: 100000000 | L169: 44183 | M169: CONTRATADO EN EJECUCIÓN | N169: 0.5924 | O169: 0.9091 | Z169: 44973 | AA169: 44607 | AB169: 44973 | AC169: -405 | AD169: -39 | AE169: -39 | AG169: 2020000100695
A170: 168 | B170: CUNDINAMARCA | C170: SECRETARIA DE CIENCIA, TECNOLOGIA E INNOVACIÓN | D170: ALEXANDER RIVEROS Y YAHIR ARCINIEGAS | E170: LUIS MANUEL GONZALEZ | F170: 2020000100650 | G170: FORTALECIMIENTO DE CAPACIDADES DE CTEI PARALA INNOVACION EDUCATIVA EN LOS NIVELES DE BÁSICA Y MEDIA, MEDIANTE USO DE TICS EN INSTITUCIONES EDUCATIVAS OFICIALES DE LOS MUNICIPIOS NO CERTIFICADOS DEL DEPARTAMENTO DE CUNDINAMARCA | H170: CTEL | I170: 10804663122 | J170: 9999728696 | K170: 804934426 | L170: 44183 | M170: CONTRATADO EN EJECUCIÓN | N170: 0.2294 | O170: 0.123 | Z170: 45004 | AA170: 44635 | AB170: 45004 | AC170: -377 | AD170: -8 | AE170: -8
A171: 169 | B171: CUNDINAMARCA | C171: SECRETARIA DE CIENCIA, TECNOLOGIA E INNOVACIÓN | D171: ALEXANDER RIVEROS Y YAHIR ARCINIEGAS | E171: LUIS MANUEL GONZALEZ | F171: 2020000100696 | G171: FORTALECIMIENTO DE CAPACIDADES DE CTEI PARA LA REACTIVACIÓN ECONÓMICA Y LA TRANSFORMACIÓN PRODUCTIVA EN CUNDINAMARCA | H171: CTEL | I171: 7370634083 | J171: 6974290175 | K171: 396343908 | L171: 44183 | M171: CONTRATADO EN EJECUCIÓN | N171: 0.5978 | O171: 0.8509 | Z171: 44973 | AA171: 44607 | AB171: 45004 | AC171: -405 | AD171: -8 | AE171: -39 | AG171: 2020000100696
A172: 170 | B172: CUNDINAMARCA | C172: SECRETARIA DE CIENCIA, TECNOLOGIA E INNOVACIÓN | D172: ALEXANDER RIVEROS Y YAHIR ARCINIEGAS | E172: LUIS MANUEL GONZALEZ | F172: 2020000100649 | G172: FORTALECIMIENTO DE CAPACIDADES DE CTeI PARA EL RELACIONAMIENTO ESCUELA - CONTEXTO RURAL MEDIANTE LA APROPIACIÓN Y USO DE LAS TIC EN EL MUNICIPIO DE SIBATÉ, DEPARTAMENTO DE CUNDINAMARCA | H172: CTEL | I172: 4292464018 | J172: 2645464018 | K172: 1647000000 | L172: 44183 | M172: CONTRATADO EN EJECUCIÓN | N172: 0.8156 | O172: 0.7756 | Z172: 44973 | AA172: 44607 | AB172: 45004 | AC172: -405 | AD172: -8 | AE172: -39 | AG172: 2020000100649
A173: 171 | B173: ENTIDAD APORTANTE RECURSOS | C173: FUNDACION UNIVERSIDAD DEL VALLE | D173: YAHIR ARCINIEGAS | E173: JOSE MARIA LEITON | F173: 2020000050044 | G173: FORTALECIMIENTO DE LAS COMPETENCIAS COMUNICATIVAS EN INGLÉS DE LOS ESTUDIANTES DE LOS ESTABLECIMIENTOS EDUCATIVOS OFICIALES DEL DEPARTAMENTO CUNDINAMARCA | H173: EDUCACIÓN | I173: 15011999229 | J173: 14954799229 | K173: 57200000 | L173: 44195 | M173: CONTRATADO EN EJECUCIÓN | N173: 0.8587 | O173: 0.7028 | Z173: 45004 | AA173: 44635 | AB173: 45004 | AC173: -377 | AD173: -8 | AE173: -8
A174: 172 | B174: ENTIDAD APORTANTE RECURSOS | C174: UNAD | D174: YAHIR ARCINIEGAS | E174: LUIS MANUEL GONZALEZ | F174: 2020000100433 | G174: Investigación de los compuestos volátiles orgánicos e inducidos para el manejo de moscas plagas en gulupa y granadilla en el departamento de Cundinamarca | H174: CTEL | I174: 3412874201 | J174: 1999985660 | K174: =I174-J174 -> 1412888541 | L174: 44159 | M174: CONTRATADO EN EJECUCIÓN | N174: 0.4933 | O174: 0.5441 | Z174: 45004 | AA174: 44973 | AB174: 45004 | AC174: -39 | AD174: -8 | AE174: -8
A175: 173 | B175: ENTIDAD APORTANTE RECURSOS | C175: UNIVERSIDAD INDUSTRIAL DE SANTANDER | D175: YAHIR ARCINIEGAS | E175: LUIS MANUEL GONZALEZ | F175: 2020000100415 | G175: Desarrollo de un sistema óptico computacional para estimar el contenido de carbono orgánico de suelos agrícolas a través de imágenes espectrales e inteligencia artificial en cultivos de cítricos de Santander | H175: CTEL | I175: 2184125885 | J175: 1972224989 | K175: 211900896 | L175: 44160 | M175: CONTRATADO EN EJECUCIÓN | N175: 0.6733 | O175: 0.5699 | Z175: 45004 | AA175: 44635 | AB175: 45004 | AC175: -377 | AD175: -8 | AE175: -8
A176: 174 | B176: ENTIDAD APORTANTE RECURSOS | C176: UNIVERSIDAD INDUSTRIAL DE SANTANDER | D176: YAHIR ARCINIEGAS | E176: LUIS MANUEL GONZALEZ | F176: 2020000100375 | G176: Conformación de una plataforma para estudios celulares avanzados in vivo en tiempo real para el análisis de la respuesta inmunometabólica ante la reexpresión de interferón tipo I kappa en esferoides de células tumorales de cuello uterino en Santander | H176: CTEL | I176: 3123997801 | J176: 1998887911 | K176: 1125109890 | L176: 44159 | M176: CONTRATADO EN EJECUCIÓN | N176: 0.7539 | O176: 0.6558 | Z176: 45004 | AA176: 44635 | AB176: 45004 | AC176: -377 | AD176: -8 | AE176: -8
A177: 175 | B177: ENTIDAD APORTANTE RECURSOS | C177: UNIVERSIDAD INDUSTRIAL DE SANTANDER | D177: YAHIR ARCINIEGAS | E177: LUIS MANUEL GONZALEZ | F177: 2020000100351 | G177: Desarrollo de un prototipo selectivo y sensible para monitorear contenido de cadmio in situ en diversas matrices asociadas a la producción de granos de cacao en el departamento de Santander | H177: CTEL | I177: 2585800000 | J177: 2000000000 | K177: 585800000 | L177: 44159 | M177: CONTRATADO EN EJECUCIÓN | N177: 1 | O177: 0.825 | Z177: 44915 | AA177: 44607 | AB177: 44973 | AC177: -405 | AD177: -39 | AE177: -97 | AG177: 2020000100351
A178: 176 | B178: ENTIDAD APORTANTE RECURSOS | C178: INSTITUTO SUPERIOR DE EDUCACION RURAL DE PAMPLONA | D178: YAHIR ARCINIEGAS | E178: LUIS MANUEL GONZALEZ | F178: 2020000100343 | G178: Implementación laboratorio de calidad fisicoquímica de alimentos para el fortalecimiento competitivo y sostenible de lascadenas agroalimentarias del departamento de Norte de Santander | H178: CTEL | I178: 1097306327 | J178: 999999999 | K178: 97306328 | L178: 44159 | M178: CONTRATADO EN EJECUCIÓN | N178: 0 | O178: 0.2505 | Z178: 44973 | AA178: 44760 | AB178: 44979 | AC178: -252 | AD178: -33 | AE178: -39 | AG178: 2020000100343
A179: 177 | B179: ENTIDAD APORTANTE RECURSOS | C179: UNIVERSIDAD NACIONAL DE COLOMBIA | D179: YAHIR ARCINIEGAS | E179: LUIS MANUEL GONZALEZ | F179: 2020000100342 | G179: Estudio de potenciales insecticidas en matrices poliméricas para el control de plagas de granos almacenados basados en aceites esenciales provenientes de la biodiversidadflorística del departamento de Cundinamarca | H179: CTEL | I179: 2748237104 | J179: 2000000000 | K179: 748237104 | L179: 44159 | M179: CONTRATADO EN EJECUCIÓN | N179: 0.2661 | O179: 0.5219 | Z179: 45004 | AA179: 44635 | AB179: 45004 | AC179: -377 | AD179: -8 | AE179: -8
A180: 178 | B180: ENTIDAD APORTANTE RECURSOS | C180: UNIVERSIDAD MILITAR NUEVA GRANADA | D180: YAHIR ARCINIEGAS | E180: LUIS MANUEL GONZALEZ | F180: 2020000100728 | G180: Generación y transferencia de conocimientos y tecnologías para elevar capacidades de CTel de pequeños productores de tomate para afrontar problemas derivados del COVID-19 asociadas a la Seg. Alimentaria en las Sab. Centro y Oriente Cundinamarca | H180: CTEL | I180: 4162541452 | J180: 2123613452 | K180: 2038928000 | L180: 44183 | M180: CONTRATADO EN EJECUCIÓN | N180: 0.7494 | O180: 0.7574 | Z180: 45004 | AA180: 44635 | AB180: 45004 | AC180: -377 | AD180: -8 | AE180: -8
A181: 179 | B181: ENTIDAD APORTANTE RECURSOS | C181: UNIVERSIDAD NACIONAL DE COLOMBIA | D181: YAHIR ARCINIEGAS | E181: LUIS MANUEL GONZALEZ | F181: 2020000100339 | G181: Desarrollo de Nuevos Métodos No Destructivos para Monitoreo In Situ de Probabilidad de Ocurrencia de Falla en Tuberías en el Sector de Hidrocarburos en los Departamentos de Bogotá Boyacá Santander | H181: CTEL | I181: 2412084140 | J181: 1999876300 | K181: 412207840 | L181: 44159 | M181: CONTRATADO EN EJECUCIÓN | N181: 0.5855 | O181: 0.6023 | Z181: 45004 | AA181: 44607 | AB181: 45004 | AC181: -405 | AD181: -8 | AE181: -8 | AG181: 2020000100339
A182: 180 | B182: ENTIDAD APORTANTE RECURSOS | C182: UNIVERSIDAD MILITAR NUEVA GRANADA | D182: YAHIR ARCINIEGAS | E182: LUIS MANUEL GONZALEZ | F182: 2020000100216 | G182: Innovación y transferencia tecnológica de UMNGBIO a productores de flores para el control biológico de Tetranychus urticae (Acari: Tetranychiidae) en cultivos de invernadero con el ácaro benéfico Neoseiulus californicus (Acari: Phytoseiidae) Cundinamarca | H182: CTEL | I182: 2431580000 | J182: 1241580000 | K182: 1190000000 | L182: 44159 | M182: CONTRATADO EN EJECUCIÓN | N182: 0.7062 | O182: 0.8179 | Z182: 45004 | AA182: 44635 | AB182: 45004 | AC182: -377 | AD182: -8 | AE182: -8
A183: 181 | B183: CUNDINAMARCA | C183: SECRETARIA DE COMPETITIVIDAD | D183: DIEGO TORRES/VALENTINA PORTILLO | E183: FABIAN CUESTA | F183: 2019000050026 | G183: Desarrollo de un programa productivo, amigable con el medio ambiente del sector ganadero en el Departamento de Cundinamarca Cundinamarca | H183: AGRICULTURA | I183: 11567711442 | J183: 8302543371 | K183: 3265168071 | L183: 44187 | M183: CONTRATADO EN EJECUCIÓN | N183: 0.6348 | O183: 0.7217 | Z183: 45004 | AA183: 44973 | AB183: 45004 | AC183: -39 | AD183: -8 | AE183: -8 | AG183: 2019000050026
A184: 182 | B184: ENTIDAD APORTANTE RECURSOS | C184: UNIVERSIDAD NACIONAL DE COLOMBIA | D184: YAHIR ARCINIEGAS | E184: LUIS MANUEL GONZALEZ | F184: 2020000100169 | G184: Investigación Desarrollo, innovación y transferencia de conocimiento para el procesamiento de la semilla de Sacha Inchi en productos de valor agregado, como estrategia para mejorar la productividad del sector agroindustrial de la Región Cundinamarca | H184: CTEL | I184: 2757697312 | J184: 1997700000 | K184: 759997311.9 | L184: 44078 | M184: CONTRATADO EN EJECUCIÓN | N184: 0.5541 | O184: 0.488 | Z184: 45004 | AA184: 44740 | AB184: 45004 | AC184: -272 | AD184: -8 | AE184: -8
A185: 183 | B185: ENTIDAD APORTANTE RECURSOS | C185: UPTC | D185: YAHIR ARCINIEGAS | E185: LUIS MANUEL GONZALEZ | F185: 2020000100114 | G185: Fortalecimiento del ecosistema de investigación científica para CTeI en la universidad pedagógica y tecnológica de Colombia UPTC, I-SPACIO Sogamoso | H185: CTEL | I185: 2310634882 | J185: 1967031046 | K185: 343603836.3 | L185: 44078 | M185: CONTRATADO EN EJECUCIÓN | N185: 0.7007 | O185: 0.4369 | Z185: 45004 | AA185: 44915 | AB185: 45004 | AC185: -97 | AD185: -8 | AE185: -8
A186: 184 | B186: ENTIDAD APORTANTE RECURSOS | C186: UNIVERSIDAD DE ANTIOQUIA | D186: YAHIR ARCINIEGAS | E186: LUIS MANUEL GONZALEZ | F186: 2020000100079 | G186: Fortalecimiento de la infraestructura tecnológica y equipamiento del ambiente de formación industrial para el aumento de las capacidades institucionales en CTeI de la ETITC Bogotá | H186: CTEL | I186: 1090608306 | J186: 998808306 | K186: 91800000 | L186: 44078 | M186: CONTRATADO EN EJECUCIÓN | N186: 0.9732 | O186: 0.9387 | Z186: 45004 | AA186: 44635 | AB186: 45004 | AC186: -377 | AD186: -8 | AE186: -8
A187: 185 | B187: ENTIDAD APORTANTE RECURSOS | C187: UNIVERSIDAD NACIONAL DE COLOMBIA | D187: YAHIR ARCINIEGAS | E187: LUIS MANUEL GONZALEZ | F187: 2020000100075 | G187: Aprovechamiento de la biodiversidad en agraz y papa para el desarrollo de cultivos promisorios en el departamento de Santander | H187: CTEL | I187: 3177259696 | J187: 2000000000 | K187: 1177259696 | L187: 44078 | M187: CONTRATADO EN EJECUCIÓN | N187: 0.3238 | O187: 0.3038 | Z187: 45004 | AA187: 44607 | AB187: 45004 | AC187: -405 | AD187: -8 | AE187: -8 | AG187: 2020000100075
A188: 186 | B188: ENTIDAD APORTANTE RECURSOS | C188: UNIVERSIDAD NACIONAL DE COLOMBIA | D188: YAHIR ARCINIEGAS | E188: LUIS MANUEL GONZALEZ | F188: 2020000100019 | G188: Fortalecimiento de capacidades de investigación y desarrollo tecnológico de la Universidad Colegio Mayor de Cundinamarca a partir de tecnologías industria 4.0 para el diseño y construcción en Bogotá | H188: CTEL | I188: 2077571214 | J188: 1930000000 | K188: 147571214 | L188: 44078 | M188: CONTRATADO EN EJECUCIÓN | N188: 0.0965 | O188: 0.0667 | Z188: 44973 | AA188: 44607 | AB188: 44973 | AC188: -405 | AD188: -39 | AE188: -39 | AG188: 2020000100019
A189: 187 | B189: ENTIDAD APORTANTE RECURSOS | C189: UNIVERSIDAD INDUSTRIAL DE SANTANDER | D189: YAHIR ARCINIEGAS | E189: LUIS MANUEL GONZALEZ | F189: 2020000100017 | G189: Fortalecimiento DE LA CAPACIDAD INSTITUCIONAL DE INVESTIGACIÓN DE LA UNIVERSIDAD INDUSTRIAL DESANTANDER Nacional | H189: CTEL | I189: 2808520000 | J189: 2000000000 | K189: 808520000 | L189: 44078 | M189: CONTRATADO EN EJECUCIÓN | N189: 0.1803 | O189: 0 | AA189: 44607 | AB189: 45004 | AC189: -405 | AD189: -8 | AE189: 0 | AG189: 2020000100017
A190: 188 | B190: ENTIDAD APORTANTE RECURSOS | C190: UNIVERSIDAD MILITAR NUEVA GRANADA | D190: YAHIR ARCINIEGAS | E190: LUIS MANUEL GONZALEZ | F190: 2020000100103 | G190: Fortalecimiento de capacidades instaladas de Ciencia y Tecnología del Laboratorio de Diagnóstico en el Campus de la Univ Militar Nueva Granada, para atender problemáticas asociadas con agentes biológicos de alto riesgo para la salud humana, Cundinamarca | H190: CTEL | I190: 5715742977 | J190: 4168513565 | K190: 1547229412 | L190: 43966 | M190: CONTRATADO EN EJECUCIÓN | N190: 0.2145 | O190: 0.5839 | Z190: 44973 | AA190: 44635 | AB190: 45004 | AC190: -377 | AD190: -8 | AE190: -39
A191: 189 | B191: ENTIDAD APORTANTE RECURSOS | C191: INSTITUTO UNIVERSITARIO DE LA PAZ – UNIPAZ | D191: YAHIR ARCINIEGAS | E191: LUIS MANUEL GONZALEZ | F191: 2020000100042 | G191: Fortalecimiento de los procesos académicos en los programas ofrecidos por el Instituto Universitario de la Paz, UNIPAZ, Barrancabermeja | H191: CTEL | I191: 1178749590 | J191: 996109590 | K191: 182640000 | L191: 43998 | M191: TERMINADO | N191: 1 | O191: 0.9887 | Z191: 44973 | AA191: 44635 | AB191: 44973 | AC191: -377 | AD191: -39 | AE191: -39
A192: 190 | B192: ENTIDAD APORTANTE RECURSOS | C192: INSTITUTO UNIVERSITARIO DE LA PAZ – UNIPAZ | D192: YAHIR ARCINIEGAS | E192: LUIS MANUEL GONZALEZ | F192: 2020000100016 | G192: Adecuación , DOTACIÓN E IMPLEMENTACIÓN DE UN LABORATORIO DE FABRICACIÓN DIGITAL PARA PROMOVER EL DESARROLLO DE LA CIENCIA, LAINNOVACIÓN Y EL EMPRENDIMIENTO EN LA UNIVERSIDAD FRANCISCO DE PAULA SANTANDER. Cúcuta | H192: CTEL | I192: 2921057589 | J192: 1946843702 | K192: 974213887 | L192: 43950 | M192: TERMINADO | N192: 1 | O192: 1.002 | Z192: 44973 | AA192: 44973 | AB192: 44973 | AC192: -39 | AD192: -39 | AE192: -39
A193: 191 | B193: ENTIDAD APORTANTE RECURSOS | C193: UNIVERSIDAD TECNOLOGICA DE SANTANDER | D193: YAHIR ARCINIEGAS | E193: LUIS MANUEL GONZALEZ | F193: 2020000100004 | G193: Fortalecimiento y adecuación de equipos e infraestructura del Laboratorio de física del Departamento de Ciencias Básicas, para el mejoramiento de las capacidades institucionales y la investigación en las Unidades Tecnológicas de Santander - Bucaramanga | H193: CTEL | I193: 1511504755 | J193: 980000000 | K193: 531504755 | L193: 43950 | M193: CONTRATADO EN EJECUCIÓN | N193: 0.1719 | O193: 0.1558 | Z193: 45005 | AA193: 44635 | AB193: 45005 | AC193: -377 | AD193: -7 | AE193: -7
A194: 192 | B194: CUNDINAMARCA | C194: SECRETARIA DE EDUCACIÓN | D194: YAHIR ARCINIEGAS | E194: GENNY PADILLA | F194: 2020000050037 | G194: Dotación del mobiliario escolar para las instituciones educativas de los municipios no certificados del Departamento de Cundinamarca | H194: EDUCACIÓN | I194: 10093038848 | J194: 10093038848 | K194: 0 | L194: 44195 | M194: CERRADO | N194: 1 | O194: 0.8453 | Z194: 44973 | AA194: 45005 | AB194: 44823 | AC194: -7 | AD194: -189 | AE194: -39 | AG194: 2020000050037
A195: 193 | B195: ENTIDAD APORTANTE RECURSOS | C195: UNIVERSIDAD DEL NORTE | D195: YAHIR ARCINIEGAS | E195: LUIS MANUEL GONZALEZ | F195: 2020000100287 | G195: Formación de Capital Humano de Alto Nivel Universidad del Norte 2do Corte Nacional | H195: CTEL | I195: 6920233499 | J195: 6750000000 | K195: 170233499 | L195: 44330 | M195: CONTRATADO EN EJECUCIÓN | N195: 0.328 | O195: 0.3961 | Z195: 45005 | AA195: 44607 | AB195: 45005 | AC195: -405 | AD195: -7 | AE195: -7 | AG195: 2020000100287
A196: 194 | B196: ENTIDAD APORTANTE RECURSOS | C196: UNIVERSIDAD DEL VALLE | D196: YAHIR ARCINIEGAS | E196: LUIS MANUEL GONZALEZ | F196: 2020000100345 | G196: Formación de capital humano de alto Nivel segundo Corte Universidad del Valle Nacional | H196: CTEL | I196: 5913070114 | J196: 5335769261 | K196: =I196-J196 -> 577300853 | L196: 44348 | M196: CONTRATADO EN EJECUCIÓN | N196: 0.3334 | O196: 0.3705 | Z196: 45005 | AA196: 44635 | AB196: 45005 | AC196: =IF(AA196=0,0,_xlfn.DAYS(AA196,TODAY())) -> -377 | AD196: -7 | AE196: -7
A197: 195 | B197: ENTIDAD APORTANTE RECURSOS | C197: UNIVERSIDAD NACIONAL DE COLOMBIA | D197: YAHIR ARCINIEGAS | E197: LUIS MANUEL GONZALEZ | F197: 2021000100003 | G197: Formación de Capital Humano de Alto Nivel Universidad Nacional de Colombia Corte II Nacionl | H197: CTEL | I197: 18418143500 | J197: 17635937500 | K197: 782206000 | L197: 44330 | M197: CONTRATADO EN EJECUCIÓN | N197: 0.3113 | O197: 0.3709 | Z197: 45005 | AA197: 44607 | AB197: 45005 | AC197: -405 | AD197: -7 | AE197: =IF(Z197=0,0,_xlfn.DAYS(Z197,TODAY())) -> -7 | AG197: 2021000100003
A198: 196 | B198: ENTIDAD APORTANTE RECURSOS | C198: UNIVERSIDAD DE LA SABANA | D198: YAHIR ARCINIEGAS | E198: LUIS MANUEL GONZALEZ | F198: 2021000100004 | G198: Formación de Capital Humano de Alto Nivel Universidad de La Sabana Core 2 Nacional | H198: CTEL | I198: 1519950000 | J198: 1309600000 | K198: 210350000 | L198: 44348 | M198: CONTRATADO EN EJECUCIÓN | N198: 0.3956 | O198: 0.699 | Z198: 45005 | AA198: 44635 | AB198: 45005 | AC198: -377 | AD198: -7 | AE198: -7
A199: 197 | B199: ENTIDAD APORTANTE RECURSOS | C199: UNIVERSIDAD ANTONIO NARIÑO | D199: YAHIR ARCINIEGAS | E199: LUIS MANUEL GONZALEZ | F199: 2021000100014 | G199: Formación de Capital Humano de Alto Nivel Universidad Antonio Nariño Core 2 Nacional | H199: CTEL | I199: 4526652200 | J199: 4250000000 | K199: 276652200 | L199: 44348 | M199: CONTRATADO EN EJECUCIÓN | N199: 0.0514 | O199: 0.2294 | Z199: 45005 | AA199: 44607 | AB199: 45005 | AC199: -405 | AD199: -7 | AE199: -7 | AG199: 2021000100014
A200: 198 | B200: ENTIDAD APORTANTE RECURSOS | C200: UNIVERSIDAD EAN | D200: YAHIR ARCINIEGAS | E200: LUIS MANUEL GONZALEZ | F200: 2021000100025 | G200: Formación DE CAPITAL HUMANO DE ALTO NIVEL UNIVERSIDAD EAN NACIONAL COHORTE II Nacional | H200: CTEL | I200: 2044506416 | J200: 1750000000 | K200: 294506416 | L200: 44368 | M200: CONTRATADO EN EJECUCIÓN | N200: 0.4463 | O200: 0.4337 | Z200: 45005 | AA200: 44635 | AB200: 45005 | AC200: -377 | AD200: -7 | AE200: -7
... 1451 more rows

Sheet Proyectos en Ejecución SGR
A1: SISTEMAS GENERAL DEL REGALÍAS-BASE DE PROYECTOS APROBADOS
A2: N° | B2: EJECUTOR (Dpto / Entidad) | C2: EJECUTOR INTERNO | D2: ENCARGADO DE LA ENTIDAD | E2: ENLACE EMTIDAD EJECUTORA | F2: BPIN | G2: PROYECTO | H2: ALCANCE | I2: SECTOR | J2: VALOR PROYECTO | K2: VALOR SGR | L2: OTRAS FUENTES | M2: FECHA DE APROBACIÓN OCAD | N2: AÑO DE APROBACIÓN | O2: ACUERDO DE APROBACIÓN | P2: Cumplimiento de requisitos previos al inicio de la ejecución | Q2: Proyecto fue aprobado en SUIFP SGR pero no ha migrado a Gesproy | R2: CDP | S2: Proyecto fue migrado a Gesproy pero no tiene asignación de recursos en SPGR. | T2: Proyecto con asignación de recursos en SPGR y sin apertura del primer proceso de contratación | U2: Proyecto con asignación de recursos y sin apertura del primer proceso de contratación y sin identificación de alcance, hitos y programación | V2: Proyecto con apertura del primer proceso de contratación y sin suscripción del primer contrato. | W2: ESTADO | X2: AVANCE FÍSICO | Y2: AVANCE FINANCIERO
A3: 1 | B3: CUNDINAMARCA | C3: SECRETARIA DE AMBIENTE | D3: ALEXANDER RIVEROS Y YAHIR ARCINIEGAS | E3: EDUARDO | F3: 2012000050005 | G3: ESTUDIOS Y DISEÑOS DE DETALLE EMBALSE CALANDAIMA MUNICIPIO DE EL COLEGIO DEPARTAMENTO DE CUNDINAMARCA | I3: AMBIENTE Y DESARROLLO SOSTENIBLE | J3: 4000000000 | K3: 1000000000 | L3: =J3-K3 -> 3000000000 | M3: 41271 | N3: 2012 | O3: 004 DE 2012 | P3: 04/04/2013 | Q3: OK | R3: 15/04/2013 | S3: 25/01/2013 | T3: 30/08/2013 | U3: HACE FALTA ALCANCE DEL PROYECTO | V3: 12/07/2013 | W3: CERRADO | X3: 1 | Y3: 1
A4: 2 | B4: DESENTRALIZADOS | C4: ICCU - GESPROY GB | D4: DIEGO TORRES / JEIMY FORERO | E4: GIOVANY QUEVEDO | F4: 2012000050006 | G4: CONSTRUCCIÓN CUBIERTA COLISEO DEL CENTRO AGROTECNOLOGICO DE EXPOSICIONES Y COMERCIALIZACION DE LA REGION DEL SUMAPAZ EN EL MUNICIPIO DE FUSAGASUGA - CUNDINAMARCA | I4: TRANSPORTE | J4: 6352617736 | K4: 3581530801 | L4: 2771086935 | M4: 41271 | N4: 2012 | O4: 004 DE 2012 | P4: S.D 31/05/2013 | Q4: OK | R4: 217-24/04/2013 | S4: 41299 | T4: 41639 | U4: VALOR TOTAL DEL PROYECTO A PROGRAMAR ES DIFERENTE A VALOR ACTIVIDADES PROGRAMADAS Y EJECUTADAS | V4: 41808 | W4: CERRADO | X4: 1 | Y4: 0.9954
A5: 3 | B5: CUNDINAMARCA | C5: SECRETARIA DE AGRICULTURA | D5: DIEGO TORRES/VALENTINA PORTILLO | E5: JAVIER HERREDIA | F5: 2012000050007 | G5: FORTALECIMIENTO DE LAS CADENAS HORTIFRUTICOLA Y AROMATICAS EN CUNDINAMARCA | H5: MEJORAR LA COMPETITIVIDAD ECONÓMICA, SOCIAL Y AMBIENTAL DE PRODUCTORES DE LAS CADENAS DE MANGO, MORA Y AROMÁTICAS, DEL DEPARTAMENTO DE CUNDINAMARCA, ACOMPAÑADO DE PRODUCCIÓN DE ABONOS ORGANICOS E IMPLEMENTACIÓN DE POSCOSECHA Y VALOR AGREGADO. | I5: AGRICULTURA | J5: 2490400000 | K5: 1300000000 | L5: 1190400000 | M5: 41271 | N5: 2012 | O5: 004 DE 2012 | P5: 013-03/05/2013 | Q5: OK | R5: 41453 | S5: 0018-25/01/2013 | T5: 41458 | U5: HACE FALTA ALCANCE DEL PROYECTO | V5: 41458 | W5: CERRADO | X5: 1 | Y5: 1
A6: 4 | B6: CUNDINAMARCA | C6: SECRETARIA DE AGRICULTURA | D6: DIEGO TORRES/VALENTINA PORTILLO | E6: JAVIER HERREDIA | F6: 2012000050009 | G6: FORTALECIMIENTO DE LA PRODUCTIVIDAD Y COMPETITIVIDAD DEL SECTOR CACAOTERO EN EL DEPARTAMENTO DE CUNDINAMARCA | H6: AUMENTO DE LA PRODUCTIVIDAD DE LAS ÁREAS CACAOTERAS DEL DEPARTAMENTO DE CUNDINAMARCA | I6: AGRICULTURA | J6: 2334689275 | K6: 1200000000 | L6: 1134689275 | M6: 41271 | N6: 2012 | O6: 004 DE 2012 | P6: 012-04/04/2013 | Q6: OK | R6: 41431 | S6: 0018-25/01/2013 | T6: 001 de 2013- 24/06/2013 | U6: HACE FALTA ALCANCE DEL PROYECTO | V6: 41449 | W6: CERRADO | X6: 1 | Y6: 0.9634
A7: 5 | B7: CUNDINAMARCA | C7: SECRETARIA GENERAL | D7: YAHIR ARCINIEGAS | E7: JIMENA TAFUR | F7: 2012000050010 | G7: ESTUDIOS Y DISEÑOS PARA LA RECUPERACIÓN Y ADECUACION DEL PATRIMONIO HISTORICO CULTURAL PALACIO DE SAN FRANCISCO EN BOGOTA D.C. DEPARTAMENTO DE CUNDINAMARCA | H7: GESTIONAR INTEGRALMENTE EL DESARROLLO DE LA RESTAURACION Y ADECUACION CON LA FORMULACION DE ESTUDIOS Y DISEÑOS DEL MONUMENTO HISTORICO PALACIO DE SAN FRANCISCO | I7: CULTURA | J7: 1000000000 | K7: 1000000000 | L7: 0 | M7: 41271 | N7: 2012 | O7: 004 DE 2012 | P7: 01-04/04/2013 | Q7: OK | R7: 41705 | S7: 41299 | T7: 41795 | U7: OK | V7: 41852 | W7: TERMINADO | X7: 1 | Y7: 0.9464
A8: 6 | B8: CUNDINAMARCA | C8: SECRETARIA DE EDUCACIÓN | D8: YAHIR ARCINIEGAS Y ALEXANDER RIVEROS | E8: GENNY PADILLA | F8: 2012000050011 | G8: FORTALECIMIENTO DE LA PERMANENCIA DE LOS ESTUDIANTES EN LOS MUNICIPIOS DEL DEPARTAMENTO DE CUNDINAMARCA DEPARTAMENTO DE CUNDINAMARCA | H8: DISMINUIR LA DESERCIÓN EN LOS MUNICIPIOS DEL DEPARTAMENTO DE CUNDINAMARCA | I8: EDUCACIÓN | J8: 6000000000 | K8: 6000000000 | L8: 0 | M8: 41187 | N8: 2012 | O8: 003 DE 2012 | P8: 1-01/04/2013 | Q8: OK | R8: 41247 | S8: 41227 | T8: 41247 | U8: HACE FALTA ALCANCE DEL PROYECTO Y DIFERENCIA EN LA INFORMACION DE ACTIVIDAD DEL PROYECTO | V8: 41247 | W8: CERRADO | X8: 1 | Y8: 0.5819
A9: 7 | B9: CUNDINAMARCA | C9: SECRETARIA DE DESARROLLO E INCLUSIÓN SOCIAL | D9: ALEXANDER RIVEROS Y JEIMY FORERO | E9: TATIANA HERNANDEZ | F9: 2012000050012 | G9: IMPLEMENTACIÓN DEL PROGRAMA DE COMPLEMENTACION ALIMENTARIA Y NUTRICIONAL EN MENORES DE 5 AÑOS, MUJERES GESTANTES Y LACTANTES EN TODO EL DEPARTAMENTO DE CUNDINAMARCA | H9: MEJORAR Y FORTALECER LA SEGURIDAD ALIMENTARIA Y NUTRICIONAL EN EL DEPARTAMENTO FACILITANDO EL ACCESO A LOS ALIMENTOS Y NUTRIENTES CRÍTICOS A LOS GRUPOS POBLACIONALES MÁS VULNERABLES. | I9: SALUD Y PROTECCIÓN SOCIAL | J9: 4531022720 | K9: 3000000000 | L9: 1531022720 | M9: 41187 | N9: 2012 | O9: 003 DE 2012 | P9: 08/11/2013 -031 | Q9: OK | R9: 41335 | S9: 41267 | T9: 41520 | U9: HACE FALTA ALCANCE DEL PROYECTO Y DIFERENCIA EN LA INFORMACION DE ACTIVIDAD DEL PROYECTO | V9: 41541 | W9: CERRADO | X9: 0.9904 | Y9: 0.9972
A10: 8 | B10: CUNDINAMARCA | C10: SECRETARIA DE TRANSPORTE Y MOVILIDAD | D10: DAYANA FERNANDEZ Y EDGAR YAHIR ARCINIEGAS | E10: JORGE PINZON | F10: 2012000050013 | G10: ACTUALIZACION Y FORMULACION DE LOS ESTUDIOS Y DISEÑOS FASE II Y III DE LA EXTENCION NORTE - QUITO - SUR DEL SISTEMA TRANSMILENIO AL MUNICIPIO DE SOACHA DEPARTAMENTO DE CUNDINAMARCA | H10: INTRANSITABILIDAD VEHICULAR DE LA VIA LIMITE DEL DISTRITO AL MUNICIPIO DE SOACHA | I10: SALUD Y PROTECCIÓN SOCIAL | J10: 4026917304 | K10: 3130787355 | L10: 896129949 | M10: 41187 | N10: 2012 | O10: 003 DE 2012 | P10: 04/04/2013-32 | Q10: OK | R10: 41586 | S10: 41508 | T10: 41600 | U10: HACE FALTA ALCANCE DEL PROYECTO | V10: 41632 | W10: CERRADO | X10: 0.9622 | Y10: 0.9703
A11: 9 | B11: CUNDINAMARCA | C11: SECRETARIA DE AGRICULTURA | D11: DIEGO TORRES/VALENTINA PORTILLO | E11: JAVIER HERREDIA | F11: 2012000050014 | G11: MEJORAMIENTO DE LA COMPETITIVIDAD Y SOSTENIBILIDAD DEL SUB SECTOR PANELERO DE CUNDINAMARCA | H11: FORTALECER LA COMPETITIVIDAD DEL SUBSECTOR PANELERO A TRAVÉS DE LA IMPLEMENTACIÓN DEL PLAN DEPARTAMENTAL DE RECONVERSIÓN TECNOLÓGICA EN 8 MUNCIPIOS DEL DEPARTAMENTO DE CUNDINAMARCA | I11: AGRICULTURA | J11: 1559272190 | K11: 1300000000 | L11: 259272190 | M11: 41271 | N11: 2012 | O11: 004 DE 2012 | P11: 04/04/2013-014 | Q11: OK | R11: 41449 | S11: 41299 | T11: 41451 | U11: HACE FALTA ALCANCE DEL PROYECTO | V11: 41451 | W11: CERRADO | X11: 1 | Y11: 1
A12: 10 | B12: CUNDINAMARCA | C12: SECRETARIA DE AGRICULTURA | D12: DIEGO TORRES/VALENTINA PORTILLO | E12: JAVIER HERREDIA | F12: 2012000050023 | G12: FORTALECIMIENTO DE LA ACTIVIDAD CAFETERA COMO ALTERNATIVA SOSTENIBLE DE DESARROLLO REGIONAL EN EL DEPARTAMENTO DE CUNDINAMARCA | H12: CONTRIBUIR EN LA GENERACIÓN DE INGRESOS ESTABLES Y AL MEJORAMIENTO DE LAS CONDICIONES DE VIDA DE LAS FAMILIAS CAFETERAS DE CUNDINAMARCA, ATRAVÉS DE LA INSTALACIÓN DE CULTIVOS RENOVADOS Y TECNIFICADOS, Y LA IMPLEMENTACIÓN DE ESQUEMAS AGROFORESTALES. | I12: AGRICULTURA | J12: 77168795512 | K12: 1300000000 | L12: 75868795512 | M12: 41271 | N12: 2012 | O12: 004 DE 2012 | P12: 10/04/2013 015 | Q12: OK | R12: 41431 | S12: 41299 | T12: 41453 | U12: OK | V12: 41453 | W12: CERRADO | X12: 1 | Y12: 0.9999
A13: 11 | B13: CUNDINAMARCA | C13: SECRETARIA DE AGRICULTURA | D13: DIEGO TORRES/VALENTINA PORTILLO | E13: JAVIER HERREDIA | F13: 2012000050024 | G13: IMPLEMENTACION DE UN MODELO DE PRODUCCION EN SISTEMAS DE DOBLE PROPOSITO EN PEQUEÑOS PRODUCTORES DEL DEPARTAMENTO DE CUNDINAMARCA | H13: DESARROLLAR UN MODELO ALTERNATIVO DE PRODUCCIÓN DE CARNE Y LECHE PARA SISTEMAS DE DOBLE PROPOSITO ORIENTADO A MEJORAR LOS NIVELES DE PRODUCCIÓN Y RENTABILIDAD DE PEQUEÑOS PRODUCTORES LOCALIZADOS EN CUATRO MUNICIPIOS DEL DEPARTAMENTO DE CUNDINAMARCA | I13: AGRICULTURA | J13: 3371686373 | K13: 1823985000 | L13: 1547701373 | M13: 41271 | N13: 2012 | O13: 004 DE 2012 | P13: 20/05/2013 011 | Q13: OK | R13: 41570 | S13: 41299 | T13: 41579 | U13: HACE FALTA ALCANCE DEL PROYECTO | V13: 41579 | W13: CERRADO | X13: 1 | Y13: 0.9944
A14: 12 | B14: CUNDINAMARCA | C14: SECRETARIA DE GOBIERNO | D14: YESID CASTAÑO | E14: EDUARDO | F14: 2012000050025 | G14: ESTUDIOS Y DISEÑOS PARA LA CONSTRUCCIÓN DE UN CENTRO ESPECIALIZADO AL SERVICIO DE ADOLESCENTES INFRACTORES DE LA LEY EN EL DEPARTAMENTO DE CUNDINAMARCA | H14: DESARROLLAR DESDE LA ETAPA DE PREINVERSION UN CENTRO DE ATENCION ESPECIALIZADO PARA ATENDER, ORIENTAR Y RESOCIALIZAR A MENORES INFRACTORES DE LA LEY EN EL DEPARTAMENTO DE CUNDINAMARCA | I14: DEFENSA | J14: 200000000 | K14: 200000000 | L14: 0 | M14: 41271 | N14: 2012 | O14: 004 DE 2012 | P14: 1-29/04/2013 | Q14: OK | R14: 41376 | S14: 41299 | T14: 41254 | U14: HACE FALTA ALCANCE DEL PROYECTO | V14: 41387 | W14: CERRADO | X14: 1 | Y14: 1
A15: 13 | B15: ENTIDAD APORTANTE RECURSOS | C15: MUNICIPIO DE COGUA | D15: ALEXANDER RIVEROS | E15: SANDRA SHUAIB | F15: 2012000050026 | G15: MEJORAMIENTO DE LA VA COGUA-SAN CAYETANO (SECTOR LAS MARGARITAS K8+300 SECTOR LAS MARGARITAS HASTA K10+300) CON K0+00 EN COGUA DEPARTAMENTO DE CUNDINAMARCA | H15: AUMENTAR LA TRANSITABILIDAD VEHICULAR EN LA VÌA COGUA - SAN CAYETANO DEL DEPARTAMENTO DE CUNDINAMARCA | I15: TRANSPORTE | J15: 2000000000 | K15: 2000000000 | L15: 0 | M15: 41271 | N15: 2012 | O15: 005 DE 2012 | P15: 28/12/2012-05 | Q15: OK | R15: 41501 | S15: 41444 | T15: 41530 | U15: HACE FALTA ALCANCE DEL PROYECTO | V15: 41578 | W15: CERRADO | X15: 1 | Y15: 1
A16: 14 | B16: DESENTRALIZADOS | C16: ICCU - GESPROY GB | D16: DIEGO TORRES / JEIMY FORERO | E16: LUZ MARINA GALINDO | F16: 2012000050027 | G16: MEJORAMIENTO DE LA VA UBALA-PALOMAS-MAMBITA (K0+00 UBICADO EN EL SITIO PROFESIONALES MUNICIPIO DE UBALA), DEPARTAMENTO DE CUNDINAMARCA | H16: AUMENTAR LA TRANSITABILIDAD VEHICULAR EN LA VIA UBALA - PALOMAS - MAMBITA | I16: TRANSPORTE | J16: 3359160462 | K16: 3000000000 | L16: 359160462 | M16: 41271 | N16: 2012 | O16: 04 DE 2012 | P16: 41425 | Q16: OK | R16: 41381 | S16: 41299 | T16: 41519 | U16: HACE FALTA ALCANCE DEL PROYECTO | V16: 41561 | W16: CERRADO | X16: 1 | Y16: 0.9866
A17: 15 | B17: DESENTRALIZADOS | C17: ICCU - GESPROY GB | D17: DIEGO TORRES / JEIMY FORERO | E17: GIOVANY QUEVEDO | F17: 2012000050028 | G17: MEJORAMIENTO Y MANTENIMIENTO DE LA RED VIAL SECUNDARIA Y TERCIARIA MEDIANTE LA DOTACIÓN DE MAQUINARIA A LOS MUNICIPIOS DEL DEPARTAMENTO DE CUNDINAMARCA | H17: MEJORAR LA TRANSITABILIDAD DE LAS VIAS SECUNDARIAS Y TERCIARIAS DE 41 MUNICIPIOS DEL DEPARTAMENTO DE CUNDINAMARCA | I17: TRANSPORTE | J17: 19769772343 | K17: 8103535586 | L17: 11666236757 | M17: 41271 | N17: 2012 | O17: 004 DE 2012 | P17: 41423 | Q17: OK | R17: 41339 | S17: 41299 | T17: 41422 | U17: HACE FALTA ALCANCE DEL PROYECTO | V17: 41422 | W17: CERRADO | X17: 1 | Y17: 0.9318
A18: 16 | B18: CUNDINAMARCA | C18: SECRETARIA DE MINAS, ENERGIA Y GAS | D18: DIEGO TORRES | E18: JAHIR HERNANDEZ | F18: 2012000050029 | G18: IMPLEMENTACIÓN Y MASIFICACION DEL SERVICIO DE GAS COMBUSTIBLE POR REDES PARA MUNICIPIOS DE ANOLAIMA, CACHIPAY, CHOACHI, FOMEQUE, UBAQUE Y VIOTA CUNDINAMARCA | H18: AMPLIAR LA COBERTURA DEL SERVICIO DE GAS NATURAL COMBUSTIBLE EN LOS MUNICIPIOS DE ANOLAIMA, CACHIPAY, CHOACHI, FOMEQUE Y UBAQUE CUNDINAMARCA, | I18: MINAS Y ENERGÍA | J18: 15253036000 | K18: 2199142000 | L18: 13053894000 | M18: 41271 | N18: 2012 | O18: 004 DE 2012 | P18: 29/05/2013-008 | Q18: OK | R18: 41519 | S18: 41299 | T18: 41541 | U18: OK | V18: 41541 | W18: CERRADO | X18: 1 | Y18: 0.945
A19: 17 | B19: CUNDINAMARCA | C19: SECRETARIA DE COMPETITIVIDAD | D19: ALEXANDER RIVEROS/JEIMY FORERO | E19: FABIAN CUESTA | F19: 2012000050030 | G19: DESARROLLO CREACION Y FORTALECIMIENTO DE NUEVE (9) CENTROS DE EMPREDIMIENTO Y FORTALECIMIENTO EMPRESARIAL EN EL DEPARTAMENTO DE CUNDINAMARCA | H19: CREACION Y FUNCIONAMIENTO DE CENTRO DE EMPRENDIMIENTO A NIVEL REGIONAL ENVARGADOS DE GENERAR CULTURA EMPRENDEDORA Y APOYAR LAS INICIATIVAS POR OPORTUNIDAD O NECESIDAD PARA LA CREACION DE NUEVAS EMPRESAS | I19: COMERCIO, INDUSTRIA Y TURISMO | J19: 1752501814 | K19: 1708104361 | L19: 44397453 | M19: 41271 | N19: 2012 | O19: 004 DE 2012 | P19: 41393 | Q19: OK | R19: 41397 | S19: 41299 | T19: 41423 | U19: DIFERENTES VALOR EN PROGRAMACIÓN DE ACTIVIDADES | V19: 41423 | W19: PARA CIERRE | X19: 1 | Y19: 0.9507
A20: 18 | B20: ENTIDAD APORTANTE RECURSOS | C20: MUNICIPIO DE MOSQUERA | D20: DAYANA FERNANDEZ | E20: GIOVANY QUEVEDO | F20: 2012000050039 | G20: MEJORAMIENTO DE LA VIA CALLE 23 ENTRE CRA 3 Y 9B EN MOSQUERA CLL 7 ENTRE CRA 13 Y 24 EN FUNZA DEPARTAMENTO DE CUNDINAMARCA | H20: AUMENTAR LA TRANSITABILIDAD EN LA VÍA URBANA DE LA CALLE 23 ENTRE CARRERAS 3 Y 9B DEL MUNICIPIO DE MOSQUERA CUNDINAMARCA Y/O CALLE 7 ENTRE CARRRERAS 13 Y 24 MUNICIPIO DE FUNZA CUNDINAMARCA | I20: TRANSPORTE | J20: 2816415712 | K20: 1000000000 | L20: 1816415712 | M20: 41271 | N20: 2012 | O20: 004 DE 2012 | P20: 11/12/2012-007 | Q20: OK | R20: 41585 | S20: 41564 | T20: 41431 | U20: HACE FALTA ALCANCE DEL PROYECTO | V20: 41519 | W20: CERRADO | X20: 1 | Y20: 1
A21: 19 | B21: ENTIDAD APORTANTE RECURSOS | C21: MUNICIPIO DE SOACHA | D21: ALEXANDER RIVEROS | E21: LUZ MARINA GALINDO | F21: 2012000050044 | G21: REHABILITACIÓN Y MEJORAMIENTO DE LA VIA PARALELA ( TRANSVERSAL 8 Y CARRERA 7) ENTRE CARRERA 13 CON AUTOPISTA SUR BARRIO LA DESPENSA, HASTA LA CALLE 27 DEL CENTRO DEL MUNICIPIO DE SOACHA CUNDINAMARCA (TRAMO N 1 - K0+000 HASTA K0+262) | H21: MEJORAMIENTO DE LA MOVILIDAD EN LA VIA PARALELA UBICADA EN LA TRANSVERSAL 8 Y CALLE 7 ENTRE CARRERAS 13 CON AUTOPISTA SUR BARRIO LA DESPENSA HASTA LA CALLE 27 DEL CENTRO DEL MUNICIPIO DE SOACHA CUNDINAMARCA (TRAMO N° 1 - K0+000 HASTA EL K0+262) | I21: TRANSPORTE | J21: 1000000000 | K21: 1000000000 | L21: 0 | M21: 41271 | N21: 2012 | O21: 004 DE 2012 | P21: 01/04/2013-01 | Q21: OK | R21: 41627 | S21: NO HAY INFORMACION | T21: 41352 | U21: DIFERENTES VALOR EN PROGRAMACIÓN DE ACTIVIDADES Y HACE FALTA ALCANCE DEL PROYECTO | V21: 41400 | W21: CERRADO | X21: 1 | Y21: 1
A22: 20 | B22: DESENTRALIZADOS | C22: ICCU - GESPROY GB | D22: DIEGO TORRES / JEIMY FORERO | E22: GIOVANY QUEVEDO | F22: 2012000050051 | G22: MEJORAMIENTO DEL PUENTE GUATIMBOL SOBRE EL RIO SUMAPAZ EN LA VA VENECIA - ICONONZO DEPARTAMENTO DE CUNDINAMARCA | H22: MEJORAR LA TRANSITABILIDAD VEHICULAR EN LA VÌA VENECIA - ICONONZO SOBRE EL RIO SUMAPAZ | I22: TRANSPORTE | J22: 827195639 | K22: 620304130 | L22: 206891509 | M22: 41271 | N22: 2012 | O22: 004 DE 2012 | P22: 41425 | Q22: OK | R22: 41381 | S22: 41269 | T22: 41417 | U22: HACE FALTA ALCANCE DEL PROYECTO | V22: 41515 | W22: CERRADO | X22: 1 | Y22: 0.9809
A23: 21 | B23: DESENTRALIZADOS | C23: ICCU - GESPROY GB | D23: DIEGO TORRES / JEIMY FORERO | E23: GIOVANY QUEVEDO | F23: 2012000050052 | G23: FORMULACIÓN Y ACTUALIZACION DE LOS ESTUDIOS Y DISEÑOS DE LA VIA UBAQUE - LOS CEREZOS - CHIPAQUE DEPARTAMENTO DE CUNDINAMARCA | H23: ELABORAR Y ACTULIZAR LOS ESTUDIOS Y DISEÑOS PARA EL MEJORAMEINTO DE LA VÍA UBAQUE - LOS CEREZOS - CHIPAQUE | I23: TRANSPORTE | J23: 257457261 | K23: 250000000 | L23: 7457261 | M23: 41271 | N23: 2012 | O23: 004 DE 2012 | P23: 41365 | Q23: OK | R23: 41401 | S23: 41299 | T23: 41508 | U23: HACE FALTA ALCANCE DEL PORYECTO | V23: 41554 | W23: CERRADO | X23: 1 | Y23: 0.9996
A24: 22 | B24: DESENTRALIZADOS | C24: ICCU - GESPROY GB | D24: DIEGO TORRES / JEIMY FORERO | E24: GIOVANY QUEVEDO | F24: 2012000050054 | G24: FORMULACIÓN Y ACTUALIZACION DE LOS ESTUDIOS Y DISEÑOS PARA EL MEJORAMIENTO DE LA TRONCAL DEL CARBON EN LONGITUD DE 43 KMS (K0+00 LOCALIZADO EN TIERRA NEGRA) DEPARTAMENTO DE CUNDINAMARCA | H24: ELABORAR Y ACTUALIZAR LOS ESTUDIOS Y DISEÑOS PARA EL MEJORAMIENTO DE LA TRONCAL DEL CARBÓN VÍA TAUSA-CUCUNUBA-GUACHETA Y LENGUAZAQUE. | I24: TRANSPORTE | J24: 777429075 | K24: 755000000 | L24: 22429075 | M24: 41271 | N24: 2012 | O24: 004 DE 2012 | P24: 41365 | Q24: OK | R24: 41381 | S24: 41299 | T24: 41507 | U24: HACE FALTA ALCANCE DEL PROYECTO | V24: 41550 | W24: CERRADO | X24: 1 | Y24: 0.9984
A25: 23 | B25: CUNDINAMARCA | C25: SECRETARIA DE CIENCIA, TECNOLOGIA E INNOVACIÓN | D25: ALEXANDER RIVEROS Y YAHIR ARCINIEGAS | E25: LUIS MANUEL GONZALEZ | F25: 2012000100010 | G25: FORTALECIMIENTO DE LAS REGIONES COLOMBIANAS EN SUS CAPACIDADES DE CTI - CUNDINAMARCA | H25: :FORTALECIMIENTO DE LAS REGIONES COLOMBIANA EN SUS CAPACIDADES DE INVESTIGACIÓN Y USO DE CIENCIA, TECNOLOGÍA E INNOVACIÓN ESTÁ BASADA EN CINCO FASES | I25: CTEL | J25: 8721806744 | K25: 8721806744 | L25: 0 | M25: 41263 | N25: 2012 | O25: 001 DE 2012 | P25: 15/12/2012 Acta No. 4 | Q25: OK | R25: 41662 | S25: 41369 | T25: 41663 | U25: OK | V25: 41663 | W25: CONTRATADO EN EJECUCIÓN | X25: 0.8488 | Y25: 0.9729
A26: 24 | B26: CUNDINAMARCA | C26: SECRETARIA DE CIENCIA, TECNOLOGIA E INNOVACIÓN | D26: ALEXANDER RIVEROS Y YAHIR ARCINIEGAS | E26: LUIS MANUEL GONZALEZ | F26: 2012000100056 | G26: INVESTIGACIÓN ESTRATEGIAS DE VALORACION Y APROPIACION DE LOS RECURSOS NATURALES MECANISMOS DE ADAPTACION A CAMBIO CLIMATICO. REGION DEL BAJO MAGDALENA | H26: DISEÑAR E IMPLEMENTAR ALTERNATIVAS PARA AUMENTAR LA SOSTENIBILIDAD AMBIENTAL Y ECOLÓGICA DE LOS SECTORES GANADERO, PANELERO, CAFETERO, ENERGÉTICO Y DE INFRAESTRUCTURA DE TRANSPORTE COMO MECANISMO DE ADAPTACION A CAMBIO CLIMÁTICO. | I26: CTEL | J26: 7184175232 | K26: 4100000000 | L26: 3084175232 | M26: 41263 | N26: 2012 | O26: 001 DE 2012 | P26: 20/12/2012 -001 | Q26: OK | R26: 41492 | S26: 41369 | T26: 41569 | U26: OK | V26: 41569 | W26: CERRADO | X26: 1 | Y26: 0.9997
A27: 25 | B27: CUNDINAMARCA | C27: SECRETARIA DE CIENCIA, TECNOLOGIA E INNOVACIÓN | D27: ALEXANDER RIVEROS Y YAHIR ARCINIEGAS | E27: LUIS MANUEL GONZALEZ | F27: 2012000100063 | G27: FORTALECIMIENTO DE LAS CAPACIDADES DE INNOVACIÓN SOCIAL POR MEDIO DEL PARQUE CIENTIFICO EN BOGOTA - CUNDINAMARCA | H27: FORTALECER LAS CAPACIDADES DE INNOVACIÓN SOCIAL DE LA REGIÓN DE BOGOTÁ-CUNDINAMARCA POTENCIANDO EL MODELO DEL PARQUE CIENTÍFICO DE INNOVACIÓN SOCIAL EN EL QUE SE INTEGRAN Y ARTICULAN INICIATIVAS Y RECURSOS DESTINADOS A ATENDER PROBLEMÁTICAS SOCIALES. | I27: CTEL | J27: 16942704000 | K27: 8250704000 | L27: 8692000000 | M27: 41263 | N27: 2012 | O27: 001 DE 2012 | P27: 20/12/2012 001 | Q27: OK | R27: 41492 | S27: 41369 | T27: 41578 | U27: HACE FALTA ALCANCE DEL PROYECTO | V27: 41578 | W27: CERRADO | X27: 1 | Y27: 0.9473
A28: 26 | B28: CUNDINAMARCA | C28: SECRETARIA DE CIENCIA, TECNOLOGIA E INNOVACIÓN | D28: ALEXANDER RIVEROS Y YAHIR ARCINIEGAS | E28: LUIS MANUEL GONZALEZ | F28: 2012000100118 | G28: FORMACION EN CIENCIA, TECNOLOGIA E INNOVACION EN LA COMUNIDAD EDUCATIVA DE LAS INSTITUCIONES EDUCATIVAS OFICIALES DE LOS MUNICIPIOS NO CERTIFICADOS DEL DEPARTAMENTO | H28: LIMITADAS CONDICIONES REGIONALES PARA LA FORMACION EN CIENCIA, TECNOLOGIA E INNOVACION EN LA POBLACION EN EDAD ESCOLAR Y LOS DIRECTIVOS DOCENTES Y DOCENTES DEL DEPARTAMENTO | I28: CTEL | J28: 22788739251 | K28: 17739839251 | L28: 5048900000 | M28: 41295 | N28: 2013 | O28: 001 DE 2012 | P28: 21/01/2013 002 | Q28: OK | R28: 41638 | S28: 41269 | T28: 41570 | U28: HACE FALTA ALCANCE DEL PROYECTO | V28: 41570 | W28: CERRADO | X28: 0.9818 | Y28: 0.9481
A29: 27 | B29: CUNDINAMARCA | C29: SECRETARIA DE CIENCIA, TECNOLOGIA E INNOVACIÓN | D29: ALEXANDER RIVEROS Y YAHIR ARCINIEGAS | E29: LUIS MANUEL GONZALEZ | F29: 2012000100144 | G29: INVESTIGACIÓN INVESTIGACION, DESARROLLO Y TRANSFERENCIA TECNOLOGICA EN EL SECTOR AGROPECUARIO Y AGROINDUSTRIAL CON EL FIN DE MEJORAR L TODO EL DEPARTAMENTO, CUNDINAMARCA, CENTRO ORIENTE | H29: DESARROLLAR ACTIVIDADES DE INVESTIGACIÓN, DESARROLLO TECNOLÓGICO E INNOVACIÓN RURAL EN EL SECTOR AGROPECUARIO Y AGROINDUSTRIAL QUE PERMITA MEJORAR LAS CONDICIONES DE SEGURIDAD ALIMENTARIA Y NUTRICIONAL, INCREMENTAR LOS NIVELES DE PRODUCTIVIDAD Y COMPETITIVIDAD | I29: CTEL | J29: 50514736439 | K29: 34707000000 | L29: 15807736439 | M29: 41263 | N29: 2012 | O29: 001 DE 2012 | P29: 41263 | Q29: OK | R29: 41492 | S29: 41369 | T29: 41586 | U29: OK | V29: 43329 | W29: CONTRATADO EN EJECUCIÓN | X29: 0.841 | Y29: 0.8157
A30: 28 | B30: CUNDINAMARCA | C30: SECRETARIA DE CIENCIA, TECNOLOGIA E INNOVACIÓN | D30: ALEXANDER RIVEROS Y YAHIR ARCINIEGAS | E30: LUIS MANUEL GONZALEZ | F30: 2012000100156 | G30: CONSTRUCCIÓN DEL ECOSISTEMA DE INNOVACION TIC PARA EL DEPTO DE CUNDINAMARCA | H30: ARTICULAR Y PONER EN MARCHA EL ECOSISTEMA DE INNOVACIÓN TIC EN EL DEPARTAMENTO DE CUNDINAMARCA , INTEGRADO POR ACTORES PÚBLICOS Y PRIVADOS DEL SISTEMA NACIONAL DE CIENCIA, TECNOLOGÍA E INNOVACIÓN, VER ANEXO INFORMACION IMPORTANTE | I30: CTEL | J30: 7088000000 | K30: 5000000000 | L30: 2088000000 | M30: 41263 | N30: 2012 | O30: 001 DE 2012 | P30: 41263 | Q30: OK | R30: 41492 | S30: 41369 | T30: 41948 | U30: HACE FALTA ALCANCE DEL PROYECTO | V30: 41948 | W30: CERRADO | X30: 0.9898 | Y30: 0.9318
A31: 29 | B31: DESENTRALIZADOS | C31: ICCU - GESPROY GB | D31: DIEGO TORRES / JEIMY FORERO | E31: GIOVANY QUEVEDO | F31: 2013000050003 | G31: ESTUDIOS Y DISEÑOS PARA EL MEJORAMIENTO DE LA VA VILLAPINZON-TURMEQUE EN LONGITUD DE 11 KMS (K0+00 LOCALIZADO EN VILLAPINZON DEPARTAMENTO DE CUNDINAMARCA | H31: MEJORAR LA COMUNICACIÓN VEHICULAR ENTRE LOS MUNICIPIOS DE VILLAPINZÓN Y TURMEQUE CON LA REGIÓN | I31: TRANSPORTE | J31: 245000000 | K31: 245000000 | L31: 0 | M31: 41400 | N31: 2013 | O31: 006 DE 2013 | P31: 41571 | Q31: OK | R31: 41785 | S31: 41632 | T31: 41934 | U31: HACE FALTA ALCANCE DEL PROYECTO | V31: 42023 | W31: CERRADO | X31: 1 | Y31: 0.7347
A32: 30 | B32: DESENTRALIZADOS | C32: ICCU - GESPROY GB | D32: DIEGO TORRES / JEIMY FORERO | E32: EDWIN | F32: 2013000050004 | G32: ESTUDIOS Y DISEÑOS PARA EL MEJORAMIENTO DE LA VA YACOPI - LA VICTORIA CON K0+00 EN YACOPI DEPARTAMENTO DE CUNDINAMARCA | H32: MEJORAR LA COMUNICACIÓN VEHICULAR ENTRE LOS MUNICIPIOS DE YACOPI Y LA VICTORIA Y LA REGIÓN | I32: TRANSPORTE | J32: 250000000 | K32: 250000000 | L32: 0 | M32: 41400 | N32: 2013 | O32: 006 DE 2013 | P32: 41571 | Q32: OK | R32: 41785 | S32: 41632 | T32: 41963 | U32: HACE FALTA ALCANCE DEL PROYECTO | V32: 41974 | W32: CERRADO | X32: 1 | Y32: 0.7491
A33: 31 | B33: CUNDINAMARCA | C33: SECRETARIA DE DESARROLLO E INCLUSIÓN SOCIAL | D33: YAHIR ARCINIEGAS Y ALEXANDER RIVEROS | E33: TATIANA HERNANDEZ | F33: 2013000050005 | G33: IMPLEMENTACIÓN DEL PROGRAMA DE COMPLEMENTACION ALIMENTARIA Y NUTRICIONAL PARA MENORES DE CINCO AÑOS Y MUJERES GESTANTES Y LACTANTES EN TODO EL DEPARTAMENTO DE CUNDINAMARCA | H33: MEJORAR Y FORTALECER LA SEGURIDAD ALIMENTARIA Y NUTRICIONAL EN EL DEPARTAMENTO FACILITANDO EL ACCESO A LOS ALIMENTOS Y NUTRIENTES CRÍTICOS A LOS GRUPOS POBLACIONALES MÁS VULNERABLES. | I33: EDUCACIÓN | J33: 6189832118 | K33: 6000000000 | L33: 189832118 | M33: 41400 | N33: 2013 | O33: 006 DE 2013 | P33: 1-24/10/2013 | Q33: OK | R33: 41738 | S33: 41586 | T33: 41995 | U33: HACE FALTA ALCANCE DEL RPOYECTO | V33: 41967 | W33: CERRADO | X33: 0.9982 | Y33: 0.9899
A34: 32 | B34: CUNDINAMARCA | C34: SECRETARIA DE EDUCACIÓN | D34: YAHIR ARCINIEGAS Y ALEXANDER RIVEROS | E34: GENNY PADILLA | F34: 2013000050011 | G34: FORTALECIMIENTO DE LA PERMANENCIA DE LOS ESTUDIANTES EN LOS MUNICIPIOS DEL DEPARTAMENTO DE CUNDINAMARCA 2013-2014 CUNDINAMARCA, CENTRO ORIENTE | H34: LOGRAR LA PERMANENCIA DE LOS ESTUDIANTES BENEFICIADOS CON LA ESTRATEGIA DE TRANSPORTE ESCOLAR EN LOS MUNICIPIOS DE CUNDINAMARCA | I34: EDUCACIÓN | J34: 13360387595 | K34: 13360387595 | L34: 0 | M34: 41400 | N34: 2013 | O34: 006 DE 2013 | P34: 41508 | Q34: OK | R34: 41562 | S34: 41530 | T34: 41827 | U34: HACE FALTA ALCANCE DEL PROYECTO Y VALORES DIFERENTES AL TOTAL | V34: 41791 | W34: CERRADO | X34: 0.998 | Y34: 0.9234
A35: 33 | B35: CUNDINAMARCA | C35: SECRETARIA DE MINAS, ENERGIA Y GAS | D35: DIEGO TORRES | E35: ALVARO CHACON | F35: 2013000050026 | G35: CONSTRUCCIÓN REDES ELECTRICAS EN LA ZONA RURAL DE LOS MUNICIPIOS DE PARATEBUENO Y GUTIERREZ EN EL DEPARTAMENTO DE CUNDINAMARCA | H35: AUMENTAR LA COBERTURA Y SUMINISTRO EN LA PRESTACIÓN DEL SERVICIO DE ENERGÍA ELECTRICA PARA FAMILIAS DE BAJOS RECURSOS UBICADAS EN LAS ZONAS RURALES DE LOS MUNICIPIOS DE PARATEBUENO Y GUTIERREZ. | I35: MINAS Y ENERGÍA | J35: 1068319227 | K35: 1045119227 | L35: 23200000 | M35: 41502 | N35: 2013 | O35: 007 DE 2013 | P35: 18/10/2013 009 | Q35: OK | R35: 41586 | S35: 41577 | T35: 41586 | U35: VALOR DE ACTIVIDADES ES DIFERENTE AL VALOR TOTAL DE PROYECTO | V35: 41586 | W35: PARA CIERRE | X35: 0.4493 | Y35: 0.447
A36: 34 | B36: CUNDINAMARCA | C36: SECRETARIA DE AGRICULTURA | D36: DIEGO TORRES/VALENTINA PORTILLO | E36: JAVIER HERREDIA | F36: 2013000050027 | G36: FORTALECIMIENTO DE LA ACTIVIDAD CAFETERA COMO ESTRATEGIA DE MEJORAMIENTO DE LA PRODUCTIVIDAD Y LA COMPETITIVIDAD EN EL DEPARTAMENTO DE CUNDINAMARCA, CENTRO ORIENTE | H36: MEJORAR LA PRODUCTIVIDAD, COMPETITIVIDAD Y RENTABILIDAD DEL CULTIVO DE CAFE EN EL DEPARTAMENTO DE CUNDINAMARCA | I36: AGRICULTURA | J36: 18756930869 | K36: 3000000000 | L36: 15756930869 | M36: 41502 | N36: 2013 | O36: 025 DE 2014 | P36: 18/10/2013 17 | Q36: OK | R36: 41586 | S36: 41585 | T36: 41555 | U36: OK | V36: 41586 | W36: CERRADO | X36: 1 | Y36: 0.9949
A37: 35 | B37: CUNDINAMARCA | C37: SECRETARIA DE AGRICULTURA | D37: DIEGO TORRES/VALENTINA PORTILLO | E37: JAVIER HERREDIA | F37: 2013000050028 | G37: FORTALECIMIENTO DEL SUBSECTOR PANELERO EN EL DEPARTAMENTO DE CUNDINAMARCA | H37: DETRIMENTO EN LA CALIDAD DE VIDA DE LA POBLACION RURAL PANELERA, DEBIDO A FALTA DE COMPETITIVIDAD EN LA IMPLEMENTACION DE LOS DIFERENTES PROCESOS TECNOLOGICOS, AMBIENTALES, PRODUCTIVOS, COMERCIALES Y AGROEMPRESARIALES DEL SUBSECTOR PANELERO EN EL DEPARTAMENTO | I37: AGRICULTURA | J37: 3427279826 | K37: 2599564478 | L37: 827715348 | M37: 41502 | N37: 2013 | O37: 007 DE 2013 | P37: 18/10/2013 016 | Q37: OK | R37: 41586 | S37: 41585 | T37: 41586 | U37: OK | V37: 41586 | W37: CERRADO | X37: 1 | Y37: 0.9996
A38: 36 | B38: DESENTRALIZADOS | C38: ICCU - GESPROY GB | D38: DIEGO TORRES / JEIMY FORERO | E38: GIOVANY QUEVEDO | F38: 2013000050043 | G38: MEJORAMIENTO Y REHABILITACION DE LA VIA GUACHETA - CAPELLANIA (SECTOR K0+780 AL K2+240) K0+000 LOCALIZADO EN EL RIO UBATE GUACHET, CUNDINAMARCA, CENTRO ORIENTE | H38: MEJORAR Y REHABILITAR LA VÍA CAPELLANÍA - FUQUENE QUE CONDUCE AL MUNICIPIO DE GUACHETA EN EL SECTOR DE LA VEREDA TICHA | I38: TRANSPORTE | J38: 1019047619 | K38: 1000000000 | L38: 19047619 | M38: 41639 | N38: 2013 | O38: 015 DE 2013 | P38: 41729 | Q38: OK | R38: 41782 | S38: 41744 | T38: 41806 | U38: HACE FALTA ALCANCE DEL PROYECTO | V38: 41876 | W38: CERRADO | X38: 1 | Y38: 0.9806
A39: 37 | B39: ENTIDAD APORTANTE RECURSOS | C39: BANCO AGRARIO DE COLOMBIA | D39: DIEGO TORRES / JEIMY FORERO | F39: 2013000050044 | G39: CONSTRUCCIÓN CUNDINAMARCA VISR 2013 TODO EL DEPARTAMENTO, CUNDINAMARCA, CENTRO ORIENTE | H39: AUMENTAR LA VIVIENDA NUEVA RURAL EN CUNDINAMARCA | I39: AGRICULTURA | J39: 60041780218 | K39: 15888838218 | L39: 44152942000 | M39: 41569 | N39: 2013 | O39: 005 DE 2015 | P39: 41915 | Q39: OK | R39: 42024 | S39: 42024 | T39: 41884 | U39: OK | V39: 41983 | W39: CONTRATADO EN EJECUCIÓN | X39: 0.8102 | Y39: 0.8529
A40: 38 | B40: DESENTRALIZADOS | C40: ICCU - GESPROY GB | D40: DIEGO TORRES / JEIMY FORERO | E40: GIOVANY QUEVEDO | F40: 2013000050045 | G40: MEJORAMIENTO Y PAVIMENTACIÓN DE LA VIA FOSCA - GUTIERREZ, DESDE EL KM 2+000 AL KM 3+000 (K0+000 LOCALIZADO EN FOSCA), DEPARTAMENTO DE CUNDINAMARCA | H40: REALIZAR EL MEJORAMIENTO Y LA PAVIMENTACIÓN DE LA VÍA FOSCA - GUTIÉRREZ, DESDE EL KM 2+00 AL KM 3+00 (K0+000 LOCALIZADO EN FOSCA) DEPARTAMENTO DE CUNDINAMARCA. | I40: TRANSPORTE | J40: 2534999997 | K40: 2000000000 | L40: 534999997 | M40: 41579 | N40: 2013 | O40: 012 DE 2013 | P40: 41676 | Q40: OK | R40: 41785 | S40: 41632 | T40: 41899 | U40: HACE FALTA ALCANCE DEL PROYECTO | V40: 41971 | W40: CERRADO | X40: 1 | Y40: 0.9745
A41: 39 | B41: CUNDINAMARCA | C41: SECRETARIA DE MINAS, ENERGIA Y GAS | D41: DIEGO TORRES | E41: JAHIR HERNANDEZ | F41: 2013000050046 | G41: IMPLEMENTACIÓN Y MASIFICACION DEL SERVICIO DE GAS COMBUSTIBLE POR REDES PARA LOS MUNICIPIOS DE CAPARRAPI, EL PEÑON, LA PALMA, PAIME, TOPAIPI Y VILLAGOMEZ CUNDINAMARCA | H41: AMPLIAR LA COBERTURA DEL SERVICIO DE GAS NATURAL COMBUSTIBLE POR REDES EN LOS MUNICIPIOS DE CAPARRAPI, EL PEÑON, LA PALMA, PAIME, TOPAIME Y VILLAGOMEZ CUNDINAMARCA. | I41: MINAS Y ENERGÍA | J41: 6609136508 | K41: 2118963154 | L41: 4490173354 | M41: 41579 | N41: 2013 | O41: 012 DE 2013 | P41: 41676 | Q41: OK | R41: 41928 | S41: 41744 | T41: 41934 | U41: HACE FALTA ALCANCE DEL PROYECTO | V41: 41934 | W41: CERRADO | X41: 1 | Y41: 1
A42: 40 | B42: DESENTRALIZADOS | C42: ICCU - GESPROY GB | D42: DIEGO TORRES / JEIMY FORERO | E42: GIOVANY QUEVEDO | F42: 2013000050047 | G42: MEJORAMIENTO Y PAVIMENTACIÓN VIA GUANACAS - EL PEÑON DESDE EL K0+000 AL K2+000 (K0+000 UBICADO EN GUANACAS) MUNICIPIO EL PEÑON, CUNDINAMARCA | H42: MEJORAR Y PAVIMENTAR LA VIA GUANACAS - EL PEÑON | I42: TRANSPORTE | J42: 3000000000 | K42: 3000000000 | L42: 0 | M42: 41808 | N42: 2014 | O42: 022 DE 2014 | P42: 41887 | Q42: OK | R42: 41918 | S42: 41899 | T42: 41941 | U42: HACE FALTA ALCANCE DELP ROYECTO | V42: 41985 | W42: CERRADO | X42: 1 | Y42: 0.9964
A43: 41 | B43: DESENTRALIZADOS | C43: ICCU - GESPROY GB | D43: DIEGO TORRES / JEIMY FORERO | E43: GIOVANY QUEVEDO | F43: 2013000050049 | G43: MEJORAMIENTO Y MANTENIMIENTO DE LA RE VIAL MEDIANTE LA ADQUISICION DE MAQUINARIA AÑO 2013-2014 PARA LOS MUNICIPIOS DEL DEPARTAMENTO DE CUNDINAMARCA | H43: MEJORAR LA TRANSITABILIDAD VEHICULAR Y LA COMUNICACIÓN DE LA RED VIAL SECUNDARIA Y TERCIARIA CON EL MANTENIMIENTO PREVENTIVO Y OPORTUNO CON LA ADQUISICIÓN DE MAQUINARIA. | I43: TRANSPORTE | J43: 14330854376 | K43: 12431431552 | L43: 1899422824 | M43: 41609 | N43: 2013 | O43: 012 DE 2013 | P43: 41676 | Q43: OK | R43: 41822 | S43: 41599 | T43: 41836 | U43: HACE FALTA ALCANCE DEL PROYECTO | V43: 41884 | W43: CERRADO | X43: 1 | Y43: 0.9996
A44: 42 | B44: DESENTRALIZADOS | C44: ICCU - GESPROY GB | D44: DIEGO TORRES / JEIMY FORERO | E44: GIOVANY QUEVEDO | F44: 2013000050050 | G44: MEJORAMIENTO Y PAVIMENTACIÓN DE LA VIA SANAME - PUENTE QUETAME DESDE K0+000 AL K1+500 (K0+000 LOCALIZADO EN PUENTE QUEMADO) MUNICIPIO FOSCA, CUNDINAMARCA | H44: MEJORAR Y PAVIMENTAR LA VÍA SANAME -PUENTE QUETAME- Y EL MUNICIPIO DE FOSCA, CUNDINAMARCA | I44: TRANSPORTE | J44: 6000000000 | K44: 6000000000 | L44: 0 | M44: 41639 | N44: 2013 | O44: 015 DE 2013 | P44: 41729 | Q44: OK | R44: 41782 | S44: 41744 | T44: 41807 | U44: HACE FALTA ALCANCE DEL PROEYCTO | V44: 41887 | W44: CERRADO | X44: 1 | Y44: 0.4921
A45: 43 | B45: CUNDINAMARCA | C45: SECRETARIA DE AMBIENTE | D45: ALEXANDER RIVEROS Y YAHIR ARCINIEGAS | F45: 2013000050051 | G45: FORTALECIMIENTO DE LA GESTION INTEGRAL DE RESIDUOS SOLIDOS, A TRAVES DE SISTEMAS RECIONALES EN LAS PROVINCIAS DE UBATE Y RIONEGRO EN EL DEPARTAMENTO DE CUNDINAMARCA | H45: IMPLEMENTAR ALTERNATIVAS VIABLES DE MANEJO Y APROVECHAMIENTO DE RESIDUOS SOLIDOS, PARA GENERAR UNA GESTION INTEGRAL DE RESIDUOS SOLIDOS EN CUNDINAMARCA | I45: VIVIENDA, CIUDAD Y TERRITORIO | J45: 3000000000 | K45: 3000000000 | L45: 0 | M45: 41579 | N45: 2013 | O45: 012 DE 2013 | P45: 41736 | Q45: OK | R45: 41885 | S45: 41712 | T45: 41954 | U45: HACE FALTA ALCANCE DEL PROYECTO | V45: 41970 | W45: CERRADO | X45: 0.4828 | Y45: 0.474
A46: 44 | B46: CUNDINAMARCA | C46: SECRETARIA DE AGRICULTURA | D46: DIEGO TORRES/VALENTINA PORTILLO | E46: JAVIER HERREDIA | F46: 2013000050054 | G46: MEJORAMIENTO DE LA PRODUCTIVIDAD Y COMPETITIVIDAD DEL SECTOR CAUCHERO EN EL DEPARTAMENTO DE CUNDINAMARCA | H46: MEJORARA LA PRODUCTIVIDAD Y COMPETITIVIDAD DEL SECTOR CAUCHERO EN EL DEPARTAMENTO DE CUNDINAMARCA, CON EL FIN DE MEJORAR EL NIVEL DE INGRESOS DE LOS CAUCHEROS DEL DEPARTAMENTO | I46: AGRICULTURA | J46: 3765860000 | K46: 2459000000 | L46: 1306860000 | M46: 41639 | N46: 2013 | O46: 015 DE 2013 | P46: 06/02/2014 007 | Q46: OK | R46: 41948 | S46: 41935 | T46: 41976 | U46: HACE FALTA ALCANCE DEL PROYECTO | V46: 41976 | W46: CERRADO | X46: 1 | Y46: 1
A47: 45 | B47: CUNDINAMARCA | C47: SECRETARIA DE GOBIERNO | D47: YESID CASTAÑO | E47: EDUARDO | F47: 2013000050056 | G47: PREVENCIN DE INCENDIOS FORESTALES CON LA ADQUISICION DE VEHICULOS 4X4 ACCION RAPIDA TIPO FORESTAL PARA EL DEPARTAMENTO DE CUNDINAMARCA | H47: FORTALECIMIENTO DE LAS INSTITUCIONES BOMBERILES EN CUNDINAMARCA | I47: AMBIENTE Y DESARROLLO SOSTENIBLE | J47: 4000000000 | K47: 4000000000 | L47: 0 | M47: 41579 | N47: 2013 | O47: 012 DE 2013 | P47: 41676 | Q47: OK | R47: 41723 | S47: 41579 | T47: 41809 | U47: HACE FALTA ALCANCE DEL PROYECTO | V47: 41851 | W47: CERRADO | X47: 1 | Y47: 0.9999
A48: 46 | B48: CUNDINAMARCA | C48: SECRETARIA DE AGRICULTURA | D48: DIEGO TORRES/VALENTINA PORTILLO | E48: JAVIER HERREDIA | F48: 2013000050081 | G48: MEJORAMIENTO DE LA PRODUCTIVIDAD, CALIDAD, POSCOSECHA Y MERCADEO DE LAS CADENAS HORTIFRUTCOLA Y AROMATICAS DE CUNDINAMARCA | H48: MEJORAR LA PRODUCTIVIDAD, COMPETITIVIDAD, CALIDAD Y COMERCIALIZACIÓN DE LAS CADENAS PRODUCTIVAS HORTIFRUTÍCOLA Y AROMÁTICAS EN EL DEPARTAMENTO DE CUNDINAMARCA. | I48: AGRICULTURA | J48: 4900400000 | K48: 2600000000 | L48: 2300400000 | M48: 41808 | N48: 2014 | O48: 022 DE 2014 | P48: 41872 | Q48: OK | R48: 41964 | S48: 41935 | T48: 41976 | U48: HACE FALTA ALCANCE DEL PROYECTO | V48: 41976 | W48: CERRADO | X48: 1 | Y48: 1
A49: 47 | B49: CUNDINAMARCA | C49: SECRETARIA DE AGRICULTURA | D49: DIEGO TORRES/VALENTINA PORTILLO | E49: JAVIER HERREDIA | F49: 2013000050083 | G49: IMPLEMENTACIÓN Y PUESTA EN MARCHA DE UNA PLANTA HOMOGENIZADORA DE MIELES PARA LA PRODUCCION DE PANELA EN CAPARRAPI CUNDINAMARCA, CENTRO ORIENTE | H49: FORTALECER LA COMPETITIVIDAD DEL SUBSECTOR PANELERO A TRAVÉS DE LA IMPLEMENTACIÓN Y PUESTA EN MARCHA DE UNA PLANTA HOMOGENIZADORA DE MIELES PARA LA ELABORACIÓN DE PANELA PARA MEJORAR LA CALIDAD DE VIDA DE LOS PRODUCTORES PANELEROS DE CAPARRAPI | I49: AGRICULTURA | J49: 3322683076 | K49: 3126242524 | L49: 196440552 | M49: 41808 | N49: 2014 | O49: 022 DE 2014 | P49: 41872 | Q49: OK | R49: 41948 | S49: 41935 | T49: 41948 | U49: HACE FALTA ALCANCE DEL PROYECTO | V49: 41948 | W49: CERRADO | X49: 1 | Y49: 1
A50: 48 | B50: DESENTRALIZADOS | C50: ICCU - GESPROY GB | D50: DIEGO TORRES / JEIMY FORERO | E50: GIOVANY QUEVEDO | F50: 2013000050094 | G50: MEJORAMIENTO Y REHABILITACION DE LA VIA TABIO - CHIA DEL K1+100 AL K3+200 | H50: MEJORAR LA MOVILIDAD PARA LA POBLACIÓN DEL MUNICIPIO EN LA VÍA QUE CONDUCE DE TABIO A CHIA | I50: TRANSPORTE | J50: 2000000000 | K50: 2000000000 | L50: 0 | M50: 41639 | N50: 2013 | O50: 015 DE 2013 | P50: 41729 | Q50: OK | R50: 41782 | S50: 41744 | T50: Sin Dato | U50: DESAPROBADO | V50: Sin Dato | W50: DESAPROBADO | X50: 0 | Y50: 0
A51: 49 | B51: CUNDINAMARCA | C51: SECRETARIA DE CIENCIA, TECNOLOGIA E INNOVACIÓN | D51: ALEXANDER RIVEROS Y YAHIR ARCINIEGAS | E51: LUIS MANUEL GONZALEZ | F51: 2013000100129 | G51: INCREMENTO EN LAS ESTRATEGIAS SUSTENTABLES EN EL USO DEL RECURSO DE ENERGA ELECTRICA PARA LA POBLACION VULNERABLE EN EL DPTO. DE CUNDINAMARCA | H51: INCREMENTAR EL CONSUMO EFICIENTE DE ENERGÍA, ELECTRIFICACIÓN RURAL Y SENSIBILIZACIÓN EN EL PAGO DEL SERVICIO ALUMBRADO PÚBLICO, A TRAVÉS DE LA METODOLOGÍA DIAGNÓSTICO SOCIAL PARTICIPATIVO GENERANDO HERRAMIENTAS DE ASOCIATIVIDAD EN DEPTO. CUNDINAMARCA | I51: CTEL | J51: 5264002961 | K51: 4097083299 | L51: 1166919662 | M51: 41789 | N51: 2014 | O51: 025 DE 2014 | P51: 41789 | Q51: OK | R51: 42172 | S51: 42139 | T51: 42178 | U51: OK | V51: 42178 | W51: CONTRATADO EN EJECUCIÓN | X51: 0.8242 | Y51: 0.6852
A52: 50 | B52: CUNDINAMARCA | C52: SECRETARIA DE CIENCIA, TECNOLOGIA E INNOVACIÓN | D52: ALEXANDER RIVEROS Y YAHIR ARCINIEGAS | E52: LUIS MANUEL GONZALEZ | F52: 2013000100131 | G52: INVESTIGACIÓN ESTIMAR VULNERABILIDAD AL CAMBIO CLIMATICO DE SISTEMAS CAFETEROS Y DISEÑO DE ARREGLOS AGROFORESTALES CON BIOTECNOLOGIA PACHO, TIBACUY, SAN JUAN DE RIO SECO, CUNDINAMARCA | H52: ESTIMAR LA VULNERABILIDAD FRENTE AL CAMBIO CLIMÁTICO DE LOS SISTEMAS DE PRODUCCIÓN CON CAFÉ Y PROPONER MEDIDAS DE ADAPTACIÓN BASADAS EN EL DISEÑO DE SISTEMAS AGROFORESTALES Y BIOTECNOLOGÍA | I52: AGRICULTURA | J52: 3287867000 | K52: 2622860000 | L52: 665007000 | M52: 41474 | N52: 2013 | O52: 005 DE 2013 | P52: 41626 | Q52: OK | R52: 41663 | S52: 41577 | T52: 41663 | U52: HACE FALTA ALCANCE DEL PROYECTO | V52: 41663 | W52: CERRADO | X52: 0.9845 | Y52: 0.8904
A53: 51 | B53: CUNDINAMARCA | C53: SECRETARIA DE CIENCIA, TECNOLOGIA E INNOVACIÓN | D53: ALEXANDER RIVEROS Y YAHIR ARCINIEGAS | E53: LUIS MANUEL GONZALEZ | F53: 2013000100149 | G53: INNOVACIÓN EN EL MODELO DE GESTION DE MEDICAMENTO EN EL DEPARTAMENTO DE CUNDINAMARCA FASE II | H53: REALIZAR INVESTIGACIÓN SOBRE UTILIZACIÓN Y GESTIÓN DE MEDICAMENTOS EN CUNDINAMARCA Y REUNIR EXPERIENCIAS INTERNACIONALES PARA DISEÑAR MODELO INNOVADOR EN LA GESTIÓN DEL MEDICAMENTO. | I53: CTEL | J53: 3079583047 | K53: 2490946916 | L53: 588636131 | M53: 41474 | N53: 2013 | O53: 005 DE 2013 | P53: 41638 | Q53: OK | R53: 41579 | S53: 41547 | T53: 41598 | U53: HACE FALTA ALCANCE DEL PROYECTO | V53: 41612 | W53: CERRADO | X53: 1 | Y53: 1
A54: 52 | B54: CUNDINAMARCA | C54: SECRETARIA DE CIENCIA, TECNOLOGIA E INNOVACIÓN | D54: ALEXANDER RIVEROS Y YAHIR ARCINIEGAS | E54: LUIS MANUEL GONZALEZ | F54: 2013000100176 | G54: INNOVACIÓN SISTEMA DE PRODUCCION DE FRUTAS/HORTALIZAS FRESCAS/PROCESADAS TIPO EXPORTACION CON TECNOLOGIA BIOLOGICA /INTEGRAL INOCUA SUBACHOQUE, CUNDINAMARCA, CENTRO ORIENTE | H54: DDESARROLLAR, IMPLEMENTAR Y VALIDAR SISTEMAS DE PRODUCCIÓN DE FRUTAS Y HORTALIZAS FRESCAS O PROCESADAS TIPO EXPORTACIÓN PRODUCIDAS POR BIOAGRICULTURA O AGRICULTURA INTEGRAL INÓCUA QUE FORTALEZCAN LA COMPETITIVIDAD DE LAS CADENAS DE VALOR DEL SECTOR. | I54: CTEL | J54: 9285096292 | K54: 6556945302 | L54: 2728150990 | M54: 41474 | N54: 2013 | O54: 005 DE 2013 | P54: 41656 | Q54: OK | R54: 43819 | S54: 41577 | T54: 41664 | U54: OK | V54: 41887 | W54: TERMINADO | X54: 1 | Y54: 0.6871
A55: 53 | B55: CUNDINAMARCA | C55: SECRETARIA DE CIENCIA, TECNOLOGIA E INNOVACIÓN | D55: ALEXANDER RIVEROS Y YAHIR ARCINIEGAS | E55: LUIS MANUEL GONZALEZ | F55: 2013000100180 | G55: DISEÑO SMART TON: TALENTO E INNOVACION APLICADA AL TERRITORIO | H55: GENERAR UN MODELO DE ESPACIOS DE APRENDIZAJE PARA DESARROLLO DEL TALENTO EN JÓVENES SOPORTADO EN TECNOLOGÍA Y ORIENTADO A COMPETENCIAS PARA IMPACTO EN SU TERRITORIO | I55: CTEL | J55: 3089954000 | K55: 2497510000 | L55: 592444000 | M55: 41509 | N55: 2013 | O55: 008 DE 2013 | P55: 41583 | Q55: OK | R55: 41663 | S55: 41577 | T55: 41663 | U55: HACE FALTA ALCANCE AL PROYECTO | V55: 41663 | W55: CERRADO | X55: 1 | Y55: 0.8654
A56: 54 | B56: CUNDINAMARCA | C56: SECRETARIA DE CIENCIA, TECNOLOGIA E INNOVACIÓN | D56: ALEXANDER RIVEROS Y YAHIR ARCINIEGAS | E56: LUIS MANUEL GONZALEZ | F56: 2013000100215 | G56: FORTALECIMIENTO DE LA GESTIN COMUNITARIA DEL RECURSO HIDRICO, POR MEDIO DE LA DISMINUCION DEL CONSUMO DE ESTE, UTILIZANDO TP Y TICS , CUNDINAMARCA, CENTRO ORIENTE | H56: FORTALECER LAS CAPACIDADES EN LA GESTIÓN DE RECURSO HÍDRICO EN ALGUNOS MUNICIPIOS DE LAS PROVINCIAS DEL GUAVIO Y SABANA CENTRO, BAJO UN ENFOQUE DE APROPIACIÓN SOCIAL DE LA INNOVACIÓN. | I56: CTEL | J56: 1811292700 | K56: 1608461700 | L56: 202831000 | M56: 41565 | N56: 2013 | O56: 011 DE 2013 | P56: 41583 | Q56: OK | R56: 41782 | S56: 41709 | T56: 41969 | U56: HACE FALTA ALCANCE DEL PROYECTO | V56: 41969 | W56: CERRADO | X56: 1 | Y56: 0.9074
A57: 55 | B57: CUNDINAMARCA | C57: SECRETARIA DE CIENCIA, TECNOLOGIA E INNOVACIÓN | D57: ALEXANDER RIVEROS Y YAHIR ARCINIEGAS | E57: LUIS MANUEL GONZALEZ | F57: 2013000100217 | G57: FORTALECIMIENTO DE LA COMPETITIVIDAD DEL SECTOR FLORICULTOR COLOMBIANO MEDIANTE EL USO DE CIENCIA, TECNOLOGA E INNOVACION APLICADAS EN EL DEPARTAMENTO DE CUNDINAMARCA | H57: FORTALECER LA COMPETITIVIDAD DEL SECTOR FLORICULTOR COLOMBIANO EN LOS MERCADOS INTERNACIONALES A TRAVÉS DE LA GENERACIÓN, EVALUACIÓN Y TRANSFERENCIA DE SOLUCIONES TECNOLÓGICAS. | I57: CTEL | J57: 7204002875 | K57: 4618409839 | L57: 2585593036 | M57: 41789 | N57: 2014 | O57: 025 DE 2014 | P57: 41789 | Q57: OK | R57: 42174 | S57: 42160 | T57: 42178 | U57: VALOR POR DEBAJO DEL TOTAL Y HACE FALTA EL ALCANCE DEL PROYECTO | V57: 42178 | W57: CERRADO | X57: 1 | Y57: 0.9859
A58: 56 | B58: CUNDINAMARCA | C58: SECRETARIA DE CIENCIA, TECNOLOGIA E INNOVACIÓN | D58: ALEXANDER RIVEROS Y YAHIR ARCINIEGAS | E58: LUIS MANUEL GONZALEZ | F58: 2013000100247 | G58: INVESTIGACIÓN E INNOVACIÓN TECNOLÓGICA Y APROPIACIÓN SOCIAL DE CONOCIMIENTO CIENTÍFICO DE ORQUÍDEAS NATIVAS DE CUNDINAMARCA | H58: INCREMENTAR EL CONOCIMIENTO SOBRE LAS ORQUÍDEAS NATIVAS DE CUNDINAMARCA PARA ORIENTAR ESTRATEGIAS DE USO SOSTENIBLE Y CONSERVACIÓN POR PARTE DE LOS PRODUCTORES LOCALES EN LAS PROVINCIAS DE TEQUENDAMA Y SUMAPAZ | I58: CTEL | J58: 3400306874 | K58: 2551931927 | L58: 848374947 | M58: 41856 | N58: 2014 | O58: 027 DE 2014 | P58: 41856 | Q58: OK | R58: 42174 | S58: 42160 | T58: 42179 | U58: OK | V58: 42179 | W58: CERRADO | X58: 0.967 | Y58: 0.9526
A59: 57 | B59: CUNDINAMARCA | C59: SECRETARIA DE CIENCIA, TECNOLOGIA E INNOVACIÓN | D59: ALEXANDER RIVEROS Y YAHIR ARCINIEGAS | E59: LUIS MANUEL GONZALEZ | F59: 2013000100248 | G59: INNOVACIÓN , CIENCIA Y TECNOLOGIA PARA PRODUCTORES DE LECHE EN LA PROVINCIA DE UBATE, CUNDINAMARCA. | H59: MEJORAR LA PRODUCTIVIDAD Y COMPETITIVIDAD DE LOS PRODUCTORES DE LECHE DE LA PROVINCIA DE UBATÉ DESARROLLANDO SISTEMAS PRODUCTIVOS EFICIENTES, QUE MEJOREN EL ACCESO A LOS MERCADOS A TRAVÉS DE LA GENERACIÓN DE TECNOLOGÍA Y ASISTENCIA TÉCNICA. | I59: CTEL | J59: 11619725567 | K59: 9380319099 | L59: 2239406468 | M59: 41565 | N59: 2013 | O59: 011 DE 2013 | P59: 41626 | Q59: OK | R59: 42172 | S59: 42139 | T59: 42173 | U59: OK | V59: 42178 | W59: TERMINADO | X59: 0.8025 | Y59: 0.8197
A60: 58 | B60: ENTIDAD APORTANTE RECURSOS | C60: MUNICIPIO DE MADRID | D60: ALEXANDER RIVEROS | F60: 2013000050048 | G60: MEJORAMIENTO Y PAVIMENTACIÓN DE LA VIA AJOVER-SANTA CRUZ EN 2 KILOMETROS, MUNICIPIO DE MADRID, CUNDINAMARCA | H60: MEJORAR LA TRANSITABILIDAD DE LOS HABITANTES DEL MUNICIPIO DE MADRID | I60: TRANSPORTE | J60: 8946944399 | K60: 8700000000 | L60: 246944399 | M60: 41689 | N60: 2014 | O60: 017 DE 2014 | P60: 41564 | Q60: OK | R60: 42009 | S60: 41672 | T60: 42075 | U60: OK | V60: 42264 | W60: CERRADO | X60: 1 | Y60: 1
A61: 59 | B61: ENTIDAD APORTANTE RECURSOS | C61: CORMAGDALENA | D61: ALEXANDER RIVEROS | F61: 20132401060001 | G61: MANTENIMIENTO Y RECUPERACIÓN DE LA NAVEGABILIDAD DEL RIO MAGDALENA | H61: MEJORAR LAS CONDICIONES TÉCNICAS DEL CANAL NAVEGABLE | I61: TRANSPORTE | J61: 3527443454052 | K61: 117000000000 | L61: 3410443454052 | M61: 41514 | N61: 2013 | O61: 001 DE 2013 | P61: 41631 | Q61: OK | R61: 41781 | S61: 41640 | T61: 41766 | U61: OK | V61: 41895 | W61: CERRADO | X61: 0.045 | Y61: 0.0383
A62: 60 | B62: DESENTRALIZADOS | C62: ICCU - GESPROY GB | D62: DIEGO TORRES / JEIMY FORERO | E62: GIOVANY QUEVEDO | F62: 2014000050033 | G62: MEJORAMIENTO Y REHABILITACIÓN DE LA VIA TABIO - CHIA DEL K0+000 AL K1+800 | H62: MEJORAR LA MOVILIDAD PARA LA POBLACIÓN DEL MUNICIPIO EN LA VÍA QUE CONDUCE DE TABIO A CHIA | I62: TRANSPORTE | J62: 2570000000 | K62: 2000000000 | L62: 570000000 | M62: 41893 | N62: 2014 | O62: 026 DE 2014 | P62: 42003 | Q62: OK | R62: 42151 | S62: 41949 | T62: 42206 | U62: HACE FALTA ALCANCE | V62: 42244 | W62: CERRADO | X62: 1 | Y62: 1
A63: 61 | B63: DESENTRALIZADOS | C63: ICCU - GESPROY GB | D63: DIEGO TORRES / JEIMY FORERO | E63: GIOVANY QUEVEDO | F63: 2014257720001 | G63: MEJORAMIENTO Y PAVIMENTACIÓN DE LA VIA SUESCA LA PLAYA - SESQUILE DEPARTAMENTO DE CUNDINAMARCA | H63: MEJORAR LA MOVILIDAD DE LA COMUNIDAD DE LOS MUNICIPIOS DE SUESCA Y SESQUILE. | I63: TRANSPORTE | J63: 4191000000 | K63: 1391000000 | L63: 2800000000 | M63: 41743 | N63: 2014 | O63: 001 DE 2014 | P63: 41760 | Q63: OK | R63: 41669 | S63: 41632 | T63: 41631 | U63: HACE FALTA ALCANCE, VALORES INFERIORES AL TOTAL | V63: 41760 | W63: CERRADO | X63: 1 | Y63: 0.9867
A64: 62 | B64: CUNDINAMARCA | C64: SECRETARIA DE GOBIERNO | D64: DAYANA FERNANDEZ | E64: EDUARDO | F64: 2014000050010 | G64: CONSTRUCCIÓN DE UN CENTRO DE ATENCION ESPECIALIZADA AL SERVICIO DE ADOLESCENTES INFRACTORES DE LA LEY PENAL EN EL DEPARTAMENTO DE CUNDINAMARCA | H64: CONSTRUCCION DE UN CENTRO ESPECIALIZADO PARA LA ATENCION DE LOS MENORES INFRACTORES DE LA LEY PENAL ADOLESCENTE, YA QUE EN EL DEPARTAMENTO DE CUNDINAMARCA NO EXISTE UNO CON LA CAPACIDAD NECESARIA PARA SUPLIR LAS NECESIDADES DE ESTE PROBLEMA | I64: JUSTICIA Y DEL DERECHO | J64: 9260000000 | K64: 8500000000 | L64: 760000000 | M64: 41808 | N64: 2014 | O64: 022 DE 2014 | P64: 42178 | Q64: OK | R64: 42174 | S64: 42139 | T64: 42179 | U64: VALOR SUPERIOR AL TOTAL | V64: 42179 | W64: PARA CIERRE | X64: 1 | Y64: 1
A65: 63 | B65: ENTIDAD APORTANTE RECURSOS | C65: MUNICIPIO DE VILLETA | D65: ALEXANDER RIVEROS | F65: 2014000050048 | G65: MEJORAMIENTO Y PAVIMENTACIÓN DE LA VIA VILLETA-PANTANILLO-CORREDOR CHUGUACAL -CAMBAO DEL K0+360 AL K1+060 VILLETA, CUNDINAMARCA, CENTRO ORIENTE | H65: MEJORAR LA ESTRUCTURA DE LA SUPERFICIE DE VIA | I65: TRANSPORTE | J65: 1701612797 | K65: 1489209370 | L65: 212403426.8 | M65: 42089 | N65: 2015 | O65: 033 DE 2015 | P65: 42146 | Q65: OK | R65: 42149 | S65: 42116 | T65: 42185 | U65: HACE FALTA ALCANCE DEL PROYECTO | V65: 42250 | W65: CERRADO | X65: 1 | Y65: 1
A66: 64 | B66: DESENTRALIZADOS | C66: ICCU - GESPROY GB | D66: DIEGO TORRES / JEIMY FORERO | E66: GIOVANY QUEVEDO | F66: 2015000050010 | G66: MEJORAMIENTO DE LA VA SAN CAYETANO - COGUA SECTOR K6+670 - K8+366 (K0+000 LOCALIZADO EN EL CASCO URBANO DEL MUNICIPIO DE SAN CAYETANO) CUNDINAMARCA | H66: MEJORAR LA MOVILIDAD Y DISMNUIR EL TIEMPO DE DESPLAZAMIENTO EN LAVÍA QUE CONDUCE DEL MUNICIPIO DE SAN CAYETANO AL MUNICIPIO DE COGUA. | I66: TRANSPORTE | J66: 3796247522 | K66: 3000000000 | L66: 796247522 | M66: 42158 | N66: 2015 | O66: 036 DE 2015 | P66: 42213 | Q66: OK | R66: 42243 | S66: 42216 | T66: 42265 | U66: HACE FALTA ALCANCE DEL PROYECTO | V66: 42338 | W66: CERRADO | X66: 1 | Y66: 0.9876
A67: 65 | B67: DESENTRALIZADOS | C67: ICCU - GESPROY GB | D67: DIEGO TORRES / JEIMY FORERO | E67: GIOVANY QUEVEDO | F67: 2015000050013 | G67: MEJORAMIENTO DE LA VA UBAQUE - LOS CEREZOS - CHIPAQUE SECTORES DEL K0+000 AL K2+040 Y DEL K16+000 AL K18+260 (K0+000 LOCALIZADO EN UBAQUE) DEPARTAMENTO DE CUNDINAMARCA | H67: MEJORAR LA CONECTIVIDAD Y LA TRANSITABILIDAD EN LA REGIÓN | I67: TRANSPORTE | J67: 8000000000 | K67: 8000000000 | L67: =J67-K67 -> 0 | M67: 42159 | N67: 2015 | O67: 036 de 2015 | P67: 42213 | Q67: OK | R67: 42236 | S67: 42216 | T67: 42265 | U67: VALOR ACTIVIDADES SUPERA AL VALOR TOTAL, HACE FALTA ALCANCE DEL PROYECTO | V67: 42338 | W67: CERRADO | X67: 0.9971 | Y67: 0.9875
A68: 66 | B68: CUNDINAMARCA | C68: SECRETARIA DE HABITAT Y VIVIENDA | D68: ALEXANDER RIVEROS/JEIMY FORERO | E68: BEATRIZ GAMEZ | F68: 2015000050014 | G68: CONSTRUCCIÓN DE VIVIENDAS NUEVAS RURALES VISR 2015 EN EL DEPARTAMENTO DE CUNDINAMARCA-SGR | H68: MEJORAR LAS CONDICIONES HABITACIONALES DE LAS 322 FAMILIAS EN LAS DIFERENTES VEREDAS DE LOS 15 MUNICIPIOS, CONSTRUYENDO 322 VIVIENDAS NUEVAS RURALES Y MEJORANDO LAS CONDICIONES DE SANEAMIENTO BÁSICO. | I68: AGRICULTURA | J68: 7588896000 | K68: 6840269782 | L68: 748626218 | M68: 42173 | N68: 2015 | O68: 036 de 2015 | P68: 42158 | Q68: OK | R68: 42178 | S68: 42174 | T68: 42179 | U68: VALOR ACTIVIDADES INFERIOR AL VALOR TOTAL - HACE FALTA ALCANCE DEL PROYECTO | V68: 42179 | W68: CERRADO | X68: 1 | Y68: 0.9276
A69: 67 | B69: CUNDINAMARCA | C69: SECRETARIA DE EDUCACIÓN | D69: DAYANA FERNANDEZ | E69: GENNY PADILLA | F69: 2015000050015 | G69: FORTALECIMIENTO DE LA PERMANENCIA DE LOS ESTUDIANTES EN LOS MUNICIPIOS DEL DEPARTAMENTO DE CUNDINAMARCA, CENTRO ORIENTE - 2015 | H69: GARANTIZAR LA PERMANENCIA DE LOS ESTUDIANTES EN LAS INSTITUCIONES EDUCATIVAS EXISTENTES EN EL DEPARTAMENTO DE CUNDINAMARCA | I69: EDUCACIÓN | J69: 8373797030 | K69: 8373797030 | L69: 0 | M69: 42159 | N69: 2015 | O69: 036 de 2015 | P69: 42297 | Q69: OK | R69: 42242 | S69: 42209 | T69: 42255 | U69: HACE FALTA ALCANCE DEL PROYECTO | V69: 42255 | W69: CERRADO | X69: 0.9707 | Y69: 0.8519
A70: 68 | B70: DESENTRALIZADOS | C70: ICCU - GESPROY GB | D70: DIEGO TORRES / JEIMY FORERO | E70: GIOVANY QUEVEDO | F70: 2015000050025 | G70: MEJORAMIENTO Y PAVIMENTACIÓN DE LA TRONCAL DEL CARBON SECTOR K0+000 AL K2+860 (K0+000 LOCALIZADO EN TIERRA NEGRA, MUNICIPIO DE TAUSA), DEPARTAMENTO DE CUNDINAMARCA | H70: MEJORAR LA CONECTIVIDAD Y LA TRANSITABILIDAD DE LA REGIÓN | I70: TRANSPORTE | J70: 7913699780 | K70: 6000000000 | L70: 1913699780 | M70: 42159 | N70: 2015 | O70: 036 DE 2015 | P70: 42213 | Q70: OK | R70: 42236 | S70: 42584 | T70: 42264 | U70: HACE FALTA ALCANCE DEL PROYECTO | V70: 42328 | W70: CERRADO | X70: 1 | Y70: 1
A71: 69 | B71: CUNDINAMARCA | C71: SECRETARIA DE EDUCACIÓN | D71: DAYANA FERNANDEZ | E71: GENNY PADILLA | F71: 2015000050026 | G71: FORTALECIMIENTO A LA ESTRATEGIA DE ALIMENTACIÓN ESCOLAR PARA MUNICIPIOS NO CERTIFICADOS DEL DEPARTAMENTO DE CUNDINAMARCA, CENTRO ORIENTE | H71: DISMINUIR LOS ALTOS INDICES DE DESERCIN ESCOLAR EN MUNICIPIOS NO CERTIFICADOS DEL DEPARTAMENTO DE CUNDINAMARCA. | I71: EDUCACIÓN | J71: 2100000000 | K71: 2100000000 | L71: 0 | M71: 42159 | N71: 2015 | O71: 036 de 2015 | P71: 42283 | Q71: OK | R71: 42237 | S71: 42209 | T71: 42317 | U71: HACE FALTA ALCANCE DEL PROYECTO | V71: 42317 | W71: CERRADO | X71: 1 | Y71: 0.8551
A72: 70 | B72: CUNDINAMARCA | C72: SECRETARIA DE AGRICULTURA | D72: DIEGO TORRES/VALENTINA PORTILLO | E72: JAVIER HERREDIA | F72: 2015000050029 | G72: IMPLEMENTACIÓN Y PUESTA EN MARCHA DE UNA PLANTA HOMOGENIZADORA DE MIELES PARA LA PRODUCCION DE PANELA EN EL MUNICIPIO DE QUIPILE, CUNDINAMARCA, CENTRO ORIENTE | H72: FORTALECER LA COMPETITIVIDAD DEL SUBSECTOR PANELERO A TRAVS DE LA IMPLEMENTACION Y PUESTA EN MARCHA DE UNA PLANTA HOMOGENIZADORA DE MIELES PARA ELABORACION DE PANELA PARA MEJORAR LA CALIDAD DE VIDA DE LOS PRODUCTORES PANELEROS DE QUIPILE. | I72: AGRICULTURA | J72: 3395531657 | K72: 3139511657 | L72: 256020000 | M72: 42180 | N72: 2015 | O72: 037 de 25 2015 | P72: 42213 | Q72: OK | R72: 42654 | S72: 42587 | T72: 42709 | U72: HACE FALTA ALCANCE DEL PROYECTO | V72: 42709 | W72: CERRADO | X72: 1 | Y72: 1
A73: 71 | B73: CUNDINAMARCA | C73: SECRETARIA DE AGRICULTURA | D73: DIEGO TORRES/VALENTINA PORTILLO | E73: JAVIER HERREDIA | F73: 2015000050030 | G73: FORTALECIMIENTO A LA CADENA PRODUCTIVA DEL CACAO EN EL DEPARTAMENTO DE CUNDINAMARCA | H73: MEJORAR LA COMPETITIVIDAD Y PRODUCTIVIDAD DE LA CADENA DEL CACAO EN EL DEPARTAMENTO DE CUNDINAMARCA | I73: AGRICULTURA | J73: 2253334400 | K73: 1200000000 | L73: 1053334400 | M73: 42159 | N73: 2015 | O73: 036 de 2015 | P73: 42228 | Q73: OK | R73: 42227 | S73: 42213 | T73: 42228 | U73: HACE FALTA ALCANCE DEL PROYECTO | V73: 42228 | W73: CERRADO | X73: 1 | Y73: 1
A74: 72 | B74: CUNDINAMARCA | C74: SECRETARIA DE GOBIERNO | D74: DAYANA FERNANDEZ | E74: EDUARDO | F74: 2015000050031 | G74: ADQUISICIÓN DE VEHICULOS PARA LOS CUERPOS OPERATIVOS (BOMBEROS) PARA LAS PROVINCIAS DEL DEPARTAMENTO DE CUNDINAMARCA | H74: AUMENTAR LA CAPACIDAD DE RESPUESTA DE LOS CUERPOS OPERATIVOS DE CUNDINAMARCA PARA ATENDER LOS INCENDIOS FORESTALES | I74: AMBIENTE Y DESARROLLO SOSTENIBLE | J74: 3670000000 | K74: 3670000000 | L74: 0 | M74: 42159 | N74: 2015 | O74: 036 de 2015 | P74: 42213 | Q74: OK | R74: 42195 | S74: 42181 | T74: 42303 | U74: VALOR ACTIVIDADES INFERIOR AL VALOR TOTAL - HACE FALTA ALCANCE DEL PROYECTO | V74: 42303 | W74: CERRADO | X74: 1 | Y74: 0.98
A75: 73 | B75: CUNDINAMARCA | C75: SECRETARIA DE AGRICULTURA | D75: DIEGO TORRES/VALENTINA PORTILLO | E75: JAVIER HERREDIA | F75: 2015000050034 | G75: FORTALECIMIENTO DE LA PRODUCTIVIDAD Y COMPETITIVIDAD DEL SECTOR CAUCHERO EN EL DEPARTAMENTO DE CUNDINAMARCA | H75: FORTALECER LA PRODUCTIVIDAD Y COMPETITIVIDAD DEL SECTOR CAUCHERO EN EL DEPARTAMENTO DE CUNDINAMARCA. | I75: AGRICULTURA | J75: 2158800000 | K75: 1500000000 | L75: 658800000 | M75: 42159 | N75: 2015 | O75: 036 de 2015 | P75: 42234 | Q75: OK | R75: 42227 | S75: 42213 | T75: 42240 | U75: HACE FALTA ALCANCE DEL PROYECTO | V75: 42240 | W75: CERRADO | X75: 1 | Y75: 1
A76: 74 | B76: DESENTRALIZADOS | C76: ICCU - GESPROY GB | D76: DIEGO TORRES / JEIMY FORERO | E76: GIOVANY QUEVEDO | F76: 2015000050041 | G76: MEJORAMIENTO DE LA VA UBALA - PALOMAS - MAMBITA - MEDINA (K0+000 UBICADO EN EL SITIO PROFESIONALES MUNICIPIO DE UBALA, DEPARTAMENTO DE CUNDINAMARCA | H76: MEJORAR LA CONECTIVIDAD Y LA TRANSITABILIDAD EN LA REGIÓN | I76: TRANSPORTE | J76: 13663491451 | K76: 12663491451 | L76: 1000000000 | M76: 42180 | N76: 2015 | O76: 037 DE 2015 | P76: 42213 | Q76: OK | R76: 42706 | S76: 42216 | T76: 42264 | U76: HACE FALTA ALCANCE DEL PROYECTO | V76: 42326 | W76: CERRADO | X76: 1 | Y76: 1
A77: 75 | B77: CUNDINAMARCA | C77: SECRETARIA DE DESARROLLO E INCLUSIÓN SOCIAL | D77: DAYANA FERNANDEZ | E77: TATIANA HERNANDEZ | F77: 2015000050048 | G77: IMPLEMENTACIÓN DEL PROGRAMA DE COMPLEMENTACION ALIMENTARIA Y NUTRICIONAL PARA MENORES DE 5 AÑOS, MADRES GESTANTES Y LACTANTES EN TODO EL DEPARTAMENTO DE CUNDINAMARCA 2015 | H77: MEJORAR Y FORTALECER LA SEGURIDAD ALIMENTARIA Y NUTRICIONAL EN EL DEPARTAMENTO DE CUNDINAMARCA. | I77: SALUD Y PROTECCIÓN SOCIAL | J77: 2900000000 | K77: 2900000000 | L77: 0 | M77: 42348 | N77: 2015 | O77: 044 de 2015 | P77: 42348 | Q77: OK | R77: 42621 | S77: 42605 | T77: 42668 | U77: HACE FALTA ALCANCE DEL PROYECTO | V77: 42692 | W77: CERRADO | X77: 1 | Y77: 1
A78: 76 | B78: CUNDINAMARCA | C78: SECRETARIA DE EDUCACIÓN | D78: YAHIR ARCINIEGAS Y ALEXANDER RIVEROS | F78: 2016000050005 | G78: FORTALECIMIENTO DE LA PERMANENCIA DE LOS ESTUDIANTES EN LOS MUNICIPIOS DEL DEPARTAMENTO DE CUNDINAMARCA, CENTRO ORIENTE - 2016 | H78: DISMINUIR LA TASA DE DESERCIÓN ESCOLAR EN EL DEPARTAMENTO DE CUNDINAMARCA. | I78: EDUCACIÓN | J78: 14963757156 | K78: 14963757156 | L78: 0 | M78: 42605 | N78: 2016 | O78: 054 DE 2016 | P78: 42606 | Q78: OK | R78: 42634 | S78: 42629 | T78: 42647 | U78: OK | V78: 42647 | W78: CERRADO | X78: 0.967 | Y78: 0.5617
A79: 77 | B79: CUNDINAMARCA | C79: SECRETARIA DE EDUCACIÓN | D79: DAYANA FERNANDEZ | E79: GENNY PADILLA | F79: 2016000050014 | G79: FORTALECIMIENTO A LA ESTRATEGIA DE ALIMENTACION ESCOLAR PARA MUNICIPIOS NO CERTIFICADOS DEL DEPARTAMENTO DE CUNDINAMARCA, SGR 2016. | H79: DISMINUIR LOS ALTOS INDICES DE DESERCIÓN ESCOLAR EN MUNICIPIOS NO CERTIFICADOS DEL DEPARTAMENTO DE CUNDINAMARCA. | I79: EDUCACIÓN | J79: 12339894658 | K79: 12339894658 | L79: 0 | M79: 42625 | N79: 2016 | O79: 055 de 2016 | P79: 42629 | Q79: OK | R79: 42634 | S79: 42633 | T79: 42634 | U79: VALOR ACTIVIDADES SUPERA AL VALOR TOTAL, HACE FALTA ALCANCE DEL PROYECTO | V79: 42634 | W79: CERRADO | X79: 0.767 | Y79: 0.7473
A80: 78 | B80: DESENTRALIZADOS | C80: ICCU - GESPROY GB | D80: DIEGO TORRES / JEIMY FORERO | E80: GIOVANY QUEVEDO | F80: 2016000050023 | G80: MANTENIMIENTO DE LA RED VIAL EN AFIRMADO A TRAVS DE LA ADQUISICION DE MAQUINARIA PESADA Y EQUIPO DE TRANSPORTE EN EL DEPARTAMENTO DE CUNDINAMARCA | H80: MEJORAR LA MOVILIDAD EN LA RED VIAL SECUNDARIA EN AFIRMADO EN EL DEPARTAMENTO | I80: TRANSPORTE | J80: 24179817530 | K80: 24179817530 | L80: 0 | M80: 43066 | N80: 2017 | O80: 068 de 2017 | P80: 43131 | Q80: OK | R80: 43494 | S80: 43474 | T80: 43277 | U80: VALOR DE ACTIVIDADES ES INFERIOR AL VALOR TOTAL DE PROYECTO | V80: 43223 | W80: CERRADO | X80: 0.9133 | Y80: 0.6281
A81: 79 | B81: DESENTRALIZADOS | C81: ICCU - GESPROY GB | D81: DIEGO TORRES / JEIMY FORERO | E81: GIOVANY QUEVEDO | F81: 2016000050025 | G81: REHABILITACIÓN DE LA VIA BOQUERON - PANDI DEL DEPARTAMENTO DE CUNDINAMARCA | H81: MEJORAR LA MOVILIDAD DE LA VÍA BOQUERÓN-PANDI | I81: TRANSPORTE | J81: 4991550669 | K81: 4991550669 | L81: 0 | M81: 42825 | N81: 2017 | O81: 061 DE 2017 | P81: 43000 | Q81: OK | R81: 42984 | S81: 42891 | T81: 43021 | U81: HACE FALTA ALCANCE DEL PROYECTO | V81: 43087 | W81: CERRADO | X81: 1 | Y81: 0.9874
A82: 80 | B82: DESENTRALIZADOS | C82: ICCU - GESPROY GB | D82: DIEGO TORRES / JEIMY FORERO | E82: GIOVANY QUEVEDO | F82: 2016000050029 | G82: REHABILITACIÓN DE LA VIA LA QUINTA - REPRESA DEL NEUSA, MUNICIPIO DE COGUA, DEPARTAMENTO DE CUNDINAMARCA | H82: MEJORAR LA MOVILIDAD DE LA VÍA LA QUINTA - NEUSA | I82: TRANSPORTE | J82: 6798676732 | K82: 5625757063 | L82: 1172919669 | M82: 42846 | N82: 2017 | O82: 061 de 2017 | P82: 43000 | Q82: OK | R82: 43626 | S82: 42891 | T82: 43021 | U82: HACE FALTA ALCANCE DEL PROYECTO | V82: 43098 | W82: CERRADO | X82: 1 | Y82: 0.9999
A83: 81 | B83: DESENTRALIZADOS | C83: ICCU - GESPROY GB | D83: DIEGO TORRES / JEIMY FORERO | E83: GIOVANY QUEVEDO | F83: 2016000050032 | G83: REHABILITACIÓN DE LA VIA CLUB EL BOSQUE - TIBACUY - CUMACA DEL DEPARTAMENTO DE CUNDINAMARCA | H83: MEJORAR LA MOVILIDAD DE LA VÍA CLUB EL BOSQUE-TIBACUY-CUMACA. | I83: TRANSPORTE | J83: 4022150134 | K83: 3022150134 | L83: 1000000000 | M83: 42825 | N83: 2017 | O83: 061 DE 2017 | P83: 43000 | Q83: OK | R83: 42984 | S83: 42891 | T83: 43021 | U83: HACE FALTA ALCANCE DEL PROYECTO | V83: 43118 | W83: CERRADO | X83: 1 | Y83: 0.9998
A84: 82 | B84: ENTIDAD APORTANTE RECURSOS | C84: ALCALDIA MAYOR DE BOGOTA | D84: ALEXANDER RIVEROS | E84: ESPERANZA GUZMAN | F84: 2016000050033 | G84: ELABORACIÓN DE LA ENCUESTA MULTIPROPOSITO 2017 : BOGOTA - CUNDINAMARCA | H84: REALIZAR LA ENCUESTA MULTIPROPÓSITO 2017 BOGOTÁ - CUNDINAMARCA SOBRE TEMAS SOCIALES Y ECONÓMICOS DE LOS HOGARES QUE HABITAN EN EL TERRITORIO URBANO DE BOGOTÁ D.C. Y LA REGIÓN Y LA ZONA RURAL DEL DISTRITO CAPITAL. | I84: VIVIENDA, CIUDAD Y TERRITORIO | J84: 17282722269 | K84: 16761722269 | L84: 521000000 | M84: 42825 | N84: 2017 | O84: 061 DE 2017 | P84: 42947 | Q84: OK | R84: 42872 | S84: 42872 | T84: 43342 | U84: OK | V84: 43006 | W84: CERRADO | X84: 1 | Y84: 0.9995
A85: 83 | B85: CUNDINAMARCA | C85: SECRETARIA DE HABITAT Y VIVIENDA | D85: ALEXANDER RIVEROS/JEIMY FORERO | E85: BEATRIZ GAMEZ | F85: 2016000050052 | G85: CONSTRUCCIÓN DE VIVIENDAS NUEVAS RURALES EN EL DEPARTAMENTO DE CUNDINAMARCA | H85: DISMINUIR EL DËFICIT DE VIVIENDA RURAL EN EL DEPARTAMENTO DE CUNDINAMARCA | I85: AGRICULTURA | J85: 5983779025 | K85: 5343748805 | L85: 640030220.5 | M85: 43090 | N85: 2017 | O85: 069 de 2017 | P85: 43438 | Q85: OK | R85: 43523 | S85: 43507 | T85: 43360 | U85: OK | V85: 43539 | W85: CONTRATADO EN EJECUCIÓN | X85: 0.9999 | Y85: 0.9936
A86: 84 | B86: CUNDINAMARCA | C86: SECRETARIA DE CIENCIA, TECNOLOGIA E INNOVACIÓN | D86: ALEXANDER RIVEROS Y YAHIR ARCINIEGAS | E86: LUIS MANUEL GONZALEZ | F86: 2016000100027 | G86: ANLISIS DE FACTORES GENETICOS, SANITARIOS Y MEDIOAMBIENTALES QUE AFECTAN LAS TASAS DE PREÑEZ A PARTIR DE EMBRIONES IN VITRO EN EL DEPARTAMENTO DE CUNDINAMARCA | H86: ANALIZAR LOS FACTORES QUE AFECTAN LA PRODUCCIÓN DE EMBRIONES, LAS TASAS DE PREÑEZ Y LA SUPERVIVENCIA EMBRIONARIA, EN UN PROGRAMA DE PRODUCCIÓN DE EMBRIONES IN VITRO EN EL DEPARTAMENTO DE CUNDINAMARCA | I86: CTEL | J86: 8135504363 | K86: 6359045755 | L86: =J86-K86 -> 1776458608 | M86: 43098 | N86: 2017 | O86: 063 DE 2017 | P86: 43277 | Q86: OK | R86: 43244 | S86: 43244 | T86: 43369 | U86: OK | V86: 43369 | W86: CONTRATADO EN EJECUCIÓN | X86: 0.2409 | Y86: 0.8688
A87: 85 | B87: CUNDINAMARCA | C87: ENTIDAD DESIGNADA PARA LA SUPERVISIÓN DEL PROYECTO O PARA CONTRATAR LA INTERVENTORÍA RAPE - INTERVENTORIA SECRETARIA DE PLANEACIÓN | D87: YAHIR ARCINIEGAS | E87: ANGELA MARTINEZ | F87: 2016000050012 | G87: IMPLEMENTACIÓN DE ACCIONES DE CONSERVACION Y RESTAURACION DE LOS COMPLEJOS DE PARAMO, BOSQUE ALTO-ANDINO Y SERVICIOS ECOSISTEMICOS DE LA REGION CENTRAL | H87: CONSERVAR Y RESTAURAR LOS SERVICIOS ECOSISTÉMICOS Y LA BIODIVERSIDAD ASOCIADA A LOS COMPLEJOS DE PÁRAMOS Y BOSQUE ALTO ANDINO, UBICADOS EN LA JURISDICCIÓN DE LA REGIÓN CENTRAL DE COLOMBIA. | I87: AMBIENTE Y DESARROLLO SOSTENIBLE | J87: 32499987282 | K87: =J87 -> 32499987282 | L87: 0 | M87: 42829 | N87: 2017 | O87: 058 DE 2016 | P87: 42999 | Q87: OK | R87: 42934 | S87: 42976 | T87: 43035 | U87: OK | V87: 43070 | W87: TERMINADO | X87: 0.9981 | Y87: 0.9988
A88: 86 | B88: CUNDINAMARCA | C88: SECRETARIA DE DESARROLLO E INCLUSIÓN SOCIAL | D88: ALEXANDER RIVEROS Y JEIMY FORERO | E88: TATIANA HERNANDEZ | F88: 2017000050017 | G88: FORTALECIMIENTO DEL PROGRAMA DE COMPLEMENTACIÓN ALIMENTARIA Y NUTRICIONAL PARA NIÑAS, NIÑOS MENORES DE 5 AÑOS Y MADRES GESTANTES Y LACTANTES EN RIESGO DE DESNUTRICIÓN DEL DEPARTAMENTO DE CUNDINAMARCA | H88: CONTRIBUIR AL FORTALECIMIENTO DE LA SEGURIDAD ALIMENTARIA DE LA POBLACIÓN Y DEL ESTADO NUTRICIONAL DE LOS NIÑOS Y NIÑAS MENORES DE CINCO AÑOS Y MUJERES GESTANTES MÁS POBRES DEL DEPARTAMENTO DE CUNDINAMARCA, CON EL FIN DE REDUCIR LOS NIVELES DE DES... | I88: INCLUSIÓN SOCIAL Y RECONCILIACIÓN | J88: 8199993544 | K88: 8199993544 | L88: 0 | M88: 42915 | N88: 2017 | O88: 062 de 2017 | P88: 43059 | Q88: OK | R88: 43055 | S88: 43055 | T88: 43123 | U88: HACE FALTA ALCANCE DEL PROYECTO | V88: 43124 | W88: CERRADO | X88: 1
A89: 87 | B89: CUNDINAMARCA | C89: SECRETARIA DE EDUCACIÓN | D89: YAHIR ARCINIEGAS Y ALEXANDER RIVEROS | E89: PABLO CAJAMARCA | F89: 2017000050027 | G89: FORTALECIMIENTO DE LA PERMANENCIA DE LOS ESTUDIANTES EN LOS MUNICIPIOS DEL DEPARTAMENTO DE CUNDINAMARCA , CENTRO ORIENTE 2017 CUNDINAMARCA | H89: DISMINUIR LA TASA DE DESERCIN ESCOLAR EN EL DEPARTAMENTO DE CUNDINAMARCA. | I89: EDUCACIÓN | J89: 14995289800 | K89: 14995289800 | L89: 0 | M89: 42961 | N89: 2017 | O89: 064 de 2017 | P89: 42961 | Q89: OK | R89: 43040 | S89: 43021 | T89: 42965 | U89: VALOR DE ACTIVIDADES INFERIOR AL VALOR TOTAL PROGRAMADO, HACE FALTA ALCANCE DEL PROYECTO | V89: 43034 | W89: CERRADO | X89: 1 | Y89: 0.8859
A90: 88 | B90: ENTIDAD APORTANTE RECURSOS | C90: MUNICIPIO DE ZIPAQUIRA | D90: ALEXANDER RIVEROS | E90: JAIRO JARA | F90: 2017000050029 | G90: CONSERVACIÓN Y GESTIÓN INTEGRAL DEL RECURSO HÍDRICO MEDIANTE LA ADQUISICIÓN Y RESTAURACIÓN DE PREDIOS DE INTERÉS ECOSISTÉMICO EN ELDEPARTAMENTO DE CUNDINAMARCA | H90: MITIGAR LA DEGRADACIÓN Y LA DESFORESTACIÓN DE ÁREAS DE IMPORTANCIA HÍDRICA, MEDIANTE LA CONSERVACIÓN Y RESTAURACIÓN DE 58 HAS DEL PÁRAMO DE GUERRERO EN ZONAS AFERENTES DE LA SUBCUENCA DEL RIO FRIO. | I90: AMBIENTE Y DESARROLLO SOSTENIBLE | J90: 900000000 | K90: 467000000 | L90: 433000000 | M90: 43340 | N90: 2018 | O90: 077 DE 2018 | P90: 43503 | Q90: OK | R90: 43427 | S90: 43081 | T90: 43571 | U90: OK | V90: 43585 | W90: CONTRATADO EN EJECUCIÓN | X90: 0.3327 | Y90: 0.4754
A91: 89 | B91: CUNDINAMARCA | C91: SECRETARIA DE EDUCACIÓN | D91: YAHIR ARCINIEGAS Y ALEXANDER RIVEROS | E91: GENNY PADILLA | F91: 2017000050033 | G91: FORTALECIMIENTO A LA ESTRATEGIA DE ALIMENTACIÓN ESCOLAR PARA MUNICIPIOS NO CERTIFICADOS DEL DEPARTAMENTO DE CUNDINAMARCA | H91: DISMINUIR LOS ALTOS INDICES DE DESERCIÓN ESCOLAR EN MUNICIPIOS NO CERTIFICADOS DEL DEPARTAMENTO DE CUNDINAMARCA. | I91: EDUCACIÓN | J91: 14000000000 | K91: 14000000000 | L91: 0 | M91: 42977 | N91: 2017 | O91: 065 de 2017 | P91: 43056 | Q91: OK | R91: 43075 | S91: 43075 | T91: 43056 | U91: OK | V91: 43048 | W91: CERRADO | X91: 1 | Y91: 0.2694
A92: 90 | B92: CUNDINAMARCA | C92: SECRETARIA DE MINAS, ENERGIA Y GAS | D92: DIEGO TORRES / LIYUGETH ALFONSO | E92: JAHIR HERNANDEZ | F92: 2017000050036 | G92: IMPLEMENTACIÓN Y EXPANSIÓN DEL SERVICIO DE GAS COMBUSTIBLE POR REDES PARA VEREDAS Y CENTROS POBLADOS DEL DEPARTAMENTO DE CUNDINAMARCA | H92: DISMINUIR LOS ÍNDICES DE POBREZA EN VEREDAS Y CENTROS POBLADOS DEL DEPARTAMENTO DE CUNDINAMARCA. | I92: MINAS Y ENERGÍA | J92: 4751658472 | K92: 3069656503 | L92: 1682001969 | M92: 43356 | N92: 2018 | O92: 077 DE 2018 | P92: 43504 | Q92: OK | R92: 43545 | S92: 43507 | T92: 43584 | U92: OK | V92: 43584 | W92: CERRADO | X92: 0.9151 | Y92: 0.9207
A93: 91 | B93: CUNDINAMARCA | C93: SECRETARIA DE PLANEACIÓN | D93: YESID CASTAÑO Y JEIMY FORERO | E93: RUSVEL NIETO | F93: 2017000050039 | G93: MEJORAMIENTO DE VÍAS TERCIARIAS MEDIANTE EL USO DE PLACA HUELLA EN LOS MUNICIPIOS DE GUATAVITA, PACHO, SAN JUAN DE RIOSECO, SUBACHOQUE, TENA Y ZIPAQUIRÁ, DEPARTAMENTO DE CUNDINAMARCA | H93: MEJORAR LA INTERCOMUNICACIÓN TERRESTRE DE UNA PARTE DE LA POBLACIÓN RURAL DE LOS MUNICIPIOS DE GUATAVITA, PACHO, SAN JUAN DE RIOSECO, SUBACHOQUE, TENA Y ZIPAQUIRÁ, DEPARTAMENTO DE CUNDINAMARCA. | I93: TRANSPORTE | J93: 6791102422 | K93: 6725380622 | L93: 65721800 | M93: 43124 | N93: 2017 | O93: 067 DE 2017 | P93: 43224 | Q93: OK | R93: 43224 | S93: 43220 | T93: 43291 | U93: VALOR DE ACTIVIDAD SUPERIOR AL VALOR TOTAL DEL PROYECTO A PROGRAMAR | V93: 43328 | W93: CONTRATADO EN EJECUCIÓN | X93: 0.9852 | Y93: 0.9203
A94: 92 | B94: CUNDINAMARCA | C94: SECRETARIA DE HABITAT Y VIVIENDA | D94: ALEXANDER RIVEROS/JEIMY FORERO | E94: BEATRIZ GAMEZ | F94: 2017000050042 | G94: MEJORAMIENTO DE VIVIENDAS RURALES DE LA PROVINCIA DE UBATÉ - CUNDINAMARCA | H94: DISMINUIR EL NÚMERO DE FAMILIAS CON DEFICIENTES CONDICIONES HABITACIONALES UBICADAS EN LA ZONA RURAL DE LOS MUNICIPIOS | I94: VIVIENDA, CIUDAD Y TERRITORIO | J94: 2354318125 | K94: 2354318125 | L94: 0 | M94: 43096 | N94: 2017 | O94: 069 de 2017 | P94: 43270 | Q94: OK | R94: 43300 | S94: 43259 | T94: 43341 | U94: OK | V94: 43341 | W94: TERMINADO | X94: 1 | Y94: 0.9973
A95: 93 | B95: CUNDINAMARCA | C95: SECRETARIA DE SALUD | D95: DAYANA FERNANDEZ Y EDGAR YAHIR ARCINIEGAS | E95: OLGA LUCIA GARZON | F95: 2017000050061 | G95: ADQUISICIÓN AMBULANCIAS DE TRANSPORTE ASISTENCIAL BÁSICO (TAB) Y TRANSPORTE ASISTENCIAL MEDICALIZADA (TAM), PARA EL APOYO DEL SISTEMA DE REFERENCIA Y CONTRA REFERENCIA DE LA RED HOSPITALARIA DEL DEPARTAMENTO DE CUNDINAMARCA | H95: MEJORAR LA PRESTACIÓN DEL SERVICIO DE TRANSPORTE ASISTENCIAL DE URGENCIAS DE SALUD | I95: SALUD Y PROTECCIÓN SOCIAL | J95: 3764666699 | K95: 2000553024 | L95: 1764113675 | M95: 43081 | N95: 2017 | O95: 069 de 2017 | P95: 43081 | Q95: OK | R95: 43175 | S95: 43166 | T95: 43235 | U95: VALOR ACTIVIDADES INFERIOR AL VALOR TOTAL | V95: 43318 | W95: CERRADO | X95: 1 | Y95: 0.9708
A96: 94 | B96: CUNDINAMARCA | C96: SECRETARIA DE AGRICULTURA | D96: DIEGO TORRES/VALENTINA PORTILLO | E96: JAVIER HERREDIA | F96: 2017000050062 | G96: FORTALECIMIENTO DE LAS CADENAS PRODUCTIVAS DE MANGO, AGUACATE Y CÍTRICOS EN EL DEPARTAMENTO DE CUNDINAMARCA | H96: MEJORAR LA PRODUCTIVIDAD Y COMPETITIVIDAD DE CULTIVOS FRUTÍCOLAS PRIORIZADOS PARA EL DEPARTAMENTO DE CUNDINAMARCA, MEDIANTE EL ESTABLECIMIENTO DE ÁREAS NUEVAS CON ÉNFASIS EN BUENAS PRÁCTICAS AGRÍCOLAS (BPA). | I96: AGRICULTURA | J96: 3000129600 | K96: 2100129600 | L96: 900000000 | M96: 43124 | N96: 2018 | O96: 072 DE 2018 | P96: 43126 | Q96: OK | R96: 43126 | S96: 43126 | T96: 43126 | U96: OK | V96: 43126 | W96: CERRADO | X96: 1 | Y96: 1
A97: 95 | B97: CUNDINAMARCA | C97: SECRETARIA DE MINAS, ENERGIA Y GAS | D97: DIEGO TORRES / LIYUGETH ALFONSO | E97: JAHIR HERNANDEZ | F97: 2017000050064 | G97: CONSTRUCCIÓN DE REDES ELÉCTRICAS EN ZONA RURAL DE 13 MUNICIPIOS, EN EL MARCO DEL PROYECTO ILUMINANDO VIDAS DEL DEPARTAMENTO DE CUNDINAMARCA | H97: AMPLIAR LA COBERTURA DEL SERVICIO DE ENERGÍA ELÉCTRICA EN LA ZONA RURAL DE 13 MUNICIPIOS DE CUNDINAMARCA. | I97: MINAS Y ENERGÍA | J97: 2972842689 | K97: 2532327281 | L97: 440515408 | M97: 43273 | N97: 2018 | O97: 076 DE 2018 | P97: 43418 | Q97: OK | R97: 43360 | S97: 43360 | T97: 43510 | U97: OK | V97: 43510 | W97: CERRADO | X97: 0.8233 | Y97: 0.8188
A98: 96 | B98: CUNDINAMARCA | C98: SECRETARIA DE AGRICULTURA | D98: DIEGO TORRES/VALENTINA PORTILLO | E98: JAVIER HERREDIA | F98: 2017000050065 | G98: MEJORAMIENTO DE LA PRODUCTIVIDAD Y RENTABILIDAD DE LOS CAFICULTORES DEL DEPARTAMENTO DE CUNDINAMARCA | H98: AUMENTAR LA PRODUCTIVIDAD Y RENTABILIDAD DE LA CAFICULTURA EN EL DEPARTAMENTO. | I98: AGRICULTURA | J98: 6523880054 | K98: 4220000000 | L98: 2303880054 | M98: 43096 | N98: 2017 | O98: 069 DE 2017 | P98: 43125 | Q98: OK | R98: 43123 | S98: 43122 | T98: 43126 | U98: OK | V98: 43126 | W98: TERMINADO | X98: 0.8648 | Y98: 0.8463
A99: 97 | B99: CUNDINAMARCA | C99: SECRETARIA DE CIENCIA, TECNOLOGIA E INNOVACIÓN | D99: ALEXANDER RIVEROS Y YAHIR ARCINIEGAS | E99: LUIS MANUEL GONZALEZ | F99: 2017000100016 | G99: IMPLEMENTACIÓN PROGRAMA DE INNOVACIÓN PARA LA VALIDACIÓN Y GENERACIÓN DE PRODUCTOS DERIVADOS DE LA BIODIVERSIDAD EN EL DEPARTAMENTO DE CUNDINAMARCA | H99: FORTALECER LAS CAPACIDADES DE INNOVACIÓN DE BASE TECNOLÓGICA PARA EL APROVECHAMIENTO SOSTENIBLE DE LA BIODIVERSIDAD EN EL DEPARTAMENTO DE CUNDINAMARCA. | I99: CTEL | J99: 4825004078 | K99: 4664086788 | L99: 160917289.8 | M99: 42941 | N99: 2017 | O99: 058 DE 2017 | P99: 43039 | Q99: OK | R99: 43010 | S99: 43004 | T99: 43054 | U99: OK | V99: 43089 | W99: CONTRATADO EN EJECUCIÓN | X99: 0.7883 | Y99: 0.9432
A100: 98 | B100: CUNDINAMARCA | C100: SECRETARIA DE CIENCIA, TECNOLOGIA E INNOVACIÓN | D100: ALEXANDER RIVEROS Y YAHIR ARCINIEGAS | E100: LUIS MANUEL GONZALEZ | F100: 2017000100034 | G100: IMPLEMENTACIÓN DE UN SISTEMA DE GESTIÓN DE INNOVACIÓN PARA LA INDUSTRIA DE CUNDINAMARCA | H100: DESARROLLAR CAPACIDADES DE INNOVACIÓN EN LAS EMPRESAS PARA AUMENTAR LA COMPETITIVIDAD Y PRODUCTIVIDAD DEL DEPARTAMENTO DE CUNDINAMARCA | I100: CTEL | J100: 3925471448 | K100: 3714407118 | L100: 211064330 | M100: 42941 | N100: 2017 | O100: 058 DE 2017 | P100: 42928 | Q100: OK | R100: 43010 | S100: 43004 | T100: 43054 | U100: OK | V100: 43049 | W100: CONTRATADO EN EJECUCIÓN | X100: 0.9921 | Y100: 0.9418
A101: 99 | B101: CUNDINAMARCA | C101: SECRETARIA DE CIENCIA, TECNOLOGIA E INNOVACIÓN | D101: ALEXANDER RIVEROS Y YAHIR ARCINIEGAS | E101: LUIS MANUEL GONZALEZ | F101: 2017000100074 | G101: IMPLEMENTACIÓN DE ESTRATEGIAS DE FOMENTO A LA CULTURA Y SERVICIOS DE INNOVACIÓN EN LAS PROVINCIAS SABANA OCCIDENTE, SABANA CENTRAL, SOACHA Y SUMAPAZ CUNDINAMARCA | H101: AUMENTAR LOS NIVELES DE INNOVACIÓN EN LAS MICROS, PEQUEÑAS Y MEDIANAS EMPRESAS DE LA ENTIDAD TERRITORIAL | I101: CTEL | J101: 6183633276 | K101: 5533633276 | L101: 650000000 | M101: 43098 | N101: 2017 | O101: 063 DE 2017 | P101: 26/06/2018 | Q101: OK | R101: 43523 | S101: 43244 | T101: 43418 | U101: OK | V101: 43406 | W101: TERMINADO | X101: 1 | Y101: 0.9971
A102: 100 | B102: CUNDINAMARCA | C102: SECRETARIA DE CIENCIA, TECNOLOGIA E INNOVACIÓN | D102: ALEXANDER RIVEROS Y YAHIR ARCINIEGAS | E102: LUIS MANUEL GONZALEZ | F102: 2017000100076 | G102: FORTALECIMIENTO DE CAPACIDADES DE GESTIÓN DEL RIESGO A TRAVÉS DE APROPIACIÓN SOCIAL DE LA CIENCIA, LA TECNOLOGÍA Y LA INNOVACIÓN EN EL DEPARTAMENTO DE CUNDINAMARCA | H102: IINCREMENTAR LOS NIVELES DE INTERCAMBIO DE CONOCIMIENTOS CIENTÍFICOS Y TECNOLÓGICOS EN TORNO A LA GESTIÓN DEL RIESGO ENTRE LAS COMUNIDADES, EL GOBIERNO Y EXPERTOS EN EL DEPARTAMENTO DE CUNDINAMARCA | I102: CTEL | J102: 4404970720 | K102: 4000000000 | L102: 404970720 | M102: 43322 | N102: 2018 | O102: 068 DE 2018 | P102: 43511 | Q102: OK | R102: 43402 | S102: 43402 | T102: 43599 | U102: OK | V102: 43602 | W102: CONTRATADO EN EJECUCIÓN | X102: 0.7007 | Y102: 0.9612
A103: 101 | B103: CUNDINAMARCA | C103: SECRETARIA DE CIENCIA, TECNOLOGIA E INNOVACIÓN | D103: ALEXANDER RIVEROS Y YAHIR ARCINIEGAS | E103: LUIS MANUEL GONZALEZ | F103: 2017000100087 | G103: FORMACIÓN DE TALENTO HUMANO DE ALTO NIVEL EN MAESTRÍAS EN EL DEPARTAMENTO DE CUNDINAMARCA | H103: INCREMENTAR EL ACCESO A LA FORMACIÓN DE ALTO NIVEL PARA LA INVESTIGACIÓN, EL DESARROLLO TECNOLÓGICO Y LA INNOVACIÓN EN EL DEPARTAMENTO DE CUNDINAMARCA | I103: CTEL | J103: 5148022960 | K103: 5048022960 | L103: 100000000 | M103: 43698 | N103: 2019 | O103: 078 DE 2019 | P103: 43811 | Q103: OK | R103: 43787 | S103: 18/11/2019 | T103: 28/02/2020 | U103: OK | V103: 28/02/2020 | W103: CONTRATADO EN EJECUCIÓN | X103: 0.6059 | Y103: 0.9164
A104: 102 | B104: CUNDINAMARCA | C104: SECRETARIA DE CIENCIA, TECNOLOGIA E INNOVACIÓN | D104: ALEXANDER RIVEROS Y YAHIR ARCINIEGAS | E104: LUIS MANUEL GONZALEZ | F104: 2017000100104 | G104: FORTALECIMIENTO DE LA CULTURA DE LA GESTIÓN Y UTILIZACIÓN DEL CONOCIMIENTO EN CTEI EN NIÑOS, JÓVENES Y COMUNIDADES DEL DEPARTAMENTO DE CUNDINAMARCA | H104: FORTALECER LA CULTURA DE LA GESTIÓN Y UTILIZACIÓN DEL CONOCIMIENTO EN CTEI EN NIÑOS, JÓVENES Y COMUNIDADES DE CUNDINAMARCA. | I104: CTEL | J104: 9498967749 | K104: 7498967749 | L104: 2000000000 | M104: 43565 | N104: 2019 | O104: 074 DE 2019 | P104: 07/10/2019 | Q104: OK | R104: 19/09/2019 | S104: 27/08/2019 | T104: 08/10/2019 | U104: OK | V104: 07/11/2019 | W104: CONTRATADO EN EJECUCIÓN | X104: 0.9327 | Y104: 0.8249
A105: 103 | B105: CUNDINAMARCA | C105: UNIDAD ADMINISTRATIVA DE GESTIÓN DEL RIESGO. | D105: DIEGO TORRES/VALENTINA PORTILLO | E105: GINNA HERRERA | F105: 20172401060022 | G105: ESTUDIOS DETALLADOS PARA LA INCORPORACIÓN DE LA GESTIÓN DEL RIESGO PARA LOS MUNICIPIOS DE GIRARDOT, RICAURTE | H105: INCORPORAR DE MANERA GRADUAL LA GESTIÓN DEL RIESGO EN LA REVISIÓN DE LOS PLANES DE ORDENAMIENTO TERRITORIAL DE LOS MUNICIPIOS DE GIRARDOT Y RICAURTE. | I105: AMBIENTE Y DESARROLLO SOSTENIBLE | J105: 3084907873 | K105: 3084907873 | L105: 0 | M105: 43802 | N105: 2019 | O105: 033 DE 2019 | P105: 43745 | Q105: OK | R105: 27/08/2019 | S105: 27/08/2019 | T105: 08/10/2019 | U105: VALOR DE ACTIVIDADES INFERIOR AL VALOR TOTAL PROGRAMADO | V105: 05/10/2021 | W105: CONTRATADO EN EJECUCIÓN | X105: 0.203 | Y105: 0.2027
A106: 104 | B106: CUNDINAMARCA | C106: SECRETARIA DE CIENCIA, TECNOLOGIA E INNOVACIÓN | D106: ALEXANDER RIVEROS Y YAHIR ARCINIEGAS | E106: LUIS MANUEL GONZALEZ | F106: 20170000100012 | G106: CONFORMACIÓN DE UNA CONVOCATORIA REGIONAL DE PROYECTOS I+D EN FOCOS PRIORIZADOS CTEI PARA EL FORTALECIMIENTO DE LOS GRUPOS DE INVESTIGACIÓN CUNDINAMARCA | H106: FORTALECER LA PRODUCCIÓN DE CONOCIMIENTO Y DESARROLLO EXPERIMENTAL DE ALTO IMPACTO PARA EL DEPARTAMENTO DE CUNDINAMARCA | I106: CTEL | J106: 7586358671 | K106: 7375550629 | L106: 210808041.7 | M106: 42941 | N106: 2017 | O106: 058 DE 2017 | P106: 09/11/2017 | Q106: OK | R106: 20/02/2019 | S106: 26/09/2017 | T106: 12/12/2017 | U106: OK | V106: 20/12/2017 | W106: CONTRATADO EN EJECUCIÓN | X106: 0.881 | Y106: 0.9708
A107: 105 | B107: ENTIDAD APORTANTE RECURSOS | C107: CAR | D107: YESID CASTAÑO | E107: CARLOS MURCIA | F107: 2017000050063 | G107: RECUPERACIÓN HIDRÁULICA Y AMBIENTAL DEL COMPLEJO LAGUNAR FÚQUENE | H107: RECUPERAR EL EQUILIBRIO AMBIENTAL DEL COMPLEJO LAGUNAR FÚQUENE | I107: AMBIENTE Y DESARROLLO SOSTENIBLE | J107: 18000000000 | K107: 18000000000 | L107: 0 | M107: 43364 | N107: 2018 | O107: 081 DE 2018 | P107: 12/02/2019 | Q107: OK | R107: 10/05/2019 | S107: 10/05/2019 | T107: 25/07/2019 | U107: OK | V107: 24/09/2019 | W107: CONTRATADO EN EJECUCIÓN | X107: 0.5688 | Y107: 0.5859
A108: 106 | B108: ENTIDAD APORTANTE RECURSOS | C108: CAR | D108: YESID CASTAÑO | E108: CARLOS MURCIA | F108: 2017000050070 | G108: CONSTRUCCIÓN DE OBRAS DE MITIGACIÓN DEL RIESGO POR EVENTOS CLIMÁTICOS EN LA CUENCA DE LA QUEBRADA LA PARROQUIA EN EL CERRO DE FUSACATÁN DEL MUNICIPIO DE FUSAGASUGÁ, CUNDINAMARCA | H108: DISMINUIR EL RIESGO DE INUNDACIONES POR CRECIENTE SÚBITA DE LA CUENCA DE LA QUEBRADA LA PARROQUIA EN EL MUNICIPIO DE FUSAGASUGÁ. | I108: AMBIENTE Y DESARROLLO SOSTENIBLE | J108: 1976558725 | K108: 1376558725 | L108: 600000000 | M108: 43417 | N108: 2018 | O108: 082 DE 2018 | P108: 29/04/2019 | Q108: OK | R108: 11/04/2019 | S108: 10/04/2019 | T108: no hay datos | U108: OK | V108: no hay dato | W108: DESAPROBADO | X108: 0 | Y108: 0
A109: 107 | B109: ENTIDAD APORTANTE RECURSOS | C109: MUNICIPIO DE UTICA | D109: JUAN CARLOS TORRES | E109: CESAR SIMANCAS | F109: 2017000050087 | G109: MEJORAMIENTO DEL SENDERO TURÍSTICO DE LA PROVINCIA DEL GUALIVÁ – ÚTICA CUNDINAMARCA | H109: MEJORAR LA INFRAESTRUCTURA TURÍSTICA EN LA PROVINCIA DEL GUALIVA | I109: COMERCIO, INDUSTRIA Y TURISMO | J109: 2347004868 | K109: 2123058880 | L109: 223945988 | M109: 43211 | N109: 2018 | O109: 075 de 2018 | P109: 25/06/2018 | Q109: OK | R109: 01/06/2018 | S109: 21/05/2018 | T109: 12/09/2018 | U109: HACE FALTA ALCANCE | V109: 14/12/2018 | W109: CONTRATADO EN EJECUCIÓN | X109: 0.7892 | Y109: 0.9452
A110: 108 | B110: CUNDINAMARCA | C110: SECRETARIA DE EDUCACIÓN | D110: YAHIR ARCINIEGAS Y ALEXANDER RIVEROS | E110: PABLO CAJAMARCA | F110: 2018000050019 | G110: FORTALECIMIENTO DE LA PERMANENCIA DE LOS ESTUDIANTES EN LOS MUNICIPIOS DEL DEPARTAMENTO DE CUNDINAMARCA, CENTRO ORIENTE 2018 CUNDINAMARCA | H110: INCREMENTAR LOS NIVELES DE PERMANENCIA DE LOS NIÑOS, NIÑAS Y ADOLESCENTES QUE ASISTEN A LOS ESTABLECIMIENTOS EDUCATIVOS OFICIALES DE CUNDINAMARCA | I110: EDUCACIÓN | J110: 19395559645 | K110: 19395559645 | L110: 0 | M110: 43336 | N110: 2018 | O110: 080 DE 2018 | P110: 24/08/2018 | Q110: OK | R110: 06/09/2018 | S110: 31/08/2018 | T110: 05/09/2018 | U110: VALOR TOTAL DEL PROYECTO A PROGRAMAR ES DIFERENTE A VALOR ACTIVIDADES PROGRAMADAS Y EJECUTADAS | V110: 05/09/2018 | W110: CERRADO | X110: 1 | Y110: 0.6612
A111: 109 | B111: DESENTRALIZADOS | C111: ICCU - GESPROY GB | D111: DIEGO TORRES / JEIMY FORERO | E111: GIOVANY QUEVEDO | F111: 2018000050022 | G111: MEJORAMIENTO Y REHABILITACIÓN DE VÍAS SECUNDARIAS EN LA PROVINCIA DE UBATÉ, DEPARTAMENTO DE CUNDINAMARCA | H111: MEJORAR LA INTERCOMUNICACIÓN TERRESTRE DE LA POBLACIÓN DE LOS MUNICIPIOS DE LA PROVINCIA DE UBATÉ EN EL DEPARTAMENTO DE CUNDINAMARCA | I111: TRANSPORTE | J111: 7524876363 | K111: 7441105086 | L111: 83771277 | M111: 43320 | N111: 2018 | O111: 078 de 2018 | P111: 07/02/2019 | Q111: OK | R111: 18/02/2019 | S111: 05/10/2018 | T111: 43594 | U111: OK | V111: 29/04/2019 | W111: CERRADO | X111: 0.9883 | Y111: 0.9731
A112: 110 | B112: DESENTRALIZADOS | C112: ICCU - GESPROY GB | D112: DIEGO TORRES / JEIMY FORERO | E112: GIOVANY QUEVEDO | F112: 2018000050024 | G112: MEJORAMIENTO Y REHABILITACIÓN DE LA VÍA LA MARÍA – TOBIA - PASO EL REJO - LA PEÑA, DEPARTAMENTO DE CUNDINAMARCA | H112: MEJORAR LA INTERCOMUNICACIÓN TERRESTRE DE LA POBLACIÓN DE LOS MUNICIPIOS DE LA PROVINCIA DE GUALIVÁ EN EL DEPARTAMENTO DE CUNDINAMARCA | I112: TRANSPORTE | J112: 9149162991 | K112: 8983328881 | L112: 165834110 | M112: 43417 | N112: 2018 | O112: 082 de 2018 | P112: 14/03/2019 | Q112: OK | R112: 19/03/2019 | S112: 14/03/2019 | T112: 20/03/2019 | U112: OK | V112: 17/05/2019 | W112: TERMINADO | X112: 0.9645 | Y112: 0.9428
A113: 111 | B113: DESENTRALIZADOS | C113: ICCU - GESPROY GB | D113: DIEGO TORRES / JEIMY FORERO | E113: GIOVANY QUEVEDO | F113: 2018000050026 | G113: MEJORAMIENTO DE VÍAS EN LA PROVINCIA DE SUMAPAZ PARA LA CONSOLIDACIÓN DE UNA PAZ ESTABLE Y DURADERA EN EL DEPARTAMENTO DE CUNDINAMARCA | H113: MEJORAR LA INTERCOMUNICACIÓN TERRESTRE DE LA POBLACIÓN DE LOS MUNICIPIOS DE LA PROVINCIA DEL SUMAPAZ EN EL DEPARTAMENTO DE CUNDINAMARCA | I113: TRANSPORTE | J113: 11457047617 | K113: 11457047617 | L113: 0 | M113: 43462 | N113: 2018 | O113: 011 de 2018 - OCAD PAZ | P113: 14/03/2019 | Q113: OK | R113: 19/03/2019 | S113: 14/03/2019 | T113: 20/03/2019 | U113: OK | V113: 43617 | W113: CONTRATADO EN EJECUCIÓN | X113: 0.5257 | Y113: 0.5788
A114: 112 | B114: CUNDINAMARCA | C114: UNIDAD ADMINISTRATIVA DE GESTIÓN DEL RIESGO. | D114: DIEGO TORRES/VALENTINA PORTILLO | E114: GINNA HERRERA | F114: 2018000050036 | G114: CONSTRUCCIÓN DE OBRAS PARA LA MITIGACIÓN DEL RIESGO EN EL MUNICIPIO DE SAN BERNARDO, BENEFICIANDO A COMUNIDADES DE LOS MUNICIPIOS DE ARBELAEZ, PANDI Y VENECIA CUNDINAMARCA | H114: DISMINUIR LA VULNERABILIDAD DE RIESGO DE DESLIZAMIENTO E INUNDACIN EN LA COMUNIDAD DE LOS BARRIOS JUAN XIII Y SAN ANTONIO DEL MUNICIPIO DE SAN BERNARDO, BENEFICIANDO A MUNICIPIOS ALEDAÑOS COMO ARBELAEZ, PANDI Y VENECIA CUNDINAMARCA | I114: AMBIENTE Y DESARROLLO SOSTENIBLE | J114: 2305788182 | K114: 2305788182 | L114: 0 | M114: 43629 | N114: 2019 | O114: 089 de 2019 | P114: DESAPROBADO | Q114: OK | R114: DESAPROBADO | S114: DESAPROBADO | T114: DESAPROBADO | U114: DESAPROBADO | V114: DESAPROBADO | W114: DESAPROBADO | X114: 0 | Y114: 0
A115: 113 | B115: CUNDINAMARCA | C115: SECRETARIA DE HABITAT Y VIVIENDA | D115: ALEXANDER RIVEROS/JEIMY FORERO | E115: BEATRIZ GAMEZ | F115: 2018000050039 | G115: MEJORAMIENTO DE VIVIENDA RURAL EN LOS MUNICIPIOS DE CUCUNUBÁ, JERUSALEN, QUEBRADANEGRA Y VIOTÁ - DEPARTAMENTO DE CUNDINAMARCA | H115: DISMINUIR EL NÚMERO DE FAMILIAS CON DEFICIENTES CONDICIONES HABITACIONALES UBICADAS EN LA ZONA RURAL DE LOS MUNICIPIOS | I115: AGRICULTURA | J115: 4024793625 | K115: 4024793625 | L115: 0 | M115: 43571 | N115: 2019 | O115: 009 DE 2019 | P115: 08/03/2019 | Q115: OK | R115: 06/06/2019 | S115: 28/05/2019 | T115: 25/06/2019 | U115: OK | V115: 25/06/2019 | W115: PARA CIERRE | X115: 1 | Y115: 1
A116: 114 | B116: DESENTRALIZADOS | C116: ICCU - GESPROY GB | D116: DIEGO TORRES / JEIMY FORERO | E116: GIOVANY QUEVEDO | F116: 2018000050049 | G116: MEJORAMIENTO DE LA VÍA SESQUILÉ – GUATAVITA - GACHETÁ, DEPARTAMENTO DE CUNDINAMARCA | H116: MEJORAR LA INTERCOMUNICACIÓN TERRESTRE DE LA POBLACIÓN DE LOS MUNICIPIOS DE SESQUILÉ, GUATAVITA Y GACHETÁ EN EL DEPARTAMENTO DE CUNDINAMARCA. | I116: TRANSPORTE | J116: 3997714045 | K116: 3935792642 | L116: 61921403 | M116: 43455 | N116: 2018 | O116: 084 de 2018 | P116: 14/03/2019 | Q116: OK | R116: 14/03/2019 | S116: 14/03/2019 | T116: 15/03/2019 | U116: OK | V116: 27/05/2019 | W116: CERRADO | X116: 0.8093 | Y116: 0.8087
A117: 115 | B117: DESENTRALIZADOS | C117: ICCU - GESPROY GB | D117: DIEGO TORRES / JEIMY FORERO | E117: GIOVANY QUEVEDO | F117: 2018000050055 | G117: MEJORAMIENTO DE LA TRONCAL DE RIONEGRO, SECTOR LA PALMA CHARCO LARGO PARA LA CONSOLIDACIÓN DE UNA PAZ ESTABLE Y DURADERA EN EL DEPARTAMENTO DE CUNDINAMARCA | H117: MEJORAR LA INTERCOMUNICACIÓN TERRESTRE DE UNA PARTE DE LA POBLACIÓN DE LA PROVINCIA DE RIONEGRO EN EL DEPARTAMENTO DE CUNDINAMARCA | I117: TRANSPORTE | J117: 17928531277 | K117: 17928531277 | L117: 0 | M117: 43532 | N117: 2019 | O117: 086 de 2019 | P117: 08/05/2019 | Q117: OK | R117: 21/05/2019 | S117: 43594 | T117: 23/05/2019 | U117: OK | V117: 05/08/2019 | W117: CERRADO | X117: 0.9551 | Y117: 0.9221
A118: 116 | B118: DESENTRALIZADOS | C118: ICCU - GESPROY GB | D118: DIEGO TORRES / JEIMY FORERO | E118: GIOVANY QUEVEDO | F118: 2018000050059 | G118: MEJORAMIENTO DE LA VÍA GUSBITA - TIBIRITA DEL DEPARTAMENTO DE CUNDINAMARCA | H118: MEJORAR EN LA INTERCOMUNICACIÓN TERRESTRE DE LA POBLACIÓN DE LOS MUNICIPIOS DE TIBIRITA Y MACHETÁ DEL DEPARTAMENTO DE CUNDINAMARCA | I118: TRANSPORTE | J118: 5500531740 | K118: 4870657724 | L118: 629874016 | M118: 43532 | N118: 2019 | O118: 086 de 2019 | P118: 26/09/2019 | Q118: OK | R118: 03/10/2019 | S118: 07/05/2019 | T118: 10/10/2019 | U118: OK | V118: 30/12/2019 | W118: TERMINADO | X118: 0.9958 | Y118: 0.8855
A119: 117 | B119: CUNDINAMARCA | C119: SECRETARIA DE CIENCIA, TECNOLOGIA E INNOVACIÓN | D119: ALEXANDER RIVEROS Y YAHIR ARCINIEGAS | E119: LUIS MANUEL GONZALEZ | F119: 2018000100106 | G119: INNOVACIÓN EN EL MODELO DE GESTIÓN DEL MEDICAMENTO FASE III EN EL DEPARTAMENTO DE CUNDINAMARCA | H119: MEJORAR LAS INEFICIENCIAS EN EL CICLO DE GESTIÓN DEL MEDICAMENTO EN EL DEPARTAMENTO DE CUNDINAMARCA | I119: CTEL | J119: 3452890062 | K119: 3071356262 | L119: 381533800 | M119: 43830 | N119: 2019 | O119: 087 DE 2019 | P119: NO HA MIGRADO A GESPROY | Q119: NO HA MIGRADO A GESPROY | R119: NO HA MIGRADO A GESPROY | S119: NO HA MIGRADO A GESPROY | T119: NO HA MIGRADO A GESPROY | U119: NO HA MIGRADO A GESPROY | V119: NO HA MIGRADO A GESPROY | W119: DESAPROBADO | X119: 0 | Y119: 0
A120: 118 | B120: CUNDINAMARCA | C120: SECRETARIA DE CIENCIA, TECNOLOGIA E INNOVACIÓN | D120: ALEXANDER RIVEROS Y YAHIR ARCINIEGAS | E120: LUIS MANUEL GONZALEZ | F120: 2018000100160 | G120: FORMACIÓN DE CAPITAL HUMANO DE ALTO NIVEL PARA LA INVESTIGACIÓN, EL DESARROLLO TECNOLÓGICO Y LA INNOVACIÓN MAESTRÍAS DE INVESTIGACIÓN PARA DOCENTES DEL DEPARTAMENTO DE CUNDINAMARCA | H120: INCREMENTAR LA DISPONIBILIDAD DE CAPITAL HUMANO CON CAPACIDADES DE INVESTIGACIÓN EN PRÁCTICAS PEDAGÓGICAS EN ESTABLECIMIENTOS EDUCATIVOS OFICIALES DEL DEPARTAMENTO DE CUNDINAMARCA. | I120: CTEL | J120: 5217415747 | K120: 3519725709 | L120: 1697690038 | M120: 43731 | N120: 2019 | O120: 080 DE 2019 | P120: 21/02/2020 | Q120: OK | R120: 30/12/2019 | S120: 30/12/2019 | T120: 12/11/2021 | U120: OK | V120: 12/11/2021 | W120: CONTRATADO EN EJECUCIÓN | X120: 0.1638 | Y120: 0.457
A121: 119 | B121: CUNDINAMARCA | C121: ENTIDAD DESIGNADA PARA LA SUPERVISIÓN DEL PROYECTO O PARA CONTRATAR LA INTERVENTORÍA-EMPRESAS PUBLICAS DE CUNDINAMARCA -EPC | D121: ALEXANDER RIVEROS/LIYUGETH ALFONSO | E121: PAULA ACUÑA | F121: 20181301010555 | G121: CONSTRUCCIÓN DE UNIDADES SANITARIAS EN EL ÁREA RURAL DEL DEPARTAMENTO DE CUNDINAMARCA | H121: DISMINUIR LOS NIVELES DE DISPOSICIÓN DE AGUAS RESIDUALES EN LAS VIVIENDAS RURALES. | I121: VIVIENDA, CIUDAD Y TERRITORIO | J121: 4999900475 | K121: 4999900475 | L121: 0 | M121: 43378 | N121: 2018 | O121: 010 DE 2018 - OCAD PAZ | P121: 24/01/2019 | Q121: OK | R121: 14/02/2019 | S121: 19/02/2019 | T121: 01/04/2019 | U121: OK | V121: 23/07/2019 | W121: CONTRATADO EN EJECUCIÓN | X121: 0.8768 | Y121: 0.7831
A122: 120 | B122: DESENTRALIZADOS | C122: ICCU - GESPROY GB | D122: DIEGO TORRES / JEIMY FORERO | E122: GIOVANY QUEVEDO | F122: 2019000050002 | G122: MEJORAMIENTO DE LA VÍA DEPARTAMENTAL LA VICTORIA (EL COLEGIO) SAN GABRIEL (VIOTÁ), TRAMO LA VICTORIA ALTO DE LA MULA, DEPARTAMENTO DE CUNDINAMARCA | H122: MEJORAR LA INTERCOMUNICACIÓN TERRESTRE DE LA POBLACIÓN DE LOS MUNICIPIOS DE EL COLEGIO Y VIOTÁ EN EL DEPARTAMENTO DE CUNDINAMARCA. | I122: TRANSPORTE | J122: 5745879373 | K122: 5745879373 | L122: 0 | M122: 43532 | N122: 2019 | O122: 086 de 2019 | P122: 08/05/2019 | Q122: OK | R122: 21/05/2019 | S122: 30/04/2019 | T122: 31/05/2019 | U122: OK | V122: 01/08/2019 | W122: CERRADO | X122: 0.9722 | Y122: 0.9852
A123: 121 | B123: DESENTRALIZADOS | C123: ICCU - GESPROY GB | D123: DIEGO TORRES / JEIMY FORERO | E123: GIOVANY QUEVEDO | F123: 2019000050003 | G123: MEJORAMIENTO DE LA VÍA CÁQUEZA FOSCA, DEPARTAMENTO DE CUNDINAMARCA | H123: MEJORAR LA INTERCOMUNICACIÓN TERRESTRE DE LA POBLACIÓN DE LOS MUNICIPIOS DE CÁQUEZA Y FOSCA EN EL DEPARTAMENTO DE CUNDINAMARCA | I123: TRANSPORTE | J123: 4049029755 | K123: 4049029755 | L123: 0 | M123: 43585 | N123: 2019 | O123: 088 de 2019 | P123: 14/06/2019 | Q123: OK | R123: 29/08/2019 | S123: 29/08/2019 | T123: 11/09/2019 | U123: OK | V123: 29/10/2019 | W123: CERRADO | X123: 0.9327 | Y123: 0.9854
A124: 122 | B124: DESENTRALIZADOS | C124: ICCU - GESPROY GB | D124: DIEGO TORRES / JEIMY FORERO | E124: GIOVANY QUEVEDO | F124: 2019000050005 | G124: MEJORAMIENTO DE LA VÍA FÓMEQUE UBAQUE, DEPARTAMENTO DE CUNDINAMARCA | H124: MEJORAR LA INTERCOMUNICACIÓN TERRESTRE DE LA POBLACIÓN DE LOS MUNICIPIOS DE CHOACHÍ, FÓMEQUE Y UBAQUE EN EL DEPARTAMENTO DE CUNDINAMARCA. | I124: TRANSPORTE | J124: 16514204213 | K124: 14057373703 | L124: 2456830510 | M124: 43629 | N124: 2019 | O124: 089 DE 2019 | P124: 27/08/2019 | Q124: OK | R124: 29/08/2019 | S124: 29/08/2019 | T124: 03/09/2019 | U124: OK | V124: 31/10/2019 | W124: CERRADO | X124: 0.9992 | Y124: 0.9992
A125: 123 | B125: DESENTRALIZADOS | C125: ICCU - GESPROY GB | D125: DIEGO TORRES / JEIMY FORERO | E125: GIOVANY QUEVEDO | F125: 2019000050011 | G125: MEJORAMIENTO DE LA VÍA SUPATÁ - PACHO, DEPARTAMENTO DE CUNDINAMARCA | H125: MEJORAR LA INTERCOMUNICACIÓN TERRESTRE DE LA POBLACIÓN DE LOS MUNICIPIOS DE PACHO, SUPATÁ Y VERGARA EN EL DEPARTAMENTO DE CUNDINAMARCA. | I125: TRANSPORTE | J125: 7339441010 | K125: 7339441010 | L125: 0 | M125: 43585 | N125: 2019 | O125: 088 DE 2019 | P125: 04/06/2019 | Q125: OK | R125: 03/07/2019 | S125: 31/05/2019 | T125: 04/07/2019 | U125: OK | V125: 04/09/2019 | W125: CONTRATADO EN EJECUCIÓN | X125: 0.7131 | Y125: 0.719
A126: 124 | B126: DESENTRALIZADOS | C126: ICCU - GESPROY GB | D126: DIEGO TORRES / JEIMY FORERO | E126: GIOVANY QUEVEDO | F126: 2019000050013 | G126: CONSTRUCCIÓN DE LA PLAZA DE MERCADO DEL MUNICIPIO DE CHOACHÍ CUNDINAMARCA | H126: FORTALECER LOS CANALES DE COMERCIALIZACIÓN DE LOS PRODUCTOS AGROPECUARIOS EN LOS MUNICIPIOS DE CHOACHÍ, UBAQUE Y FÓMEQUE EN EL DEPARTAMENTO DE CUNDINAMARCA. | I126: AGRICULTURA | J126: 4481109943 | K126: 3152125044 | L126: 1328984899 | M126: 43687 | N126: 2019 | O126: 090 DE 2019 | P126: 04/09/2019 | Q126: OK | R126: 43714 | S126: 05/08/2019 | T126: 25/09/2019 | U126: OK | V126: 18/11/2019 | W126: CONTRATADO EN EJECUCIÓN | X126: 1 | Y126: 0.6786
A127: 125 | B127: DESENTRALIZADOS | C127: ICCU - GESPROY GB | D127: DIEGO TORRES / JEIMY FORERO | E127: GIOVANY QUEVEDO | F127: 2019000050016 | G127: MEJORAMIENTO DE LA VÍA ANOLAIMA CORRALEJAS (INSPECCIÓN DE CORRALEJAS), DEPARTAMENTO DE CUNDINAMARCA | H127: MEJORAR LA INTERCOMUNICACION TERRESTRE DE LA POBLACION DE LOS MUNICIPIOS DE ALBAN, ANOLAIMA Y QUIPILE EN EL DEPARTAMENTO DE CUNDINAMARCA | I127: TRANSPORTE | J127: 6898362469 | K127: 5718724028 | L127: 1179638441 | M127: 43629 | N127: 2019 | O127: 089 DE 2019 | P127: 27/08/2019 | Q127: OK | R127: 29/08/2019 | S127: 05/08/2019 | T127: 03/09/2019 | U127: OK | V127: 05/11/2019 | W127: CERRADO | X127: 0.9985 | Y127: 0.9996
A128: 126 | B128: CUNDINAMARCA | C128: SECRETARIA DE EDUCACIÓN | D128: YAHIR ARCINIEGAS Y ALEXANDER RIVEROS | E128: PABLO CAJAMARCA | F128: 2019000050020 | G128: FORTALECIMIENTO DE LA PERMANENCIA DE LOS ESTUDIANTES PARA EL AÑO 2019 EN LOS MUNICIPIOS DEL DEPARTAMENTO DE CUNDINAMARCA | H128: INCREMENTAR LOS NIVELES DE PERMANENCIA DE LOS NIÑOS, NIÑAS Y ADOLESCENTES QUE ASISTEN A LOS ESTABLECIMIENTOS EDUCATIVOS OFICIALES DECUNDINAMARCA | I128: EDUCACIÓN | J128: 20536293937 | K128: 20536293937 | L128: 0 | M128: 43629 | N128: 2019 | O128: 089 DE 2019 | P128: 26/06/2019 | Q128: OK | R128: 27/06/2019 | S128: 27/06/2019 | T128: 26/06/2019 | U128: OK | V128: 26/06/2019 | W128: TERMINADO | X128: 1 | Y128: 0.9103
A129: 127 | B129: DESENTRALIZADOS | C129: ICCU - GESPROY GB | D129: DIEGO TORRES / JEIMY FORERO | E129: GIOVANY QUEVEDO | F129: 2019000050023 | G129: MEJORAMIENTO DE LA VÍA LENGUAZAQUE - VILLAPINZÓN, DEPARTAMENTO DE CUNDINAMARCA | H129: MEJORAR LA INTERCOMUNICACIÓN TERRESTRE DE LA POBLACIÓN DE LOS MUNICIPIOS DE LENGUAZAQUE Y VILLAPINZÓNEN EL DEPARTAMENTO DE CUNDINAMARCA | I129: TRANSPORTE | J129: 8636278689 | K129: 7310087087 | L129: 1326191602 | M129: 43629 | N129: 2019 | O129: 089 DE 2019 | P129: 27/08/2019 | Q129: OK | R129: 29/08/2019 | S129: 29/08/2019 | T129: 03/09/2019 | U129: OK | V129: 15/11/2019 | W129: TERMINADO | X129: 1 | Y129: 0.8383
A130: 128 | B130: CUNDINAMARCA | C130: SECRETARIA DE AGRICULTURA | D130: DIEGO TORRES/VALENTINA PORTILLO | E130: JAVIER HERREDIA | F130: 2019000050027 | G130: MEJORAMIENTO DE LA COMPETITIVIDAD DE LA CADENA PRODUCTIVA DE CACAO EN EL DEPARTAMENTO DE CUNDINAMARCA | H130: MEJORAR EL CULTIVO DE CACAO Y BENEFICIO DEL GRANO, FORTALECIENDO PRODUCTORES AGRÍCOLAS A TRAVÉS DEL ACOMPAÑAMIENTO TÉCNICO Y LA ADOPCIÓN DE TECNOLOGÍA EN LOS PROCESOS DE ESTABLECIMIENTO, SOSTENIMIENTO Y POST- COSECHA DEL CULTIVO. | I130: AGRICULTURA | J130: 5862983962 | K130: 4397237971 | L130: 1465745991 | M130: 43819 | N130: 2019 | O130: 098 DE 2019 | P130: 24/04/2020 | Q130: OK | R130: 04/05/2020 | S130: 04/05/2020 | T130: 24/06/2020 | U130: VALOR DE ACTIVIDADES SUPERIOR A VALOR TOTAL PROGRAMADO | V130: 24/06/2020 | W130: PARA CIERRE | X130: 1 | Y130: 1
A131: 129 | B131: DESENTRALIZADOS | C131: ICCU - GESPROY GB | D131: DIEGO TORRES / JEIMY FORERO | E131: GIOVANY QUEVEDO | F131: 2019000050029 | G131: MEJORAMIENTO DE LA VÍA GACHETÁ - GAMA, DEPARTAMENTO DE CUNDINAMARCA | H131: MEJORAR LA INTERCOMUNICACIÓN TERRESTRE DE LA POBLACIÓN DE LOS MUNICIPIOS DE GACHETÁ Y GAMA EN EL DEPARTAMENTO DE CUNDINAMARCA | I131: TRANSPORTE | J131: 5477582208 | K131: 5322582208 | L131: =J131-K131 -> 155000000 | M131: 43629 | N131: 2019 | O131: 089 DE 2019 | P131: 27/08/2019 | Q131: OK | R131: 29/08/2019 | S131: 29/08/2019 | T131: 03/09/2019 | U131: OK | V131: 31/10/2019 | W131: TERMINADO | X131: 0.9551 | Y131: 0.9425
A132: 130 | B132: CUNDINAMARCA | C132: SECRETARIA DE SALUD | D132: DAYANA FERNANDEZ Y EDGAR YAHIR ARCINIEGAS | E132: OLGA LUCIA GARZON | F132: 2019000050036 | G132: ADQUISICIÓN DE AMBULANCIAS PARA EL FORTALECIMIENTO DE LA RED HOSPITALARIA DEL DEPARTAMENTO CUNDINAMARCA | H132: MEJORAR LA PRESTACIÓN DEL SERVICIO DE TRANSPORTE ASISTENCIAL DE URGENCIAS DE SALUD. | I132: SALUD Y PROTECCIÓN SOCIAL | J132: 42966037310 | K132: 2385000000 | L132: =J132-K132 -> 40581037310 | M132: 43656 | N132: 2019 | O132: 090 DE 2019 | P132: 27/08/2019 | Q132: OK | R132: 29/08/2019 | S132: 29/08/2019 | T132: 03/09/2019 | U132: OK | V132: 11/10/2019 | W132: CERRADO | X132: 1 | Y132: 0.8281
A133: 131 | B133: CUNDINAMARCA | C133: UNIDAD ADMINISTRATIVA DE GESTIÓN DEL RIESGO. | D133: DIEGO TORRES/VALENTINA PORTILLO | E133: GINNA HERRERA | F133: 2019000050037 | G133: FORTALECIMIENTO DEL SISTEMA DEPARTAMENTAL PARA LA GESTIÓN DEL RIESGO DE DESASTRES DEL DEPARTAMENTO DE CUNDINAMARCA | H133: FORTALECER OPERATIVAMENTE LOS ORGANISMOS DE SOCORRO PARA GARANTIZAR LA OPORTUNA ATENCIÓN DE EMERGENCIAS DENTRO DEL DEPARTAMENTO | I133: PRESIDENCIA DE LA REPÚBLICA | J133: 24666685502 | K133: 4936307506 | L133: 19730377996 | M133: 43748 | N133: 2019 | O133: 094 DE 2019 | P133: DESAPROBADO | Q133: DESAPROBADO | R133: DESAPROBADO | S133: DESAPROBADO | T133: DESAPROBADO | U133: DESAPROBADO | V133: DESAPROBADO | W133: DESAPROBADO | X133: 0 | Y133: 0
A134: 132 | B134: ENTIDAD APORTANTE RECURSOS | C134: MEDICINA LEGAL Y CIENCIAS FORENSES | D134: ALEXANDER RIVEROS | E134: MARTIN SEPULVEDA | F134: 2019000050025 | G134: ESTUDIOS Y DISEÑOS PARA LA CONSTRUCCIÓN DE LA SEDE DE MEDICINA LEGAL EN EL DEPARTAMENTO DE CUNDINAMARCA | H134: REALIZAR ESTUDIOS Y DISEÑOS TÉCNICOS PARA LA CONSTRUCCIÓN Y DOTACIÓN DE LA SEDE SERVICIOS FORENSES DEL REGIONAL ORIENTE PARA EL DEPARTAMENTO CUNDINAMARCA | I134: FISCALIA | J134: 904521100 | K134: 904521100 | L134: 0 | M134: 43677 | N134: 2019 | O134: 091 DE 2019 | P134: 31/01/2020 | Q134: OK | R134: 30/03/2020 | S134: 04/12/2019 | T134: 07/10/2020 | U134: OK | V134: 19/10/2020 | W134: TERMINADO | X134: 1 | Y134: 1
A135: 133 | B135: CUNDINAMARCA | C135: SECRETARIA DE MINAS, ENERGIA Y GAS | D135: DIEGO TORRES / LIYUGETH ALFONSO | E135: JAHIR HERNANDEZ | F135: 2019000050039 | G135: ESTUDIO Y DISEÑO PARA LA CONSTRUCCIÓN DE REDES ELÉCTRICAS AÉREAS EN ZONAS RURALES DEL DEPARTAMENTO DE CUNDINAMARCA | H135: OBJETIVO PROYECTO REALIZAR ESTUDIO Y DISEÑO TÉCNICO PARA LA CONSTRUCCIÓN DE REDES ELÉCTRICAS AÉREAS DE MEDIA Y BAJA TENSIÓN EN ZONA RURAL DE 20 MUNICIPIOS DEL DEPARTAMENTO DE CUNDINAMARCA. | I135: MINAS Y ENERGÍA | J135: 1616407501 | K135: 1616407501 | L135: 0 | M135: 43714 | N135: 2019 | O135: 092 DE 2019 | P135: 09/12/2019 | Q135: OK | R135: NO HAY DATO | S135: 07/03/2020 | T135: NO HAY DATO | U135: HACE FALTA ALCANCE DEL PROYECTO | V135: NO HAY DATO | W135: DESAPROBADO | X135: 0 | Y135: 0
A136: 134 | B136: CUNDINAMARCA | C136: SECRETARIA DE EDUCACIÓN | D136: YAHIR ARCINIEGAS Y ALEXANDER RIVEROS | E136: GENNY PADILLA | F136: 2019000050044 | G136: FORTALECIMIENTO A LA ESTRATEGIA DE ALIMENTACIÓN ESCOLAR PARA MUNICIPIOS NO CERTIFICADOS, VIGENCIA 2019 DEL DEPARTAMENTO DE CUNDINAMARCA | H136: OBJETIVO PROYECTO INCREMENTAR LOS NIVELES DE PERMANENCIA DE LOS NIÑOS, NIÑAS, ADOLESCENTES Y JÓVENES EN LA JORNADA ACADÉMICA QUE ASISTEN A LOS ESTABLECIMIENTOS EDUCATIVOS OFICIALES EN LA ENTIDAD TERRITORIAL ETC CUNDINAMARCA | I136: EDUCACIÓN | J136: 18301749135 | K136: 18301749135 | L136: 0 | M136: 43656 | N136: 2019 | O136: 090 DE 2019 | P136: 43685 | Q136: OK | R136: 13/08/2019 | S136: 43690 | T136: 43739 | U136: OK | V136: 43739 | W136: CERRADO | X136: 0.2152 | Y136: 0.5327
A137: 135 | B137: DESENTRALIZADOS | C137: ICCU - GESPROY GB | D137: DIEGO TORRES / JEIMY FORERO | E137: GIOVANY QUEVEDO | F137: 2019000050047 | G137: MEJORAMIENTO DE LA VÍA SUSA - CARMEN DE CARUPA, DEPARTAMENTO DE CUNDINAMARCA | H137: MEJORAR LA INTERCOMUNICACIÓN TERRESTRE DE LA POBLACIÓN DE LOS MUNICIPIOS DE SUSA Y CARMEN DE CARUPA EN EL DEPARTAMENTO DE CUNDINAMARCA. | I137: TRANSPORTE | J137: 5203497468 | K137: 4131178258 | L137: 1072319210 | M137: 43677 | N137: 2019 | O137: 091 DE 2019 | P137: 43915 | Q137: OK | R137: 31/03/2020 | S137: 19/10/2019 | T137: 16/04/2020 | U137: OK | V137: 06/07/2020 | W137: TERMINADO | X137: 1 | Y137: 0.7939
A138: 136 | B138: DESENTRALIZADOS | C138: ICCU - GESPROY GB | D138: DIEGO TORRES / JEIMY FORERO | E138: GIOVANY QUEVEDO | F138: 2019000050056 | G138: MEJORAMIENTO DE LA VÍA QUE CONDUCE DEL MUNICIPIO DE NIMAIMA AL MUNICIPIO DE NOCAIMA, DEPARTAMENTO DE CUNDINAMARCA | H138: MEJORAR LA INTERCOMUNICACIÓN TERRESTRE DE LA POBLACIÓN ENTRE LOS MUNICIPIOS DE NIMAIMA Y NOCAIMA EN EL DEPARTAMENTO DE CUNDINAMARCA | I138: TRANSPORTE | J138: 5082491570 | K138: 4614214508 | L138: 468277061.8 | M138: 43748 | N138: 2019 | O138: 094 DE 2019 | P138: 02/12/2019 | Q138: OK | R138: 03/12/2019 | S138: 27/11/2019 | T138: 04/12/2019 | U138: OK | V138: 06/02/2020 | W138: TERMINADO | X138: 1 | Y138: 0.8722
A139: 137 | B139: DESENTRALIZADOS | C139: IDECUT | D139: DIEGO TORRES Y YAHIR ARCINIEGAS | E139: MARTHA VANEGAS | F139: 2019000050059 | G139: FORTALECIMIENTO A LAS ESCUELAS MUNICIPALES DE MÚSICA, DANZA, TEATRO Y ARTES PLÁSTICAS Y VISUALES EN EL DEPARTAMENTO DE CUNDINAMARCA | H139: FORTALECER LOS PROCESOS DE FORMACIÓN ARTÍSTICA Y DE GESTIÓN CULTURAL DE LOS MUNICIPIOS DEL DEPARTAMENTO DE CUNDINAMARCA. | I139: CULTURA | J139: 1972606058 | K139: 1972606058 | L139: 0 | M139: 43748 | N139: 2019 | O139: 094 DE 2019 | P139: 22/05/2020 | Q139: OK | R139: 28/07/2020 | S139: 28/07/2020 | T139: 02/07/2021 | U139: OK | V139: 20/08/2021 | W139: CERRADO | X139: 1 | Y139: 0.961
A140: 138 | B140: DESENTRALIZADOS | C140: ICCU - GESPROY GB | D140: DIEGO TORRES / JEIMY FORERO | E140: GIOVANY QUEVEDO | F140: 2019000050060 | G140: ESTUDIOS Y DISEÑOS DE VÍAS PARA MEJORAR LA COMPETITIVIDAD DEL DEPARTAMENTO DE CUNDINAMARCA | H140: MEJORAR LA PLANIFICACIÓN DE LA INVERSIÓN SOBRE LA MALLA VIAL DE IMPORTANCIA ESTRATÉGICA EN EL DEPARTAMENTO DE CUNDINAMARCA. | I140: TRANSPORTE | J140: 7089369627 | K140: 7089369627 | L140: 0 | M140: 43714 | N140: 2019 | O140: 092 DE 2019 | P140: 14/11/2019 | Q140: OK | R140: 03/12/2019 | S140: 14/11/2019 | T140: 03/12/2019 | U140: OK | V140: 31/12/2019 | W140: TERMINADO | X140: 0.9865 | Y140: 0.9553
A141: 139 | B141: CUNDINAMARCA | C141: SECRETARIA DE MINAS, ENERGIA Y GAS | D141: DIEGO TORRES / LIYUGETH ALFONSO | E141: JAHIR HERNANDEZ | F141: 2019000050073 | G141: AMPLIACIÓN DE LA COBERTURA DEL SERVICIO DE GAS COMBUSTIBLE DOMICILIARIO A TRAVÉS DE LA FINANCIACIÓN DE LA CONEXIÓN Y LA RED INTERNA PARA USUARIOS DE BARRIOS PERIFÉRICOS, VEREDAS Y CENTROS POBLADOS DEL DEPARTAMENTO DE CUNDINAMARCA | H141: DISMINUIR LOS ÍNDICES DE POBREZA MEDIANTE LA CONEXIÓN Y LA RED INTERNA DEL SERVICIO DE GAS COMBUSTIBLE DOMICILIARIO A USUARIOS EN LAS BARRIOS PERIFÉRICOS, VEREDAS Y CENTROS POBLADOS DE LOS MUNICIPIOS DEL DEPARTAMENTO DE CUNDINAMARCA. | I141: MINAS Y ENERGÍA | J141: 12461377100 | K141: 6651376060 | L141: 5810001040 | M141: 43805 | N141: 2019 | O141: 097 DE 2019 | P141: 06/02/2020 | Q141: OK | R141: 11/03/2020 | S141: 11/03/2020 | T141: 18/03/2020 | U141: OK | V141: 18/03/2020 | W141: TERMINADO | X141: 0.9359 | Y141: 1.033
A142: 140 | B142: DESENTRALIZADOS | C142: ICCU - GESPROY GB | D142: DIEGO TORRES / JEIMY FORERO | E142: GIOVANY QUEVEDO | F142: 2019000050075 | G142: MEJORAMIENTO DE LA VÍA QUE CONDUCE DEL MUNICIPIO DE VIANI AL MUNICIPIO DE CHAGUANI, (DE LA Y DE SAN VICENTE A CHAGUANI), DEPARTAMENTO DE CUNDINAMARCA | H142: MEJORAR LA INTERCOMUNICACIÓN TERRESTRE DE LA POBLACIÓN ENTRE LOS MUNICIPIOS DE VIANÍ, SAN JUAN DE RIO SECO Y CHAGUANÍ EN EL DEPARTAMENTO DE CUNDINAMARCA. | I142: TRANSPORTE | J142: 7504443091 | K142: 7504443091 | L142: 0 | M142: 43819 | N142: 2019 | O142: 098 DE 2019 | P142: 06/03/2020 | Q142: OK | R142: 06/04/2020 | S142: 06/04/2020 | T142: 16/04/2020 | U142: OK | V142: 21/07/2020 | W142: TERMINADO | X142: 1 | Y142: 0.9516
A143: 141 | B143: DESENTRALIZADOS | C143: ICCU - GESPROY GB | D143: DIEGO TORRES / JEIMY FORERO | E143: GIOVANY QUEVEDO | F143: 2019000050079 | G143: MEJORAMIENTO DE LA VÍA SERREZUELA - EL TRIUNFO, MUNICIPIO DE LA CALERA, DEPARTAMENTO DE CUNDINAMARCA | H143: MEJORAR LA INTERCOMUNICACIÓN TERRESTRE DE LA POBLACIÓN DE LOS MUNICIPIOS DE LA CALERA, CHOACHI Y SOPÓ EN EL DEPARTAMENTO DE CUNDINAMARCA | I143: TRANSPORTE | J143: 7614258187 | K143: 7614258187 | L143: 0 | M143: 43748 | N143: 2019 | O143: 094 DE 2019 | P143: 22/11/2019 | Q143: OK | R143: 03/12/2019 | S143: 27/11/2019 | T143: 05/12/2019 | U143: OK | V143: 05/02/2020 | W143: TERMINADO | X143: 0.9429 | Y143: 0.8632
A144: 142 | B144: DESENTRALIZADOS | C144: ICCU - GESPROY GB | D144: DIEGO TORRES / JEIMY FORERO | E144: GIOVANY QUEVEDO | F144: 2019000050085 | G144: MEJORAMIENTO DE LA VÍA QUE CONDUCE DEL MUNICIPIO DE LA MESA AL MUNICIPIO DE CACHIPAY, (DE LA INSPECCIÓN DE PEÑA NEGRA AL MUNICIPIO DE CACHIPAY), DEPARTAMENTO DE CUNDINAMARCA | H144: MEJORAR LA INTERCOMUNICACIÓN TERRESTRE DE LA POBLACIÓN ENTRE LOS MUNICIPIOS DE LA MESA Y CACHIPAY EN EL DEPARTAMENTODE CUNDINAMARCA. | I144: TRANSPORTE | J144: 7019896083 | K144: 7019896083 | L144: 0 | M144: 43852 | N144: 2019 | O144: 96 DE 2019 | P144: 05/03/2020 | Q144: OK | R144: 30/03/2020 | S144: 27/03/2020 | T144: 16/04/2020 | U144: OK | V144: 08/07/2020 | W144: CONTRATADO EN EJECUCIÓN | X144: 0.7135 | Y144: 0.6774
A145: 143 | B145: ENTIDAD APORTANTE RECURSOS | C145: TV ANDINA | D145: ALEXANDER RIVEROS | E145: EDWIN | F145: 2019000050064 | G145: PROTECCIÓN Y PRESERVACIÓN DEL PATRIMONIO AUDIOVISUAL COLOMBIANO QUE SE ENCUENTRA EN EL CANAL PÚBLICO TEVEANDINA LOCALIZADO EN EL DEPARTAMENTO DE CUNDINAMARCA | H145: RECUPERAR EL PATRIMONIO AUDIOVISUAL EN EL CANAL PÚBLICO TEVEANDINA | I145: CULTURA | J145: 5923285198 | K145: $ 5.597.840.098 | L145: 325445100 | M145: 43774 | N145: 2019 | O145: 095 DE 2019 | P145: 24/01/2020 | Q145: OK | R145: 05/03/2020 | S145: 27/12/2019 | T145: 20/03/2020 | U145: OK | V145: 05/03/2020 | W145: CERRADO | X145: 1 | Y145: 0.9935
A146: 144 | B146: ENTIDAD APORTANTE RECURSOS | C146: UNAD | D146: ALEXANDER RIVEROS | E146: ANDRES ACOSTA | F146: 2019000050069 | G146: MEJORAMIENTO DE INFRAESTRUCTURA FÍSICA, DOTACIÓN DE MOBILIARIO Y EQUIPAMIENTO TECNOLÓGICO DE LA UNIVERSIDAD NACIONAL ABIERTA Y A DISTANCIA EN MUNICIPIOS DEL DEPARTAMENTO DE CUNDINAMARCA | H146: MEJORAR LAS CONDICIONES EDUCATIVAS PARA LA FORMACIÓN Y EL DESARROLLO DE COMPETENCIAS BÁSICAS DE ESTUDIANTES EN EDUCACIÓN SUPERIOR DE LA UNAD EN EL DEPARTAMENTO DE CUNDINAMARCA. | I146: EDUCACIÓN | J146: 16011115461 | K146: 16011115461 | L146: 0 | M146: 43774 | N146: 2019 | O146: 095 DE 2019 | P146: 10/02/2020 | Q146: OK | R146: 26/02/2020 | S146: 01/02/2020 | T146: 25/03/2020 | U146: OK | V146: 06/05/2020 | W146: CERRADO | X146: 1 | Y146: 1
A147: 145 | B147: ENTIDAD APORTANTE RECURSOS | C147: U TECNOLOGICA DE PEREIRA | D147: YAHIR ARCINIEGAS | E147: LUIS MANUEL GONZALEZ | F147: 2019000100009 | G147: FORMACIÓN DE CAPITAL HUMANO DE ALTO NIVEL UNIVERSIDAD TECNOLÓGICA DE PEREIRA NACIONAL | H147: INCREMENTAR LAS CAPACIDADES DEL TALENTO HUMANO EN INVESTIGACIÓN DE CALIDAD E IMPACTO, APOYANDO EL PROGRAMA DE FORMACIÓN EN DOCTORADOS | I147: CTEL | J147: 4360028215 | K147: 3950208215 | L147: 409820000 | M147: 43781 | N147: 2019 | O147: 083 DE 2019 | P147: 29/01/2020 | Q147: OK | R147: 17/03/2020 | S147: 21/02/2020 | T147: 10/07/2020 | U147: OK | V147: 14/05/2020 | W147: CONTRATADO EN EJECUCIÓN | X147: 0.6209 | Y147: 0.6534
A148: 146 | B148: ENTIDAD APORTANTE RECURSOS | C148: U EAN | D148: YAHIR ARCINIEGAS | E148: LUIS MANUEL GONZALEZ | F148: 2019000100015 | G148: FORMACIÓN DE CAPITAL HUMANO DE ALTO NIVEL - UNIVERSIDAD EAN - NACIONAL | H148: INCREMENTAR LAS CAPACIDADES DEL TALENTO HUMANO EN INVESTIGACIÓN DE CALIDAD E IMPACTO, APOYANDO EL PROGRAMA DE FORMACIÓN EN DOCTORADOS | I148: CTEL | J148: 1294375000 | K148: 1250000000 | L148: 44375000 | M148: 43830 | N148: 2019 | O148: 087 DE 2019 | P148: 04/05/2020 | Q148: OK | R148: 13/07/2020 | S148: 31/07/2020 | T148: 26/06/2020 | U148: OK | V148: 16/07/2020 | W148: CONTRATADO EN EJECUCIÓN | X148: 0.7029 | Y148: 0.6902
A149: 147 | B149: ENTIDAD APORTANTE RECURSOS | C149: U CATOLICA | D149: YAHIR ARCINIEGAS | E149: LUIS MANUEL GONZALEZ | F149: 2019000100022 | G149: FORMACIÓN DE CAPITAL HUMANO DE ALTO NIVEL - UNIVERSIDAD CATÓLICA DE COLOMBIA - NACIONAL | H149: INCREMENTAR LAS CAPACIDADES DEL TALENTO HUMANO EN INVESTIGACIÓN DE CALIDAD E IMPACTO, APOYANDO EL PROGRAMA DE FORMACIÓN EN DOCTORADOS | I149: CTEL | J149: 343595000 | K149: 299220000 | L149: 44375000 | M149: 43812 | N149: 2019 | O149: 086 DE 2019 | P149: 14/04/2020 | Q149: OK | R149: 10/06/2020 | S149: 17/07/2020 | T149: 13/07/2020 | U149: OK | V149: 11/06/2020 | W149: CONTRATADO EN EJECUCIÓN | X149: 0.8475 | Y149: 0.8379
A150: 148 | B150: ENTIDAD APORTANTE RECURSOS | C150: UNIVERSIDAD MILITAR NUEVA GRANADA | D150: YAHIR ARCINIEGAS | E150: LUIS MANUEL GONZALEZ | F150: 2019000100025 | G150: FORMACIÓN DE CAPITAL HUMANO DE ALTO NIVEL UNIVERSIDAD MILITAR NUEVA GRANADA NACIONAL | H150: INCREMENTAR LAS CAPACIDADES DEL TALENTO HUMANO EN INVESTIGACIÓN DE CALIDAD E IMPACTO, APOYANDO EL PROGRAMA DE FORMACIÓN EN DOCTORADOS | I150: CTEL | J150: 294375000 | K150: 250000000 | L150: 44375000 | M150: 43812 | N150: 2019 | O150: 086 DE 2019 | P150: 06/05/2020 | Q150: OK | R150: 26/06/2020 | S150: 22/04/2020 | T150: 05/06/2020 | U150: OK | V150: 15/07/2020 | W150: CONTRATADO EN EJECUCIÓN | X150: 0.6402 | Y150: 0.6991
A151: 149 | B151: ENTIDAD APORTANTE RECURSOS | C151: UNIVERSIDAD NACIONAL DE COLOMBIA | D151: YAHIR ARCINIEGAS | E151: LUIS MANUEL GONZALEZ | F151: 2019000100026 | G151: FORMACIÓN DE CAPITAL HUMANO DE ALTO NIVEL UNIVERSIDAD NACIONAL DE COLOMBIA NACIONAL | H151: INCREMENTAR LAS CAPACIDADES DEL TALENTO HUMANO EN INVESTIGACIÓN DE CALIDAD E IMPACTO, APOYANDO EL PROGRAMA DE FORMACIÓN EN DOCTORADOS | I151: CTEL | J151: 21162064500 | K151: 20233937500 | L151: 928127000 | M151: 43781 | N151: 2019 | O151: 083 DE 2019 | P151: 03/02/2020 | Q151: OK | R151: 01/04/2020 | S151: 12/03/2020 | T151: 07/04/2020 | U151: OK | V151: 26/05/2020 | W151: CONTRATADO EN EJECUCIÓN | X151: 0.6159 | Y151: 0.6573
A152: 150 | B152: ENTIDAD APORTANTE RECURSOS | C152: U DISTRITAL | D152: YAHIR ARCINIEGAS | E152: LUIS MANUEL GONZALEZ | F152: 2019000100027 | G152: FORMACIÓN DE CAPITAL HUMANO DE ALTO NIVEL EN DOCTORADO PARA EL DESARROLLO REGIONAL, UNIVERSIDAD DISTRITAL FRANCISCO JOSÉ DE CALDAS, A NIVEL NACIONAL | H152: INCREMENTAR LAS CAPACIDADES DEL TALENTO HUMANO EN INVESTIGACIÓN DE CALIDAD E IMPACTO, APOYANDO EL PROGRAMA DE FORMACIÓN EN DOCTORADOS | I152: CTEL | J152: 1218668841 | K152: 1113595753 | L152: 105073088 | M152: 43798 | N152: 2019 | O152: 085 DE 2019 | P152: 20/05/2020 | Q152: OK | R152: 09/07/2020 | S152: 05/06/2020 | T152: 30/06/2020 | U152: OK | V152: 04/08/2020 | W152: CONTRATADO EN EJECUCIÓN | X152: 0.5933 | Y152: 0.4767
A153: 151 | B153: ENTIDAD APORTANTE RECURSOS | C153: U JAVERIANA | D153: YAHIR ARCINIEGAS | E153: LUIS MANUEL GONZALEZ | F153: 2019000100028 | G153: FORMACIÓN DE CAPITAL HUMANO DE ALTO NIVEL PONTIFICIA UNIVERSIDAD JAVERIANA SEDE CENTRAL NACIONAL | H153: INCREMENTAR LAS CAPACIDADES DEL TALENTO HUMANO EN INVESTIGACIÓN DE CALIDAD E IMPACTO, APOYANDO EL PROGRAMA DE FORMACIÓN EN DOCTORADOS | I153: CTEL | J153: 6524500000 | K153: 6524500000 | L153: 0 | M153: 43781 | N153: 2019 | O153: 083 DE 2019 | P153: 26/02/2020 | Q153: OK | R153: 02/07/2020 | S153: 18/05/2020 | T153: 28/04/2020 | U153: OK | V153: 08/05/2020 | W153: CONTRATADO EN EJECUCIÓN | X153: 0.6801 | Y153: 0.6751
A154: 152 | B154: ENTIDAD APORTANTE RECURSOS | C154: U DE LOS ANDES | D154: YAHIR ARCINIEGAS | E154: LUIS MANUEL GONZALEZ | F154: 2019000100036 | G154: FORMACIÓN DE CAPITAL HUMANO DE ALTO NIVEL UNIVERSIDAD DE LOS ANDES NACIONAL | H154: INCREMENTAR LAS CAPACIDADES DEL TALENTO HUMANO EN INVESTIGACIÓN DE CALIDAD E IMPACTO, APOYANDO EL PROGRAMA DE FORMACIÓN EN DOCTORADOS | I154: CTEL | J154: 2814671307 | K154: 2748000000 | L154: 66671307 | M154: 43798 | N154: 2019 | O154: 085 DE 2019 | P154: 31/01/2020 | Q154: OK | R154: 04/03/2020 | S154: 27/04/2020 | T154: 28/02/2020 | U154: OK | V154: 04/03/2020 | W154: CONTRATADO EN EJECUCIÓN | X154: 0.7673 | Y154: 0.7769
A155: 153 | B155: ENTIDAD APORTANTE RECURSOS | C155: UNIVERSIDAD NACIONAL DE COLOMBIA | D155: YAHIR ARCINIEGAS | E155: LUIS MANUEL GONZALEZ | F155: 2019000100061 | G155: FORTALECIMIENTO DE LA CAPACIDAD TECNOLÓGICA INSTALADA EN EL CENTRO AGROPECUARIO MARENGO PARA LA INVESTIGACIÓN EN LOS SISTEMAS AGROPRODUCTIVOS DEL TRÓPICO ALTO, BAJO EL EFECTO DE LA VARIABILIDAD Y CAMBIO CLIMÁTICO - CUNDINAMARCA | H155: SE ESPERA QUE EL MEJORAMIENTO EN LA INFRAESTRUCTURA DEL CENTRO AGROPECUARIO MARENGO (CAM) Y EN EQUIPAMIENTO PERMITA FORTALECER LAS COMPETENCIAS DE LOS PROFESIONALES EN FORMACIÓN DE DIFERENTES ÁREAS (AGRÍCOLA, CIENCIAS BIOLÓGICAS, AGROINDUSTRIAL), ASÍ COMO GENERAR CONOCIMIENTO BÁSICO Y APLICADO MEDIANTE TRABAJOS DE INVESTIGACIÓN DE PREGRADO Y POSGRADO (TESIS DE MAESTRÍA Y DOCTORADO), A LA VEZ DESARROLLAR JORNADAS DE CAPACITACIÓN (DÍAS DE CAMPO, CHARLAS TÉCNICAS, SEMINARIOS). | I155: CTEL | J155: 2521388540 | K155: 1994146760 | L155: 527241780 | M155: 43830 | N155: 2019 | O155: 087 DE 2019 | P155: 31/01/2020 | Q155: OK | R155: 03/03/2020 | S155: 27/04/2020 | T155: 28/02/2020 | U155: OK | V155: 04/03/2020 | W155: CONTRATADO EN EJECUCIÓN | X155: 0.8356 | Y155: 0.5692
A156: 154 | B156: CUNDINAMARCA | C156: SECRETARIA DE CIENCIA, TECNOLOGIA E INNOVACIÓN | D156: ALEXANDER RIVEROS Y YAHIR ARCINIEGAS | E156: LUIS MANUEL GONZALEZ | F156: 2020000100137 | G156: FORTALECIMIENTO DE LAS CAPACIDADES DE INVESTIGACIÓN Y DESARROLLO PARA ATENDER PROBLEMÁTICAS ASOCIADAS CON AGENTES BIOLÓGICOS PARA LA SALUD PÚBLICA, A TRAVÉS DEL MEJORAMIENTO DEL LABORATORIO DE SALUD PÚBLICA DE CUNDINAMARCA | H156: MEJORAR LAS CAPACIDADES EN CTEI PARA ATENDER PROBLEMÁTICAS ASOCIADAS CON AGENTES BIOLÓGICOS DE ALTO RIESGO PARA LA SALUD HUMANA EN EL DEPARTAMENTO DE CUNDINAMARCA | I156: CTEL | J156: 4506359274 | K156: 4048003426 | L156: 458355848 | M156: 43966 | N156: 2020 | O156: 093 DE 2020 | P156: 27/07/2020 | Q156: OK | R156: 09/09/2020 | S156: 22/07/2020 | T156: 16/01/2021 | U156: OK | V156: 09/10/2020 | W156: CONTRATADO EN EJECUCIÓN | X156: 0.7069 | Y156: 0.596
A157: 155 | B157: CUNDINAMARCA | C157: SECRETARIA DE SALUD | D157: DAYANA FERNANDEZ/ LIYUGETH ALFONSO | E157: OLGA LUCIA GARZON | F157: 2020000050003 | G157: ADQUISICIÓN DE AMBULANCIAS,EQUIPOS BIOMÉDICOS, ELEMENTOS DE PROTECCIÓN PERSONAL, ASEO Y DESINFECCIÓN PARA LA ATENCIÓN DE LA CALAMIDAD SANITARIA POR COVID-19 EN LAS E.S.E DEL DEPARTAMENTO DE CUNDINAMARCA | H157: ADQUIRIR AMBULANCIAS Y EQUIPOS MEDICOS PARA LA CALAMIDAD DEL COVID-19 | I157: SALUD Y PROTECCIÓN SOCIAL | J157: 43433295564 | K157: 43433295564 | L157: 0 | M157: 43986 | N157: 2020 | O157: 102 de 2020 | P157: 30/06/2020 | Q157: OK | R157: 10/08/2020 | S157: 23/06/2020 | T157: 23/07/2020 | U157: OK | V157: 25/07/2020 | W157: PARA CIERRE | X157: 0.5438 | Y157: 0.5476
